Workbook

Sheet INDEX
A1: INDEX
A2: Model Specs
A3: 1. Information Sheet
A4: 2. Current Tariff
A5: 3. Continuity Schedule
A6: 4. Billing Det. for Def-Var
A7: 5. Allocating Def-Var Balances
A8: 6. Class A Consumption Data
A9: 6.1a GA Allocation
A10: 6.1 GA
A11: 6.2a CBR B_Allocation
A12: 6.2 CBR B
A13: 8. Calculation of Def-Var RR
A14: 9. STS-Tax Change
A15: 10. Shared Tax - RR
A16: 11. RTSR - Current Rates
A17: 12. RTSR-UTRs & Sub-Tx
A18: 13. RTSR-Historic Wholesale
A19: 14. RTSR-Current Wholesale
A20: 15. RTSR-Forecast Wholesale
A21: 16. RTSR-Rates to Forecast
A22: 17. Rev2Cost-GDPIPI
A23: 18. Regulatory Charges
A24: 19. Additional Rates
A25: 20. Final Tariff Schedule
A26: 21. Bill Impacts
A27: RATES
A28: BoD Reporting

Sheet Model Specs
A1: Back to Index | K1: Lists:
B2: Model Specifications
K3: Yes
B4: Utility | C4: Enersource rate zone | K4: No
B6: Applying for Rates Effective | C6: 2020-01-01 | K6: kWh
K7: kW
K8: kVA
B9: Line Loss Factor | C9: 1.036
K10: Alectra - PowerStream rate zone | L10: PowerStream rate zone
K11: Alectra - Enersource rate zone | L11: Enersource rate zone
K12: Alectra - Horizon rate zone | L12: Horizon rate zone
K13: Alectra - Brampton rate zone | L13: Brampton rate zone
C14: Rate Classes (select from the List) | K14: Alectra - Guelph rate zone | L14: Guelph rate zone
B15: =IFERROR(VLOOKUP(C15,$K$16:$L$31,2,FALSE),"") -> R | C15: RESIDENTIAL SERVICE CLASSIFICATION
B16: GSL | C16: GENERAL SERVICE LESS THAN 50 kW SERVICE CLASSIFICATION | K16: RESIDENTIAL SERVICE CLASSIFICATION | L16: R | M16: R_TN | N16: R_TC
B17: GS50_499 | C17: GENERAL SERVICE 50 to 499 kW SERVICE CLASSIFICATION | K17: GENERAL SERVICE LESS THAN 50 kW SERVICE CLASSIFICATION | L17: GSL | M17: GSL_TN | N17: GSL_TC
B18: GS500 | C18: GENERAL SERVICE 500 to 4,999 kW SERVICE CLASSIFICATION | K18: GENERAL SERVICE 50 to 499 kW SERVICE CLASSIFICATION | L18: GS50_499 | M18: GS50_499_TN | N18: GS50_499_TC
B19: LU | C19: LARGE USE SERVICE CLASSIFICATION | K19: GENERAL SERVICE 50 to 699 KW SERVICE CLASSIFICATION | L19: GS50_699 | M19: GS50_699_TN | N19: GS50_699_TC
B20: SB | C20: STANDBY POWER SERVICE CLASSIFICATION | K20: GENERAL SERVICE 50 to 4,999 kW SERVICE CLASSIFICATION | L20: GS50 | M20: GS50_TN | N20: GS50_TC
B21: USL | C21: UNMETERED SCATTERED LOAD SERVICE CLASSIFICATION | K21: GENERAL SERVICE 500 to 4,999 kW SERVICE CLASSIFICATION | L21: GS500 | M21: GS500_TN | N21: GS500_TC
B22: SL | C22: STREET LIGHTING SERVICE CLASSIFICATION | K22: GENERAL SERVICE 700 to 4,999 KW SERVICE CLASSIFICATION | L22: GS700 | M22: GS700_TN | N22: GS700_TC
K23: LARGE USE SERVICE CLASSIFICATION | L23: LU | M23: LU_TN | N23: LU_TC
B24: =IFERROR(VLOOKUP(C24,$K$16:$L$31,2,FALSE),"") ->  | K24: LARGE USE SERVICE WITH DEDICATED ASSETSCLASSIFICATION | L24: LU_DA | M24: LU_DA_TN | N24: LU_DA_TC
K25: UNMETERED SCATTERED LOAD SERVICE CLASSIFICATION | L25: USL | M25: USL_TN | N25: USL_TC
K26: STREET LIGHTING SERVICE CLASSIFICATION | L26: SL | M26: SL_TN | N26: SL_TC
K27: STANDBY POWER SERVICE CLASSIFICATION | L27: SB | M27: SB | N27: SB
K28: SENTINEL LIGHTING SERVICE CLASSIFICATION | L28: SEN | M28: SEN_TN | N28: SEN_TC
K29: EMBEDDED DISTRIBUTOR SERVICE CLASSIFICATION | L29: EMB | M29: EMB | N29: EMB
K30: DISTRIBUTED GENERATION [DGEN] SERVICE CLASSIFICATION | L30: DG | M30: DG | N30: DG
K31: ENERGY FROM WASTE SERVICE CLASSIFICATION | L31: WST | M31: WST | N31: WST
B34: Have one or more Class A customers | C34: Yes
K36: Newer Disposed
K37: 2015
K38: 2016
K39: 2017
K40: 2018

Sheet 1. Information Sheet
A1: Back to Index | V1: a
B2: INCENTIVE REGULATION MODEL FOR 2020 FILERS
N12: Version | O12: 1
F14: Utility Name | G14: Alectra - Enersource rate zone
F16: Service Territory
F18: Assigned EB Number | G18: EB-2019-0018
F20: Name of Contact and Title | G20: Indy J. Butany-DeSouza, Vice-President, Regulatory Affairs
F22: Phone Number | G22: 905-821-5727
F24: Email Address | G24: indy.butany@alectrautilities.com
F26: We are applying for rates effective | G26: 2020-01-01
F28: Rate-Setting Method | G28: Price Cap IR
B30: Please indicate in which Rate Year the Group 1 accounts were last cleared1 | G30: 2019
B32: Please indicate the last Cost of Service Re-Basing Year | G32: 2017
C35: Notes
D37: Pale gray cells represent input cells.
D39: Pale blue cells represent drop-down lists.
D41: White cells contain fixed values, automatically generated values or formulae.
B44: Note: 1. Rate year of application

Sheet 2. Current Tariff
A1: Back to Index | B1: Alectra Utilities Corporation
B2: Enersource Rate Zone
B3: TARIFF OF RATES AND CHARGES
B4: Effective Date January 1, 2019
B5: Implementation Date February 1, 2019
B6: This schedule supersedes and replaces all previously
B7: approved schedules of Rates, Charges and Loss Factors
B8: EB-2018-0016
B10: RESIDENTIAL SERVICE CLASSIFICATION
B12: This classification refers to all residential services including, without limitation, single family or single unit dwellings, multifamily dwellings, row-type dwellings and subdivision developments. Energy is supplied in single phase, 3-wire, or three phase, 4 wire, having a nominal voltage of 120/240 volts. There shall be only one delivery point to a dwelling. Class B consumers are defined in accordance with O. Reg. 429/04. Further servicing details are available in the distributor’s Conditions of Service.
B14: APPLICATION
B16: The application of these rates and charges shall be in accordance with the Licence of the Distributor and any Code or Order of the Ontario Energy Board, and amendments thereto as approved by the Ontario Energy Board, which may be applicable to the administration of this schedule.
B18: No rates and charges for the distribution of electricity and charges to meet the costs of any work or service done or furnished for the purpose of the distribution of electricity shall be made except as permitted by this schedule, unless required by the Distributor’s Licence or a Code or Order of the Ontario Energy Ontario Energy Board, and amendments thereto as approved by the Ontario Energy Board, or as specified herein.
B20: Unless specifically noted, this schedule does not contain any charges for the electricity commodity, be it under the Regulated Price Plan, a contract with a retailer or the wholesale market price, as applicable. In addition, the charges in the MONTHLY RATES AND CHARGES - Regulatory Component of this schedule do not apply to a customer that is an embedded wholesale market participant.
B22: It should be noted that this schedule does not list any charges, assessments, or credits that are required by law to be invoiced by a distributor and that are not subject to Ontario Energy Board approval, such as the Global Adjustment and the HST.
B24: MONTHLY RATES AND CHARGES - Delivery Component
A26: R_F | B26: Service Charge | D26: $ | E26: 24.25
A27: R_FRR19 | B27: Rate Rider for Recovery of 2019 Foregone Revenue - effective until December 31, 2019 | D27: $ | E27: 0.03
A28: R_ICMF19 | B28: Rate Rider for Recovery of Incremental Capital (2019) - in effect from March 1, 2019 until the effective date of the next cost of service based rate order | D28: $ | E28: 0.12
A29: R_ICMF18 | B29: Rate Rider for Recovery of Incremental Capital (2018) - in effect until the effective date of the next cost of service based rate order | D29: $ | E29: 0.16
A30: R_ICMF17 | B30: Rate Rider for Recovery of Incremental Capital (2017) - in effect until the effective date of the next cost of service based rate order | D30: $ | E30: 0.6
A31: R_SME | B31: Smart Metering Entity Charge - effective until December 31, 2022 | D31: $ | E31: 0.57
A32: R_LV | B32: Low Voltage Service Rate | D32: $/kWh | E32: 0.0002
A33: R_GA19 | B33: Rate Rider for Disposition of Global Adjustment Account (2019) - effective until December 31, 2019 Applicable only for Non-RPP Customers - Approved on an Interim Basis | D33: $/kWh | E33: 0.0019
A34: R_GA18 | B34: Rate Rider for Disposition of Global Adjustment Account (2018) - effective until April 30, 2019 - Applicable only for Non-RPP Customers | D34: $/kWh | E34: -0.0005
A35: R_DVA19 | B35: Rate Rider for Disposition of Deferral/Variance Accounts (2019) - effective until December 31, 2019 - Approved on an Interim Basis | D35: $/kWh | E35: -0.0004
A36: R_DVA18 | B36: Rate Rider for Disposition of Deferral/Variance Accounts (2018) - effective until April 30, 2019 | D36: $/kWh | E36: -0.0007
A37: R_CBR18 | B37: Rate Rider for Disposition of Capacity Based Recovery Account (2018) - effective until April 30, 2019 -Applicable Only for Class B Customers | D37: $/kWh | E37: -5e-05
A38: R_LRV19 | B38: Rate Rider for Disposition of Lost Revenue Adjustment Mechanism Variance Account (LRAMVA) (2019) - effective until December 31, 2019 | D38: $/kWh | E38: 0.0002
A39: R_LRV18 | B39: Rate Rider for Disposition of Lost Revenue Adjustment Mechanism Variance Account (LRAMVA) (2018) - effective until April 30, 2019 | D39: $/kWh | E39: -0.0002
A40: R_TN | B40: Retail Transmission Rate - Network Service Rate | D40: $/kWh | E40: 0.0076
A41: R_TC | B41: Retail Transmission Rate - Line and Transformation Connection Service Rate | D41: $/kWh | E41: 0.0073
B42: -
B43: MONTHLY RATES AND CHARGES - Regulatory Component
B45: Wholesale Market Service Rate (WMS) - not including CBR | D45: $/kWh | E45: 0.003
B46: Capacity Based Recovery (CBR) - Applicable for Class B Customers | D46: $/kWh | E46: 0.0004
B47: Rural or Remote Electricity Rate Protection Charge (RRRP) | D47: $/kWh | E47: 0.0005
B48: Standard Supply Service - Administrative Charge (if applicable) | D48: $ | E48: 0.25
B51: GENERAL SERVICE LESS THAN 50 KW SERVICE CLASSIFICATION
B53: This classification refers to a non-residential account whose monthly average peak demand is less than, or is forecast to be less than, 50 kW. Class B consumers are defined in accordance with O. Reg. 429/04. Further servicing details are available in the distributor’s Conditions of Service.
B55: APPLICATION
B57: The application of these rates and charges shall be in accordance with the Licence of the Distributor and any Code or Order of the Ontario Energy Board, and amendments thereto as approved by the Ontario Energy Board, which may be applicable to the administration of this schedule.
B59: No rates and charges for the distribution of electricity and charges to meet the costs of any work or service done or furnished for the purpose of the distribution of electricity shall be made except as permitted by this schedule, unless required by the Distributor’s Licence or a Code or Order of the Ontario Energy Board, and amendments thereto as approved by the Ontario Energy Board, or as specified herein.
B61: Unless specifically noted, this schedule does not contain any charges for the electricity commodity, be it under the Regulated Price Plan, a contract with a retailer or the wholesale market price, as applicable. In addition, the charges in the MONTHLY RATES AND CHARGES - Regulatory Component of this schedule do not apply to a customer that is an embedded wholesale market participant.
B63: It should be noted that this schedule does not list any charges, assessments, or credits that are required by law to be invoiced by a distributor and that are not subject to Ontario Energy Board approval, such as the Global Adjustment and the HST.
B65: MONTHLY RATES AND CHARGES - Delivery Component
A67: GSL_F | B67: Service Charge | D67: $ | E67: 44.52
A68: GSL_FRR19 | B68: Rate Rider for Recovery of 2019 Foregone Revenue - effective until December 31, 2019 | D68: $ | E68: 0.1
A69: GSL_ICMF19 | B69: Rate Rider for Recovery of Incremental Capital (2019) - in effect from March 1, 2019 until the effective date of the next cost of service based rate order | D69: $ | E69: 0.21
A70: GSL_ICMF18 | B70: Rate Rider for Recovery of Incremental Capital (2018) - in effect until the effective date of the next cost of service based rate order | D70: $ | E70: 0.29
A71: GSL_ICMF17 | B71: Rate Rider for Recovery of Incremental Capital (2017) - in effect until the effective date of the next cost of service based rate order | D71: $ | E71: 1.1
A72: GSL_SME | B72: Smart Metering Entity Charge - effective until December 31, 2022 | D72: $ | E72: 0.57
A73: GSL_V | B73: Distribution Volumetric Rate | D73: $/kWh | E73: 0.013
A74: GSL_LV | B74: Low Voltage Service Rate | D74: $/kWh | E74: 0.0002
A75: GSL_GA19 | B75: Rate Rider for Disposition of Global Adjustment Account (2019) - effective until December 31, 2019 Applicable only for Non-RPP Customers - Approved on an Interim Basis | D75: $/kWh | E75: 0.0019
A76: GSL_GA18 | B76: Rate Rider for Disposition of Global Adjustment Account (2018) - effective until April 30, 2019 - Applicable only for Non-RPP Customers | D76: $/kWh | E76: -0.0005
A77: GSL_DVA19 | B77: Rate Rider for Disposition of Deferral/Variance Accounts (2019) - effective until December 31, 2019 - Approved on an Interim Basis | D77: $/kWh | E77: -0.0004
A78: GSL_DVA18 | B78: Rate Rider for Disposition of Deferral/Variance Accounts (2018) - effective until April 30, 2019 | D78: $/kWh | E78: -0.0007
A79: GSL_CBR18 | B79: Rate Rider for Disposition of Capacity Based Recovery Account (2018) - effective until April 30, 2019 - Applicable Only for Class B Customers | D79: $/kWh | E79: -5e-05
A80: GSL_LRV19 | B80: Rate Rider for Disposition of Lost Revenue Adjustment Mechanism Variance Account (LRAMVA) (2019) - effective until December 31, 2019 | D80: $/kWh | E80: 0.0003
A81: GSL_LRV18 | B81: Rate Rider for Disposition of Lost Revenue Adjustment Mechanism Variance Account (LRAMVA) (2018) - effective until April 30, 2019 | D81: $/kWh | E81: 0.0006
A82: GSL_ICMV19 | B82: Rate Rider for Recovery of Incremental Capital (2019) - in effect from March 1, 2019 until the effective date of the next cost of service based rate order | D82: $/kWh | E82: 0.0001
A83: GSL_ICMV18 | B83: Rate Rider for Recovery of Incremental Capital (2018) - in effect until the effective date of the next cost of service based rate order | D83: $/kWh | E83: 0.0001
A84: GSL_ICMV17 | B84: Rate Rider for Recovery of Incremental Capital (2017) - in effect until the effective date of the next cost of service based rate order | D84: $/kWh | E84: 0.0003
A85: GSL_TN | B85: Retail Transmission Rate - Network Service Rate | D85: $/kWh | E85: 0.0071
A86: GSL_TC | B86: Retail Transmission Rate - Line and Transformation Connection Service Rate | D86: $/kWh | E86: 0.0065
B88: MONTHLY RATES AND CHARGES - Regulatory Component
B90: Wholesale Market Service Rate (WMS) - not including CBR | D90: $/kWh | E90: 0.003
B91: Capacity Based Recovery (CBR) - Applicable for Class B Customers | D91: $/kWh | E91: 0.0004
B92: Rural or Remote Electricity Rate Protection Charge (RRRP) | D92: $/kWh | E92: 0.0005
B93: Standard Supply Service - Administrative Charge (if applicable) | D93: $ | E93: 0.25
B96: GENERAL SERVICE 50 TO 499 KW SERVICE CLASSIFICATION
B98: This classification refers to a non-residential account whose monthly average peak demand is equal to or greater than, or is forecast to be equal to or greater than, 50 kW but less than 500 kW. Class B consumers are defined in accordance with O. Reg. 429/04. Further servicing details are available in the distributor’s Conditions of Service.
B100: APPLICATION
B102: The application of these rates and charges shall be in accordance with the Licence of the Distributor and any Code or Order of the Ontario Energy Board, and amendments thereto as approved by the Ontario Energy Board, which may be applicable to the administration of this schedule.
B104: No rates and charges for the distribution of electricity and charges to meet the costs of any work or service done or furnished for the purpose of the distribution of electricity shall be made except as permitted by this schedule, unless required by the Distributor’s Licence or a Code or Order of the Ontario Energy Board, and amendments thereto as approved by the Ontario Energy Board, or as specified herein.
B106: Unless specifically noted, this schedule does not contain any charges for the electricity commodity, be it under the Regulated Price Plan, a contract with a retailer or the wholesale market price, as applicable. In addition, the charges in the MONTHLY RATES AND CHARGES - Regulatory Component of this schedule do not apply to a customer that is an embedded wholesale market participant.
B108: It should be noted that this schedule does not list any charges, assessments, or credits that are required by law to be invoiced by a distributor and that are not subject to Ontario Energy Board approval, such as the Global Adjustment and the HST.
B110: Billing demands are established at the greater of 100% of the kW, or 90% of the kVA amounts.
B112: MONTHLY RATES AND CHARGES - Delivery Component
A114: GS50_499_F | B114: Service Charge | D114: $ | E114: 78.41
A115: GS50_499_FRR19 | B115: Rate Rider for Recovery of 2019 Foregone Revenue - effective until December 31, 2019 | D115: $ | E115: 0.75
A116: GS50_499_ICMF19 | B116: Rate Rider for Recovery of Incremental Capital (2019) - in effect from March 1, 2019 until the effective date of the next cost of service based rate order | D116: $ | E116: 0.38
A117: GS50_499_ICMF18 | B117: Rate Rider for Recovery of Incremental Capital (2018) - in effect until the effective date of the next cost of service based rate order | D117: $ | E117: 0.51
A118: GS50_499_ICMF17 | B118: Rate Rider for Recovery of Incremental Capital (2017) - in effect until the effective date of the next cost of service based rate order | D118: $ | E118: 1.93
A119: GS50_499_V | B119: Distribution Volumetric Rate | D119: $/kW | E119: 4.7189
A120: GS50_499_LV | B120: Low Voltage Service Rate | D120: $/kW | E120: 0.0802
A121: GS50_499_GA19 | B121: Rate Rider for Disposition of Global Adjustment Account (2019) - effective until December 31, 2019 Applicable only for Non-RPP Customers Non-Wholesale Market Participants - Approved on an Interim Basis | D121: $/kWh | E121: 0.0019
A122: GS50_499_GA18 | B122: Rate Rider for Disposition of Global Adjustment Account (2018) - effective until April 30, 2019 Applicable only for Non-RPP Customers Non-Wholesale Market Participants | D122: $/kWh | E122: -0.0005
A123: GS50_499_DVA19 | B123: Rate Rider for Disposition of Deferral/Variance Accounts (2019) - effective until December 31, 2019 - Approved on an Interim Basis | D123: $/kW | E123: 0.2394
A124: GS50_499_DVA19nonWMP | B124: Rate Rider for Disposition of Deferral/Variance Accounts (2019) - effective until December 31, 2019 Applicable only for Non-Wholesale Market Participants - Approved on an Interim Basis | D124: $/kW | E124: -0.379
A125: GS50_499_DVA18 | B125: Rate Rider for Disposition of Deferral/Variance Accounts (2018) - effective until April 30, 2019 | D125: $/kW | E125: 0.1005
A126: GS50_499_DVA18nonWMP | B126: Rate Rider for Disposition of Deferral/Variance Accounts (2018) - effective until April 30, 2019 - Applicable only for Non-Wholesale Market Participants | D126: $/kW | E126: -0.3538
A127: GS50_499_CBR18 | B127: Rate Rider for Disposition of Capacity Based Recovery Account (2018) - effective until April 30, 2019 Applicable Only for Non-Wholesale Market Participants Class B Customers | D127: $/kW | E127: -0.01606
A128: GS50_499_LRV19 | B128: Rate Rider for Disposition of Lost Revenue Adjustment Mechanism Variance Account (LRAMVA) (2019) - effective until December 31, 2019 | D128: $/kW | E128: 0.229
A129: GS50_499_LRV18 | B129: Rate Rider for Disposition of Lost Revenue Adjustment Mechanism Variance Account (LRAMVA) (2018) - effective until April 30, 2019 | D129: $/kW | E129: 0.4585
A130: GS50_499_ICMV19 | B130: Rate Rider for Recovery of Incremental Capital (2019) - in effect from March 1, 2019 until the effective date of the next cost of service based rate order | D130: $/kW | E130: 0.0226
A131: GS50_499_ICMV18 | B131: Rate Rider for Recovery of Incremental Capital (2018) - in effect until the effective date of the next cost of service based rate order | D131: $/kW | E131: 0.0308
A132: GS50_499_ICMV17 | B132: Rate Rider for Recovery of Incremental Capital (2017) - in effect until the effective date of the next cost of service based rate order | D132: $/kW | E132: 0.1163
A133: GS50_499_TN | B133: Retail Transmission Rate - Network Service Rate | D133: $/kW | E133: 2.7289
A134: GS50_499_TC | B134: Retail Transmission Rate - Line and Transformation Connection Service Rate | D134: $/kW | E134: 2.5929
B136: MONTHLY RATES AND CHARGES - Regulatory Component
B138: Wholesale Market Service Rate (WMS) - not including CBR | D138: $/kWh | E138: 0.003
B139: Capacity Based Recovery (CBR) - Applicable for Class B Customers | D139: $/kWh | E139: 0.0004
B140: Rural or Remote Electricity Rate Protection Charge (RRRP) | D140: $/kWh | E140: 0.0005
B141: Standard Supply Service - Administrative Charge (if applicable) | D141: $ | E141: 0.25
B143: GENERAL SERVICE 500 TO 4,999 KW SERVICE CLASSIFICATION
B144: This classification refers to a non-residential account whose monthly average peak demand is equal to or greater than, or is forecast to be equal to or greater than, 500 kW but less than 5,000 kW. Class A and Class B consumers are defined in accordance with O. Reg. 429/04. Further servicing details are available in the distributor’s Conditions of Service.
B146: APPLICATION
B148: The application of these rates and charges shall be in accordance with the Licence of the Distributor and any Code or Order of the Ontario Energy Board, and amendments thereto as approved by the Ontario Energy Board, which may be applicable to the administration of this schedule.
B150: No rates and charges for the distribution of electricity and charges to meet the costs of any work or service done or furnished for the purpose of the distribution of electricity shall be made except as permitted by this schedule, unless required by the Distributor’s Licence or a Code or Order of the Ontario Energy Board, and amendments thereto as approved by the Ontario Energy Board, or as specified herein.
B152: Unless specifically noted, this schedule does not contain any charges for the electricity commodity, be it under the Regulated Price Plan, a contract with a retailer or the wholesale market price, as applicable. In addition, the charges in the MONTHLY RATES AND CHARGES - Regulatory Component of this schedule do not apply to a customer that is an embedded wholesale market participant.
B154: The rate rider for the disposition of WMS Sub-Account CBR Class B is not applicable to wholesale market participant (WMP) customers. It is not applicable to WMP customers that transitioned between Class A and Class B during the variance account accumulation period, or to customers that were in Class A for the entire period. Customers that transitioned are to be charged or refunded their share of the variance disposed through customer specific billing adjustments. The rate rider is to be consistently applied for the entire period to the sunset date of the rate rider. In addition, this rate rider is applicable to all new non-RPP Class B customers.
B156: The rate rider for the disposition of Global Adjustment is only applicable to non-RPP Class B customers. It is not applicable to WMP customers that transitioned between Class A and Class B during the variance account accumulation period, or to customers that were in Class A for the entire period. Customers that transitioned are to be charged or refunded their share of the variance disposed through customer specific billing adjustments. The rate rider is to be consistently applied for the entire period to the sunset date of the rate rider. In addition, this rate rider is applicable to all new non-RPP Class B customers.
B158: It should be noted that this schedule does not list any charges, assessments, or credits that are required by law to be invoiced by a distributor and that are not subject to Ontario Energy Board approval, such as the Global Adjustment and the HST.
B160: Billing demands are established at the greater of 100% of the kW, or 90% of the kVA amounts.
B162: MONTHLY RATES AND CHARGES - Delivery Component
A164: GS500_F | B164: Service Charge | D164: $ | E164: 1785.59
A165: GS500_FRR19 | B165: Rate Rider for Recovery of 2019 Foregone Revenue - effective until December 31, 2019 | D165: $ | E165: 3.96
A166: GS500_ICMF19 | B166: Rate Rider for Recovery of Incremental Capital (2019) - in effect from March 1, 2019 until the effective date of the next cost of service based rate order | D166: $ | E166: 8.54
A167: GS500_ICMF18 | B167: Rate Rider for Recovery of Incremental Capital (2018) - in effect until the effective date of the next cost of service based rate order | D167: $ | E167: 11.65
A168: GS500_ICMF17 | B168: Rate Rider for Recovery of Incremental Capital (2017) - in effect until the effective date of the next cost of service based rate order | D168: $ | E168: 44
A169: GS500_V | B169: Distribution Volumetric Rate | D169: $/kW | E169: 2.4282
A170: GS500_LV | B170: Low Voltage Service Rate | D170: $/kW | E170: 0.0784
A171: GS500_GA19 | B171: Rate Rider for Disposition of Global Adjustment Account (2019) - effective May 1, 2019 until December 31, 2019 Applicable only for Non-RPP Customers Non-Wholesale Market Participants - Approved on an Interim Basis | D171: $/kWh | E171: 0.0026
A172: GS500_GA18 | B172: Rate Rider for Disposition of Global Adjustment Account (2018) - effective until April 30, 2019 Applicable only for Non-RPP Customers Non-Wholesale Market Participants | D172: $/kWh | E172: -0.0005
A173: GS500_DVA19 | B173: Rate Rider for Disposition of Deferral/Variance Accounts (2019) - effective until December 31, 2019 - Approved on an Interim Basis | D173: $/kW | E173: 0.3019
A174: GS500_DVA19nonWMP | B174: Rate Rider for Disposition of Deferral/Variance Accounts (2019) - effective until December 31, 2019 Applicable only for Non-Wholesale Market Participants - Approved on an Interim Basis | D174: $/kW | E174: -0.4774
A175: GS500_DVA18 | B175: Rate Rider for Disposition of Deferral/Variance Accounts (2018) - effective May 1, 2018 until April 30, 2019 | D175: $/kW | E175: 0.1272
A176: GS500_DVA18nonWMP | B176: Rate Rider for Disposition of Deferral/Variance Accounts (2018) - effective until April 30, 2019 - Applicable only for Non-Wholesale Market Participants | D176: $/kW | E176: -0.4465
A177: GS500_CBR18 | B177: Rate Rider for Disposition of Capacity Based Recovery Account (2018) - effective until April 30, 2019 Applicable Only for Non-Wholesale Market Participants Class B Customers | D177: $/kW | E177: -0.01999
A178: GS500_LRV19 | B178: Rate Rider for Disposition of Lost Revenue Adjustment Mechanism Variance Account (LRAMVA) (2019) - effective until December 31, 2019 | D178: $/kW | E178: 0.1001
A179: GS500_LRV18 | B179: Rate Rider for Disposition of Lost Revenue Adjustment Mechanism Variance Account (LRAMVA) (2018) - effective until April 30, 2019 | D179: $/kW | E179: 0.141
A180: GS500_ICMV19 | B180: Rate Rider for Recovery of Incremental Capital (2019) - in effect from March 1, 2019 until the effective date of the next cost of service based rate order | D180: $/kW | E180: 0.0116
A181: GS500_ICMV18 | B181: Rate Rider for Recovery of Incremental Capital (2018) - in effect until the effective date of the next cost of service based rate order | D181: $/kW | E181: 0.0158
A182: GS500_ICMV17 | B182: Rate Rider for Recovery of Incremental Capital (2017) - in effect until the effective date of the next cost of service based rate order | D182: $/kW | E182: 0.0598
A183: GS500_TN | B183: Retail Transmission Rate - Network Service Rate | D183: $/kW | E183: 2.6402
A184: GS500_TC | B184: Retail Transmission Rate - Line and Transformation Connection Service Rate | D184: $/kW | E184: 2.5373
B186: MONTHLY RATES AND CHARGES - Regulatory Component
B188: Wholesale Market Service Rate (WMS) - not including CBR | D188: $/kWh | E188: 0.003
B189: Capacity Based Recovery (CBR) - Applicable for Class B Customers | D189: $/kWh | E189: 0.0004
B190: Rural or Remote Electricity Rate Protection Charge (RRRP) | D190: $/kWh | E190: 0.0005
B191: Standard Supply Service - Administrative Charge (if applicable) | D191: $ | E191: 0.25
B194: LARGE USE SERVICE CLASSIFICATION
B196: This classification refers to an account whose monthly average peak demand is equal to or greater than, or is forecast to be equal to or greater than, 5,000 kW. Class A and Class B consumers are defined in accordance with O. Reg. 429/04. Further servicing details are available in the distributor’s Conditions of Service.
B198: APPLICATION
B200: The application of these rates and charges shall be in accordance with the Licence of the Distributor and any Code or Order of the Ontario Energy Board, and amendments thereto as approved by the Ontario Energy Board, which may be applicable to the administration of this schedule.
B202: No rates and charges for the distribution of electricity and charges to meet the costs of any work or service done or furnished for the purpose of the distribution of electricity shall be made except as permitted by this schedule, unless required by the Distributor’s Licence or a Code or Order of the Ontario Energy Board, and amendments thereto as approved by the Ontario Energy Board, or as specified herein.
B204: Unless specifically noted, this schedule does not contain any charges for the electricity commodity, be it under the Regulated Price Plan, a contract with a retailer or the wholesale market price, as applicable. In addition, the charges in the MONTHLY RATES AND CHARGES - Regulatory Component of this schedule do not apply to a customer that is an embedded wholesale market participant.
B206: It should be noted that this schedule does not list any charges, assessments, or credits that are required by law to be invoiced by a distributor and that are not subject to Ontario Energy Board approval, such as the Global Adjustment and the HST.
B208: Billing demands are established at the greater of 100% of the kW, or 90% of the kVA amounts.
B210: MONTHLY RATES AND CHARGES - Delivery Component
A212: LU_F | B212: Service Charge | D212: $ | E212: 14078.67
A213: LU_FRR19 | B213: Rate Rider for Recovery of 2019 Foregone Revenue - effective until December 31, 2019 | D213: $ | E213: 64.34
A214: LU_ICMF19 | B214: Rate Rider for Recovery of Incremental Capital (2019) - in effect from March 1, 2019 until the effective date of the next cost of service based rate order | D214: $ | E214: 67.35
A215: LU_ICMF18 | B215: Rate Rider for Recovery of Incremental Capital (2018) - in effect until the effective date of the next cost of service based rate order | D215: $ | E215: 91.89
A216: LU_ICMF17 | B216: Rate Rider for Recovery of Incremental Capital (2017) - in effect until the effective date of the next cost of service based rate order | D216: $ | E216: 346.9
A217: LU_V | B217: Distribution Volumetric Rate | D217: $/kW | E217: 3.0139
A218: LU_LV | B218: Low Voltage Service Rate | D218: $/kW | E218: 0.0838
A219: LU_DVA19 | B219: Rate Rider for Disposition of Deferral/Variance Accounts (2019) - effective until December 31, 2019 - Approved on an Interim Basis | D219: $/kW | E219: -0.2264
A220: LU_DVA18 | B220: Rate Rider for Disposition of Deferral/Variance Accounts (2018) - effective until April 30, 2019 | D220: $/kW | E220: -0.4054
A221: LU_LRV19 | B221: Rate Rider for Disposition of Lost Revenue Adjustment Mechanism Variance Account (LRAMVA) (2019) - effective until December 31, 2019 | D221: $/kW | E221: 0.0941
A222: LU_LRV18 | B222: Rate Rider for Disposition of Lost Revenue Adjustment Mechanism Variance Account (LRAMVA) (2018) - effective until April 30, 2019 | D222: $/kW | E222: 0.088
A223: LU_ICMV19 | B223: Rate Rider for Recovery of Incremental Capital (2019) - in effect from March 1, 2019 until the effective date of the next cost of service based rate order | D223: $/kW | E223: 0.0144
A224: LU_ICMV18 | B224: Rate Rider for Recovery of Incremental Capital (2018) - in effect until the effective date of the next cost of service based rate order | D224: $/kW | E224: 0.0197
A225: LU_ICMV17 | B225: Rate Rider for Recovery of Incremental Capital (2017) - in effect until the effective date of the next cost of service based rate order | D225: $/kW | E225: 0.0743
A226: LU_TN | B226: Retail Transmission Rate - Network Service Rate – Interval Metered | D226: $/kW | E226: 2.8174
A227: LU_TC | B227: Retail Transmission Rate - Line and Transformation Connection Service Rate – Interval Metered | D227: $/kW | E227: 2.71
B229: MONTHLY RATES AND CHARGES - Regulatory Component
B231: Wholesale Market Service Rate (WMS) - not including CBR | D231: $/kWh | E231: 0.003
B232: Capacity Based Recovery (CBR) - Applicable for Class B Customers | D232: $/kWh | E232: 0.0004
B233: Rural or Remote Electricity Rate Protection Charge (RRRP) | D233: $/kWh | E233: 0.0005
B234: Standard Supply Service - Administrative Charge (if applicable) | D234: $ | E234: 0.25
B237: UNMETERED SCATTERED LOAD SERVICE CLASSIFICATION
B239: This classification applies to an account taking electricity at 750 volts or less whose average monthly maximum demand is less than, or is forecast to be less than, 50 kW and the consumption is unmetered. The amount of electricity consumed by unmetered connections will be based on detailed information/documentation provided by the device's manufacturer abd will be agreed to by Alectra Utilities and the customer and may be subject to periodic monitoring of actual consumption. Eligible onmetered loads include cable TV power packs, bus shelters, telephone booths, traffic lights, railway crossings, etc. Class B consumers are defined in accordance with O. Reg. 429/04. Further servicing details are available in the distributor’s Conditions of Service.
B241: APPLICATION
B243: The application of these rates and charges shall be in accordance with the Licence of the Distributor and any Code or Order of the Ontario Energy Board, and amendments thereto as approved by the Ontario Energy Board, which may be applicable to the administration of this schedule.
B245: No rates and charges for the distribution of electricity and charges to meet the costs of any work or service done or furnished for the purpose of the distribution of electricity shall be made except as permitted by this schedule, unless required by the Distributor’s Licence or a Code or Order of the Ontario Energy Board, and amendments thereto as approved by the Ontario Energy Board, or as specified herein.
B247: Unless specifically noted, this schedule does not contain any charges for the electricity commodity, be it under the Regulated Price Plan, a contract with a retailer or the wholesale market price, as applicable. In addition, the charges in the MONTHLY RATES AND CHARGES - Regulatory Component of this schedule do not apply to a customer that is an embedded wholesale market participant.
B249: It should be noted that this schedule does not list any charges, assessments, or credits that are required by law to be invoiced by a distributor and that are not subject to Ontario Energy Board approval, such as the Global Adjustment and the HST.
B251: MONTHLY RATES AND CHARGES - Delivery Component
A253: USL_F | B253: Service Charge (per connection) | D253: $ | E253: 9.19
A254: USL_FRR19 | B254: Rate Rider for Recovery of 2019 Foregone Revenue - effective until December 31, 2019 | D254: $ | E254: 0.02
A255: USL_ICMF19 | B255: Rate Rider for Recovery of Incremental Capital (2019) - in effect from March 1, 2019 until the effective date of the next cost of service based rate order | D255: $ | E255: 0.04
A256: USL_ICMF18 | B256: Rate Rider for Recovery of Incremental Capital (2018) - in effect until the effective date of the next cost of service based rate order | D256: $ | E256: 0.06
A257: USL_ICMF17 | B257: Rate Rider for Recovery of Incremental Capital (2017) - in effect until the effective date of the next cost of service based rate order | D257: $ | E257: 0.23
A258: USL_V | B258: Distribution Volumetric Rate | D258: $/kWh | E258: 0.0167
A259: USL_LV | B259: Low Voltage Service Rate | D259: $/kWh | E259: 0.0002
A260: USL_GA19 | B260: Rate Rider for Disposition of Global Adjustment Account (2019) - effective until December 31, 2019 Applicable only for Non-RPP Customers Non-Wholesale Market Participants - Approved on an Interim Basis | D260: $/kWh | E260: 0.0019
A261: USL_GA18 | B261: Rate Rider for Disposition of Global Adjustment Account (2018) - effective until April 30, 2019 Applicable only for Non-RPP Customers Non-Wholesale Market Participants | D261: $/kWh | E261: -0.0005
A262: USL_DVA19 | B262: Rate Rider for Disposition of Deferral/Variance Accounts (2019) - effective until December 31, 2019 - Approved on an Interim Basis | D262: $/kWh | E262: -0.0004
A263: USL_DVA18 | B263: Rate Rider for Disposition of Deferral/Variance Accounts (2018) - effective until April 30, 2019 | D263: $/kWh | E263: -0.0007
A264: USL_CBR18 | B264: Rate Rider for Disposition of Capacity Based Recovery Account (2018) - effective until April 30, 2019 - Applicable Only for Class B Customers | D264: $/kWh | E264: -5e-05
A265: USL_ICMV19 | B265: Rate Rider for Recovery of Incremental Capital (2019) - in effect from March 1, 2019 until the effective date of the next cost of service based rate order | D265: $/kWh | E265: 0.0001
A266: USL_ICMV18 | B266: Rate Rider for Recovery of Incremental Capital (2018) - in effect until the effective date of the next cost of service based rate order | D266: $/kWh | E266: 0.0001
A267: USL_ICMV17 | B267: Rate Rider for Recovery of Incremental Capital (2017) - in effect until the effective date of the next cost of service based rate order | D267: $/kWh | E267: 0.0004
A268: USL_TN | B268: Retail Transmission Rate - Network Service Rate | D268: $/kWh | E268: 0.0071
A269: USL_TC | B269: Retail Transmission Rate - Line and Transformation Connection Service Rate | D269: $/kWh | E269: 0.0065
B271: MONTHLY RATES AND CHARGES - Regulatory Component
B273: Wholesale Market Service Rate (WMS) - not including CBR | D273: $/kWh | E273: 0.003
... 109 more rows

Sheet 3. Continuity Schedule
A1: Back to Index | B1: Back to Index | CB1: FALSE
C2: INCENTIVE REGULATION MODEL FOR 2020 FILERS | CB2: FALSE
CB3: FALSE
CB4: FALSE
CB5: FALSE
CB6: FALSE
CB7: FALSE
CB8: FALSE
CB9: FALSE
CB10: TRUE
CB11: TRUE
C12: Please complete the following continuity schedule for the following Deferral/Variance Accounts. Enter information into green cells only. Column CE shoudl match the latest 2.1.7 RRR filing. When inputting balances in the continuity schedule, Account 1580 RSVA - Wholesale Market Service Charge is to exclude any amounts relating to CBR. The CBR amounts are to be entered separately in the Class A and Class B 1580 sub-accounts. Only Class B amounts are to be disposed. Class A amounts are not to be disposed. If you have received approval to dispose of balances from prior years, the starting point for entries in the schedule below will be the balance sheet date as per your general ledger for which you received approval. For example, if in the 2020 EDR process (CoS or IRM) you received approval for the December 31, 2014 balances, the starting point for your entries below should be the 2013 year. This will allow for the correct starting point for the 2014 opening balance columns for both principal and interest. Please refer to the footnotes for further instructions.
E16: 2013 | O16: =E16+1 -> 2014 | Y16: =O16+1 -> 2015 | AI16: =Y16+1 -> 2016 | AS16: =AI16+1 -> 2017 | BC16: =AS16+1 -> 2018 | BM16: 2019 | BQ16: Projected Interest on Dec-31-18 Balances | BV16: 2.1.7 RRR
C17: Account Descriptions | D17: Account Number | E17: Opening Principal Amounts as of Jan 1, 2013 | F17: Transactions2 Debit / (Credit) during 2013 | G17: OEB-Approved Disposition during 2013 | H17: Principal Adjustments1 during 2013 | I17: Closing Principal Balance as of Dec 31, 2013 | J17: Opening Interest Amounts as of Jan 1, 2013 | K17: Interest Jan 1 to Dec 31, 2013 | L17: OEB-Approved Disposition during 2013 | M17: Interest Adjustments1 during 2013 | N17: Closing Interest Amounts as of Dec 31, 2013 | O17: Opening Principal Amounts as of Jan 1, 2014 | P17: Transactions2 Debit / (Credit) during 2014 | Q17: OEB-Approved Disposition during 2014 | R17: Principal Adjustments1 during 2014 | S17: Closing Principal Balance as of Dec 31, 2014 | T17: Opening Interest Amounts as of Jan 1, 2014 | U17: Interest Jan 1 to Dec 31. 2014 | V17: OEB-Approved Disposition during 2014 | W17: Interest Adjustments1 during 2014 | X17: Closing Interest Amounts as of Dec 31, 2014 | Y17: Opening Principal Amounts as of Jan 1, 2015 | Z17: Transactions2 Debit / (Credit) during 2015 | AA17: OEB-Approved Disposition during 2015 | AB17: Principal Adjustments1 during 2015 | AC17: Closing Principal Balance as of Dec 31, 15 | AD17: Opening Interest Amounts as of Jan 1, 15 | AE17: Interest Jan 1 to Dec 31, 15 | AF17: OEB-Approved Disposition during 2015 | AG17: Interest Adjustments1 during 2015 | AH17: Closing Interest Amounts as of Dec 31, 15 | AI17: Opening Principal Amounts as of Jan 1, 2016 | AJ17: Transactions2 Debit / (Credit) during 2016 | AK17: OEB-Approved Disposition during 2016 | AL17: Principal Adjustments1 during 2016 | AM17: Closing Principal Balance as of Dec 31, 16 | AN17: Opening Interest Amounts as of Jan 1, 16 | AO17: Interest Jan 1 to Dec 31, 16 | AP17: OEB-Approved Disposition during 2016 | AQ17: Interest Adjustments1 during 2016 | AR17: Closing Interest Amounts as of Dec 31, 16 | AS17: Opening Principal Amounts as of Jan 1, 2017 | AT17: Transactions2 Debit / (Credit) during 2017 | AU17: OEB-Approved Disposition during 2017 | AV17: Principal Adjustments1 during 2017 | AW17: Closing Principal Balance as of Dec 31, 17 | AX17: Opening Interest Amounts as of Jan 1, 17 | AY17: Interest Jan 1 to Dec 31, 17 | AZ17: OEB-Approved Disposition during 2017 | BA17: Interest Adjustments1 during 2017 | BB17: Closing Interest Amounts as of Dec 31, 17 | BC17: Opening Principal Amounts as of Jan 1, 2018 | BD17: Transactions2 Debit / (Credit) during 2018 | BE17: OEB-Approved Disposition during 2018 | BF17: Principal Adjustments1 during 2018 | BG17: Closing Principal Balance as of Dec 31, 2018 | BH17: Opening Interest Amounts as of Jan 1, 2018 | BI17: Interest Jan 1 to Dec 31, 2018 | BJ17: OEB-Approved Disposition during 2018 | BK17: Interest Adjustments1 during 2018 | BL17: Closing Interest Amounts as of Dec 31, 2018 | BM17: Principal Disposition during 2019 - instructed by OEB | BN17: Interest Disposition during 2019 - instructed by OEB | BO17: Closing Principal Balances as of Dec 31, 2018 Adjusted for Dispositions during 2019 | BP17: Closing Interest Balances as of Dec 31, 2018 Adjusted for Disposition in 2019 | BQ17: Projected Interest from January 1, 2019 to December 31, 2019 on December 31, 2018 balance adjusted for disposition during 2019 3 | BR17: Projected Interest from January 1, 2019 to April 30, 2019 on December 31, 2018 balance adjusted for disposition during 2019 3 | BS17: Total Interest | BT17: Dispose of Account? (Y/N) | BU17: Total Claim | BV17: As of Dec 31-18 | BW17: Variance RRR vs. 2018 Balance (Principal + Interest)
BU19: Claim before Forecasted Transactions
C20: Group 1 Accounts
C21: LV Variance Account | D21: 1550 | E21: 2495672.18 | I21: =E21+F21-G21+H21 -> 2495672.18 | J21: 0 | M21: 51131.9 | N21: =J21+K21-L21+M21 -> 51131.9 | O21: =I21 -> 2495672.18 | P21: 938909.09 | Q21: 1690690.02 | S21: =O21+P21-Q21+SUM(R21:R21) -> 1743891.25 | T21: 51131.9 | U21: 20669.6 | V21: 41280.14 | X21: =T21+U21-V21+W21 -> 30521.36 | Y21: =S21 -> 1743891.25 | Z21: 1545686.91 | AC21: =Y21+Z21-AA21+SUM(AB21:AB21) -> 3289578.16 | AD21: =X21 -> 30521.36 | AE21: 26398.21 | AH21: =AD21+AE21-AF21+AG21 -> 56919.57 | AI21: =AC21 -> 3289578.16 | AJ21: 2290281.55 | AK21: 1743890.16 | AM21: =AI21+AJ21-AK21+SUM(AL21:AL21) -> 3835969.55 | AN21: =AH21 -> 56919.57 | AO21: 33128.83 | AP21: 49705.77 | AR21: =AN21+AO21-AP21+AQ21 -> 40342.63 | AS21: =AM21 -> 3835969.55 | AT21: 2379788.37 | AU21: 1545688 | AW21: =AS21+AT21-AU21+SUM(AV21:AV21) -> 4670069.92 | AX21: =AR21 -> 40342.63 | AY21: 42417.74 | AZ21: 24215.26 | BB21: =AX21+AY21-AZ21+BA21 -> 58545.11 | BC21: =AW21 -> 4670069.92 | BD21: 1802978.92 | BE21: 2290281.55 | BG21: =BC21+BD21-BE21+SUM(BF21:BF21) -> 4182767.29 | BH21: =BB21 -> 58545.11 | BI21: 76498.18 | BJ21: 55806.49785 | BL21: =BH21+BI21-BJ21+BK21 -> 79236.79215 | BM21: 2379788.37 | BN21: 51921 | BO21: =BG21-BM21 -> 1802978.92 | BP21: =BL21-BN21 -> 27315.79215 | BQ21: =+BO21*((2.45%*3/12)+(2.18%*9/12)) -> 40521.95123 | BS21: =BP21+BQ21+BR21 -> 67837.74337 | BU21: =SUM(BO21:BR21) -> 1870816.663 | BV21: =+'[13]YTD 18 TB'!$H$25 -> 4262004.08 | BW21: =BV21-SUM(BG21,BL21) -> -0.002146249637
C22: Smart Metering Entity Charge Variance Account | D22: 1551 | E22: -36015.11 | I22: -36015.11 | J22: 0 | M22: -147.98 | N22: -147.98 | O22: =I22 -> -36015.11 | P22: -33601.45 | S22: -69616.56 | T22: -147.98 | U22: -667.98 | V22: 0 | X22: =T22+U22-V22+W22 -> -815.96 | Y22: -69616.56 | Z22: -26931.2 | AC22: -96547.76 | AD22: -815.96 | AE22: -903.34 | AH22: =AD22+AE22-AF22+AG22 -> -1719.3 | AI22: =AC22 -> -96547.76 | AJ22: -33443.76 | AK22: -69616.56 | AM22: =AI22+AJ22-AK22+SUM(AL22:AL22) -> -60374.96 | AN22: -1719.3 | AO22: -621.31 | AP22: -1581.74 | AR22: =AN22+AO22-AP22+AQ22 -> -758.87 | AS22: =AM22 -> -60374.96 | AT22: -26812.58 | AU22: -26931.2 | AW22: =AS22+AT22-AU22+SUM(AV22:AV22) -> -60256.34 | AX22: -758.87 | AY22: -511.38 | AZ22: -433.8 | BB22: =AX22+AY22-AZ22+BA22 -> -836.45 | BC22: =AW22 -> -60256.34 | BD22: -143033.29 | BE22: -33443.76 | BG22: =BC22+BD22-BE22+SUM(BF22:BF22) -> -169845.87 | BH22: -836.45 | BI22: -2744.43 | BJ22: -904.483142 | BL22: =BH22+BI22-BJ22+BK22 -> -2676.396858 | BM22: -26812.58 | BN22: -486 | BO22: -143033.29 | BP22: =BL22-BN22 -> -2190.396858 | BQ22: =+BO22*((2.45%*3/12)+(2.18%*9/12)) -> -3214.673193 | BS22: =BP22+BQ22+BR22 -> -5405.070051 | BU22: =SUM(BO22:BR22) -> -148438.3601 | BV22: =+'[13]YTD 18 TB'!$H$26 -> -172522.26 | BW22: =BV22-SUM(BG22,BL22) -> 0.006857999979
C23: RSVA - Wholesale Market Service Charge | D23: 1580 | E23: -14447498.53 | I23: -14447498.53 | J23: 0 | M23: -303050.24 | N23: -303050.24 | O23: -14447498.53 | P23: -1098113.85 | Q23: -9704806 | S23: -5840806.38 | T23: -303050.24 | U23: -35370.7 | V23: -236108.65 | X23: =T23+U23-V23+W23 -> -102312.29 | Y23: -5840806.38 | Z23: -15911140.41 | AC23: -21751946.79 | AD23: -102312.29 | AE23: -126678.56 | AH23: =AD23+AE23-AF23+AG23 -> -228990.85 | AI23: -21751946.79 | AJ23: -6868014.85 | AK23: -5840806.06 | AM23: =AI23+AJ23-AK23+SUM(AL23:AL23) -> -22779155.58 | AN23: -228990.85 | AO23: -231088.58 | AP23: -166561.27 | AR23: =AN23+AO23-AP23+AQ23 -> -293518.16 | AS23: -22779155.58 | AT23: -7283688.93 | AU23: -15911140.41 | AW23: =AS23+AT23-AU23+SUM(AV23:AV23) -> -14151704.1 | AX23: -293518.16 | AY23: -131490.3 | AZ23: -237452.12 | BB23: =AX23+AY23-AZ23+BA23 -> -187556.34 | BC23: -14151704.1 | BD23: 336040.76 | BE23: -6868015.17 | BG23: =BC23+BD23-BE23+SUM(BF23:BF23) -> -6947648.17 | BH23: -187556.34 | BI23: -186047.56 | BJ23: -175054.4028 | BL23: =BH23+BI23-BJ23+BK23 -> -198549.4972 | BM23: -7283688.93 | BN23: -163032 | BO23: 336040.76 | BP23: -35517.49718 | BQ23: 7552.516081 | BS23: -27964.9811 | BU23: =SUM(BO23:BR23) -> 308075.7789 | BV23: =+'[13]YTD 18 TB'!$H$30+478530.18 -> -7146197.67 | BW23: -0.002820250578
C24: Variance WMS – Sub-account CBR Class A | D24: 1580 | E24: 0 | I24: 0 | J24: 0 | M24: 0 | N24: 0 | O24: 0 | S24: 0 | T24: 0 | X24: 0 | Y24: 0 | Z24: 163061.35 | AC24: =Y24+Z24-AA24+SUM(AB24:AB24) -> 163061.35 | AD24: 0 | AE24: 520.61 | AH24: 520.61 | AI24: 163061.35 | AJ24: -163061.35 | AM24: =AI24+AJ24-AK24+SUM(AL24:AL24) -> 0 | AN24: 520.61 | AO24: -520.61 | AR24: 0 | AS24: 0 | AW24: =AS24+AT24-AU24+SUM(AV24:AV24) -> 0 | AX24: 0 | BB24: 0 | BC24: 0 | BE24: 0 | BG24: =BC24+BD24-BE24+SUM(BF24:BF24) -> 0 | BH24: 0 | BJ24: 0 | BL24: 0 | BM24: 0 | BN24: 0 | BO24: 0 | BP24: 0 | BQ24: 0 | BS24: 0 | BU24: 0 | BW24: 0
C25: Variance WMS – Sub-account CBR Class B | D25: 1580 | E25: 0 | I25: 0 | J25: 0 | M25: 0 | N25: 0 | O25: 0 | S25: 0 | T25: 0 | X25: 0 | Y25: 0 | Z25: 1719663.73 | AC25: 1719663.73 | AD25: 0 | AE25: 5728.32 | AH25: 5728.32 | AI25: 1719663.73 | AJ25: -275214.3 | AM25: =AI25+AJ25-AK25+SUM(AL25:AL25) -> 1444449.43 | AN25: 5728.32 | AO25: 16472.1 | AR25: 22200.42 | AS25: 1444449.43 | AT25: 35171.08 | AU25: 1719663.73 | AW25: =AS25+AT25-AU25+SUM(AV25:AV25) -> -240043.22 | AX25: 22200.42 | AY25: -2176.9 | AZ25: 24644.62 | BB25: -4621.1 | BC25: -240043.22 | BD25: -509497.98 | BE25: -275214.3 | BG25: =BC25+BD25-BE25+SUM(BF25:BF25) -> -474326.9 | BH25: -4621.1 | BI25: -6794.68 | BJ25: -7212.287748 | BL25: -4203.492253 | BM25: 35171.08 | BN25: 3318 | BO25: =BG25-BM25 -> -509497.98 | BP25: -7521.492253 | BQ25: -11450.9671 | BS25: -18972.45935 | BU25: -528470.4394 | BV25: -478530.18 | BW25: 0.2122524999
C26: RSVA - Retail Transmission Network Charge | D26: 1584 | E26: 5108991.56 | I26: 5108991.56 | J26: 0 | M26: 48925.1 | N26: 48925.1 | O26: 5108991.56 | P26: 2422342.59 | Q26: 1692260 | S26: 5839074.15 | T26: 48925.1 | U26: 71423.27 | V26: 27552.22 | X26: 92796.15 | Y26: 5839074.15 | Z26: -1557809.05 | AC26: 4281265.1 | AD26: 92796.15 | AE26: 61504.02 | AH26: 154300.17 | AI26: 4281265.1 | AJ26: -568200.56 | AK26: 5839073.98 | AM26: -2126009.44 | AN26: 154300.17 | AO26: -7166.82 | AP26: 157025.1 | AR26: -9891.75 | AS26: -2126009.44 | AT26: 1964322.94 | AU26: -1557808.05 | AW26: 1396121.55 | AX26: -9891.75 | AY26: -4203.16 | AZ26: -19861.83 | BB26: 5766.92 | BC26: 1396121.55 | BD26: 193877.54 | BE26: -568201.39 | BG26: 2158200.48 | BH26: 5766.92 | BI26: 17160.59 | BJ26: 125.9894682 | BL26: 22801.52053 | BM26: 1964322.94 | BN26: 46237 | BO26: =BG26-BM26 -> 193877.54 | BP26: -23435.47947 | BQ26: 4357.397712 | BS26: -19078.08176 | BU26: 174799.4582 | BV26: =+'[13]YTD 18 TB'!$H$31 -> 2181001.96 | BW26: -0.04053174937
C27: RSVA - Retail Transmission Connection Charge | D27: 1586 | E27: 1710896.75 | I27: 1710896.75 | J27: 0 | M27: 14045.73 | N27: 14045.73 | O27: 1710896.75 | P27: 2297463.04 | Q27: 1028939 | S27: 2979420.79 | T27: 14045.73 | U27: 28329.71 | V27: 10695.4 | X27: 31680.04 | Y27: 2979420.79 | Z27: 593534.94 | AC27: 3572955.73 | AD27: 31680.04 | AE27: 38091.94 | AH27: 69771.98 | AI27: 3572955.73 | AJ27: 333841.02 | AK27: 2979420.24 | AM27: 927376.51 | AN27: 69771.98 | AO27: 15523.13 | AP27: 64454.46 | AR27: 20840.65 | AS27: 927376.51 | AT27: 48373.09 | AU27: 593534.94 | AW27: 382214.66 | AX27: 20840.65 | AY27: 9516.96 | AZ27: 11846.41 | BB27: 18511.2 | BC27: 382214.66 | BD27: 4539132.77 | BE27: 333841.57 | BG27: 4587505.86 | BH27: 18511.2 | BI27: 61615.77 | BJ27: 14778.04086 | BL27: 65348.92914 | BM27: 48373.09 | BN27: 4733 | BO27: 4539132.77 | BP27: 60615.92914 | BQ27: 102017.009 | BS27: 162632.9381 | BU27: =SUM(BO27:BR27) -> 4701765.708 | BV27: =+'[13]YTD 18 TB'!H32 -> 4652855.03 | BW27: 0.2408602508
C28: RSVA - Power | D28: 1588 | E28: -1143566.33 | I28: -1143566.33 | J28: 0 | M28: -36783.46 | N28: -36783.46 | O28: -1143566.33 | P28: -490296.98 | Q28: 716650 | S28: -2350513.31 | T28: -36783.46 | U28: 2506.51 | V28: -7074.25 | X28: -27202.7 | Y28: -2350513.31 | Z28: 1362015.65 | AC28: -988497.66 | AD28: -27202.7 | AE28: -33475.46 | AH28: -60678.16 | AI28: -988497.66 | AJ28: -2851171.44 | AK28: -2350512.34 | AL28: 2500544.264 | AM28: 1011387.504 | AN28: -60678.16 | AO28: -6630.11 | AP28: -53059.35 | AR28: -14248.92 | AS28: 1011387.504 | AT28: 1318484.74 | AU28: 1362015.65 | AV28: -998800.9639 | AW28: =AS28+AT28-AU28+AV28 -> -30944.37 | AX28: -14248.92 | AY28: -23231.5 | AZ28: 7363.36 | BB28: -44843.78 | BC28: -30944.37 | BD28: -4154227.89 | BE28: -350628.1461 | BF28: -370191.19 | BG28: -4204735.304 | BH28: -44843.78 | BI28: -18098.75 | BJ28: -27686.91478 | BL28: -35255.61522 | BM28: 319683.7761 | BN28: -10550 | BO28: -4524419.08 | BP28: -24705.61522 | BQ28: -101686.3188 | BS28: -126391.934 | BU28: -4650811.014 | BV28: =+'[13]YTD 18 TB'!H33 -> -5371543.32 | BW28: -1131552.401
C29: RSVA - Global Adjustment | D29: 1589 | E29: 389458.43 | I29: 389458.43 | J29: 0 | M29: -20702.9 | N29: -20702.9 | O29: 389458.43 | P29: 7999425.66 | Q29: -2771959 | S29: 11160843.09 | T29: -20702.9 | U29: 59398.74 | V29: -101964.8 | X29: 140660.64 | Y29: 11160843.09 | Z29: 4890995.04 | AC29: 16051838.13 | AD29: 140660.64 | AE29: 139600.71 | AH29: 280261.35 | AI29: 16051838.13 | AJ29: -1033668.01 | AK29: 11160843.08 | AL29: =-2514038+157273+1530001 -> -826764 | AM29: 3030563.04 | AN29: 280261.35 | AO29: 96150.64 | AP29: 263430.19 | AR29: 112981.8 | AS29: 3030563.04 | AT29: 2524883.15 | AU29: 4890994.04 | AV29: 2871035.051 | AW29: =AS29+AT29-AU29+SUM(AV29:AV29) -> 3535487.201 | AX29: 112981.8 | AY29: 17845.33 | AZ29: 70633.1 | BB29: 60194.03 | BC29: 3535487.201 | BD29: -8449464.58 | BE29: -1860431 | BF29: -538732.3847 | BG29: -3592278.764 | BH29: 60194.03 | BI29: 27103.32 | BJ29: 10116.72848 | BL29: 77180.62152 | BM29: 5395918.201 | BN29: 161593 | BO29: =BG29-BM29 -> -8988196.965 | BP29: -84412.37848 | BQ29: -202009.7268 | BS29: -286422.1053 | BU29: -9274619.07 | BV29: =+'[13]YTD 18 TB'!H34 -> -5020637.54 | BW29: -1505539.398
C30: Disposition and Recovery/Refund of Regulatory Balances (2009)4 | D30: 1595 | E30: -2807103.74 | I30: -2807103.74 | J30: 0 | N30: 0 | O30: -2807103.74 | Q30: -2805249 | R30: 1855 | S30: 0.2599999998 | T30: -192718.47 | V30: -192712 | W30: 6 | X30: -0.47 | Y30: 0.2599999998 | AC30: 0.2599999998 | AD30: -0.47 | AH30: -0.47 | AI30: 0.2599999998 | AM30: 0.2599999998 | AN30: -0.47 | AR30: -0.47 | AS30: 0.2599999998 | AW30: 0.2599999998 | AX30: -0.47 | BB30: -0.47 | BC30: 0.2599999998 | BE30: 0 | BG30: 0.2599999998 | BH30: -0.47 | BJ30: -0.4654955001 | BL30: -0.004504499909 | BM30: 0.2599999998 | BN30: 0.000808166666 | BO30: 0 | BP30: -0.005312666575 | BQ30: 0 | BS30: -0.005312666575 | BT30: No | BU30: =IF(BT30="YES",SUM(BO30:BR30),0) -> 0 | BW30: -0.2554954999
C31: Disposition and Recovery/Refund of Regulatory Balances (2010)4 | D31: 1595 | I31: 0 | J31: 0 | N31: 0 | O31: 0 | S31: 0 | X31: 0 | Y31: 0 | AC31: 0 | AD31: 0 | AH31: 0 | AI31: 0 | AM31: 0 | AN31: 0 | AR31: 0 | AS31: 0 | AW31: 0 | AX31: 0 | BB31: 0 | BC31: 0 | BE31: 0 | BG31: 0 | BH31: 0 | BJ31: -1.648208126e-10 | BL31: 1.648208126e-10 | BM31: -0.1899999995 | BN31: -0.003882333332 | BO31: 0.1899999995 | BP31: 0.003882333497 | BQ31: 0.00427024999 | BS31: 0.008152583486 | BT31: No | BU31: 0 | BW31: -1.648208126e-10
C32: Disposition and Recovery/Refund of Regulatory Balances (2011)4 | D32: 1595 | I32: 0 | J32: 0 | N32: 0 | O32: 0 | S32: 0 | X32: 0 | Y32: 0 | AC32: 0 | AD32: 0 | AH32: 0 | AI32: 0 | AM32: 0 | AN32: 0 | AR32: 0 | AS32: 0 | AW32: 0 | AX32: 0 | BB32: 0 | BC32: 0 | BE32: -2.793967724e-09 | BG32: 2.793967724e-09 | BH32: 0 | BJ32: 0.00329175 | BL32: -0.00329175 | BM32: -4.656612873e-10 | BN32: -9.515012304e-12 | BO32: 3.259629011e-09 | BP32: -0.00329174999 | BQ32: 7.326016203e-11 | BS32: -0.003291749917 | BT32: No | BU32: 0 | BW32: 0.003291747206
C33: Disposition and Recovery/Refund of Regulatory Balances (2012)4 | D33: 1595 | E33: 0 | I33: 0 | J33: 0 | N33: 0 | O33: 0 | P33: 9885176.98 | Q33: 10153475 | S33: -268298.02 | T33: 0 | U33: 383549.67 | V33: 458332.08 | X33: -74782.41 | Y33: -268298.02 | Z33: -5335.64 | AC33: -273633.66 | AD33: -74782.41 | AE33: -2969.19 | AH33: -77751.6 | AI33: -273633.66 | AJ33: 5335.64 | AK33: -268298.02 | AM33: 4.656612873e-10 | AN33: -77751.6 | AO33: 17.91 | AP33: -77733.69 | AR33: 2.910383046e-11 | AS33: 4.656612873e-10 | AW33: 4.656612873e-10 | AX33: 2.910383046e-11 | BB33: 2.910383046e-11 | BC33: 4.656612873e-10 | BE33: 0.19 | BG33: -0.1899999995 | BH33: 2.910383046e-11 | BJ33: 3.717141226e-11 | BL33: -8.067581803e-12 | BM33: 0 | BN33: 0 | BO33: -0.1899999995 | BP33: -8.067581803e-12 | BQ33: -0.00427024999 | BS33: -0.004270249998 | BT33: No | BU33: 0 | BW33: 0.1899999995
C34: Disposition and Recovery/Refund of Regulatory Balances (2013)4 | D34: 1595 | E34: 0 | I34: 0 | J34: 0 | N34: 0 | O34: 0 | S34: 0 | T34: 0 | X34: 0 | Y34: 0 | AC34: 0 | AD34: 0 | AH34: 0 | AI34: 0 | AM34: 0 | AN34: 0 | AR34: 0 | AS34: 0 | AW34: 0 | AX34: 0 | BB34: 0 | BC34: 0 | BE34: 4.656612873e-10 | BG34: -4.656612873e-10 | BH34: 0 | BJ34: 0 | BL34: 0 | BM34: 0 | BN34: 0 | BO34: -4.656612873e-10 | BP34: 0 | BQ34: -1.046573743e-11 | BS34: -1.046573743e-11 | BT34: No | BU34: 0 | BW34: 4.656612873e-10
C35: Disposition and Recovery/Refund of Regulatory Balances (2014)4 | D35: 1595 | E35: 0 | I35: 0 | J35: 0 | N35: 0 | O35: 0 | S35: =O35+P35-Q35+SUM(R35:R35) -> 0 | T35: 0 | X35: 0 | Y35: 0 | AC35: 0 | AD35: 0 | AH35: 0 | AI35: 0 | AM35: 0 | AN35: 0 | AR35: 0 | AS35: 0 | AW35: 0 | AX35: 0 | BB35: 0 | BC35: 0 | BG35: 0 | BH35: 0 | BL35: 0 | BO35: 0 | BP35: 0 | BQ35: 0 | BS35: =BP35+BQ35+BR35 -> 0 | BT35: No | BU35: 0 | BW35: 0
C36: Disposition and Recovery/Refund of Regulatory Balances (2015)4 | D36: 1595 | E36: 0 | I36: 0 | J36: 0 | N36: 0 | O36: 0 | S36: 0 | T36: 0 | X36: 0 | Y36: 0 | AC36: 0 | AD36: 0 | AH36: 0 | AI36: 0 | AM36: 0 | AN36: 0 | AR36: 0 | AS36: 0 | AW36: 0 | AX36: 0 | BB36: 0 | BC36: 0 | BG36: 0 | BH36: 0 | BL36: 0 | BO36: 0 | BP36: 0 | BQ36: 0 | BS36: 0 | BT36: No | BU36: 0 | BW36: 0
C37: Disposition and Recovery/Refund of Regulatory Balances (2016)4 | D37: 1595 | E37: 0 | I37: 0 | J37: 0 | N37: 0 | O37: 0 | S37: =O37+P37-Q37+SUM(R37:R37) -> 0 | T37: =N37 -> 0 | X37: =T37+U37-V37+W37 -> 0 | Y37: =S37 -> 0 | AC37: =Y37+Z37-AA37+SUM(AB37:AB37) -> 0 | AD37: =X37 -> 0 | AH37: =AD37+AE37-AF37+AG37 -> 0 | AI37: =AC37 -> 0 | AJ37: -11165511 | AK37: -11106926.08 | AM37: =AI37+AJ37-AK37+SUM(AL37:AL37) -> -58584.92 | AN37: =AH37 -> 0 | AO37: 494808.82 | AP37: 441505.89 | AR37: =AN37+AO37-AP37+AQ37 -> 53302.93 | AS37: =AM37 -> -58584.92 | AT37: -13770.65 | AW37: =AS37+AT37-AU37+SUM(AV37:AV37) -> -72355.57 | AX37: =AR37 -> 53302.93 | AY37: -682.8 | BB37: =AX37+AY37-AZ37+BA37 -> 52620.13 | BC37: -72355.57 | BE37: -58584.92 | BG37: -13770.65 | BH37: 52620.13 | BI37: -499.24 | BJ37: 52287.94626 | BL37: -167.056261 | BO37: -13770.65 | BP37: -167.056261 | BQ37: -309.4953587 | BS37: -476.5516198 | BT37: No | BU37: 0 | BV37: -13937.24 | BW37: 0.466261
C38: Disposition and Recovery/Refund of Regulatory Balances (2017)4 | D38: 1595 | E38: 0 | I38: 0 | J38: 0 | N38: 0 | O38: 0 | S38: 0 | T38: 0 | AH38: 0 | AI38: 0 | AM38: =AI38+AJ38-AK38+SUM(AL38:AL38) -> 0 | AN38: 0 | AR38: 0 | AS38: 0 | AT38: 7385427.31 | AU38: 7383983.3 | AW38: 1444.01 | AX38: 0 | AY38: 79526.21 | AZ38: 119045 | BB38: -39518.79 | BC38: 1444.01 | BD38: =-29215.66-437.38-188.61 -> -29841.65 | BG38: -28397.64 | BH38: -39518.79 | BI38: =1.73+188.61 -> 190.34 | BJ38: 0 | BL38: -39328.45 | BO38: -28397.64 | BP38: -39328.45 | BQ38: -638.236959 | BS38: -39966.68696 | BT38: Yes | BU38: -68364.32696 | BV38: -67726.09 | BW38: 2.328306437e-10
C39: Disposition and Recovery/Refund of Regulatory Balances (2018)4 | D39: 1595 | E39: 0 | I39: 0 | J39: 0 | N39: 0 | O39: 0 | S39: 0 | T39: 0 | AH39: 0 | AI39: 0 | AM39: 0 | AN39: 0 | AR39: 0 | AS39: 0 | AW39: 0 | AX39: 0 | BB39: 0 | BC39: 0 | BD39: =5415410.46-1944071.3 -> 3471339.16 | BE39: 5415410.46 | BG39: -1944071.3 | BH39: 0 | BI39: =-42713.66+38040.12-36897.6 -> -41571.14 | BJ39: -36897.6 | BL39: -4673.54 | BO39: -1944071.3 | BP39: -4673.54 | BQ39: -43693.00247 | BS39: -48366.54247 | BT39: No | BU39: 0 | BV39: -1948744.84 | BW39: 0
C40: Disposition and Recovery/Refund of Regulatory Balances (2019)4 Not to be disposed of unless rate rider has expired and balance has been audited | D40: 1595 | E40: 0 | I40: 0 | J40: 0 | N40: 0 | O40: 0 | S40: 0 | T40: 0 | AH40: 0 | AI40: 0 | AM40: 0 | AN40: 0 | AR40: 0 | AS40: 0 | AW40: 0 | AX40: 0 | BB40: 0 | BC40: 0 | BG40: 0 | BH40: 0 | BL40: 0 | BM40: -4771217.482 | BN40: -166830.1537 | BO40: 4771217.482 | BP40: 166830.1537 | BQ40: =+BO40*((2.45%*12/12)+(0*9/12)) -> 116894.8283 | BS40: 283724.982 | BT40: No | BU40: 0 | BW40: 0
BO41: 0 | BP41: 0 | BQ41: 0 | BW41: 0
C42: =C29 -> RSVA - Global Adjustment | D42: 1589 | E42: =E29 -> 389458.43 | F42: =F29 -> 0 | G42: 0 | H42: 0 | I42: 389458.43 | J42: 0 | K42: 0 | L42: 0 | M42: -20702.9 | N42: -20702.9 | O42: =O29 -> 389458.43 | P42: 7999425.66 | Q42: -2771959 | R42: 0 | S42: 11160843.09 | T42: -20702.9 | U42: 59398.74 | V42: -101964.8 | W42: 0 | X42: 140660.64 | Y42: 11160843.09 | Z42: 4890995.04 | AA42: 0 | AB42: 0 | AC42: 16051838.13 | AD42: 140660.64 | AE42: 139600.71 | AF42: 0 | AG42: 0 | AH42: 280261.35 | AI42: 16051838.13 | AJ42: -1033668.01 | AK42: 11160843.08 | AL42: -826764 | AM42: 3030563.04 | AN42: 280261.35 | AO42: 96150.64 | AP42: 263430.19 | AQ42: 0 | AR42: 112981.8 | AS42: 3030563.04 | AT42: 2524883.15 | AU42: 4890994.04 | AV42: 2871035.051 | AW42: 3535487.201 | AX42: 112981.8 | AY42: 17845.33 | AZ42: 70633.1 | BA42: 0 | BB42: 60194.03 | BC42: 3535487.201 | BD42: -8449464.58 | BE42: -1860431 | BF42: -538732.3847 | BG42: -3592278.764 | BH42: 60194.03 | BI42: 27103.32 | BJ42: 10116.72848 | BK42: 0 | BL42: 77180.62152 | BM42: 5395918.201 | BN42: 161593 | BO42: -8988196.965 | BP42: -84412.37848 | BQ42: =BQ29 -> -202009.7268 | BR42: =BR29 -> 0 | BS42: =BS29 -> -286422.1053 | BU42: =BU29 -> -9274619.07 | BV42: =BV29 -> -5020637.54 | BW42: -1505539.398
C43: Total Group 1 Balance excluding Account 1589 - Global Adjustment | E43: =SUM(E21:E40)-E29 -> -9118623.22 | F43: 0 | G43: 0 | H43: 0 | I43: -9118623.22 | J43: 0 | K43: 0 | L43: 0 | M43: -225878.95 | N43: =SUM(N21:N40)-N29 -> -225878.95 | O43: =SUM(O21:O40)-O29 -> -9118623.22 | P43: 13921879.42 | Q43: 2771959.02 | R43: 1855 | S43: 2033152.18 | T43: -418597.42 | U43: 470440.08 | V43: 101964.94 | W43: 6 | X43: -50116.28 | Y43: 2033152.18 | Z43: -12117253.72 | AA43: 0 | AB43: 0 | AC43: -10084101.54 | AD43: -50116.28 | AE43: -31783.45 | AF43: 0 | AG43: 0 | AH43: -81899.73 | AI43: -10084101.54 | AJ43: -19295159.05 | AK43: -9073774.68 | AL43: 2500544.264 | AM43: -17804941.65 | AN43: -81899.73 | AO43: 313923.36 | AP43: 413755.17 | AQ43: 0 | AR43: -181731.54 | AS43: -17804941.65 | AT43: 5807295.37 | AU43: -4890994.04 | AV43: -998800.9639 | AW43: -8105453.2 | AX43: -181731.54 | AY43: -30835.13 | AZ43: -70633.1 | BA43: 0 | BB43: -141933.57 | BC43: -8105453.2 | BD43: 5506768.34 | BE43: -114553.9161 | BF43: -370191.19 | BG43: =SUM(BG21:BG40)-BG29 -> -2854322.134 | BH43: -141933.57 | BI43: -100290.92 | BJ43: -124757.6763 | BK43: 0 | BL43: -117466.8137 | BM43: -7334379.666 | BN43: -234689.1568 | BO43: 4480057.532 | BP43: 117222.343 | BQ43: 110351.0084 | BR43: 0 | BS43: 227573.3515 | BU43: =SUM(BU21:BU38)-BU29 -> 1659373.468 | BV43: =SUM(BV21:BV38)-BV29 -> -2154595.69 | BW43: 817193.2577
C44: Total Group 1 Balance | E44: =SUM(E42,E43) -> -8729164.79 | F44: =SUM(F42,F43) -> 0 | G44: 0 | H44: 0 | I44: -8729164.79 | J44: 0 | K44: 0 | L44: 0 | M44: -246581.85 | N44: -246581.85 | O44: =SUM(O42,O43) -> -8729164.79 | P44: 21921305.08 | Q44: 0.01999999955 | R44: 1855 | S44: 13193995.27 | T44: -439300.32 | U44: 529838.82 | V44: 0.14 | W44: 6 | X44: 90544.36 | Y44: 13193995.27 | Z44: -7226258.68 | AA44: 0 | AB44: 0 | AC44: 5967736.59 | AD44: 90544.36 | AE44: 107817.26 | AF44: 0 | AG44: 0 | AH44: 198361.62 | AI44: 5967736.59 | AJ44: -20328827.06 | AK44: 2087068.4 | AL44: 1673780.264 | AM44: -14774378.61 | AN44: 198361.62 | AO44: 410074 | AP44: 677185.36 | AQ44: 0 | AR44: -68749.74 | AS44: -14774378.61 | AT44: 8332178.52 | AU44: 0 | AV44: 1872234.087 | AW44: -4569965.999 | AX44: -68749.74 | AY44: -12989.8 | AZ44: 0 | BA44: 0 | BB44: -81739.54 | BC44: -4569965.999 | BD44: -2942696.24 | BE44: -1974984.916 | BF44: -908923.5747 | BG44: -6446600.898 | BH44: -81739.54 | BI44: -73187.6 | BJ44: -114640.9478 | BK44: 0 | BL44: -40286.19223 | BM44: -1938461.465 | BN44: -73096.15678 | BO44: -4508139.433 | BP44: 32809.96455 | BQ44: -91658.71835 | BR44: 0 | BS44: -58848.7538 | BU44: =SUM(BU42,BU43) -> -7615245.602 | BV44: =SUM(BV42,BV43) -> -7175233.23 | BW44: -688346.1402
BW45: 0
A46: 29 | C46: LRAM Variance Account (only input amounts if applying for disposition of this account) | D46: 1568 | E46: 0 | H46: 61418.66 | I46: 61418.66 | J46: 0 | M46: 5868.05 | N46: =J46+K46-L46+M46 -> 5868.05 | O46: 61418.66 | P46: 12856.94 | S46: =O46+P46-Q46+SUM(R46:R46) -> 74275.6 | T46: 5868.05 | U46: 688.53 | X46: =T46+U46-V46+W46 -> 6556.58 | Y46: =S46 -> 74275.6 | Z46: =2209737.02 -> 2209737.02 | AC46: =Y46+Z46-AA46+SUM(AB46:AB46) -> 2284012.62 | AD46: =X46 -> 6556.58 | AE46: =63436.96 -> 63436.96 | AH46: =AD46+AE46-AF46+AG46 -> 69993.54 | AI46: =AC46 -> 2284012.62 | AJ46: =1131354.02 -> 1131354.02 | AM46: =AI46+AJ46-AK46+SUM(AL46:AL46) -> 3415366.64 | AN46: =AH46 -> 69993.54 | AO46: =29554.8 -> 29554.8 | AR46: =AN46+AO46-AP46+AQ46 -> 99548.34 | AS46: =AM46 -> 3415366.64 | AT46: 2243433.86 | AW46: =AS46+AT46-AU46+SUM(AV46:AV46) -> 5658800.5 | AX46: =AR46 -> 99548.34 | AY46: 45357.11 | BB46: =AX46+AY46-AZ46+BA46 -> 144905.45 | BC46: =AW46 -> 5658800.5 | BD46: 2903714.21 | BE46: 1974985.11 | BG46: =BC46+BD46-BE46+SUM(BF46:BF46) -> 6587529.6 | BH46: =BB46 -> 144905.45 | BI46: 116480.1 | BJ46: 114640.95 | BL46: =BH46+BI46-BJ46+BK46 -> 146744.6 | BM46: =+'[14]1. LRAMVA Summary'!$R$68+'[14]1. LRAMVA Summary'!$R$69 -> 1938461.535 | BN46: =+'[14]1. LRAMVA Summary'!$R$83 -> 73096.15371 | BO46: =BG46-BM46 -> 4649068.065 | BP46: =BL46-BN46 -> 73648.44629 | BQ46: =+BO46*((2.45%*12/12)+(0*9/12)) -> 113902.1676 | BS46: =BP46+BQ46+BR46 -> 187550.6139 | BU46: =SUM(BO46:BR46) -> 4836618.679 | BV46: =+'[13]YTD 18 TB'!$H$29 -> 6734274.2 | BW46: 0
BW47: 0
C48: Total including Account 1568 | E48: =SUM(E44,E46) -> -8729164.79 | F48: =SUM(F44,F46) -> 0 | G48: 0 | H48: 61418.66 | I48: -8667746.13 | J48: 0 | K48: 0 | L48: 0 | M48: -240713.8 | N48: -240713.8 | O48: =SUM(O44,O46) -> -8667746.13 | P48: 21934162.02 | Q48: 0.01999999955 | R48: =SUM(R44,R46) -> 1855 | S48: 13268270.87 | T48: -433432.27 | U48: 530527.35 | V48: 0.14 | W48: 6 | X48: 97100.94 | Y48: 13268270.87 | Z48: -5016521.66 | AA48: 0 | AB48: 0 | AC48: 8251749.21 | AD48: 97100.94 | AE48: 171254.22 | AF48: 0 | AG48: 0 | AH48: 268355.16 | AI48: 8251749.21 | AJ48: -19197473.04 | AK48: 2087068.4 | AL48: 1673780.264 | AM48: -11359011.97 | AN48: 268355.16 | AO48: 439628.8 | AP48: 677185.36 | AQ48: 0 | AR48: 30798.6 | AS48: -11359011.97 | AT48: 10575612.38 | AU48: 0 | AV48: 1872234.087 | AW48: 1088834.501 | AX48: 30798.6 | AY48: 32367.31 | AZ48: 0 | BA48: 0 | BB48: 63165.91 | BC48: 1088834.501 | BD48: -38982.03 | BE48: 0.1939378788 | BF48: -908923.5747 | BG48: 140928.7025 | BH48: 63165.91 | BI48: 43292.5 | BJ48: 0.002234223517 | BK48: 0 | BL48: 106458.4078 | BM48: 0.0700000003 | BN48: -0.003074166685 | BO48: 140928.6325 | BP48: 106458.4108 | BQ48: 22243.44925 | BR48: =SUM(BR44,BR46) -> 0 | BS48: =SUM(BS44,BS46) -> 128701.8601 | BU48: =SUM(BU44,BU46) -> -2778626.923 | BV48: =SUM(BV44,BV46) -> -440959.03 | BW48: -688346.1402
C51: For all OEB-Approved dispositions, please ensure that the disposition amount has the same sign (e.g: debit balances are to have a positive figure and credit balance are to have a negative figure) as per the related OEB decision.
B54: 1 | C54: Please provide explanations for the nature of the adjustments. If the adjustment relates to previously OEB-Approved disposed balances, please provide amounts for adjustments and include supporting documentations.
B55: 2 | C55: For RSVA accounts only, report the net variance to the account during the year. For all other accounts, record the transactions during the year.
B56: 3 | C56: If the LDC’s rate year begins on January 1, 2017, the projected interest is recorded from January 1, 2016 to December 31, 2016 on the December 31, 2015 balances adjusted for the disposed balances approved by the OEB in the 2016 rate decision. If the LDC’s rate year begins on May 1, 2017, the projected interest is recorded from January 1, 2016 to April 30, 2017 on the December 31, 2015 balances adjusted for the disposed interest balances approved by the OEB in the 2016 rate decision.
B57: 4 | C57: Include Account 1595 as part of Group 1 accounts (lines 30-36) for review and disposition if the recovery (or refund) period has been completed. If the recovery (or refund) period has not been completed, do not include the respective balance in Account 1595 for disposition at this time.
C59: Account 1595 - adjustments (2016):
C60: These were required due to a comprehensive review of all the dispositions during 2015 and 2016. It was determined that there were a number of reporting errors. Past recovery billings were applied to the wrong year or there was transposition errors whereby billings were applied to interest rather than principal or vice versa.

Sheet 4. Billing Det. for Def-Var
A1: Back to Index | K1: Yes
B2: =+'1. Information Sheet'!B2 -> INCENTIVE REGULATION MODEL FOR 2020 FILERS
B13: Information from the most recent RRR (2018 for 2020 IRM)
W14: source: LRAMVA Workform
D15: Total Metered kWh | E15: Total Metered kW | F15: Metered kWh for Non-RPP Customers (excluding WMP) | G15: Metered kW for Non-RPP Customers (excluding WMP) | H15: Metered kWh for Wholesale Market Participants (WMP) | I15: Metered kW for Wholesale Market Participants (WMP) | J15: Total Metered kWh less WMP consumption (if applicable) | K15: Total Metered kW less WMP consumption (if applicable) | L15: 1595 Recovery Proportion (2009) 1 | M15: 1595 Recovery Proportion (2010) 1 | N15: 1595 Recovery Proportion (2011) 1 | O15: 1595 Recovery Proportion (2012) 1 | P15: 1595 Recovery Proportion (2013) 1 | Q15: 1595 Recovery Proportion (2014) 1 | R15: 1595 Recovery Proportion (2015) 1 | S15: 1595 Recovery Proportion (2016) 1 | T15: 1595 Recovery Proportion (2017) 1 | U15: 1595 Recovery Proportion (2018) 1 | V15: 1595 Recovery Proportion (2019) 1 | W15: 1568 LRAM Variance Account Class Allocation ($ amounts) | X15: Number of Customers for Residential and GS<50 classes3
B16: Rate Class | C16: Unit
A17: ='11. RTSR - Current Rates'!A16 -> R_TN | B17: ='Model Specs'!C15 -> RESIDENTIAL SERVICE CLASSIFICATION | C17: kWh | D17: 1490532667 | E17: 0 | F17: 47757735.71 | G17: 0 | J17: =D17-H17 -> 1490532667 | K17: =E17-I17 -> 0 | Q17: 0.042831737 | R17: 0.3291884587 | T17: =IFERROR(VLOOKUP(B17,[15]ERZ!$A$2:$B$9,2,FALSE),0) -> 0.2048492466 | W17: ='[16]1. LRAMVA Summary'!$D$84 -> 485983.5884 | X17: 183533
A18: ='11. RTSR - Current Rates'!A17 -> GSL_TN | B18: ='Model Specs'!C16 -> GENERAL SERVICE LESS THAN 50 kW SERVICE CLASSIFICATION | C18: kWh | D18: 685616684 | E18: 0 | F18: 91858679.3 | G18: 0 | J18: =D18-H18 -> 685616684 | K18: =E18-I18 -> 0 | Q18: 0.03667843854 | R18: 0.1310626928 | T18: =IFERROR(VLOOKUP(B18,[15]ERZ!$A$2:$B$9,2,FALSE),0) -> 0.09036223103 | W18: ='[16]1. LRAMVA Summary'!$E$84 -> 40152.93207 | X18: 18506
A19: GSG_TN | B19: ='Model Specs'!C17 -> GENERAL SERVICE 50 to 499 kW SERVICE CLASSIFICATION | C19: kW | D19: 2051428808 | E19: 5710412.01 | F19: 1737284254 | G19: 4887561.532 | H19: 1343047.064 | I19: 4363.161 | J19: =D19-H19 -> 2050085761 | K19: =E19-I19 -> 5706048.849 | Q19: 0.4138297114 | R19: 0.1749713883 | T19: =IFERROR(VLOOKUP(B19,[15]ERZ!$A$2:$B$9,2,FALSE),0) -> 0.2930562179 | W19: ='[16]1. LRAMVA Summary'!$F$84 -> 1358523.578
A20: LU_TN | B20: ='Model Specs'!C18 -> GENERAL SERVICE 500 to 4,999 kW SERVICE CLASSIFICATION | C20: kW | D20: 2037760513 | E20: 4585777.203 | F20: 1874772880 | G20: 4243700.354 | H20: 13999209.23 | I20: 27949.738 | J20: 2023761304 | K20: 4557827.465 | Q20: 0.4838378656 | R20: 0.1548539542 | T20: =IFERROR(VLOOKUP(B20,[15]ERZ!$A$2:$B$9,2,FALSE),0) -> 0.2773941628 | W20: ='[16]1. LRAMVA Summary'!$G$84 -> 473711.3715
A21: USL_TN | B21: ='Model Specs'!C19 -> LARGE USE SERVICE CLASSIFICATION | C21: kW | D21: 977049362 | E21: 1753163 | F21: 977049362 | G21: 1753163 | J21: 977049362 | K21: 1753163 | Q21: 0.0135704573 | R21: 0.2061805925 | T21: =IFERROR(VLOOKUP(B21,[15]ERZ!$A$2:$B$9,2,FALSE),0) -> 0.1293629666 | W21: ='[16]1. LRAMVA Summary'!$H$84 -> 163129.8958
B22: ='Model Specs'!C20 -> STANDBY POWER SERVICE CLASSIFICATION | C22: kW | J22: 0 | K22: 0 | T22: =IFERROR(VLOOKUP(B22,[15]ERZ!$A$2:$B$9,2,FALSE),0) -> 0
A23: SEN_TN | B23: ='Model Specs'!C21 -> UNMETERED SCATTERED LOAD SERVICE CLASSIFICATION | C23: kWh | D23: 11437642.31 | F23: 444303.4981 | G23: 0 | J23: 11437642.31 | K23: 0 | Q23: 0.0004108364085 | R23: 0.002390216995 | T23: =IFERROR(VLOOKUP(B23,[15]ERZ!$A$2:$B$9,2,FALSE),0) -> 0.001492699495
A24: SL_TN | B24: ='Model Specs'!C22 -> STREET LIGHTING SERVICE CLASSIFICATION | C24: kW | D24: 13289944.06 | E24: 40571.73001 | F24: 13289944.06 | G24: 40571.73001 | J24: 13289944.06 | K24: 40571.73001 | Q24: 0.008840953763 | R24: 0.00135269641 | T24: =IFERROR(VLOOKUP(B24,[15]ERZ!$A$2:$B$9,2,FALSE),0) -> 0.00348247557 | W24: ='[16]1. LRAMVA Summary'!$I$84 -> -132216.3034
J25: 0 | K25: 0
J26: 0 | K26: 0
J27: 0 | K27: 0
J28: 0 | K28: 0
C29: Total | D29: =SUM(D17:D28) -> 7267115621 | E29: =SUM(E17:E28) -> 12089923.94 | F29: 4742457158 | G29: 10924996.62 | H29: 15342256.3 | I29: 32312.899 | J29: 7251773365 | K29: 12057611.04 | L29: =SUM(L17:L28) -> 0 | M29: 0 | N29: 0 | O29: 0 | P29: 0 | Q29: 1 | R29: 1 | S29: 0 | T29: =SUM(T17:T28) -> 1 | U29: 0 | V29: =SUM(V17:V28) -> 0 | W29: 2389285.062 | X29: 202039
B32: Threshold Test | W32: 1568 Account Balance from Continuity Schedule | X32: ='3. Continuity Schedule'!BU46 -> 4836618.679
B33: Total Claim (including Account 1568) | D33: ='3. Continuity Schedule'!BU48 -> -2778626.923 | W33: =IF(X32=W29,"Total Balance of Account 1568 in Column R matches the amount entered on the Continuity Schedule","Total Balance of Account 1568 in Column T DOES NOT MATCH the amount entered on the Continuity Schedule") -> Total Balance of Account 1568 in Column T DOES NOT MATCH the amount entered on the Continuity Schedule
B34: Total Claim for Threshold Test (All Group 1 Accounts) | D34: ='3. Continuity Schedule'!BU44 -> -7615245.602
B35: Threshold Test (Total claim per kWh) 2 | D35: =IFERROR(D34/D29,"") -> -0.001047904836
B36: Exceeds Threshold? | D36: =IF(D35="","",IF(OR(D35>0.001,D35<-0.001),"Yes","No")) -> Yes
B37: ELECT TO DISPOSE of the Group 1 Account Balances? | D37: Yes
B40: As per Section 3.2.5 of the 2017 Filing Requirements for Electricity Distribution Rate Applications, an applicant may elect to dispose of the Group 1 account balances below the threshold.
B41: 1 Residual Account balance to be allocated to rate classes in proportion to the recovery share as established when rate riders were implemented.
B42: 2 The Threshold Test does not include the amount in 1568.
B43: 3 The proportion of customers for the Residential and GS<50 Classes will be used to allocate Account 1551.
D46: Total Metered kWh | E46: =J29 -> 7251773365
D47: WMP consumption | E47: =H29 -> 15342256.3
D48: Consumption Class A (full) | E48: ='6.1 GA'!E29 -> 1695514662
D49: Consumption Class A (partial) | E49: ='6.1 GA'!G29 -> 328596811
E50: =E46-E47-E48-E49 -> 5212319636

Sheet 5. Allocating Def-Var Balances
A1: Back to Index
B2: =+'1. Information Sheet'!B2 -> INCENTIVE REGULATION MODEL FOR 2020 FILERS
B11: No input required. This workshseet allocates the deferral/variance account balances (Group 1 and 1568) to the appropriate classes as per EDDVAR dated July 31, 2009
B13: Allocation of Group 1 Accounts (including Account 1568)
C14: % of Total kWh | D14: % of Total non-RPP kWh | E14: % of Customer Numbers ** | F14: % of Total kWh adjusted for WMP | I14: allocated based on Total less WMP | N14: allocated based on Total less WMP | O14: 1595_(2009) | P14: 1595_(2010) | Q14: 1595_(2011) | R14: 1595_(2012) | S14: 1595_(2013) | T14: 1595_(2014) | U14: 1595_(2015) | V14: 1595_(2016) | W14: 1595_(2017) | X14: 1595_(2018) | Y14: 1595_(2019) | Z14: 1568
B15: Rate Class | G15: 1550 | H15: 1551 | I15: 1580 | J15: 1580 (Class A) | K15: 1580 (Class B) | L15: 1584 | M15: 1586 | N15: 1588
B16: ='4. Billing Det. for Def-Var'!B17 -> RESIDENTIAL SERVICE CLASSIFICATION | C16: =IFERROR('4. Billing Det. for Def-Var'!D17/'4. Billing Det. for Def-Var'!D$29,"") -> 0.2051065024 | D16: =IFERROR('4. Billing Det. for Def-Var'!F17/'4. Billing Det. for Def-Var'!F$29,"") -> 0.01007025137 | E16: =IFERROR('4. Billing Det. for Def-Var'!X17/'4. Billing Det. for Def-Var'!X$29,"") -> 0.908403823 | F16: =IFERROR('4. Billing Det. for Def-Var'!J17/'4. Billing Det. for Def-Var'!J$29,"") -> 0.2055404371 | G16: =IFERROR(G$28*C16,"") -> 383716.6624 | H16: =IFERROR(H$28*E16,"") -> -134841.9738 | I16: =IFERROR(I$28*F16,"") -> 63322.03026 | L16: =IFERROR(L$28*$C16,"") -> 35852.50549 | M16: =IFERROR(M$28*$C16,"") -> 964362.7193 | N16: =IFERROR(N$28*$F16,"") -> -955929.7288 | O16: ='4. Billing Det. for Def-Var'!L17*O$28 -> 0 | P16: ='4. Billing Det. for Def-Var'!M17*P$28 -> 0 | Q16: ='4. Billing Det. for Def-Var'!N17*Q$28 -> 0 | R16: ='4. Billing Det. for Def-Var'!O17*R$28 -> 0 | S16: ='4. Billing Det. for Def-Var'!P17*S$28 -> 0 | T16: ='4. Billing Det. for Def-Var'!Q17*T$28 -> 0 | U16: ='4. Billing Det. for Def-Var'!R17*U$28 -> 0 | V16: ='4. Billing Det. for Def-Var'!S17*V$28 -> 0 | W16: ='4. Billing Det. for Def-Var'!T17*W$28 -> -14004.38087 | X16: ='4. Billing Det. for Def-Var'!U17*X$28 -> 0 | Y16: ='4. Billing Det. for Def-Var'!V17*Y$28 -> 0 | Z16: ='4. Billing Det. for Def-Var'!W17 -> 485983.5884
B17: ='4. Billing Det. for Def-Var'!B18 -> GENERAL SERVICE LESS THAN 50 kW SERVICE CLASSIFICATION | C17: =IFERROR('4. Billing Det. for Def-Var'!D18/'4. Billing Det. for Def-Var'!D$29,"") -> 0.09434509092 | D17: =IFERROR('4. Billing Det. for Def-Var'!F18/'4. Billing Det. for Def-Var'!F$29,"") -> 0.01936942733 | E17: =IFERROR('4. Billing Det. for Def-Var'!X18/'4. Billing Det. for Def-Var'!X$29,"") -> 0.09159617698 | F17: =IFERROR('4. Billing Det. for Def-Var'!J18/'4. Billing Det. for Def-Var'!J$29,"") -> 0.09454469266 | G17: =IFERROR(G$28*C17,"") -> 176502.3682 | H17: =IFERROR(H$28*E17,"") -> -13596.3863 | I17: =IFERROR(I$28*F17,"") -> 29126.92983 | L17: =IFERROR(L$28*$C17,"") -> 16491.47078 | M17: 443588.5132 | N17: =IFERROR(N$28*$F17,"") -> -439709.4979 | O17: ='4. Billing Det. for Def-Var'!L18*O$28 -> 0 | P17: ='4. Billing Det. for Def-Var'!M18*P$28 -> 0 | Q17: ='4. Billing Det. for Def-Var'!N18*Q$28 -> 0 | R17: ='4. Billing Det. for Def-Var'!O18*R$28 -> 0 | S17: ='4. Billing Det. for Def-Var'!P18*S$28 -> 0 | T17: ='4. Billing Det. for Def-Var'!Q18*T$28 -> 0 | U17: ='4. Billing Det. for Def-Var'!R18*U$28 -> 0 | V17: ='4. Billing Det. for Def-Var'!S18*V$28 -> 0 | W17: ='4. Billing Det. for Def-Var'!T18*W$28 -> -6177.553107 | X17: ='4. Billing Det. for Def-Var'!U18*X$28 -> 0 | Y17: ='4. Billing Det. for Def-Var'!V18*Y$28 -> 0 | Z17: ='4. Billing Det. for Def-Var'!W18 -> 40152.93207
B18: ='4. Billing Det. for Def-Var'!B19 -> GENERAL SERVICE 50 to 499 kW SERVICE CLASSIFICATION | C18: =IFERROR('4. Billing Det. for Def-Var'!D19/'4. Billing Det. for Def-Var'!D$29,"") -> 0.2822892761 | D18: =IFERROR('4. Billing Det. for Def-Var'!F19/'4. Billing Det. for Def-Var'!F$29,"") -> 0.3663257666 | E18: =IFERROR('4. Billing Det. for Def-Var'!X19/'4. Billing Det. for Def-Var'!X$29,"") -> 0 | F18: =IFERROR('4. Billing Det. for Def-Var'!J19/'4. Billing Det. for Def-Var'!J$29,"") -> 0.2827013005 | G18: =IFERROR(G$28*C18,"") -> 528111.4817 | H18: =IFERROR(H$28*E18,"") -> 0 | I18: =IFERROR(I$28*F18,"") -> 87093.42335 | L18: 49344.01254 | M18: 1327258.038 | N18: =IFERROR(N$28*$F18,"") -> -1314790.322 | O18: ='4. Billing Det. for Def-Var'!L19*O$28 -> 0 | P18: ='4. Billing Det. for Def-Var'!M19*P$28 -> 0 | Q18: ='4. Billing Det. for Def-Var'!N19*Q$28 -> 0 | R18: ='4. Billing Det. for Def-Var'!O19*R$28 -> 0 | S18: ='4. Billing Det. for Def-Var'!P19*S$28 -> 0 | T18: ='4. Billing Det. for Def-Var'!Q19*T$28 -> 0 | U18: ='4. Billing Det. for Def-Var'!R19*U$28 -> 0 | V18: ='4. Billing Det. for Def-Var'!S19*V$28 -> 0 | W18: ='4. Billing Det. for Def-Var'!T19*W$28 -> -20034.5911 | X18: ='4. Billing Det. for Def-Var'!U19*X$28 -> 0 | Y18: ='4. Billing Det. for Def-Var'!V19*Y$28 -> 0 | Z18: ='4. Billing Det. for Def-Var'!W19 -> 1358523.578
B19: ='4. Billing Det. for Def-Var'!B20 -> GENERAL SERVICE 500 to 4,999 kW SERVICE CLASSIFICATION | C19: =IFERROR('4. Billing Det. for Def-Var'!D20/'4. Billing Det. for Def-Var'!D$29,"") -> 0.2804084343 | D19: =IFERROR('4. Billing Det. for Def-Var'!F20/'4. Billing Det. for Def-Var'!F$29,"") -> 0.3953167772 | E19: =IFERROR('4. Billing Det. for Def-Var'!X20/'4. Billing Det. for Def-Var'!X$29,"") -> 0 | F19: =IFERROR('4. Billing Det. for Def-Var'!J20/'4. Billing Det. for Def-Var'!J$29,"") -> 0.2790712288 | G19: 524592.7714 | H19: 0 | I19: 85975.08618 | L19: 49015.2424 | M19: 1318414.761 | N19: -1297907.545 | O19: ='4. Billing Det. for Def-Var'!L20*O$28 -> 0 | P19: ='4. Billing Det. for Def-Var'!M20*P$28 -> 0 | Q19: ='4. Billing Det. for Def-Var'!N20*Q$28 -> 0 | R19: ='4. Billing Det. for Def-Var'!O20*R$28 -> 0 | S19: ='4. Billing Det. for Def-Var'!P20*S$28 -> 0 | T19: ='4. Billing Det. for Def-Var'!Q20*T$28 -> 0 | U19: ='4. Billing Det. for Def-Var'!R20*U$28 -> 0 | V19: ='4. Billing Det. for Def-Var'!S20*V$28 -> 0 | W19: ='4. Billing Det. for Def-Var'!T20*W$28 -> -18963.86524 | X19: ='4. Billing Det. for Def-Var'!U20*X$28 -> 0 | Y19: ='4. Billing Det. for Def-Var'!V20*Y$28 -> 0 | Z19: ='4. Billing Det. for Def-Var'!W20 -> 473711.3715
B20: ='4. Billing Det. for Def-Var'!B21 -> LARGE USE SERVICE CLASSIFICATION | C20: =IFERROR('4. Billing Det. for Def-Var'!D21/'4. Billing Det. for Def-Var'!D$29,"") -> 0.1344480277 | D20: =IFERROR('4. Billing Det. for Def-Var'!F21/'4. Billing Det. for Def-Var'!F$29,"") -> 0.2060217582 | E20: =IFERROR('4. Billing Det. for Def-Var'!X21/'4. Billing Det. for Def-Var'!X$29,"") -> 0 | F20: =IFERROR('4. Billing Det. for Def-Var'!J21/'4. Billing Det. for Def-Var'!J$29,"") -> 0.1347324734 | G20: 251527.6105 | H20: 0 | I20: 41507.81169 | L20: 23501.4424 | M20: 632143.126 | N20: -626615.2712 | O20: ='4. Billing Det. for Def-Var'!L21*O$28 -> 0 | P20: ='4. Billing Det. for Def-Var'!M21*P$28 -> 0 | Q20: ='4. Billing Det. for Def-Var'!N21*Q$28 -> 0 | R20: ='4. Billing Det. for Def-Var'!O21*R$28 -> 0 | S20: ='4. Billing Det. for Def-Var'!P21*S$28 -> 0 | T20: ='4. Billing Det. for Def-Var'!Q21*T$28 -> 0 | U20: ='4. Billing Det. for Def-Var'!R21*U$28 -> 0 | V20: ='4. Billing Det. for Def-Var'!S21*V$28 -> 0 | W20: ='4. Billing Det. for Def-Var'!T21*W$28 -> -8843.812144 | X20: ='4. Billing Det. for Def-Var'!U21*X$28 -> 0 | Y20: ='4. Billing Det. for Def-Var'!V21*Y$28 -> 0 | Z20: ='4. Billing Det. for Def-Var'!W21 -> 163129.8958
B21: ='4. Billing Det. for Def-Var'!B22 -> STANDBY POWER SERVICE CLASSIFICATION | C21: =IFERROR('4. Billing Det. for Def-Var'!D22/'4. Billing Det. for Def-Var'!D$29,"") -> 0 | D21: =IFERROR('4. Billing Det. for Def-Var'!F22/'4. Billing Det. for Def-Var'!F$29,"") -> 0 | E21: =IFERROR('4. Billing Det. for Def-Var'!X22/'4. Billing Det. for Def-Var'!X$29,"") -> 0 | F21: =IFERROR('4. Billing Det. for Def-Var'!J22/'4. Billing Det. for Def-Var'!J$29,"") -> 0 | G21: 0 | H21: 0 | I21: 0 | L21: 0 | M21: 0 | N21: 0 | O21: ='4. Billing Det. for Def-Var'!L22*O$28 -> 0 | P21: ='4. Billing Det. for Def-Var'!M22*P$28 -> 0 | Q21: ='4. Billing Det. for Def-Var'!N22*Q$28 -> 0 | R21: ='4. Billing Det. for Def-Var'!O22*R$28 -> 0 | S21: ='4. Billing Det. for Def-Var'!P22*S$28 -> 0 | T21: ='4. Billing Det. for Def-Var'!Q22*T$28 -> 0 | U21: ='4. Billing Det. for Def-Var'!R22*U$28 -> 0 | V21: ='4. Billing Det. for Def-Var'!S22*V$28 -> 0 | W21: ='4. Billing Det. for Def-Var'!T22*W$28 -> 0 | X21: ='4. Billing Det. for Def-Var'!U22*X$28 -> 0 | Y21: ='4. Billing Det. for Def-Var'!V22*Y$28 -> 0 | Z21: ='4. Billing Det. for Def-Var'!W22 -> 0
B22: ='4. Billing Det. for Def-Var'!B23 -> UNMETERED SCATTERED LOAD SERVICE CLASSIFICATION | C22: =IFERROR('4. Billing Det. for Def-Var'!D23/'4. Billing Det. for Def-Var'!D$29,"") -> 0.001573890235 | D22: =IFERROR('4. Billing Det. for Def-Var'!F23/'4. Billing Det. for Def-Var'!F$29,"") -> 9.368634934e-05 | E22: =IFERROR('4. Billing Det. for Def-Var'!X23/'4. Billing Det. for Def-Var'!X$29,"") -> 0 | F22: =IFERROR('4. Billing Det. for Def-Var'!J23/'4. Billing Det. for Def-Var'!J$29,"") -> 0.001577220045 | G22: 2944.460078 | H22: 0 | I22: 485.9032939 | L22: 275.1151604 | M22: 7400.063135 | N22: -7335.352357 | O22: ='4. Billing Det. for Def-Var'!L23*O$28 -> 0 | P22: ='4. Billing Det. for Def-Var'!M23*P$28 -> 0 | Q22: ='4. Billing Det. for Def-Var'!N23*Q$28 -> 0 | R22: ='4. Billing Det. for Def-Var'!O23*R$28 -> 0 | S22: ='4. Billing Det. for Def-Var'!P23*S$28 -> 0 | T22: ='4. Billing Det. for Def-Var'!Q23*T$28 -> 0 | U22: ='4. Billing Det. for Def-Var'!R23*U$28 -> 0 | V22: ='4. Billing Det. for Def-Var'!S23*V$28 -> 0 | W22: ='4. Billing Det. for Def-Var'!T23*W$28 -> -102.0473963 | X22: ='4. Billing Det. for Def-Var'!U23*X$28 -> 0 | Y22: ='4. Billing Det. for Def-Var'!V23*Y$28 -> 0 | Z22: ='4. Billing Det. for Def-Var'!W23 -> 0
B23: ='4. Billing Det. for Def-Var'!B24 -> STREET LIGHTING SERVICE CLASSIFICATION | C23: =IFERROR('4. Billing Det. for Def-Var'!D24/'4. Billing Det. for Def-Var'!D$29,"") -> 0.001828778398 | D23: =IFERROR('4. Billing Det. for Def-Var'!F24/'4. Billing Det. for Def-Var'!F$29,"") -> 0.002802332972 | E23: =IFERROR('4. Billing Det. for Def-Var'!X24/'4. Billing Det. for Def-Var'!X$29,"") -> 0 | F23: =IFERROR('4. Billing Det. for Def-Var'!J24/'4. Billing Det. for Def-Var'!J$29,"") -> 0.001832647464 | G23: 3421.309101 | H23: 0 | I23: 564.5942949 | L23: 319.6694732 | M23: 8598.48756 | N23: -8523.297009 | O23: ='4. Billing Det. for Def-Var'!L24*O$28 -> 0 | P23: ='4. Billing Det. for Def-Var'!M24*P$28 -> 0 | Q23: ='4. Billing Det. for Def-Var'!N24*Q$28 -> 0 | R23: ='4. Billing Det. for Def-Var'!O24*R$28 -> 0 | S23: ='4. Billing Det. for Def-Var'!P24*S$28 -> 0 | T23: ='4. Billing Det. for Def-Var'!Q24*T$28 -> 0 | U23: ='4. Billing Det. for Def-Var'!R24*U$28 -> 0 | V23: ='4. Billing Det. for Def-Var'!S24*V$28 -> 0 | W23: ='4. Billing Det. for Def-Var'!T24*W$28 -> -238.0770985 | X23: ='4. Billing Det. for Def-Var'!U24*X$28 -> 0 | Y23: ='4. Billing Det. for Def-Var'!V24*Y$28 -> 0 | Z23: ='4. Billing Det. for Def-Var'!W24 -> -132216.3034
O24: ='4. Billing Det. for Def-Var'!L25*O$28 -> 0 | P24: ='4. Billing Det. for Def-Var'!M25*P$28 -> 0 | Q24: ='4. Billing Det. for Def-Var'!N25*Q$28 -> 0 | R24: ='4. Billing Det. for Def-Var'!O25*R$28 -> 0 | S24: ='4. Billing Det. for Def-Var'!P25*S$28 -> 0 | T24: ='4. Billing Det. for Def-Var'!Q25*T$28 -> 0 | U24: ='4. Billing Det. for Def-Var'!R25*U$28 -> 0 | V24: ='4. Billing Det. for Def-Var'!S25*V$28 -> 0 | W24: ='4. Billing Det. for Def-Var'!T25*W$28 -> 0 | X24: ='4. Billing Det. for Def-Var'!U25*X$28 -> 0 | Y24: ='4. Billing Det. for Def-Var'!V25*Y$28 -> 0 | Z24: ='4. Billing Det. for Def-Var'!W25 -> 0
C28: =SUM(C16:C27) -> 1 | D28: =SUM(D16:D27) -> 1 | E28: =SUM(E16:E27) -> 1 | F28: =SUM(F16:F27) -> 1 | G28: ='3. Continuity Schedule'!BU21 -> 1870816.663 | H28: ='3. Continuity Schedule'!BU22 -> -148438.3601 | I28: ='3. Continuity Schedule'!BU23+(IF('6.2 CBR B'!$U$18="TRUE",'6.2a CBR B_Allocation'!D25,0)) -> 308075.7789 | L28: ='3. Continuity Schedule'!BU26 -> 174799.4582 | M28: ='3. Continuity Schedule'!BU27 -> 4701765.708 | N28: ='3. Continuity Schedule'!BU28 -> -4650811.014 | O28: =IF('3. Continuity Schedule'!$BT30="Yes",'3. Continuity Schedule'!$BU30,0) -> 0 | P28: =IF('3. Continuity Schedule'!$BT31="Yes",'3. Continuity Schedule'!$BU31,0) -> 0 | Q28: =IF('3. Continuity Schedule'!$BT32="Yes",'3. Continuity Schedule'!$BU32,0) -> 0 | R28: =IF('3. Continuity Schedule'!$BT33="Yes",'3. Continuity Schedule'!$BU33,0) -> 0 | S28: =IF('3. Continuity Schedule'!$BT34="Yes",'3. Continuity Schedule'!$BU34,0) -> 0 | T28: =IF('3. Continuity Schedule'!$BT35="Yes",'3. Continuity Schedule'!$BU35,0) -> 0 | U28: =IF('3. Continuity Schedule'!$BT36="Yes",'3. Continuity Schedule'!$BU36,0) -> 0 | V28: =IF('3. Continuity Schedule'!$BT37="Yes",'3. Continuity Schedule'!$BU37,0) -> 0 | W28: =IF('3. Continuity Schedule'!$BT38="Yes",'3. Continuity Schedule'!$BU38,0) -> -68364.32696 | X28: =IF('3. Continuity Schedule'!$BT39="Yes",'3. Continuity Schedule'!$BU39,0) -> 0 | Y28: =IF('3. Continuity Schedule'!$BT40="Yes",'3. Continuity Schedule'!$BU40,0) -> 0 | Z28: =SUM(Z16:Z27) -> 2389285.062
G29: =SUM(G16:G27)-G28 -> 0 | H29: =SUM(H16:H27)-H28 -> 0 | I29: 0 | J29: 0 | K29: 0 | L29: 0 | M29: 0 | N29: 0 | P29: 0 | Q29: 0 | R29: 0 | S29: 0 | T29: 0 | U29: 0 | V29: 0 | Z29: 0
B32: ** Used to allocate Account 1551 as this account records the variances arising from the Smart Metering Entity Charges to Residential and GS<50 customers.

Sheet 6. Class A Consumption Data
A1: Back to Index
B2: =+'1. Information Sheet'!B2 -> INCENTIVE REGULATION MODEL FOR 2020 FILERS
A12: 1 | B12: Please select the Year the Account 1580 CBR Class B was Last Disposed. | C12: 2017 | D12: (e.g. If in the 2018 EDR process, you received approval to dispose the GA variance account balance as at December 31, 2016, enter 2016.)
C14: Years since Account 1589 GA balance was last disposed (up to 2016) | E14: =C12 -> 2017 | F14: =E14-1 -> 2016
A17: 2a | B17: Did you have any customers who transitioned between Class A and Class B (transition customers) during the period the Account 1589 GA balance accumulated (i.e. from the year after the balance was last disposed to 2017)? | C17: Yes | D17: (e.g. If you received approval to dispose of the GA variance account balance as at December 31, 2015, the period the GA variance accumulated would be 2016 and 2017.)
A19: 2b | B19: Did you have any customers who transitioned between Class A and Class B (transition customers) during the period the Account 1580, sub-account CBR Class B balance accumulated (i.e. from the year after the balance was last disposed to 2017)? | C19: Yes | D19: (e.g. If you received approval to dispose of the CBR Class B balance as at December 31, 2016, the period the CBR Class B variance accumulated would be 2017.)
A23: 3a | B23: Enter the number of transition customers you had during the period the Account 1589 GA balance accumulated. | C23: 33
C26: Transition Customers - Non-loss Adjusted Billing Determinants by Customer
C27: Customer | D27: Rate Class | E27: 2018 kWh | H27: 2018 kW | K27: Class A/B
E28: Jan to Jun | F28: Jul to Dec | H28: Jan to Jun | I28: Jul to Dec | K28: Jan to Jun | L28: Jul to Dec | M28: July to December
C29: Customer 1 | D29: GENERAL SERVICE 500 to 4,999 kW SERVICE CLASSIFICATION | E29: 2561331 | F29: 2389174 | G29: =IF(D29<>"",E$27,"") -> 2018 kWh | H29: 6912.487369 | I29: 5984.469775 | J29: =IF(D29<>"",H$27,"") -> 2018 kW | K29: A | L29: B
C30: Customer 2 | D30: GENERAL SERVICE 500 to 4,999 kW SERVICE CLASSIFICATION | E30: 3848520 | F30: 4672225 | G30: =IF(D30<>"",E$27,"") -> 2018 kWh | H30: 8400 | I30: 10025 | J30: =IF(D30<>"",H$27,"") -> 2018 kW | K30: A | L30: B
C31: Customer 3 | D31: GENERAL SERVICE 500 to 4,999 kW SERVICE CLASSIFICATION | E31: 2774837 | F31: 2868732 | G31: 2018 kWh | H31: 6417 | I31: 6375 | J31: 2018 kW | K31: A | L31: B
C32: Customer 4 | D32: GENERAL SERVICE 500 to 4,999 kW SERVICE CLASSIFICATION | E32: 2857375 | F32: 2769214 | G32: 2018 kWh | H32: 4604 | I32: 4448 | J32: 2018 kW | K32: A | L32: B
C33: Customer 5 | D33: GENERAL SERVICE 500 to 4,999 kW SERVICE CLASSIFICATION | E33: 1438607 | F33: 1300006 | G33: 2018 kWh | H33: 4034 | I33: 3896 | J33: 2018 kW | K33: A | L33: B
C34: Customer 6 | D34: GENERAL SERVICE 500 to 4,999 kW SERVICE CLASSIFICATION | E34: 1213637 | F34: 816748 | G34: 2018 kWh | H34: 2905 | I34: 2447 | J34: 2018 kW | K34: A | L34: B
C35: Customer 7 | D35: GENERAL SERVICE 500 to 4,999 kW SERVICE CLASSIFICATION | E35: 2015656 | F35: 2169594 | G35: =IF(D35<>"",E$27,"") -> 2018 kWh | H35: 4743 | I35: 5096 | J35: 2018 kW | K35: B | L35: A
C36: Customer 8 | D36: LARGE USE SERVICE CLASSIFICATION | E36: 26194573 | F36: 27725999 | G36: 2018 kWh | H36: 54081 | I36: 57187 | J36: 2018 kW | K36: B | L36: A
C37: Customer 9 | D37: GENERAL SERVICE 500 to 4,999 kW SERVICE CLASSIFICATION | E37: 2530311 | F37: 2539816 | G37: 2018 kWh | H37: 5745 | I37: 5836 | J37: 2018 kW | K37: B | L37: A
C38: Customer 10 | D38: GENERAL SERVICE 500 to 4,999 kW SERVICE CLASSIFICATION | E38: 2038661 | F38: 1859230 | G38: 2018 kWh | H38: 4542 | I38: 4299 | J38: 2018 kW | K38: B | L38: A
C39: Customer 11 | D39: GENERAL SERVICE 500 to 4,999 kW SERVICE CLASSIFICATION | E39: 4194295 | F39: 4823148 | G39: 2018 kWh | H39: 8154 | I39: 9775 | J39: 2018 kW | K39: B | L39: A
C40: Customer 12 | D40: GENERAL SERVICE 500 to 4,999 kW SERVICE CLASSIFICATION | E40: 7270843 | F40: 7432272 | G40: 2018 kWh | H40: 15477 | I40: 16864 | J40: 2018 kW | K40: B | L40: A
C41: Customer 13 | D41: GENERAL SERVICE 500 to 4,999 kW SERVICE CLASSIFICATION | E41: 2512207 | F41: 2590613 | G41: 2018 kWh | H41: 6552 | I41: 6348 | J41: 2018 kW | K41: B | L41: A
C42: Customer 14 | D42: GENERAL SERVICE 500 to 4,999 kW SERVICE CLASSIFICATION | E42: 2301872 | F42: 1974365 | G42: 2018 kWh | H42: 8531 | I42: 8061 | J42: 2018 kW | K42: B | L42: A
C43: Customer 15 | D43: GENERAL SERVICE 500 to 4,999 kW SERVICE CLASSIFICATION | E43: 1266000 | F43: 1366789 | G43: 2018 kWh | H43: 4111.493592 | I43: 3716 | J43: 2018 kW | K43: B | L43: A
C44: Customer 16 | D44: GENERAL SERVICE 500 to 4,999 kW SERVICE CLASSIFICATION | E44: 9187198 | F44: 10064044 | G44: 2018 kWh | H44: 23678 | I44: 22445 | J44: 2018 kW | K44: B | L44: A
C45: Customer 17 | D45: LARGE USE SERVICE CLASSIFICATION | E45: 28684761 | F45: 32541712 | G45: 2018 kWh | H45: 62751 | I45: 69304 | J45: 2018 kW | K45: B | L45: A
C46: Customer 18 | D46: GENERAL SERVICE 500 to 4,999 kW SERVICE CLASSIFICATION | E46: 897411 | F46: 745215 | G46: 2018 kWh | H46: 6836 | I46: 6726 | J46: 2018 kW | K46: B | L46: A
C47: Customer 19 | D47: GENERAL SERVICE 500 to 4,999 kW SERVICE CLASSIFICATION | E47: 5373080 | F47: 5654344 | G47: 2018 kWh | H47: 13126 | I47: 14167 | J47: 2018 kW | K47: B | L47: A
C48: Customer 20 | D48: GENERAL SERVICE 500 to 4,999 kW SERVICE CLASSIFICATION | E48: 2658418 | F48: 2603135 | G48: 2018 kWh | H48: 6601 | I48: 6670 | J48: 2018 kW | K48: B | L48: A
C49: Customer 21 | D49: GENERAL SERVICE 500 to 4,999 kW SERVICE CLASSIFICATION | E49: 4188830 | F49: 5111791 | G49: 2018 kWh | H49: 7965 | I49: 9326 | J49: 2018 kW | K49: B | L49: A
C50: Customer 22 | D50: GENERAL SERVICE 500 to 4,999 kW SERVICE CLASSIFICATION | E50: 11053536 | F50: 11370180 | G50: 2018 kWh | H50: 19245 | I50: 20227 | J50: 2018 kW | K50: B | L50: A
C51: Customer 23 | D51: GENERAL SERVICE 500 to 4,999 kW SERVICE CLASSIFICATION | E51: 2090353 | F51: 1974636 | G51: 2018 kWh | H51: 4340 | I51: 4328 | J51: 2018 kW | K51: B | L51: A
C52: Customer 24 | D52: GENERAL SERVICE 500 to 4,999 kW SERVICE CLASSIFICATION | E52: 2516374 | F52: 2521883 | G52: 2018 kWh | H52: 4472 | I52: 4542 | J52: 2018 kW | K52: B | L52: A
C53: Customer 25 | D53: GENERAL SERVICE 500 to 4,999 kW SERVICE CLASSIFICATION | E53: 2617200 | F53: 2631574 | G53: 2018 kWh | H53: 5783.363815 | I53: 5958 | J53: 2018 kW | K53: B | L53: A
C54: Customer 26 | D54: GENERAL SERVICE 500 to 4,999 kW SERVICE CLASSIFICATION | E54: 2633257 | F54: 2243379 | G54: 2018 kWh | H54: 6167 | I54: 6279 | J54: 2018 kW | K54: B | L54: A
C55: Customer 27 | D55: GENERAL SERVICE 500 to 4,999 kW SERVICE CLASSIFICATION | E55: 2350884 | F55: 2056487 | G55: 2018 kWh | H55: 6375 | I55: 5644 | J55: 2018 kW | K55: B | L55: A
C56: Customer 28 | D56: GENERAL SERVICE 500 to 4,999 kW SERVICE CLASSIFICATION | E56: 2152851 | F56: 2421142 | G56: 2018 kWh | H56: 4999 | I56: 5282 | J56: 2018 kW | K56: B | L56: A
C57: Customer 29 | D57: GENERAL SERVICE 500 to 4,999 kW SERVICE CLASSIFICATION | E57: 3966943 | F57: 3793919 | G57: 2018 kWh | H57: 8023 | I57: 8331 | J57: 2018 kW | K57: B | L57: A
C58: Customer 30 | D58: GENERAL SERVICE 500 to 4,999 kW SERVICE CLASSIFICATION | E58: 3002890 | F58: 3510372 | G58: 2018 kWh | H58: 5746 | I58: 6855 | J58: 2018 kW | K58: B | L58: A
C59: Customer 31 | D59: GENERAL SERVICE 500 to 4,999 kW SERVICE CLASSIFICATION | E59: 1436253 | F59: 1558620 | G59: 2018 kWh | H59: 4429 | I59: 4601 | J59: 2018 kW | K59: B | L59: A
C60: Customer 32 | D60: GENERAL SERVICE 500 to 4,999 kW SERVICE CLASSIFICATION | E60: 8495106 | F60: 9594345 | G60: 2018 kWh | H60: 15242 | I60: 18148 | J60: 2018 kW | K60: B | L60: A
C61: Customer 33 | D61: GENERAL SERVICE 500 to 4,999 kW SERVICE CLASSIFICATION | E61: 1363800 | F61: 1214238 | G61: 2018 kWh | H61: 3315.231274 | I61: 3292 | J61: 2018 kW | K61: B | L61: A
C62: Customer 34 | G62: =IF(D62<>"",E$27,"") -> 
C63: Customer 35
C64: Customer 36
C65: Customer 37
C66: Customer 38
C67: Customer 39
C68: Customer 40
C69: Customer 41
C70: Customer 42
C71: Customer 43
C72: Customer 44
C73: Customer 45
C74: Customer 46
C75: Customer 47
C76: Customer 48
C77: Customer 49
C78: Customer 50
C79: Customer 51
C80: Customer 52
C81: Customer 53
C82: Customer 54
C83: Customer 55
C84: Customer 56
C85: Customer 57
C86: Customer 58
C87: Customer 59
C88: Customer 60
C89: Customer 61
C90: Customer 62
C91: Customer 63
C92: Customer 64
C93: Customer 65
C94: Customer 66 | G94: =IF(D94<>"",E$27,"") -> 
C95: Customer 67
C96: Customer 68
C97: Customer 69
C98: Customer 70
C99: Customer 71
C100: Customer 72
C101: Customer 73
C102: Customer 74
C103: Customer 75
C104: Customer 76
C105: Customer 77
C106: Customer 78
C107: Customer 79
C108: Customer 80
C109: Customer 81
C110: Customer 82
C111: Customer 83
C112: Customer 84
C113: Customer 85
C114: Customer 86
C115: Customer 87
C116: Customer 88
C117: Customer 89
C118: Customer 90
C119: Customer 91
C120: Customer 92
C121: Customer 93
C122: Customer 94
C123: Customer 95
C124: Customer 96
C125: Customer 97
C126: Customer 98
C127: Customer 99
C128: Customer 100
C129: Customer 101
C130: Customer 102 | G130: =IF(D130<>"",E$27,"") -> 
C131: Customer 103
C132: Customer 104
C133: Customer 105
C134: Customer 106
C135: Customer 107
C136: Customer 108
C137: Customer 109
C138: Customer 110
C139: Customer 111
C140: Customer 112
C141: Customer 113
C142: Customer 114
C143: Customer 115
C144: Customer 116
C145: Customer 117
C146: Customer 118
C147: Customer 119
C148: Customer 120
C149: Customer 121
C150: Customer 122
C151: Customer 123
C152: Customer 124
C153: Customer 125
C154: Customer 126
C155: Customer 127
C156: Customer 128
C157: Customer 129
C158: Customer 130
C159: Customer 131
C160: Customer 132
C161: Customer 133
C162: Customer 134
C163: Customer 135
C164: Customer 136
C165: Customer 137
C166: Customer 138
C167: Customer 139
C168: Customer 140
C169: Customer 141
C170: Customer 142
C171: Customer 143
C172: Customer 144
C173: Customer 145
C174: Customer 146
C175: Customer 147
C176: Customer 148
C177: Customer 149
C178: Customer 150
A186: 3b | B186: Enter the number of customers who were Class A during the entire period since the Account 1589 GA balance accumulated (i.e. did not transition between Class A and B). | C186: 86
C189: Class A Customers - Billing Determinants by Customer
C190: Customer | D190: Rate Class | E190: kWh | H190: kW
C191: Customer A1 | D191: GENERAL SERVICE 500 to 4,999 kW SERVICE CLASSIFICATION | E191: 11136091 | H191: 29591
C192: Customer A2 | D192: LARGE USE SERVICE CLASSIFICATION | E192: 142671512 | H192: 223175
C193: Customer A3 | D193: LARGE USE SERVICE CLASSIFICATION | E193: 78474853 | H193: 133608
C194: Customer A4 | D194: GENERAL SERVICE 500 to 4,999 kW SERVICE CLASSIFICATION | E194: 9462989 | H194: 20631
C195: Customer A5 | D195: GENERAL SERVICE 500 to 4,999 kW SERVICE CLASSIFICATION | E195: 12696532 | H195: 19417
C196: Customer A6 | D196: GENERAL SERVICE 500 to 4,999 kW SERVICE CLASSIFICATION | E196: 13331446 | H196: 23070
C197: Customer A7 | D197: GENERAL SERVICE 500 to 4,999 kW SERVICE CLASSIFICATION | E197: 12004827 | H197: 29818
C198: Customer A8 | D198: GENERAL SERVICE 500 to 4,999 kW SERVICE CLASSIFICATION | E198: 5068619 | H198: 12672
C199: Customer A9 | D199: GENERAL SERVICE 500 to 4,999 kW SERVICE CLASSIFICATION | E199: 7004108 | H199: 15224
C200: Customer A10 | D200: GENERAL SERVICE 500 to 4,999 kW SERVICE CLASSIFICATION | E200: 25754799 | H200: 48738
C201: Customer A11 | D201: GENERAL SERVICE 500 to 4,999 kW SERVICE CLASSIFICATION | E201: 30699474 | H201: 63364
C202: Customer A12 | D202: GENERAL SERVICE 500 to 4,999 kW SERVICE CLASSIFICATION | E202: 2964000 | H202: 6993
C203: Customer A13 | D203: GENERAL SERVICE 500 to 4,999 kW SERVICE CLASSIFICATION | E203: 6640682 | H203: 11767
C204: Customer A14 | D204: LARGE USE SERVICE CLASSIFICATION | E204: 253092104 | H204: 454471
C205: Customer A15 | D205: GENERAL SERVICE 500 to 4,999 kW SERVICE CLASSIFICATION | E205: 9697459 | H205: 17816
C206: Customer A16 | D206: GENERAL SERVICE 500 to 4,999 kW SERVICE CLASSIFICATION | E206: 10650238 | H206: 22694
C207: Customer A17 | D207: LARGE USE SERVICE CLASSIFICATION | E207: 218868237 | H207: 427795
C208: Customer A18 | D208: GENERAL SERVICE 500 to 4,999 kW SERVICE CLASSIFICATION | E208: 12141217 | H208: 20284
C209: Customer A19 | D209: GENERAL SERVICE 500 to 4,999 kW SERVICE CLASSIFICATION | E209: 11141477 | H209: 23479
C210: Customer A20 | D210: GENERAL SERVICE 500 to 4,999 kW SERVICE CLASSIFICATION | E210: 22757382 | H210: 41862
C211: Customer A21 | D211: GENERAL SERVICE 500 to 4,999 kW SERVICE CLASSIFICATION | E211: 7021571 | H211: 17008
C212: Customer A22 | D212: GENERAL SERVICE 500 to 4,999 kW SERVICE CLASSIFICATION | E212: 8961047 | H212: 18038
C213: Customer A23 | D213: GENERAL SERVICE 500 to 4,999 kW SERVICE CLASSIFICATION | E213: 9024137 | H213: 19447
C214: Customer A24 | D214: GENERAL SERVICE 500 to 4,999 kW SERVICE CLASSIFICATION | E214: 3941209 | H214: 9385
C215: Customer A25 | D215: GENERAL SERVICE 500 to 4,999 kW SERVICE CLASSIFICATION | E215: 3766153 | H215: 9401
C216: Customer A26 | D216: GENERAL SERVICE 500 to 4,999 kW SERVICE CLASSIFICATION | E216: 1874123 | H216: 7182
C217: Customer A27 | D217: GENERAL SERVICE 500 to 4,999 kW SERVICE CLASSIFICATION | E217: 7449336 | H217: 13364
C218: Customer A28 | D218: GENERAL SERVICE 500 to 4,999 kW SERVICE CLASSIFICATION | E218: 11557593 | H218: 21513
C219: Customer A29 | D219: GENERAL SERVICE 500 to 4,999 kW SERVICE CLASSIFICATION | E219: 8345387 | H219: 18862
C220: Customer A30 | D220: GENERAL SERVICE 500 to 4,999 kW SERVICE CLASSIFICATION | E220: 5230650 | H220: 14331
C221: Customer A31 | D221: GENERAL SERVICE 500 to 4,999 kW SERVICE CLASSIFICATION | E221: 25895826 | H221: 49690
C222: Customer A32 | D222: GENERAL SERVICE 500 to 4,999 kW SERVICE CLASSIFICATION | E222: 2198306 | H222: 7852
C223: Customer A33 | D223: GENERAL SERVICE 500 to 4,999 kW SERVICE CLASSIFICATION | E223: 7999938 | H223: 21249
C224: Customer A34 | D224: GENERAL SERVICE 500 to 4,999 kW SERVICE CLASSIFICATION | E224: 9534372 | H224: 20630
C225: Customer A35 | D225: GENERAL SERVICE 500 to 4,999 kW SERVICE CLASSIFICATION | E225: 2821468 | H225: 6466
C226: Customer A36 | D226: GENERAL SERVICE 500 to 4,999 kW SERVICE CLASSIFICATION | E226: 10773814 | H226: 31698
C227: Customer A37 | D227: GENERAL SERVICE 500 to 4,999 kW SERVICE CLASSIFICATION | E227: 4240263 | H227: 7317
... 113 more rows

Sheet 6.1a GA Allocation
A1: Back to Index
B2: =+'1. Information Sheet'!B2 -> INCENTIVE REGULATION MODEL FOR 2020 FILERS
B11: This tab allocates the GA balance to former Class B non-interval customers who contributed to the current GA balance but are now Class A customers. The tables below calculate specific amounts for each customer who made the change. Consistent with both decisions for 2016 rates and EDDVAR, distributors are generally expected to settle the amount through 12 equal adjustments to bills. A one-time settlement is acceptable if the affected customer has expressed a clear preference for this approach. (see Filing Requirements section 3.2.5.2)
B14: Year of Group 1 Account Balance Last Disposed | C14: 2017 | D14: (e.g. If in the 2019 EDR process, you received approval to dispose the GA variance account balance as of December 31, 2016, please enter 2016 in cell C14.)
B16: Allocation of total Non-RPP Consumption (kWh) between Current Class B and Class A/B Transition Customers
D17: Total | E17: =C14+1 -> 2018 | F17: =E17-1 -> 2017 | G17: =F17-1 -> 2016
B18: Total Non-RPP Class B Consumption for Years During Balance Accumulation (Non-RPP Consumption LESS WMP Consumption and Consumption for Class A customers who were Class A for partial or full year) | C18: A | D18: =SUM(E18:G18) -> 2878155347 | E18: =N25 -> 2878155347 | H18: from Cell N25
B19: Transition Customers' Class B Consumption (i.e. full year or partial year) | C19: B | D19: =SUM(E19:G19) -> 159809662 | E19: =E189 -> 159809662 | F19: =F189 -> 0 | G19: 0
B20: Transition Customers' Portion of Total Consumption | C20: C=B/A | D20: =IFERROR(+D19/D18,0) -> 0.05552503
L21: Sheet 4 | M21: total non-RPP kWh | N21: ='4. Billing Det. for Def-Var'!F29+'4. Billing Det. for Def-Var'!H29 -> 4757799415
L22: Sheet 4 | M22: WMP kWh | N22: ='4. Billing Det. for Def-Var'!H29 -> 15342256.3
B23: Allocation of Total GA Balance $ | L23: Sheet 6.1 | M23: Class A (full) | N23: ='6.1 GA'!E29 -> 1695514662
L24: Sheet 6.1 | M24: Class A (partial) | N24: =SUM(IF('6. Class A Consumption Data'!$K$28:$L$61="a",'6. Class A Consumption Data'!$E$28:$F$61)) -> 168787149
B25: Total GA Balance | C25: D | D25: ='3. Continuity Schedule'!BU29 -> -9274619.07 | N25: =N21-N22-N23-N24 -> 2878155347
B26: Transition Customers Portion of GA Balance | C26: E=C*D | D26: =+D20*D25 -> -514973.5021
B27: GA Balance to be disposed to Current Class B Customers through Rate Rider | C27: F=D-E | D27: =+D25-D26 -> -8759645.568
B30: Allocation of GA Balances to Class A/B Transition Customers
B32: Default Monthly Equal Payments Recovery Period (in months) | D32: 12
B34: Proposed Monthly Equal Payments Recovery Period (in months) | D34: 12
B37: # of Class A/B Transition Customers | C37: =COUNT($E$39:$E$188)-COUNTIF($E$39:$E$188,0) -> 33
B38: Customer | D38: Total Metered Consumption (kWh) for Transition Customers During the Period WhenThey Were Class B Customers | E38: Metered Consumption (kWh) for Transition Customers During the Period When They Were Class B Customers in 2018 | F38: Metered Consumption (kWh) for Transition Customers During the Period When They Were Class B Customers in 2017 | G38: Metered Consumption (kWh) for Transition Customers During the Period When They Were Class B Customers in 2016 | H38: % of kWh | I38: Customer Specific GA Allocation for the Period When They Were a Class B customer | J38: Monthly Equal Payments
B39: Customer 1 | D39: =SUM(E39:G39) -> 2389174 | E39: =SUM(IF('6. Class A Consumption Data'!K29:L29="B",'6. Class A Consumption Data'!E29:F29)) -> 2389174 | H39: =IFERROR(+D39/$D$189,0) -> 0.01495012235 | I39: =H39*$D$26 -> -7698.916864 | J39: =ROUND(IF(ISERROR(I39),0,IF(OR(ISBLANK($D$34), OR($D$34=0, $D$34="")), I39/($D$32), I39/($D$34))),2) -> -641.58
B40: Customer 2 | D40: 4672225 | E40: =SUM(IF('6. Class A Consumption Data'!K30:L30="B",'6. Class A Consumption Data'!E30:F30)) -> 4672225 | H40: =IFERROR(+D40/$D$189,0) -> 0.02923618598 | I40: =H40*$D$26 -> -15055.86108 | J40: =ROUND(IF(ISERROR(I40),0,IF(OR(ISBLANK($D$34), OR($D$34=0, $D$34="")), I40/($D$32), I40/($D$34))),2) -> -1254.66
B41: Customer 3 | D41: 2868732 | E41: =SUM(IF('6. Class A Consumption Data'!K31:L31="B",'6. Class A Consumption Data'!E31:F31)) -> 2868732 | H41: 0.01795092965 | I41: -9244.253107 | J41: -770.35
B42: Customer 4 | D42: 2769214 | E42: =SUM(IF('6. Class A Consumption Data'!K32:L32="B",'6. Class A Consumption Data'!E32:F32)) -> 2769214 | H42: 0.01732820134 | I42: -8923.564531 | J42: -743.63
B43: Customer 5 | D43: 1300006 | E43: =SUM(IF('6. Class A Consumption Data'!K33:L33="B",'6. Class A Consumption Data'!E33:F33)) -> 1300006 | H43: 0.008134714658 | I43: -4189.162496 | J43: -349.1
B44: Customer 6 | D44: 816748 | E44: =SUM(IF('6. Class A Consumption Data'!K34:L34="B",'6. Class A Consumption Data'!E34:F34)) -> 816748 | H44: 0.005110754818 | I44: -2631.903307 | J44: -219.33
B45: Customer 7 | D45: 2015656 | E45: =SUM(IF('6. Class A Consumption Data'!K35:L35="B",'6. Class A Consumption Data'!E35:F35)) -> 2015656 | H45: 0.01261285441 | I45: -6495.285806 | J45: -541.27
B46: Customer 8 | D46: 26194573 | E46: =SUM(IF('6. Class A Consumption Data'!K36:L36="B",'6. Class A Consumption Data'!E36:F36)) -> 26194573 | H46: 0.1639110719 | I46: -84409.85873 | J46: -7034.15
B47: Customer 9 | D47: 2530311 | E47: =SUM(IF('6. Class A Consumption Data'!K37:L37="B",'6. Class A Consumption Data'!E37:F37)) -> 2530311 | H47: 0.01583327922 | I47: -8153.719248 | J47: -679.48
B48: Customer 10 | D48: 2038661 | E48: =SUM(IF('6. Class A Consumption Data'!K38:L38="B",'6. Class A Consumption Data'!E38:F38)) -> 2038661 | H48: 0.01275680691 | I48: -6569.417528 | J48: -547.45
B49: Customer 11 | D49: 4194295 | E49: =SUM(IF('6. Class A Consumption Data'!K39:L39="B",'6. Class A Consumption Data'!E39:F39)) -> 4194295 | H49: 0.0262455658 | I49: -13515.77094 | J49: -1126.31
B50: Customer 12 | D50: 7270843 | E50: =SUM(IF('6. Class A Consumption Data'!K40:L40="B",'6. Class A Consumption Data'!E40:F40)) -> 7270843 | H50: 0.04549689242 | I50: -23429.69402 | J50: -1952.47
B51: Customer 13 | D51: 2512207 | E51: =SUM(IF('6. Class A Consumption Data'!K41:L41="B",'6. Class A Consumption Data'!E41:F41)) -> 2512207 | H51: 0.01571999445 | I51: -8095.380595 | J51: -674.62
B52: Customer 14 | D52: 2301872 | E52: =SUM(IF('6. Class A Consumption Data'!K42:L42="B",'6. Class A Consumption Data'!E42:F42)) -> 2301872 | H52: 0.01440383498 | I52: -7417.593344 | J52: -618.13
B53: Customer 15 | D53: 1266000 | E53: =SUM(IF('6. Class A Consumption Data'!K43:L43="B",'6. Class A Consumption Data'!E43:F43)) -> 1266000 | H53: 0.00792192402 | I53: -4079.580956 | J53: -339.97
B54: Customer 16 | D54: 9187198 | E54: =SUM(IF('6. Class A Consumption Data'!K44:L44="B",'6. Class A Consumption Data'!E44:F44)) -> 9187198 | H54: 0.05748837639 | I54: -29604.99052 | J54: -2467.08
B55: Customer 17 | D55: 28684761 | E55: =SUM(IF('6. Class A Consumption Data'!K45:L45="B",'6. Class A Consumption Data'!E45:F45)) -> 28684761 | H55: 0.1794932837 | I55: -92434.28491 | J55: -7702.86
B56: Customer 18 | D56: 897411 | E56: =SUM(IF('6. Class A Consumption Data'!K46:L46="B",'6. Class A Consumption Data'!E46:F46)) -> 897411 | H56: 0.005615499018 | I56: -2891.833195 | J56: -240.99
B57: Customer 19 | D57: 5373080 | E57: =SUM(IF('6. Class A Consumption Data'!K47:L47="B",'6. Class A Consumption Data'!E47:F47)) -> 5373080 | H57: 0.03362174685 | I57: -17314.30872 | J57: -1442.86
B58: Customer 20 | D58: 2658418 | E58: =SUM(IF('6. Class A Consumption Data'!K48:L48="B",'6. Class A Consumption Data'!E48:F48)) -> 2658418 | H58: 0.01663490159 | I58: -8566.533527 | J58: -713.88
B59: Customer 21 | D59: 4188830 | E59: =SUM(IF('6. Class A Consumption Data'!K49:L49="B",'6. Class A Consumption Data'!E49:F49)) -> 4188830 | H59: 0.02621136887 | I59: -13498.16042 | J59: -1124.85
B60: Customer 22 | D60: 11053536 | E60: =SUM(IF('6. Class A Consumption Data'!K50:L50="B",'6. Class A Consumption Data'!E50:F50)) -> 11053536 | H60: 0.06916688179 | I60: -35619.11134 | J60: -2968.26
B61: Customer 23 | D61: 2090353 | E61: =SUM(IF('6. Class A Consumption Data'!K51:L51="B",'6. Class A Consumption Data'!E51:F51)) -> 2090353 | H61: 0.0130802667 | I61: -6735.99075 | J61: -561.33
B62: Customer 24 | D62: 2516374 | E62: =SUM(IF('6. Class A Consumption Data'!K52:L52="B",'6. Class A Consumption Data'!E52:F52)) -> 2516374 | H62: 0.01574606922 | I62: -8108.80841 | J62: -675.73
B63: Customer 25 | D63: 2617200 | E63: =SUM(IF('6. Class A Consumption Data'!K53:L53="B",'6. Class A Consumption Data'!E53:F53)) -> 2617200 | H63: 0.01637698226 | I63: -8433.711909 | J63: -702.81
B64: Customer 26 | D64: 2633257 | E64: =SUM(IF('6. Class A Consumption Data'!K54:L54="B",'6. Class A Consumption Data'!E54:F54)) -> 2633257 | H64: 0.01647745804 | I64: -8485.454272 | J64: -707.12
B65: Customer 27 | D65: 2350884 | E65: =SUM(IF('6. Class A Consumption Data'!K55:L55="B",'6. Class A Consumption Data'!E55:F55)) -> 2350884 | H65: 0.01471052482 | I65: -7575.530486 | J65: -631.29
B66: Customer 28 | D66: 2152851 | E66: =SUM(IF('6. Class A Consumption Data'!K56:L56="B",'6. Class A Consumption Data'!E56:F56)) -> 2152851 | H66: 0.01347134443 | I66: -6937.385419 | J66: -578.12
B67: Customer 29 | D67: 3966943 | E67: =SUM(IF('6. Class A Consumption Data'!K57:L57="B",'6. Class A Consumption Data'!E57:F57)) -> 3966943 | H67: 0.02482292341 | I67: -12783.1478 | J67: -1065.26
B68: Customer 30 | D68: 3002890 | E68: =SUM(IF('6. Class A Consumption Data'!K58:L58="B",'6. Class A Consumption Data'!E58:F58)) -> 3002890 | H68: 0.01879041581 | I68: -9676.566237 | J68: -806.38
B69: Customer 31 | D69: 1436253 | E69: =SUM(IF('6. Class A Consumption Data'!K59:L59="B",'6. Class A Consumption Data'!E59:F59)) -> 1436253 | H69: 0.008987272622 | I69: -4628.207256 | J69: -385.68
B70: Customer 32 | D70: 8495106 | E70: =SUM(IF('6. Class A Consumption Data'!K60:L60="B",'6. Class A Consumption Data'!E60:F60)) -> 8495106 | H70: 0.0531576495 | I70: -27374.78093 | J70: -2281.23
B71: Customer 33 | D71: =SUM(E71:G71) -> 1363800 | E71: =SUM(IF('6. Class A Consumption Data'!K61:L61="B",'6. Class A Consumption Data'!E61:F61)) -> 1363800 | H71: 0.008533902037 | I71: -4394.733418 | J71: -366.23
B72: Customer 34 | D72: 0 | E72: =SUM(IF('6. Class A Consumption Data'!K62:L62="B",'6. Class A Consumption Data'!E62:F62)) -> 0 | H72: 0 | I72: 0 | J72: 0
B73: Customer 35 | D73: 0 | E73: =SUM(IF('6. Class A Consumption Data'!K63:L63="B",'6. Class A Consumption Data'!E63:F63)) -> 0 | H73: 0 | I73: 0 | J73: 0
B74: Customer 36 | D74: 0 | E74: =SUM(IF('6. Class A Consumption Data'!K64:L64="B",'6. Class A Consumption Data'!E64:F64)) -> 0 | H74: 0 | I74: 0 | J74: 0
B75: Customer 37 | D75: 0 | E75: =SUM(IF('6. Class A Consumption Data'!K65:L65="B",'6. Class A Consumption Data'!E65:F65)) -> 0 | H75: 0 | I75: 0 | J75: 0
B76: Customer 38 | D76: 0 | E76: =SUM(IF('6. Class A Consumption Data'!K66:L66="B",'6. Class A Consumption Data'!E66:F66)) -> 0 | H76: 0 | I76: 0 | J76: 0
B77: Customer 39 | D77: 0 | E77: =SUM(IF('6. Class A Consumption Data'!K67:L67="B",'6. Class A Consumption Data'!E67:F67)) -> 0 | H77: 0 | I77: 0 | J77: 0
B78: Customer 40 | D78: 0 | E78: =SUM(IF('6. Class A Consumption Data'!K68:L68="B",'6. Class A Consumption Data'!E68:F68)) -> 0 | H78: 0 | I78: 0 | J78: 0
B79: Customer 41 | D79: 0 | E79: =SUM(IF('6. Class A Consumption Data'!K69:L69="B",'6. Class A Consumption Data'!E69:F69)) -> 0 | H79: 0 | I79: 0 | J79: 0
B80: Customer 42 | D80: 0 | E80: =SUM(IF('6. Class A Consumption Data'!K70:L70="B",'6. Class A Consumption Data'!E70:F70)) -> 0 | H80: 0 | I80: 0 | J80: 0
B81: Customer 43 | D81: 0 | E81: =SUM(IF('6. Class A Consumption Data'!K71:L71="B",'6. Class A Consumption Data'!E71:F71)) -> 0 | H81: 0 | I81: 0 | J81: 0
B82: Customer 44 | D82: 0 | E82: =SUM(IF('6. Class A Consumption Data'!K72:L72="B",'6. Class A Consumption Data'!E72:F72)) -> 0 | H82: 0 | I82: 0 | J82: 0
B83: Customer 45 | D83: 0 | E83: =SUM(IF('6. Class A Consumption Data'!K73:L73="B",'6. Class A Consumption Data'!E73:F73)) -> 0 | H83: 0 | I83: 0 | J83: 0
B84: Customer 46 | D84: 0 | E84: =SUM(IF('6. Class A Consumption Data'!K74:L74="B",'6. Class A Consumption Data'!E74:F74)) -> 0 | H84: 0 | I84: 0 | J84: 0
B85: Customer 47 | D85: 0 | E85: =SUM(IF('6. Class A Consumption Data'!K75:L75="B",'6. Class A Consumption Data'!E75:F75)) -> 0 | H85: 0 | I85: 0 | J85: 0
B86: Customer 48 | D86: 0 | E86: =SUM(IF('6. Class A Consumption Data'!K76:L76="B",'6. Class A Consumption Data'!E76:F76)) -> 0 | H86: 0 | I86: 0 | J86: 0
B87: Customer 49 | D87: 0 | E87: =SUM(IF('6. Class A Consumption Data'!K77:L77="B",'6. Class A Consumption Data'!E77:F77)) -> 0 | H87: 0 | I87: 0 | J87: 0
B88: Customer 50 | D88: 0 | E88: =SUM(IF('6. Class A Consumption Data'!K78:L78="B",'6. Class A Consumption Data'!E78:F78)) -> 0 | H88: 0 | I88: 0 | J88: 0
B89: Customer 51 | D89: 0 | E89: =SUM(IF('6. Class A Consumption Data'!K79:L79="B",'6. Class A Consumption Data'!E79:F79)) -> 0 | H89: 0 | I89: 0 | J89: 0
B90: Customer 52 | D90: 0 | E90: =SUM(IF('6. Class A Consumption Data'!K80:L80="B",'6. Class A Consumption Data'!E80:F80)) -> 0 | H90: 0 | I90: 0 | J90: 0
B91: Customer 53 | D91: 0 | E91: =SUM(IF('6. Class A Consumption Data'!K81:L81="B",'6. Class A Consumption Data'!E81:F81)) -> 0 | H91: 0 | I91: 0 | J91: 0
B92: Customer 54 | D92: 0 | E92: =SUM(IF('6. Class A Consumption Data'!K82:L82="B",'6. Class A Consumption Data'!E82:F82)) -> 0 | H92: 0 | I92: 0 | J92: 0
B93: Customer 55 | D93: 0 | E93: =SUM(IF('6. Class A Consumption Data'!K83:L83="B",'6. Class A Consumption Data'!E83:F83)) -> 0 | H93: 0 | I93: 0 | J93: 0
B94: Customer 56 | D94: 0 | E94: =SUM(IF('6. Class A Consumption Data'!K84:L84="B",'6. Class A Consumption Data'!E84:F84)) -> 0 | H94: 0 | I94: 0 | J94: 0
B95: Customer 57 | D95: 0 | E95: =SUM(IF('6. Class A Consumption Data'!K85:L85="B",'6. Class A Consumption Data'!E85:F85)) -> 0 | H95: 0 | I95: 0 | J95: 0
B96: Customer 58 | D96: 0 | E96: =SUM(IF('6. Class A Consumption Data'!K86:L86="B",'6. Class A Consumption Data'!E86:F86)) -> 0 | H96: 0 | I96: 0 | J96: 0
B97: Customer 59 | D97: 0 | E97: =SUM(IF('6. Class A Consumption Data'!K87:L87="B",'6. Class A Consumption Data'!E87:F87)) -> 0 | H97: 0 | I97: 0 | J97: 0
B98: Customer 60 | D98: 0 | E98: =SUM(IF('6. Class A Consumption Data'!K88:L88="B",'6. Class A Consumption Data'!E88:F88)) -> 0 | H98: 0 | I98: 0 | J98: 0
B99: Customer 61 | D99: 0 | E99: =SUM(IF('6. Class A Consumption Data'!K89:L89="B",'6. Class A Consumption Data'!E89:F89)) -> 0 | H99: 0 | I99: 0 | J99: 0
B100: Customer 62 | D100: 0 | E100: =SUM(IF('6. Class A Consumption Data'!K90:L90="B",'6. Class A Consumption Data'!E90:F90)) -> 0 | H100: 0 | I100: 0 | J100: 0
B101: Customer 63 | D101: 0 | E101: =SUM(IF('6. Class A Consumption Data'!K91:L91="B",'6. Class A Consumption Data'!E91:F91)) -> 0 | H101: 0 | I101: 0 | J101: 0
B102: Customer 64 | D102: 0 | E102: =SUM(IF('6. Class A Consumption Data'!K92:L92="B",'6. Class A Consumption Data'!E92:F92)) -> 0 | H102: 0 | I102: 0 | J102: 0
B103: Customer 65 | D103: =SUM(E103:G103) -> 0 | E103: =SUM(IF('6. Class A Consumption Data'!K93:L93="B",'6. Class A Consumption Data'!E93:F93)) -> 0 | H103: 0 | I103: 0 | J103: 0
B104: Customer 66 | D104: 0 | E104: =SUM(IF('6. Class A Consumption Data'!K94:L94="B",'6. Class A Consumption Data'!E94:F94)) -> 0 | H104: =IFERROR(+D104/$D$189,0) -> 0 | I104: =H104*$D$26 -> 0 | J104: =ROUND(IF(ISERROR(I104),0,IF(OR(ISBLANK($D$34), OR($D$34=0, $D$34="")), I104/($D$32), I104/($D$34))),2) -> 0
B105: Customer 67 | D105: 0 | E105: =SUM(IF('6. Class A Consumption Data'!K95:L95="B",'6. Class A Consumption Data'!E95:F95)) -> 0 | H105: 0 | I105: 0 | J105: 0
B106: Customer 68 | D106: 0 | E106: =SUM(IF('6. Class A Consumption Data'!K96:L96="B",'6. Class A Consumption Data'!E96:F96)) -> 0 | H106: 0 | I106: 0 | J106: 0
B107: Customer 69 | D107: 0 | E107: =SUM(IF('6. Class A Consumption Data'!K97:L97="B",'6. Class A Consumption Data'!E97:F97)) -> 0 | H107: 0 | I107: 0 | J107: 0
B108: Customer 70 | D108: 0 | E108: =SUM(IF('6. Class A Consumption Data'!K98:L98="B",'6. Class A Consumption Data'!E98:F98)) -> 0 | H108: 0 | I108: 0 | J108: 0
B109: Customer 71 | D109: 0 | E109: =SUM(IF('6. Class A Consumption Data'!K99:L99="B",'6. Class A Consumption Data'!E99:F99)) -> 0 | H109: 0 | I109: 0 | J109: 0
B110: Customer 72 | D110: 0 | E110: =SUM(IF('6. Class A Consumption Data'!K100:L100="B",'6. Class A Consumption Data'!E100:F100)) -> 0 | H110: 0 | I110: 0 | J110: 0
B111: Customer 73 | D111: 0 | E111: =SUM(IF('6. Class A Consumption Data'!K101:L101="B",'6. Class A Consumption Data'!E101:F101)) -> 0 | H111: 0 | I111: 0 | J111: 0
B112: Customer 74 | D112: 0 | E112: =SUM(IF('6. Class A Consumption Data'!K102:L102="B",'6. Class A Consumption Data'!E102:F102)) -> 0 | H112: 0 | I112: 0 | J112: 0
B113: Customer 75 | D113: 0 | E113: =SUM(IF('6. Class A Consumption Data'!K103:L103="B",'6. Class A Consumption Data'!E103:F103)) -> 0 | H113: 0 | I113: 0 | J113: 0
B114: Customer 76 | D114: 0 | E114: =SUM(IF('6. Class A Consumption Data'!K104:L104="B",'6. Class A Consumption Data'!E104:F104)) -> 0 | H114: 0 | I114: 0 | J114: 0
B115: Customer 77 | D115: 0 | E115: =SUM(IF('6. Class A Consumption Data'!K105:L105="B",'6. Class A Consumption Data'!E105:F105)) -> 0 | H115: 0 | I115: 0 | J115: 0
B116: Customer 78 | D116: 0 | E116: =SUM(IF('6. Class A Consumption Data'!K106:L106="B",'6. Class A Consumption Data'!E106:F106)) -> 0 | H116: 0 | I116: 0 | J116: 0
B117: Customer 79 | D117: 0 | E117: =SUM(IF('6. Class A Consumption Data'!K107:L107="B",'6. Class A Consumption Data'!E107:F107)) -> 0 | H117: 0 | I117: 0 | J117: 0
B118: Customer 80 | D118: 0 | E118: =SUM(IF('6. Class A Consumption Data'!K108:L108="B",'6. Class A Consumption Data'!E108:F108)) -> 0 | H118: 0 | I118: 0 | J118: 0
B119: Customer 81 | D119: 0 | E119: =SUM(IF('6. Class A Consumption Data'!K109:L109="B",'6. Class A Consumption Data'!E109:F109)) -> 0 | H119: 0 | I119: 0 | J119: 0
B120: Customer 82 | D120: 0 | E120: =SUM(IF('6. Class A Consumption Data'!K110:L110="B",'6. Class A Consumption Data'!E110:F110)) -> 0 | H120: 0 | I120: 0 | J120: 0
B121: Customer 83 | D121: 0 | E121: =SUM(IF('6. Class A Consumption Data'!K111:L111="B",'6. Class A Consumption Data'!E111:F111)) -> 0 | H121: 0 | I121: 0 | J121: 0
B122: Customer 84 | D122: 0 | E122: =SUM(IF('6. Class A Consumption Data'!K112:L112="B",'6. Class A Consumption Data'!E112:F112)) -> 0 | H122: 0 | I122: 0 | J122: 0
B123: Customer 85 | D123: 0 | E123: =SUM(IF('6. Class A Consumption Data'!K113:L113="B",'6. Class A Consumption Data'!E113:F113)) -> 0 | H123: 0 | I123: 0 | J123: 0
B124: Customer 86 | D124: 0 | E124: =SUM(IF('6. Class A Consumption Data'!K114:L114="B",'6. Class A Consumption Data'!E114:F114)) -> 0 | H124: 0 | I124: 0 | J124: 0
B125: Customer 87 | D125: 0 | E125: =SUM(IF('6. Class A Consumption Data'!K115:L115="B",'6. Class A Consumption Data'!E115:F115)) -> 0 | H125: 0 | I125: 0 | J125: 0
B126: Customer 88 | D126: 0 | E126: =SUM(IF('6. Class A Consumption Data'!K116:L116="B",'6. Class A Consumption Data'!E116:F116)) -> 0 | H126: 0 | I126: 0 | J126: 0
B127: Customer 89 | D127: 0 | E127: =SUM(IF('6. Class A Consumption Data'!K117:L117="B",'6. Class A Consumption Data'!E117:F117)) -> 0 | H127: 0 | I127: 0 | J127: 0
B128: Customer 90 | D128: 0 | E128: =SUM(IF('6. Class A Consumption Data'!K118:L118="B",'6. Class A Consumption Data'!E118:F118)) -> 0 | H128: 0 | I128: 0 | J128: 0
B129: Customer 91 | D129: 0 | E129: =SUM(IF('6. Class A Consumption Data'!K119:L119="B",'6. Class A Consumption Data'!E119:F119)) -> 0 | H129: 0 | I129: 0 | J129: 0
B130: Customer 92 | D130: 0 | E130: =SUM(IF('6. Class A Consumption Data'!K120:L120="B",'6. Class A Consumption Data'!E120:F120)) -> 0 | H130: 0 | I130: 0 | J130: 0
B131: Customer 93 | D131: 0 | E131: =SUM(IF('6. Class A Consumption Data'!K121:L121="B",'6. Class A Consumption Data'!E121:F121)) -> 0 | H131: 0 | I131: 0 | J131: 0
B132: Customer 94 | D132: 0 | E132: =SUM(IF('6. Class A Consumption Data'!K122:L122="B",'6. Class A Consumption Data'!E122:F122)) -> 0 | H132: 0 | I132: 0 | J132: 0
B133: Customer 95 | D133: 0 | E133: =SUM(IF('6. Class A Consumption Data'!K123:L123="B",'6. Class A Consumption Data'!E123:F123)) -> 0 | H133: 0 | I133: 0 | J133: 0
B134: Customer 96 | D134: 0 | E134: =SUM(IF('6. Class A Consumption Data'!K124:L124="B",'6. Class A Consumption Data'!E124:F124)) -> 0 | H134: 0 | I134: 0 | J134: 0
B135: Customer 97 | D135: =SUM(E135:G135) -> 0 | E135: =SUM(IF('6. Class A Consumption Data'!K125:L125="B",'6. Class A Consumption Data'!E125:F125)) -> 0 | H135: 0 | I135: 0 | J135: 0
B136: Customer 98 | D136: 0 | E136: =SUM(IF('6. Class A Consumption Data'!K126:L126="B",'6. Class A Consumption Data'!E126:F126)) -> 0 | H136: 0 | I136: 0 | J136: 0
B137: Customer 99 | D137: 0 | E137: =SUM(IF('6. Class A Consumption Data'!K127:L127="B",'6. Class A Consumption Data'!E127:F127)) -> 0 | H137: 0 | I137: 0 | J137: 0
B138: Customer 100 | D138: 0 | E138: =SUM(IF('6. Class A Consumption Data'!K128:L128="B",'6. Class A Consumption Data'!E128:F128)) -> 0 | H138: 0 | I138: 0 | J138: 0
B139: Customer 101 | D139: 0 | E139: =SUM(IF('6. Class A Consumption Data'!K129:L129="B",'6. Class A Consumption Data'!E129:F129)) -> 0 | H139: 0 | I139: 0 | J139: 0
B140: Customer 102 | D140: =SUM(E140:G140) -> 0 | E140: =SUM(IF('6. Class A Consumption Data'!K130:L130="B",'6. Class A Consumption Data'!E130:F130)) -> 0 | H140: 0 | I140: 0 | J140: 0
B141: Customer 103 | D141: 0 | E141: =SUM(IF('6. Class A Consumption Data'!K131:L131="B",'6. Class A Consumption Data'!E131:F131)) -> 0 | H141: 0 | I141: 0 | J141: 0
B142: Customer 104 | D142: 0 | E142: =SUM(IF('6. Class A Consumption Data'!K132:L132="B",'6. Class A Consumption Data'!E132:F132)) -> 0 | H142: 0 | I142: 0 | J142: 0
B143: Customer 105 | D143: 0 | E143: =SUM(IF('6. Class A Consumption Data'!K133:L133="B",'6. Class A Consumption Data'!E133:F133)) -> 0 | H143: 0 | I143: 0 | J143: 0
B144: Customer 106 | D144: 0 | E144: =SUM(IF('6. Class A Consumption Data'!K134:L134="B",'6. Class A Consumption Data'!E134:F134)) -> 0 | H144: 0 | I144: 0 | J144: 0
B145: Customer 107 | D145: 0 | E145: =SUM(IF('6. Class A Consumption Data'!K135:L135="B",'6. Class A Consumption Data'!E135:F135)) -> 0 | H145: 0 | I145: 0 | J145: 0
B146: Customer 108 | D146: 0 | E146: =SUM(IF('6. Class A Consumption Data'!K136:L136="B",'6. Class A Consumption Data'!E136:F136)) -> 0 | H146: 0 | I146: 0 | J146: 0
B147: Customer 109 | D147: 0 | E147: =SUM(IF('6. Class A Consumption Data'!K137:L137="B",'6. Class A Consumption Data'!E137:F137)) -> 0 | H147: 0 | I147: 0 | J147: 0
B148: Customer 110 | D148: 0 | E148: =SUM(IF('6. Class A Consumption Data'!K138:L138="B",'6. Class A Consumption Data'!E138:F138)) -> 0 | H148: 0 | I148: 0 | J148: 0
B149: Customer 111 | D149: 0 | E149: =SUM(IF('6. Class A Consumption Data'!K139:L139="B",'6. Class A Consumption Data'!E139:F139)) -> 0 | H149: 0 | I149: 0 | J149: 0
B150: Customer 112 | D150: 0 | E150: =SUM(IF('6. Class A Consumption Data'!K140:L140="B",'6. Class A Consumption Data'!E140:F140)) -> 0 | H150: 0 | I150: 0 | J150: 0
B151: Customer 113 | D151: 0 | E151: =SUM(IF('6. Class A Consumption Data'!K141:L141="B",'6. Class A Consumption Data'!E141:F141)) -> 0 | H151: 0 | I151: 0 | J151: 0
B152: Customer 114 | D152: 0 | E152: =SUM(IF('6. Class A Consumption Data'!K142:L142="B",'6. Class A Consumption Data'!E142:F142)) -> 0 | H152: 0 | I152: 0 | J152: 0
B153: Customer 115 | D153: 0 | E153: =SUM(IF('6. Class A Consumption Data'!K143:L143="B",'6. Class A Consumption Data'!E143:F143)) -> 0 | H153: 0 | I153: 0 | J153: 0
B154: Customer 116 | D154: 0 | E154: =SUM(IF('6. Class A Consumption Data'!K144:L144="B",'6. Class A Consumption Data'!E144:F144)) -> 0 | H154: 0 | I154: 0 | J154: 0
B155: Customer 117 | D155: 0 | E155: =SUM(IF('6. Class A Consumption Data'!K145:L145="B",'6. Class A Consumption Data'!E145:F145)) -> 0 | H155: 0 | I155: 0 | J155: 0
B156: Customer 118 | D156: 0 | E156: =SUM(IF('6. Class A Consumption Data'!K146:L146="B",'6. Class A Consumption Data'!E146:F146)) -> 0 | H156: 0 | I156: 0 | J156: 0
B157: Customer 119 | D157: 0 | E157: =SUM(IF('6. Class A Consumption Data'!K147:L147="B",'6. Class A Consumption Data'!E147:F147)) -> 0 | H157: 0 | I157: 0 | J157: 0
B158: Customer 120 | D158: 0 | E158: =SUM(IF('6. Class A Consumption Data'!K148:L148="B",'6. Class A Consumption Data'!E148:F148)) -> 0 | H158: 0 | I158: 0 | J158: 0
B159: Customer 121 | D159: 0 | E159: =SUM(IF('6. Class A Consumption Data'!K149:L149="B",'6. Class A Consumption Data'!E149:F149)) -> 0 | H159: 0 | I159: 0 | J159: 0
B160: Customer 122 | D160: 0 | E160: =SUM(IF('6. Class A Consumption Data'!K150:L150="B",'6. Class A Consumption Data'!E150:F150)) -> 0 | H160: 0 | I160: 0 | J160: 0
B161: Customer 123 | D161: 0 | E161: =SUM(IF('6. Class A Consumption Data'!K151:L151="B",'6. Class A Consumption Data'!E151:F151)) -> 0 | H161: 0 | I161: 0 | J161: 0
B162: Customer 124 | D162: 0 | E162: =SUM(IF('6. Class A Consumption Data'!K152:L152="B",'6. Class A Consumption Data'!E152:F152)) -> 0 | H162: 0 | I162: 0 | J162: 0
B163: Customer 125 | D163: 0 | E163: =SUM(IF('6. Class A Consumption Data'!K153:L153="B",'6. Class A Consumption Data'!E153:F153)) -> 0 | H163: 0 | I163: 0 | J163: 0
B164: Customer 126 | D164: 0 | E164: =SUM(IF('6. Class A Consumption Data'!K154:L154="B",'6. Class A Consumption Data'!E154:F154)) -> 0 | H164: 0 | I164: 0 | J164: 0
B165: Customer 127 | D165: 0 | E165: =SUM(IF('6. Class A Consumption Data'!K155:L155="B",'6. Class A Consumption Data'!E155:F155)) -> 0 | H165: 0 | I165: 0 | J165: 0
B166: Customer 128 | D166: 0 | E166: =SUM(IF('6. Class A Consumption Data'!K156:L156="B",'6. Class A Consumption Data'!E156:F156)) -> 0 | H166: 0 | I166: 0 | J166: 0
B167: Customer 129 | D167: 0 | E167: =SUM(IF('6. Class A Consumption Data'!K157:L157="B",'6. Class A Consumption Data'!E157:F157)) -> 0 | H167: 0 | I167: 0 | J167: 0
B168: Customer 130 | D168: 0 | E168: =SUM(IF('6. Class A Consumption Data'!K158:L158="B",'6. Class A Consumption Data'!E158:F158)) -> 0 | H168: =IFERROR(+D168/$D$189,0) -> 0 | I168: =H168*$D$26 -> 0 | J168: =ROUND(IF(ISERROR(I168),0,IF(OR(ISBLANK($D$34), OR($D$34=0, $D$34="")), I168/($D$32), I168/($D$34))),2) -> 0
B169: Customer 131 | D169: 0 | E169: =SUM(IF('6. Class A Consumption Data'!K159:L159="B",'6. Class A Consumption Data'!E159:F159)) -> 0 | H169: 0 | I169: 0 | J169: 0
B170: Customer 132 | D170: 0 | E170: =SUM(IF('6. Class A Consumption Data'!K160:L160="B",'6. Class A Consumption Data'!E160:F160)) -> 0 | H170: 0 | I170: 0 | J170: 0
B171: Customer 133 | D171: 0 | E171: =SUM(IF('6. Class A Consumption Data'!K161:L161="B",'6. Class A Consumption Data'!E161:F161)) -> 0 | H171: 0 | I171: 0 | J171: 0
B172: Customer 134 | D172: 0 | E172: =SUM(IF('6. Class A Consumption Data'!K162:L162="B",'6. Class A Consumption Data'!E162:F162)) -> 0 | H172: 0 | I172: 0 | J172: 0
B173: Customer 135 | D173: 0 | E173: =SUM(IF('6. Class A Consumption Data'!K163:L163="B",'6. Class A Consumption Data'!E163:F163)) -> 0 | H173: 0 | I173: 0 | J173: 0
B174: Customer 136 | D174: 0 | E174: =SUM(IF('6. Class A Consumption Data'!K164:L164="B",'6. Class A Consumption Data'!E164:F164)) -> 0 | H174: 0 | I174: 0 | J174: 0
B175: Customer 137 | D175: 0 | E175: =SUM(IF('6. Class A Consumption Data'!K165:L165="B",'6. Class A Consumption Data'!E165:F165)) -> 0 | H175: 0 | I175: 0 | J175: 0
B176: Customer 138 | D176: 0 | E176: =SUM(IF('6. Class A Consumption Data'!K166:L166="B",'6. Class A Consumption Data'!E166:F166)) -> 0 | H176: 0 | I176: 0 | J176: 0
B177: Customer 139 | D177: 0 | E177: =SUM(IF('6. Class A Consumption Data'!K167:L167="B",'6. Class A Consumption Data'!E167:F167)) -> 0 | H177: 0 | I177: 0 | J177: 0
B178: Customer 140 | D178: 0 | E178: =SUM(IF('6. Class A Consumption Data'!K168:L168="B",'6. Class A Consumption Data'!E168:F168)) -> 0 | H178: 0 | I178: 0 | J178: 0
B179: Customer 141 | D179: 0 | E179: =SUM(IF('6. Class A Consumption Data'!K169:L169="B",'6. Class A Consumption Data'!E169:F169)) -> 0 | H179: 0 | I179: 0 | J179: 0
B180: Customer 142 | D180: 0 | E180: =SUM(IF('6. Class A Consumption Data'!K170:L170="B",'6. Class A Consumption Data'!E170:F170)) -> 0 | H180: 0 | I180: 0 | J180: 0
B181: Customer 143 | D181: 0 | E181: =SUM(IF('6. Class A Consumption Data'!K171:L171="B",'6. Class A Consumption Data'!E171:F171)) -> 0 | H181: 0 | I181: 0 | J181: 0
B182: Customer 144 | D182: 0 | E182: =SUM(IF('6. Class A Consumption Data'!K172:L172="B",'6. Class A Consumption Data'!E172:F172)) -> 0 | H182: 0 | I182: 0 | J182: 0
B183: Customer 145 | D183: 0 | E183: =SUM(IF('6. Class A Consumption Data'!K173:L173="B",'6. Class A Consumption Data'!E173:F173)) -> 0 | H183: 0 | I183: 0 | J183: 0
B184: Customer 146 | D184: 0 | E184: =SUM(IF('6. Class A Consumption Data'!K174:L174="B",'6. Class A Consumption Data'!E174:F174)) -> 0 | H184: 0 | I184: 0 | J184: 0
B185: Customer 147 | D185: 0 | E185: =SUM(IF('6. Class A Consumption Data'!K175:L175="B",'6. Class A Consumption Data'!E175:F175)) -> 0 | H185: 0 | I185: 0 | J185: 0
B186: Customer 148 | D186: 0 | E186: =SUM(IF('6. Class A Consumption Data'!K176:L176="B",'6. Class A Consumption Data'!E176:F176)) -> 0 | H186: 0 | I186: 0 | J186: 0
B187: Customer 149 | D187: 0 | E187: =SUM(IF('6. Class A Consumption Data'!K177:L177="B",'6. Class A Consumption Data'!E177:F177)) -> 0 | H187: 0 | I187: 0 | J187: 0
B188: Customer 150 | D188: 0 | E188: =SUM(IF('6. Class A Consumption Data'!K178:L178="B",'6. Class A Consumption Data'!E178:F178)) -> 0 | H188: 0 | I188: 0 | J188: 0
B189: Total for all Customers | D189: =SUM(D39:D188) -> 159809662 | E189: =SUM(E39:E188) -> 159809662 | F189: 0 | G189: 0 | H189: =SUM(H39:H188) -> 1 | I189: =SUM(I39:I188) -> -514973.5021

Sheet 6.1 GA
A1: Back to Index
B2: =+'1. Information Sheet'!B2 -> INCENTIVE REGULATION MODEL FOR 2020 FILERS
K6: Default Rate Rider Recovery Period (in months) | M6: 12
K8: Proposed Rate Rider Recovery Period (in months) | M8: 12 | N8: =IF(M8>0, "Rate Rider Recovery to be used below", "If no rate rider recovery period is proposed then the default recovery period of 12 months will be used") -> Rate Rider Recovery to be used below
B12: The purpose of this tab is to calculate the GA rate riders for all current Class B customers who did not transition between Class A and B in the period since the Account 1589 GA was last disposed. Calculations in this tab will be modified upon completion of tab 6.1a, which allocates a portion of the GA balance to transition customers, if applicable. Effective January 2017, the billing determinant and all rate riders for the disposition of GA balances will be calculated on an energy basis (kWhs) regardless of the billing determinant used for distribution rates for the particular class (see Chapter 3, Filing Requirements, section 3.2.5.2)
C14: Total Metered Non-RPP 2018 Consumption excluding WMP | E14: Total Metered 2018 Consumption for Class A Customers that were Class A for the entire period GA blance accumulated | G14: Total Metered 2018 Consumption for Customers that Transitioned Between Class A and B during the period GA balance accumulated | I14: Non-RPP Metered Consumption for Current Class B Customers (Non-RPP Consumption excluding WMP, Class A and Transition Customers' Consumption) | K14: % of total kWh | L14: Total GA $ allocated to Current Class B Customers | M14: GA Rate Rider | O14: Revenue Reconciliation | P14: Variance
C15: kWh | D15: kW | E15: kWh | F15: kW | G15: kWh | H15: kW | I15: kWh | J15: kW
B17: ='4. Billing Det. for Def-Var'!B17 -> RESIDENTIAL SERVICE CLASSIFICATION | C17: ='4. Billing Det. for Def-Var'!F17 -> 47757735.71 | D17: ='4. Billing Det. for Def-Var'!G17 -> 0 | E17: =SUM(IF('6. Class A Consumption Data'!$D$191:$D$340=$B17,'6. Class A Consumption Data'!E$191:E$340)) -> 0 | G17: =SUM(IF('6. Class A Consumption Data'!$D$29:$D$178=$B17,'6. Class A Consumption Data'!E$29:F$178)) -> 0 | I17: =ROUND(C17-E17-G17,0) -> 47757736 | K17: =IFERROR(I17/I$29,"") -> 0.01756867652 | L17: =IFERROR(L$29*K17,"") -> -153895.3794 | M17: =ROUND(IF(ISERROR(L17/I17),0,IF(OR(ISBLANK($M$8), OR($M$8=0, $M$8="")), L17/I17/($M$6/12), L17/I17/($M$8/12))),4) -> -0.0032 | N17: kwh | O17: =ROUND(M17,4)*I17 -> -152824.7552 | P17: =L17-O17 -> -1070.624182
B18: ='4. Billing Det. for Def-Var'!B18 -> GENERAL SERVICE LESS THAN 50 kW SERVICE CLASSIFICATION | C18: ='4. Billing Det. for Def-Var'!F18 -> 91858679.3 | D18: ='4. Billing Det. for Def-Var'!G18 -> 0 | E18: =SUM(IF('6. Class A Consumption Data'!$D$191:$D$340=$B18,'6. Class A Consumption Data'!E$191:E$340)) -> 0 | G18: =SUM(IF('6. Class A Consumption Data'!$D$29:$D$178=$B18,'6. Class A Consumption Data'!E$29:F$178)) -> 0 | I18: =ROUND(C18-E18-G18,0) -> 91858679 | K18: =IFERROR(I18/I$29,"") -> 0.03379212567 | L18: =IFERROR(L$29*K18,"") -> -296007.0438 | M18: =ROUND(IF(ISERROR(L18/I18),0,IF(OR(ISBLANK($M$8), OR($M$8=0, $M$8="")), L18/I18/($M$6/12), L18/I18/($M$8/12))),4) -> -0.0032 | N18: kwh | O18: =ROUND(M18,4)*I18 -> -293947.7728 | P18: =L18-O18 -> -2059.271048
B19: ='4. Billing Det. for Def-Var'!B19 -> GENERAL SERVICE 50 to 499 kW SERVICE CLASSIFICATION | C19: ='4. Billing Det. for Def-Var'!F19 -> 1737284254 | D19: ='4. Billing Det. for Def-Var'!G19 -> 4887561.532 | E19: =SUM(IF('6. Class A Consumption Data'!$D$191:$D$340=$B19,'6. Class A Consumption Data'!E$191:E$340)) -> 0 | G19: =SUM(IF('6. Class A Consumption Data'!$D$29:$D$178=$B19,'6. Class A Consumption Data'!E$29:F$178)) -> 0 | I19: 1737284254 | K19: 0.6390961472 | L19: =IFERROR(L$29*K19,"") -> -5598255.733 | M19: -0.0032 | N19: kwh | O19: -5559309.613 | P19: -38946.12033
B20: ='4. Billing Det. for Def-Var'!B20 -> GENERAL SERVICE 500 to 4,999 kW SERVICE CLASSIFICATION | C20: ='4. Billing Det. for Def-Var'!F20 -> 1874772880 | D20: ='4. Billing Det. for Def-Var'!G20 -> 4243700.354 | E20: =SUM(IF('6. Class A Consumption Data'!$D$191:$D$340=$B20,'6. Class A Consumption Data'!E$191:E$340)) -> 833612345 | G20: =SUM(IF('6. Class A Consumption Data'!$D$29:$D$178=$B20,'6. Class A Consumption Data'!E$29:F$178)) -> 213449766 | I20: 827710769 | K20: 0.3044906222 | L20: =IFERROR(L$29*K20,"") -> -2667229.929 | M20: -0.0032 | N20: kwh | O20: -2648674.461 | P20: -18555.46848
B21: ='4. Billing Det. for Def-Var'!B21 -> LARGE USE SERVICE CLASSIFICATION | C21: ='4. Billing Det. for Def-Var'!F21 -> 977049362 | D21: ='4. Billing Det. for Def-Var'!G21 -> 1753163 | E21: =SUM(IF('6. Class A Consumption Data'!$D$191:$D$340=$B21,'6. Class A Consumption Data'!E$191:E$340)) -> 861902317 | G21: =SUM(IF('6. Class A Consumption Data'!$D$29:$D$178=$B21,'6. Class A Consumption Data'!E$29:F$178)) -> 115147045 | I21: 0 | K21: =IFERROR(I21/I$29,"") -> 0 | L21: 0 | M21: 0 | N21: kwh | O21: 0 | P21: 0
B22: ='4. Billing Det. for Def-Var'!B22 -> STANDBY POWER SERVICE CLASSIFICATION | C22: ='4. Billing Det. for Def-Var'!F22 -> 0 | D22: ='4. Billing Det. for Def-Var'!G22 -> 0 | E22: =SUM(IF('6. Class A Consumption Data'!$D$191:$D$340=$B22,'6. Class A Consumption Data'!E$191:E$340)) -> 0 | G22: =SUM(IF('6. Class A Consumption Data'!$D$29:$D$178=$B22,'6. Class A Consumption Data'!E$29:F$178)) -> 0 | I22: 0 | K22: 0 | L22: 0 | M22: 0 | O22: 0 | P22: 0
B23: ='4. Billing Det. for Def-Var'!B23 -> UNMETERED SCATTERED LOAD SERVICE CLASSIFICATION | C23: ='4. Billing Det. for Def-Var'!F23 -> 444303.4981 | D23: ='4. Billing Det. for Def-Var'!G23 -> 0 | E23: =SUM(IF('6. Class A Consumption Data'!$D$191:$D$340=$B23,'6. Class A Consumption Data'!E$191:E$340)) -> 0 | G23: =SUM(IF('6. Class A Consumption Data'!$D$29:$D$178=$B23,'6. Class A Consumption Data'!E$29:F$178)) -> 0 | I23: 444303 | K23: 0.0001634460998 | L23: -1431.729903 | M23: -0.0032 | N23: kwh | O23: -1421.7696 | P23: -9.960303308
B24: ='4. Billing Det. for Def-Var'!B24 -> STREET LIGHTING SERVICE CLASSIFICATION | C24: ='4. Billing Det. for Def-Var'!F24 -> 13289944.06 | D24: ='4. Billing Det. for Def-Var'!G24 -> 40571.73001 | E24: =SUM(IF('6. Class A Consumption Data'!$D$191:$D$340=$B24,'6. Class A Consumption Data'!E$191:E$340)) -> 0 | G24: =SUM(IF('6. Class A Consumption Data'!$D$29:$D$178=$B24,'6. Class A Consumption Data'!E$29:F$178)) -> 0 | I24: 13289944 | K24: 0.004888982322 | L24: -42825.75233 | M24: -0.0032 | N24: kwh | O24: -42527.8208 | P24: -297.9315314
C29: =SUM(C17:C28) -> 4742457158 | D29: =SUM(D17:D28) -> 10924996.62 | E29: 1695514662 | F29: 0 | G29: =SUM(G17:G28) -> 328596811 | H29: 0 | I29: 2718345685 | J29: 0 | K29: 1 | L29: ='6.1a GA Allocation'!D27 -> -8759645.568 | O29: =SUM(O17:O28) -> -8698706.192 | P29: =SUM(P17:P28) -> -60939.37587
L30: from Sheet 6.1a
O31: NOTE: if rate rider is at 5 decimal places, then the balance dispostion is in full

Sheet 6.2a CBR B_Allocation
A1: Back to Index
B2: =+'1. Information Sheet'!B2 -> INCENTIVE REGULATION MODEL FOR 2020 FILERS
B11: This tab allocates the CBR Class B balance to transition customers (i.e Class A customers who were former Class B customers and Class B customers who were former Class A customers) who contributed to the current CBR Class B balance. The tables below calculate specific amounts for each customer who made the change. The general CBR Class B rate rider is not to be charged to the transition customers that are allocated amounts in the table below. Consistent with prior decisions, distributors are generally expected to settle the amount through 12 equal adjustments to bills.
B14: Please enter the Year the Account 1580 CBR Class B was Last Disposed. | C14: 2017 | D14: (Note: Account 1580, Sub-account CBR Class B was established starting in 2015)
B16: Allocation of totalConsumption (kWh) between Current Class B and Class A/B Transition Customers
D17: Total | E17: =C14+1 -> 2018 | F17: =E17-1 -> 2017 | G17: =F17-1 -> 2016
B18: Total Class B Consumption for Years During Balance Accumulation (Total Consumption LESS WMP Consumption and Consumption for Class A customers who were Class A for partial or full year) | C18: A | D18: =SUM(E18:G18) -> 5387471554 | E18: =N25 -> 5387471554 | H18: from Cell N25
B19: Transition Customers' Class B Consumption (i.e. full year or partial year) | C19: B | D19: =SUM(E19:G19) -> 159809662 | E19: =E183 -> 159809662 | F19: =F183 -> 0 | G19: 0
B20: Transition Customers' Portion of Total Consumption | C20: C=B/A | D20: =IFERROR(+D19/D18,0) -> 0.02966320293
L21: Sheet 4 | M21: total kWh | N21: ='4. Billing Det. for Def-Var'!D29 -> 7267115621
L22: Sheet 4 | M22: WMP kWh | N22: ='4. Billing Det. for Def-Var'!H29 -> 15342256.3
B23: Allocation of Total CBR Class B Balance $ | L23: Sheet 6.1 | M23: Class A (full) | N23: ='6.1 GA'!E29 -> 1695514662
L24: Sheet 6.1 | M24: Class A (partial) | N24: =SUM(IF('6. Class A Consumption Data'!$K$28:$L$61="a",'6. Class A Consumption Data'!$E$28:$F$61)) -> 168787149
B25: Total CBR Class B Balance | C25: D | D25: ='3. Continuity Schedule'!BU25 -> -528470.4394 | H25: =IF('6.2 CBR B'!U18="TRUE","NO MONTHLY EQUAL PAYMENTS.The entire OEB-approved CBR Class B amount is transferred into Account 1580 WMS control account to be disposed through the general purpose Group 1 DVA rate riders.","") ->  | N25: =N21-N22-N23-N24 -> 5387471554
B26: Transition Customers Portion of CBR Class B Balance | C26: E=D*C | D26: =+D20*D25 -> -15676.12589
B27: CBR Class B Balance to be disposed to Current Class B Customers through Rate Rider | C27: F=D-E | D27: =+D25-D26 -> -512794.3135
B29: Allocation of CBR Class B Balances to Transition Customers
B31: # of Class A/B Transition Customers | C31: ='6. Class A Consumption Data'!C23 -> 33
B32: Customer | D32: Total Metered Consumption (kWh) for Transition Customers During the Period WhenThey Were Class B Customers | E32: Metered Consumption (kWh) for Transition Customers During the Period When They Were Class B Customers in 2018 | F32: Metered Consumption (kWh) for Transition Customers During the Period When They Were Class B Customers in 2017 | G32: Metered Consumption (kWh) for Transition Customers During the Period When They Were Class B Customers in 2016 | H32: % of kWh | I32: Customer Specific CBR Class B Allocation for the Period When They Were a Class B Customer | J32: Monthly Equal Payments
B33: Customer 1 | D33: =SUM(E33:G33) -> 2389174 | E33: =SUM(IF('6. Class A Consumption Data'!K29:L29="B",'6. Class A Consumption Data'!E29:F29)) -> 2389174 | H33: =IFERROR(+D33/$D$183,0) -> 0.01495012235 | I33: =IF('6.2 CBR B'!U$18="TRUE","",+H33*$D$26) -> -234.36 | J33: =IF('6.2 CBR B'!U$18="TRUE","",+I33/12) -> -19.53
B34: Customer 2 | D34: 4672225 | E34: =SUM(IF('6. Class A Consumption Data'!K30:L30="B",'6. Class A Consumption Data'!E30:F30)) -> 4672225 | H34: =IFERROR(+D34/$D$183,0) -> 0.02923618598 | I34: =IF('6.2 CBR B'!U$18="TRUE","",+H34*$D$26) -> -458.3101319 | J34: =IF('6.2 CBR B'!U$18="TRUE","",+I34/12) -> -38.19251099
B35: Customer 3 | D35: 2868732 | E35: =SUM(IF('6. Class A Consumption Data'!K31:L31="B",'6. Class A Consumption Data'!E31:F31)) -> 2868732 | H35: 0.01795092965 | I35: =IF('6.2 CBR B'!U$18="TRUE","",+H35*$D$26) -> -281.401033 | J35: =IF('6.2 CBR B'!U$18="TRUE","",+I35/12) -> -23.45008608
B36: Customer 4 | D36: 2769214 | E36: =SUM(IF('6. Class A Consumption Data'!K32:L32="B",'6. Class A Consumption Data'!E32:F32)) -> 2769214 | H36: 0.01732820134 | I36: =IF('6.2 CBR B'!U$18="TRUE","",+H36*$D$26) -> -271.6390657 | J36: =IF('6.2 CBR B'!U$18="TRUE","",+I36/12) -> -22.63658881
B37: Customer 5 | D37: 1300006 | E37: =SUM(IF('6. Class A Consumption Data'!K33:L33="B",'6. Class A Consumption Data'!E33:F33)) -> 1300006 | H37: 0.008134714658 | I37: =IF('6.2 CBR B'!U$18="TRUE","",+H37*$D$26) -> -127.520811 | J37: =IF('6.2 CBR B'!U$18="TRUE","",+I37/12) -> -10.62673425
B38: Customer 6 | D38: 816748 | E38: =SUM(IF('6. Class A Consumption Data'!K34:L34="B",'6. Class A Consumption Data'!E34:F34)) -> 816748 | H38: 0.005110754818 | I38: =IF('6.2 CBR B'!U$18="TRUE","",+H38*$D$26) -> -80.1168359 | J38: =IF('6.2 CBR B'!U$18="TRUE","",+I38/12) -> -6.676402992
B39: Customer 7 | D39: 2015656 | E39: =SUM(IF('6. Class A Consumption Data'!K35:L35="B",'6. Class A Consumption Data'!E35:F35)) -> 2015656 | H39: 0.01261285441 | I39: =IF('6.2 CBR B'!U$18="TRUE","",+H39*$D$26) -> -197.7206935 | J39: =IF('6.2 CBR B'!U$18="TRUE","",+I39/12) -> -16.47672446
B40: Customer 8 | D40: 26194573 | E40: =SUM(IF('6. Class A Consumption Data'!K36:L36="B",'6. Class A Consumption Data'!E36:F36)) -> 26194573 | H40: 0.1639110719 | I40: =IF('6.2 CBR B'!U$18="TRUE","",+H40*$D$26) -> -2569.490598 | J40: =IF('6.2 CBR B'!U$18="TRUE","",+I40/12) -> -214.1242165
B41: Customer 9 | D41: 2530311 | E41: =SUM(IF('6. Class A Consumption Data'!K37:L37="B",'6. Class A Consumption Data'!E37:F37)) -> 2530311 | H41: 0.01583327922 | I41: =IF('6.2 CBR B'!U$18="TRUE","",+H41*$D$26) -> -248.2044782 | J41: =IF('6.2 CBR B'!U$18="TRUE","",+I41/12) -> -20.68370652
B42: Customer 10 | D42: 2038661 | E42: =SUM(IF('6. Class A Consumption Data'!K38:L38="B",'6. Class A Consumption Data'!E38:F38)) -> 2038661 | H42: 0.01275680691 | I42: =IF('6.2 CBR B'!U$18="TRUE","",+H42*$D$26) -> -199.977311 | J42: =IF('6.2 CBR B'!U$18="TRUE","",+I42/12) -> -16.66477592
B43: Customer 11 | D43: 4194295 | E43: =SUM(IF('6. Class A Consumption Data'!K39:L39="B",'6. Class A Consumption Data'!E39:F39)) -> 4194295 | H43: 0.0262455658 | I43: =IF('6.2 CBR B'!U$18="TRUE","",+H43*$D$26) -> -411.4287935 | J43: =IF('6.2 CBR B'!U$18="TRUE","",+I43/12) -> -34.28573279
B44: Customer 12 | D44: 7270843 | E44: =SUM(IF('6. Class A Consumption Data'!K40:L40="B",'6. Class A Consumption Data'!E40:F40)) -> 7270843 | H44: 0.04549689242 | I44: =IF('6.2 CBR B'!U$18="TRUE","",+H44*$D$26) -> -713.2150131 | J44: =IF('6.2 CBR B'!U$18="TRUE","",+I44/12) -> -59.43458442
B45: Customer 13 | D45: 2512207 | E45: =SUM(IF('6. Class A Consumption Data'!K41:L41="B",'6. Class A Consumption Data'!E41:F41)) -> 2512207 | H45: 0.01571999445 | I45: =IF('6.2 CBR B'!U$18="TRUE","",+H45*$D$26) -> -246.428612 | J45: =IF('6.2 CBR B'!U$18="TRUE","",+I45/12) -> -20.53571766
B46: Customer 14 | D46: 2301872 | E46: =SUM(IF('6. Class A Consumption Data'!K42:L42="B",'6. Class A Consumption Data'!E42:F42)) -> 2301872 | H46: 0.01440383498 | I46: =IF('6.2 CBR B'!U$18="TRUE","",+H46*$D$26) -> -225.7963304 | J46: =IF('6.2 CBR B'!U$18="TRUE","",+I46/12) -> -18.81636087
B47: Customer 15 | D47: 1266000 | E47: =SUM(IF('6. Class A Consumption Data'!K43:L43="B",'6. Class A Consumption Data'!E43:F43)) -> 1266000 | H47: 0.00792192402 | I47: =IF('6.2 CBR B'!U$18="TRUE","",+H47*$D$26) -> -124.1850782 | J47: =IF('6.2 CBR B'!U$18="TRUE","",+I47/12) -> -10.34875652
B48: Customer 16 | D48: 9187198 | E48: =SUM(IF('6. Class A Consumption Data'!K44:L44="B",'6. Class A Consumption Data'!E44:F44)) -> 9187198 | H48: 0.05748837639 | I48: =IF('6.2 CBR B'!U$18="TRUE","",+H48*$D$26) -> -901.1950253 | J48: =IF('6.2 CBR B'!U$18="TRUE","",+I48/12) -> -75.09958544
B49: Customer 17 | D49: 28684761 | E49: =SUM(IF('6. Class A Consumption Data'!K45:L45="B",'6. Class A Consumption Data'!E45:F45)) -> 28684761 | H49: 0.1794932837 | I49: =IF('6.2 CBR B'!U$18="TRUE","",+H49*$D$26) -> -2813.759311 | J49: =IF('6.2 CBR B'!U$18="TRUE","",+I49/12) -> -234.4799426
B50: Customer 18 | D50: 897411 | E50: =SUM(IF('6. Class A Consumption Data'!K46:L46="B",'6. Class A Consumption Data'!E46:F46)) -> 897411 | H50: 0.005615499018 | I50: =IF('6.2 CBR B'!U$18="TRUE","",+H50*$D$26) -> -88.02926952 | J50: =IF('6.2 CBR B'!U$18="TRUE","",+I50/12) -> -7.33577246
B51: Customer 19 | D51: 5373080 | E51: =SUM(IF('6. Class A Consumption Data'!K47:L47="B",'6. Class A Consumption Data'!E47:F47)) -> 5373080 | H51: 0.03362174685 | I51: =IF('6.2 CBR B'!U$18="TRUE","",+H51*$D$26) -> -527.0587362 | J51: =IF('6.2 CBR B'!U$18="TRUE","",+I51/12) -> -43.92156135
B52: Customer 20 | D52: 2658418 | E52: =SUM(IF('6. Class A Consumption Data'!K48:L48="B",'6. Class A Consumption Data'!E48:F48)) -> 2658418 | H52: 0.01663490159 | I52: =IF('6.2 CBR B'!U$18="TRUE","",+H52*$D$26) -> -260.7708114 | J52: =IF('6.2 CBR B'!U$18="TRUE","",+I52/12) -> -21.73090095
B53: Customer 21 | D53: 4188830 | E53: =SUM(IF('6. Class A Consumption Data'!K49:L49="B",'6. Class A Consumption Data'!E49:F49)) -> 4188830 | H53: 0.02621136887 | I53: =IF('6.2 CBR B'!U$18="TRUE","",+H53*$D$26) -> -410.8927181 | J53: =IF('6.2 CBR B'!U$18="TRUE","",+I53/12) -> -34.24105984
B54: Customer 22 | D54: 11053536 | E54: =SUM(IF('6. Class A Consumption Data'!K50:L50="B",'6. Class A Consumption Data'!E50:F50)) -> 11053536 | H54: 0.06916688179 | I54: =IF('6.2 CBR B'!U$18="TRUE","",+H54*$D$26) -> -1084.268746 | J54: =IF('6.2 CBR B'!U$18="TRUE","",+I54/12) -> -90.35572884
B55: Customer 23 | D55: 2090353 | E55: =SUM(IF('6. Class A Consumption Data'!K51:L51="B",'6. Class A Consumption Data'!E51:F51)) -> 2090353 | H55: 0.0130802667 | I55: =IF('6.2 CBR B'!U$18="TRUE","",+H55*$D$26) -> -205.0479074 | J55: =IF('6.2 CBR B'!U$18="TRUE","",+I55/12) -> -17.08732562
B56: Customer 24 | D56: 2516374 | E56: =SUM(IF('6. Class A Consumption Data'!K52:L52="B",'6. Class A Consumption Data'!E52:F52)) -> 2516374 | H56: 0.01574606922 | I56: =IF('6.2 CBR B'!U$18="TRUE","",+H56*$D$26) -> -246.8373633 | J56: =IF('6.2 CBR B'!U$18="TRUE","",+I56/12) -> -20.56978028
B57: Customer 25 | D57: 2617200 | E57: =SUM(IF('6. Class A Consumption Data'!K53:L53="B",'6. Class A Consumption Data'!E53:F53)) -> 2617200 | H57: 0.01637698226 | I57: =IF('6.2 CBR B'!U$18="TRUE","",+H57*$D$26) -> -256.7276356 | J57: =IF('6.2 CBR B'!U$18="TRUE","",+I57/12) -> -21.39396963
B58: Customer 26 | D58: 2633257 | E58: =SUM(IF('6. Class A Consumption Data'!K54:L54="B",'6. Class A Consumption Data'!E54:F54)) -> 2633257 | H58: 0.01647745804 | I58: =IF('6.2 CBR B'!U$18="TRUE","",+H58*$D$26) -> -258.3027065 | J58: =IF('6.2 CBR B'!U$18="TRUE","",+I58/12) -> -21.52522554
B59: Customer 27 | D59: 2350884 | E59: =SUM(IF('6. Class A Consumption Data'!K55:L55="B",'6. Class A Consumption Data'!E55:F55)) -> 2350884 | H59: 0.01471052482 | I59: =IF('6.2 CBR B'!U$18="TRUE","",+H59*$D$26) -> -230.604039 | J59: =IF('6.2 CBR B'!U$18="TRUE","",+I59/12) -> -19.21700325
B60: Customer 28 | D60: 2152851 | E60: =SUM(IF('6. Class A Consumption Data'!K56:L56="B",'6. Class A Consumption Data'!E56:F56)) -> 2152851 | H60: 0.01347134443 | I60: =IF('6.2 CBR B'!U$18="TRUE","",+H60*$D$26) -> -211.1784911 | J60: =IF('6.2 CBR B'!U$18="TRUE","",+I60/12) -> -17.5982076
B61: Customer 29 | D61: 3966943 | E61: =SUM(IF('6. Class A Consumption Data'!K57:L57="B",'6. Class A Consumption Data'!E57:F57)) -> 3966943 | H61: 0.02482292341 | I61: =IF('6.2 CBR B'!U$18="TRUE","",+H61*$D$26) -> -389.1272723 | J61: =IF('6.2 CBR B'!U$18="TRUE","",+I61/12) -> -32.42727269
B62: Customer 30 | D62: 3002890 | E62: =SUM(IF('6. Class A Consumption Data'!K58:L58="B",'6. Class A Consumption Data'!E58:F58)) -> 3002890 | H62: 0.01879041581 | I62: =IF('6.2 CBR B'!U$18="TRUE","",+H62*$D$26) -> -294.5609238 | J62: =IF('6.2 CBR B'!U$18="TRUE","",+I62/12) -> -24.54674365
B63: Customer 31 | D63: 1436253 | E63: =SUM(IF('6. Class A Consumption Data'!K59:L59="B",'6. Class A Consumption Data'!E59:F59)) -> 1436253 | H63: 0.008987272622 | I63: =IF('6.2 CBR B'!U$18="TRUE","",+H63*$D$26) -> -140.885617 | J63: =IF('6.2 CBR B'!U$18="TRUE","",+I63/12) -> -11.74046808
B64: Customer 32 | D64: 8495106 | E64: =SUM(IF('6. Class A Consumption Data'!K60:L60="B",'6. Class A Consumption Data'!E60:F60)) -> 8495106 | H64: 0.0531576495 | I64: =IF('6.2 CBR B'!U$18="TRUE","",+H64*$D$26) -> -833.3060055 | J64: =IF('6.2 CBR B'!U$18="TRUE","",+I64/12) -> -69.44216712
B65: Customer 33 | D65: 1363800 | E65: =SUM(IF('6. Class A Consumption Data'!K61:L61="B",'6. Class A Consumption Data'!E61:F61)) -> 1363800 | H65: 0.008533902037 | I65: =IF('6.2 CBR B'!U$18="TRUE","",+H65*$D$26) -> -133.7785226 | J65: =IF('6.2 CBR B'!U$18="TRUE","",+I65/12) -> -11.14821022
B66: Customer 34 | D66: 0 | E66: =SUM(IF('6. Class A Consumption Data'!K62:L62="B",'6. Class A Consumption Data'!E62:F62)) -> 0 | H66: 0 | I66: =IF('6.2 CBR B'!U$18="TRUE","",+H66*$D$26) -> 0 | J66: =IF('6.2 CBR B'!U$18="TRUE","",+I66/12) -> 0
B67: Customer 35 | D67: 0 | E67: =SUM(IF('6. Class A Consumption Data'!K63:L63="B",'6. Class A Consumption Data'!E63:F63)) -> 0 | H67: 0 | I67: =IF('6.2 CBR B'!U$18="TRUE","",+H67*$D$26) -> 0 | J67: =IF('6.2 CBR B'!U$18="TRUE","",+I67/12) -> 0
B68: Customer 36 | D68: 0 | E68: =SUM(IF('6. Class A Consumption Data'!K64:L64="B",'6. Class A Consumption Data'!E64:F64)) -> 0 | H68: 0 | I68: =IF('6.2 CBR B'!U$18="TRUE","",+H68*$D$26) -> 0 | J68: =IF('6.2 CBR B'!U$18="TRUE","",+I68/12) -> 0
B69: Customer 37 | D69: 0 | E69: =SUM(IF('6. Class A Consumption Data'!K65:L65="B",'6. Class A Consumption Data'!E65:F65)) -> 0 | H69: 0 | I69: =IF('6.2 CBR B'!U$18="TRUE","",+H69*$D$26) -> 0 | J69: =IF('6.2 CBR B'!U$18="TRUE","",+I69/12) -> 0
B70: Customer 38 | D70: 0 | E70: =SUM(IF('6. Class A Consumption Data'!K66:L66="B",'6. Class A Consumption Data'!E66:F66)) -> 0 | H70: 0 | I70: =IF('6.2 CBR B'!U$18="TRUE","",+H70*$D$26) -> 0 | J70: =IF('6.2 CBR B'!U$18="TRUE","",+I70/12) -> 0
B71: Customer 39 | D71: 0 | E71: =SUM(IF('6. Class A Consumption Data'!K67:L67="B",'6. Class A Consumption Data'!E67:F67)) -> 0 | H71: 0 | I71: =IF('6.2 CBR B'!U$18="TRUE","",+H71*$D$26) -> 0 | J71: =IF('6.2 CBR B'!U$18="TRUE","",+I71/12) -> 0
B72: Customer 40 | D72: 0 | E72: =SUM(IF('6. Class A Consumption Data'!K68:L68="B",'6. Class A Consumption Data'!E68:F68)) -> 0 | H72: 0 | I72: =IF('6.2 CBR B'!U$18="TRUE","",+H72*$D$26) -> 0 | J72: =IF('6.2 CBR B'!U$18="TRUE","",+I72/12) -> 0
B73: Customer 41 | D73: 0 | E73: =SUM(IF('6. Class A Consumption Data'!K69:L69="B",'6. Class A Consumption Data'!E69:F69)) -> 0 | H73: 0 | I73: =IF('6.2 CBR B'!U$18="TRUE","",+H73*$D$26) -> 0 | J73: =IF('6.2 CBR B'!U$18="TRUE","",+I73/12) -> 0
B74: Customer 42 | D74: 0 | E74: =SUM(IF('6. Class A Consumption Data'!K70:L70="B",'6. Class A Consumption Data'!E70:F70)) -> 0 | H74: 0 | I74: =IF('6.2 CBR B'!U$18="TRUE","",+H74*$D$26) -> 0 | J74: =IF('6.2 CBR B'!U$18="TRUE","",+I74/12) -> 0
B75: Customer 43 | D75: 0 | E75: =SUM(IF('6. Class A Consumption Data'!K71:L71="B",'6. Class A Consumption Data'!E71:F71)) -> 0 | H75: 0 | I75: =IF('6.2 CBR B'!U$18="TRUE","",+H75*$D$26) -> 0 | J75: =IF('6.2 CBR B'!U$18="TRUE","",+I75/12) -> 0
B76: Customer 44 | D76: 0 | E76: =SUM(IF('6. Class A Consumption Data'!K72:L72="B",'6. Class A Consumption Data'!E72:F72)) -> 0 | H76: 0 | I76: =IF('6.2 CBR B'!U$18="TRUE","",+H76*$D$26) -> 0 | J76: =IF('6.2 CBR B'!U$18="TRUE","",+I76/12) -> 0
B77: Customer 45 | D77: 0 | E77: =SUM(IF('6. Class A Consumption Data'!K73:L73="B",'6. Class A Consumption Data'!E73:F73)) -> 0 | H77: 0 | I77: =IF('6.2 CBR B'!U$18="TRUE","",+H77*$D$26) -> 0 | J77: =IF('6.2 CBR B'!U$18="TRUE","",+I77/12) -> 0
B78: Customer 46 | D78: 0 | E78: =SUM(IF('6. Class A Consumption Data'!K74:L74="B",'6. Class A Consumption Data'!E74:F74)) -> 0 | H78: 0 | I78: =IF('6.2 CBR B'!U$18="TRUE","",+H78*$D$26) -> 0 | J78: =IF('6.2 CBR B'!U$18="TRUE","",+I78/12) -> 0
B79: Customer 47 | D79: 0 | E79: =SUM(IF('6. Class A Consumption Data'!K75:L75="B",'6. Class A Consumption Data'!E75:F75)) -> 0 | H79: 0 | I79: =IF('6.2 CBR B'!U$18="TRUE","",+H79*$D$26) -> 0 | J79: =IF('6.2 CBR B'!U$18="TRUE","",+I79/12) -> 0
B80: Customer 48 | D80: 0 | E80: =SUM(IF('6. Class A Consumption Data'!K76:L76="B",'6. Class A Consumption Data'!E76:F76)) -> 0 | H80: 0 | I80: =IF('6.2 CBR B'!U$18="TRUE","",+H80*$D$26) -> 0 | J80: =IF('6.2 CBR B'!U$18="TRUE","",+I80/12) -> 0
B81: Customer 49 | D81: 0 | E81: =SUM(IF('6. Class A Consumption Data'!K77:L77="B",'6. Class A Consumption Data'!E77:F77)) -> 0 | H81: 0 | I81: =IF('6.2 CBR B'!U$18="TRUE","",+H81*$D$26) -> 0 | J81: =IF('6.2 CBR B'!U$18="TRUE","",+I81/12) -> 0
B82: Customer 50 | D82: 0 | E82: =SUM(IF('6. Class A Consumption Data'!K78:L78="B",'6. Class A Consumption Data'!E78:F78)) -> 0 | H82: 0 | I82: =IF('6.2 CBR B'!U$18="TRUE","",+H82*$D$26) -> 0 | J82: =IF('6.2 CBR B'!U$18="TRUE","",+I82/12) -> 0
B83: Customer 51 | D83: 0 | E83: =SUM(IF('6. Class A Consumption Data'!K79:L79="B",'6. Class A Consumption Data'!E79:F79)) -> 0 | H83: 0 | I83: =IF('6.2 CBR B'!U$18="TRUE","",+H83*$D$26) -> 0 | J83: =IF('6.2 CBR B'!U$18="TRUE","",+I83/12) -> 0
B84: Customer 52 | D84: 0 | E84: =SUM(IF('6. Class A Consumption Data'!K80:L80="B",'6. Class A Consumption Data'!E80:F80)) -> 0 | H84: 0 | I84: =IF('6.2 CBR B'!U$18="TRUE","",+H84*$D$26) -> 0 | J84: =IF('6.2 CBR B'!U$18="TRUE","",+I84/12) -> 0
B85: Customer 53 | D85: 0 | E85: =SUM(IF('6. Class A Consumption Data'!K81:L81="B",'6. Class A Consumption Data'!E81:F81)) -> 0 | H85: 0 | I85: =IF('6.2 CBR B'!U$18="TRUE","",+H85*$D$26) -> 0 | J85: =IF('6.2 CBR B'!U$18="TRUE","",+I85/12) -> 0
B86: Customer 54 | D86: 0 | E86: =SUM(IF('6. Class A Consumption Data'!K82:L82="B",'6. Class A Consumption Data'!E82:F82)) -> 0 | H86: 0 | I86: =IF('6.2 CBR B'!U$18="TRUE","",+H86*$D$26) -> 0 | J86: =IF('6.2 CBR B'!U$18="TRUE","",+I86/12) -> 0
B87: Customer 55 | D87: 0 | E87: =SUM(IF('6. Class A Consumption Data'!K83:L83="B",'6. Class A Consumption Data'!E83:F83)) -> 0 | H87: 0 | I87: =IF('6.2 CBR B'!U$18="TRUE","",+H87*$D$26) -> 0 | J87: =IF('6.2 CBR B'!U$18="TRUE","",+I87/12) -> 0
B88: Customer 56 | D88: 0 | E88: =SUM(IF('6. Class A Consumption Data'!K84:L84="B",'6. Class A Consumption Data'!E84:F84)) -> 0 | H88: 0 | I88: =IF('6.2 CBR B'!U$18="TRUE","",+H88*$D$26) -> 0 | J88: =IF('6.2 CBR B'!U$18="TRUE","",+I88/12) -> 0
B89: Customer 57 | D89: 0 | E89: =SUM(IF('6. Class A Consumption Data'!K85:L85="B",'6. Class A Consumption Data'!E85:F85)) -> 0 | H89: 0 | I89: =IF('6.2 CBR B'!U$18="TRUE","",+H89*$D$26) -> 0 | J89: =IF('6.2 CBR B'!U$18="TRUE","",+I89/12) -> 0
B90: Customer 58 | D90: 0 | E90: =SUM(IF('6. Class A Consumption Data'!K86:L86="B",'6. Class A Consumption Data'!E86:F86)) -> 0 | H90: 0 | I90: =IF('6.2 CBR B'!U$18="TRUE","",+H90*$D$26) -> 0 | J90: =IF('6.2 CBR B'!U$18="TRUE","",+I90/12) -> 0
B91: Customer 59 | D91: 0 | E91: =SUM(IF('6. Class A Consumption Data'!K87:L87="B",'6. Class A Consumption Data'!E87:F87)) -> 0 | H91: 0 | I91: =IF('6.2 CBR B'!U$18="TRUE","",+H91*$D$26) -> 0 | J91: =IF('6.2 CBR B'!U$18="TRUE","",+I91/12) -> 0
B92: Customer 60 | D92: 0 | E92: =SUM(IF('6. Class A Consumption Data'!K88:L88="B",'6. Class A Consumption Data'!E88:F88)) -> 0 | H92: 0 | I92: =IF('6.2 CBR B'!U$18="TRUE","",+H92*$D$26) -> 0 | J92: =IF('6.2 CBR B'!U$18="TRUE","",+I92/12) -> 0
B93: Customer 61 | D93: 0 | E93: =SUM(IF('6. Class A Consumption Data'!K89:L89="B",'6. Class A Consumption Data'!E89:F89)) -> 0 | H93: 0 | I93: =IF('6.2 CBR B'!U$18="TRUE","",+H93*$D$26) -> 0 | J93: =IF('6.2 CBR B'!U$18="TRUE","",+I93/12) -> 0
B94: Customer 62 | D94: 0 | E94: =SUM(IF('6. Class A Consumption Data'!K90:L90="B",'6. Class A Consumption Data'!E90:F90)) -> 0 | H94: 0 | I94: =IF('6.2 CBR B'!U$18="TRUE","",+H94*$D$26) -> 0 | J94: =IF('6.2 CBR B'!U$18="TRUE","",+I94/12) -> 0
B95: Customer 63 | D95: 0 | E95: =SUM(IF('6. Class A Consumption Data'!K91:L91="B",'6. Class A Consumption Data'!E91:F91)) -> 0 | H95: 0 | I95: =IF('6.2 CBR B'!U$18="TRUE","",+H95*$D$26) -> 0 | J95: =IF('6.2 CBR B'!U$18="TRUE","",+I95/12) -> 0
B96: Customer 64 | D96: 0 | E96: =SUM(IF('6. Class A Consumption Data'!K92:L92="B",'6. Class A Consumption Data'!E92:F92)) -> 0 | H96: 0 | I96: =IF('6.2 CBR B'!U$18="TRUE","",+H96*$D$26) -> 0 | J96: =IF('6.2 CBR B'!U$18="TRUE","",+I96/12) -> 0
B97: Customer 65 | D97: =SUM(E97:G97) -> 0 | E97: =SUM(IF('6. Class A Consumption Data'!K93:L93="B",'6. Class A Consumption Data'!E93:F93)) -> 0 | H97: 0 | I97: =IF('6.2 CBR B'!U$18="TRUE","",+H97*$D$26) -> 0 | J97: =IF('6.2 CBR B'!U$18="TRUE","",+I97/12) -> 0
B98: Customer 66 | D98: 0 | E98: =SUM(IF('6. Class A Consumption Data'!K94:L94="B",'6. Class A Consumption Data'!E94:F94)) -> 0 | H98: =IFERROR(+D98/$D$183,0) -> 0 | I98: =IF('6.2 CBR B'!U$18="TRUE","",+H98*$D$26) -> 0 | J98: =IF('6.2 CBR B'!U$18="TRUE","",+I98/12) -> 0
B99: Customer 67 | D99: 0 | E99: =SUM(IF('6. Class A Consumption Data'!K95:L95="B",'6. Class A Consumption Data'!E95:F95)) -> 0 | H99: 0 | I99: =IF('6.2 CBR B'!U$18="TRUE","",+H99*$D$26) -> 0 | J99: =IF('6.2 CBR B'!U$18="TRUE","",+I99/12) -> 0
B100: Customer 68 | D100: 0 | E100: =SUM(IF('6. Class A Consumption Data'!K96:L96="B",'6. Class A Consumption Data'!E96:F96)) -> 0 | H100: 0 | I100: =IF('6.2 CBR B'!U$18="TRUE","",+H100*$D$26) -> 0 | J100: =IF('6.2 CBR B'!U$18="TRUE","",+I100/12) -> 0
B101: Customer 69 | D101: 0 | E101: =SUM(IF('6. Class A Consumption Data'!K97:L97="B",'6. Class A Consumption Data'!E97:F97)) -> 0 | H101: 0 | I101: =IF('6.2 CBR B'!U$18="TRUE","",+H101*$D$26) -> 0 | J101: =IF('6.2 CBR B'!U$18="TRUE","",+I101/12) -> 0
B102: Customer 70 | D102: 0 | E102: =SUM(IF('6. Class A Consumption Data'!K98:L98="B",'6. Class A Consumption Data'!E98:F98)) -> 0 | H102: 0 | I102: =IF('6.2 CBR B'!U$18="TRUE","",+H102*$D$26) -> 0 | J102: =IF('6.2 CBR B'!U$18="TRUE","",+I102/12) -> 0
B103: Customer 71 | D103: 0 | E103: =SUM(IF('6. Class A Consumption Data'!K99:L99="B",'6. Class A Consumption Data'!E99:F99)) -> 0 | H103: 0 | I103: =IF('6.2 CBR B'!U$18="TRUE","",+H103*$D$26) -> 0 | J103: =IF('6.2 CBR B'!U$18="TRUE","",+I103/12) -> 0
B104: Customer 72 | D104: 0 | E104: =SUM(IF('6. Class A Consumption Data'!K100:L100="B",'6. Class A Consumption Data'!E100:F100)) -> 0 | H104: 0 | I104: =IF('6.2 CBR B'!U$18="TRUE","",+H104*$D$26) -> 0 | J104: =IF('6.2 CBR B'!U$18="TRUE","",+I104/12) -> 0
B105: Customer 73 | D105: 0 | E105: =SUM(IF('6. Class A Consumption Data'!K101:L101="B",'6. Class A Consumption Data'!E101:F101)) -> 0 | H105: 0 | I105: =IF('6.2 CBR B'!U$18="TRUE","",+H105*$D$26) -> 0 | J105: =IF('6.2 CBR B'!U$18="TRUE","",+I105/12) -> 0
B106: Customer 74 | D106: 0 | E106: =SUM(IF('6. Class A Consumption Data'!K102:L102="B",'6. Class A Consumption Data'!E102:F102)) -> 0 | H106: 0 | I106: =IF('6.2 CBR B'!U$18="TRUE","",+H106*$D$26) -> 0 | J106: =IF('6.2 CBR B'!U$18="TRUE","",+I106/12) -> 0
B107: Customer 75 | D107: 0 | E107: =SUM(IF('6. Class A Consumption Data'!K103:L103="B",'6. Class A Consumption Data'!E103:F103)) -> 0 | H107: 0 | I107: =IF('6.2 CBR B'!U$18="TRUE","",+H107*$D$26) -> 0 | J107: =IF('6.2 CBR B'!U$18="TRUE","",+I107/12) -> 0
B108: Customer 76 | D108: 0 | E108: =SUM(IF('6. Class A Consumption Data'!K104:L104="B",'6. Class A Consumption Data'!E104:F104)) -> 0 | H108: 0 | I108: =IF('6.2 CBR B'!U$18="TRUE","",+H108*$D$26) -> 0 | J108: =IF('6.2 CBR B'!U$18="TRUE","",+I108/12) -> 0
B109: Customer 77 | D109: 0 | E109: =SUM(IF('6. Class A Consumption Data'!K105:L105="B",'6. Class A Consumption Data'!E105:F105)) -> 0 | H109: 0 | I109: =IF('6.2 CBR B'!U$18="TRUE","",+H109*$D$26) -> 0 | J109: =IF('6.2 CBR B'!U$18="TRUE","",+I109/12) -> 0
B110: Customer 78 | D110: 0 | E110: =SUM(IF('6. Class A Consumption Data'!K106:L106="B",'6. Class A Consumption Data'!E106:F106)) -> 0 | H110: 0 | I110: =IF('6.2 CBR B'!U$18="TRUE","",+H110*$D$26) -> 0 | J110: =IF('6.2 CBR B'!U$18="TRUE","",+I110/12) -> 0
B111: Customer 79 | D111: 0 | E111: =SUM(IF('6. Class A Consumption Data'!K107:L107="B",'6. Class A Consumption Data'!E107:F107)) -> 0 | H111: 0 | I111: =IF('6.2 CBR B'!U$18="TRUE","",+H111*$D$26) -> 0 | J111: =IF('6.2 CBR B'!U$18="TRUE","",+I111/12) -> 0
B112: Customer 80 | D112: 0 | E112: =SUM(IF('6. Class A Consumption Data'!K108:L108="B",'6. Class A Consumption Data'!E108:F108)) -> 0 | H112: 0 | I112: =IF('6.2 CBR B'!U$18="TRUE","",+H112*$D$26) -> 0 | J112: =IF('6.2 CBR B'!U$18="TRUE","",+I112/12) -> 0
B113: Customer 81 | D113: 0 | E113: =SUM(IF('6. Class A Consumption Data'!K109:L109="B",'6. Class A Consumption Data'!E109:F109)) -> 0 | H113: 0 | I113: =IF('6.2 CBR B'!U$18="TRUE","",+H113*$D$26) -> 0 | J113: =IF('6.2 CBR B'!U$18="TRUE","",+I113/12) -> 0
B114: Customer 82 | D114: 0 | E114: =SUM(IF('6. Class A Consumption Data'!K110:L110="B",'6. Class A Consumption Data'!E110:F110)) -> 0 | H114: 0 | I114: =IF('6.2 CBR B'!U$18="TRUE","",+H114*$D$26) -> 0 | J114: =IF('6.2 CBR B'!U$18="TRUE","",+I114/12) -> 0
B115: Customer 83 | D115: 0 | E115: =SUM(IF('6. Class A Consumption Data'!K111:L111="B",'6. Class A Consumption Data'!E111:F111)) -> 0 | H115: 0 | I115: =IF('6.2 CBR B'!U$18="TRUE","",+H115*$D$26) -> 0 | J115: =IF('6.2 CBR B'!U$18="TRUE","",+I115/12) -> 0
B116: Customer 84 | D116: 0 | E116: =SUM(IF('6. Class A Consumption Data'!K112:L112="B",'6. Class A Consumption Data'!E112:F112)) -> 0 | H116: 0 | I116: =IF('6.2 CBR B'!U$18="TRUE","",+H116*$D$26) -> 0 | J116: =IF('6.2 CBR B'!U$18="TRUE","",+I116/12) -> 0
B117: Customer 85 | D117: 0 | E117: =SUM(IF('6. Class A Consumption Data'!K113:L113="B",'6. Class A Consumption Data'!E113:F113)) -> 0 | H117: 0 | I117: =IF('6.2 CBR B'!U$18="TRUE","",+H117*$D$26) -> 0 | J117: =IF('6.2 CBR B'!U$18="TRUE","",+I117/12) -> 0
B118: Customer 86 | D118: 0 | E118: =SUM(IF('6. Class A Consumption Data'!K114:L114="B",'6. Class A Consumption Data'!E114:F114)) -> 0 | H118: 0 | I118: =IF('6.2 CBR B'!U$18="TRUE","",+H118*$D$26) -> 0 | J118: =IF('6.2 CBR B'!U$18="TRUE","",+I118/12) -> 0
B119: Customer 87 | D119: 0 | E119: =SUM(IF('6. Class A Consumption Data'!K115:L115="B",'6. Class A Consumption Data'!E115:F115)) -> 0 | H119: 0 | I119: =IF('6.2 CBR B'!U$18="TRUE","",+H119*$D$26) -> 0 | J119: =IF('6.2 CBR B'!U$18="TRUE","",+I119/12) -> 0
B120: Customer 88 | D120: 0 | E120: =SUM(IF('6. Class A Consumption Data'!K116:L116="B",'6. Class A Consumption Data'!E116:F116)) -> 0 | H120: 0 | I120: =IF('6.2 CBR B'!U$18="TRUE","",+H120*$D$26) -> 0 | J120: =IF('6.2 CBR B'!U$18="TRUE","",+I120/12) -> 0
B121: Customer 89 | D121: 0 | E121: =SUM(IF('6. Class A Consumption Data'!K117:L117="B",'6. Class A Consumption Data'!E117:F117)) -> 0 | H121: 0 | I121: =IF('6.2 CBR B'!U$18="TRUE","",+H121*$D$26) -> 0 | J121: =IF('6.2 CBR B'!U$18="TRUE","",+I121/12) -> 0
B122: Customer 90 | D122: 0 | E122: =SUM(IF('6. Class A Consumption Data'!K118:L118="B",'6. Class A Consumption Data'!E118:F118)) -> 0 | H122: 0 | I122: =IF('6.2 CBR B'!U$18="TRUE","",+H122*$D$26) -> 0 | J122: =IF('6.2 CBR B'!U$18="TRUE","",+I122/12) -> 0
B123: Customer 91 | D123: 0 | E123: =SUM(IF('6. Class A Consumption Data'!K119:L119="B",'6. Class A Consumption Data'!E119:F119)) -> 0 | H123: 0 | I123: =IF('6.2 CBR B'!U$18="TRUE","",+H123*$D$26) -> 0 | J123: =IF('6.2 CBR B'!U$18="TRUE","",+I123/12) -> 0
B124: Customer 92 | D124: 0 | E124: =SUM(IF('6. Class A Consumption Data'!K120:L120="B",'6. Class A Consumption Data'!E120:F120)) -> 0 | H124: 0 | I124: =IF('6.2 CBR B'!U$18="TRUE","",+H124*$D$26) -> 0 | J124: =IF('6.2 CBR B'!U$18="TRUE","",+I124/12) -> 0
B125: Customer 93 | D125: 0 | E125: =SUM(IF('6. Class A Consumption Data'!K121:L121="B",'6. Class A Consumption Data'!E121:F121)) -> 0 | H125: 0 | I125: =IF('6.2 CBR B'!U$18="TRUE","",+H125*$D$26) -> 0 | J125: =IF('6.2 CBR B'!U$18="TRUE","",+I125/12) -> 0
B126: Customer 94 | D126: 0 | E126: =SUM(IF('6. Class A Consumption Data'!K122:L122="B",'6. Class A Consumption Data'!E122:F122)) -> 0 | H126: 0 | I126: =IF('6.2 CBR B'!U$18="TRUE","",+H126*$D$26) -> 0 | J126: =IF('6.2 CBR B'!U$18="TRUE","",+I126/12) -> 0
B127: Customer 95 | D127: 0 | E127: =SUM(IF('6. Class A Consumption Data'!K123:L123="B",'6. Class A Consumption Data'!E123:F123)) -> 0 | H127: 0 | I127: =IF('6.2 CBR B'!U$18="TRUE","",+H127*$D$26) -> 0 | J127: =IF('6.2 CBR B'!U$18="TRUE","",+I127/12) -> 0
B128: Customer 96 | D128: 0 | E128: =SUM(IF('6. Class A Consumption Data'!K124:L124="B",'6. Class A Consumption Data'!E124:F124)) -> 0 | H128: 0 | I128: =IF('6.2 CBR B'!U$18="TRUE","",+H128*$D$26) -> 0 | J128: =IF('6.2 CBR B'!U$18="TRUE","",+I128/12) -> 0
B129: Customer 97 | D129: 0 | E129: =SUM(IF('6. Class A Consumption Data'!K125:L125="B",'6. Class A Consumption Data'!E125:F125)) -> 0 | H129: 0 | I129: =IF('6.2 CBR B'!U$18="TRUE","",+H129*$D$26) -> 0 | J129: =IF('6.2 CBR B'!U$18="TRUE","",+I129/12) -> 0
B130: Customer 98 | D130: 0 | E130: =SUM(IF('6. Class A Consumption Data'!K126:L126="B",'6. Class A Consumption Data'!E126:F126)) -> 0 | H130: 0 | I130: =IF('6.2 CBR B'!U$18="TRUE","",+H130*$D$26) -> 0 | J130: =IF('6.2 CBR B'!U$18="TRUE","",+I130/12) -> 0
B131: Customer 99 | D131: 0 | E131: =SUM(IF('6. Class A Consumption Data'!K127:L127="B",'6. Class A Consumption Data'!E127:F127)) -> 0 | H131: 0 | I131: =IF('6.2 CBR B'!U$18="TRUE","",+H131*$D$26) -> 0 | J131: =IF('6.2 CBR B'!U$18="TRUE","",+I131/12) -> 0
B132: Customer 100 | D132: 0 | E132: =SUM(IF('6. Class A Consumption Data'!K128:L128="B",'6. Class A Consumption Data'!E128:F128)) -> 0 | H132: 0 | I132: =IF('6.2 CBR B'!U$18="TRUE","",+H132*$D$26) -> 0 | J132: =IF('6.2 CBR B'!U$18="TRUE","",+I132/12) -> 0
B133: Customer 101 | D133: 0 | E133: =SUM(IF('6. Class A Consumption Data'!K129:L129="B",'6. Class A Consumption Data'!E129:F129)) -> 0 | H133: 0 | I133: =IF('6.2 CBR B'!U$18="TRUE","",+H133*$D$26) -> 0 | J133: =IF('6.2 CBR B'!U$18="TRUE","",+I133/12) -> 0
B134: Customer 102 | D134: =SUM(E134:G134) -> 0 | E134: =SUM(IF('6. Class A Consumption Data'!K130:L130="B",'6. Class A Consumption Data'!E130:F130)) -> 0 | H134: 0 | I134: =IF('6.2 CBR B'!U$18="TRUE","",+H134*$D$26) -> 0 | J134: =IF('6.2 CBR B'!U$18="TRUE","",+I134/12) -> 0
B135: Customer 103 | D135: 0 | E135: =SUM(IF('6. Class A Consumption Data'!K131:L131="B",'6. Class A Consumption Data'!E131:F131)) -> 0 | H135: 0 | I135: =IF('6.2 CBR B'!U$18="TRUE","",+H135*$D$26) -> 0 | J135: =IF('6.2 CBR B'!U$18="TRUE","",+I135/12) -> 0
B136: Customer 104 | D136: 0 | E136: =SUM(IF('6. Class A Consumption Data'!K132:L132="B",'6. Class A Consumption Data'!E132:F132)) -> 0 | H136: 0 | I136: =IF('6.2 CBR B'!U$18="TRUE","",+H136*$D$26) -> 0 | J136: =IF('6.2 CBR B'!U$18="TRUE","",+I136/12) -> 0
B137: Customer 105 | D137: 0 | E137: =SUM(IF('6. Class A Consumption Data'!K133:L133="B",'6. Class A Consumption Data'!E133:F133)) -> 0 | H137: 0 | I137: =IF('6.2 CBR B'!U$18="TRUE","",+H137*$D$26) -> 0 | J137: =IF('6.2 CBR B'!U$18="TRUE","",+I137/12) -> 0
B138: Customer 106 | D138: 0 | E138: =SUM(IF('6. Class A Consumption Data'!K134:L134="B",'6. Class A Consumption Data'!E134:F134)) -> 0 | H138: 0 | I138: =IF('6.2 CBR B'!U$18="TRUE","",+H138*$D$26) -> 0 | J138: =IF('6.2 CBR B'!U$18="TRUE","",+I138/12) -> 0
B139: Customer 107 | D139: 0 | E139: =SUM(IF('6. Class A Consumption Data'!K135:L135="B",'6. Class A Consumption Data'!E135:F135)) -> 0 | H139: 0 | I139: =IF('6.2 CBR B'!U$18="TRUE","",+H139*$D$26) -> 0 | J139: =IF('6.2 CBR B'!U$18="TRUE","",+I139/12) -> 0
B140: Customer 108 | D140: 0 | E140: =SUM(IF('6. Class A Consumption Data'!K136:L136="B",'6. Class A Consumption Data'!E136:F136)) -> 0 | H140: 0 | I140: =IF('6.2 CBR B'!U$18="TRUE","",+H140*$D$26) -> 0 | J140: =IF('6.2 CBR B'!U$18="TRUE","",+I140/12) -> 0
B141: Customer 109 | D141: 0 | E141: =SUM(IF('6. Class A Consumption Data'!K137:L137="B",'6. Class A Consumption Data'!E137:F137)) -> 0 | H141: 0 | I141: =IF('6.2 CBR B'!U$18="TRUE","",+H141*$D$26) -> 0 | J141: =IF('6.2 CBR B'!U$18="TRUE","",+I141/12) -> 0
B142: Customer 110 | D142: 0 | E142: =SUM(IF('6. Class A Consumption Data'!K138:L138="B",'6. Class A Consumption Data'!E138:F138)) -> 0 | H142: 0 | I142: =IF('6.2 CBR B'!U$18="TRUE","",+H142*$D$26) -> 0 | J142: =IF('6.2 CBR B'!U$18="TRUE","",+I142/12) -> 0
B143: Customer 111 | D143: 0 | E143: =SUM(IF('6. Class A Consumption Data'!K139:L139="B",'6. Class A Consumption Data'!E139:F139)) -> 0 | H143: 0 | I143: =IF('6.2 CBR B'!U$18="TRUE","",+H143*$D$26) -> 0 | J143: =IF('6.2 CBR B'!U$18="TRUE","",+I143/12) -> 0
B144: Customer 112 | D144: 0 | E144: =SUM(IF('6. Class A Consumption Data'!K140:L140="B",'6. Class A Consumption Data'!E140:F140)) -> 0 | H144: 0 | I144: =IF('6.2 CBR B'!U$18="TRUE","",+H144*$D$26) -> 0 | J144: =IF('6.2 CBR B'!U$18="TRUE","",+I144/12) -> 0
B145: Customer 113 | D145: 0 | E145: =SUM(IF('6. Class A Consumption Data'!K141:L141="B",'6. Class A Consumption Data'!E141:F141)) -> 0 | H145: 0 | I145: =IF('6.2 CBR B'!U$18="TRUE","",+H145*$D$26) -> 0 | J145: =IF('6.2 CBR B'!U$18="TRUE","",+I145/12) -> 0
B146: Customer 114 | D146: 0 | E146: =SUM(IF('6. Class A Consumption Data'!K142:L142="B",'6. Class A Consumption Data'!E142:F142)) -> 0 | H146: 0 | I146: =IF('6.2 CBR B'!U$18="TRUE","",+H146*$D$26) -> 0 | J146: =IF('6.2 CBR B'!U$18="TRUE","",+I146/12) -> 0
B147: Customer 115 | D147: 0 | E147: =SUM(IF('6. Class A Consumption Data'!K143:L143="B",'6. Class A Consumption Data'!E143:F143)) -> 0 | H147: 0 | I147: =IF('6.2 CBR B'!U$18="TRUE","",+H147*$D$26) -> 0 | J147: =IF('6.2 CBR B'!U$18="TRUE","",+I147/12) -> 0
B148: Customer 116 | D148: 0 | E148: =SUM(IF('6. Class A Consumption Data'!K144:L144="B",'6. Class A Consumption Data'!E144:F144)) -> 0 | H148: 0 | I148: =IF('6.2 CBR B'!U$18="TRUE","",+H148*$D$26) -> 0 | J148: =IF('6.2 CBR B'!U$18="TRUE","",+I148/12) -> 0
B149: Customer 117 | D149: 0 | E149: =SUM(IF('6. Class A Consumption Data'!K145:L145="B",'6. Class A Consumption Data'!E145:F145)) -> 0 | H149: 0 | I149: =IF('6.2 CBR B'!U$18="TRUE","",+H149*$D$26) -> 0 | J149: =IF('6.2 CBR B'!U$18="TRUE","",+I149/12) -> 0
B150: Customer 118 | D150: 0 | E150: =SUM(IF('6. Class A Consumption Data'!K146:L146="B",'6. Class A Consumption Data'!E146:F146)) -> 0 | H150: 0 | I150: =IF('6.2 CBR B'!U$18="TRUE","",+H150*$D$26) -> 0 | J150: =IF('6.2 CBR B'!U$18="TRUE","",+I150/12) -> 0
B151: Customer 119 | D151: 0 | E151: =SUM(IF('6. Class A Consumption Data'!K147:L147="B",'6. Class A Consumption Data'!E147:F147)) -> 0 | H151: 0 | I151: =IF('6.2 CBR B'!U$18="TRUE","",+H151*$D$26) -> 0 | J151: =IF('6.2 CBR B'!U$18="TRUE","",+I151/12) -> 0
B152: Customer 120 | D152: 0 | E152: =SUM(IF('6. Class A Consumption Data'!K148:L148="B",'6. Class A Consumption Data'!E148:F148)) -> 0 | H152: 0 | I152: =IF('6.2 CBR B'!U$18="TRUE","",+H152*$D$26) -> 0 | J152: =IF('6.2 CBR B'!U$18="TRUE","",+I152/12) -> 0
B153: Customer 121 | D153: 0 | E153: =SUM(IF('6. Class A Consumption Data'!K149:L149="B",'6. Class A Consumption Data'!E149:F149)) -> 0 | H153: 0 | I153: =IF('6.2 CBR B'!U$18="TRUE","",+H153*$D$26) -> 0 | J153: =IF('6.2 CBR B'!U$18="TRUE","",+I153/12) -> 0
B154: Customer 122 | D154: 0 | E154: =SUM(IF('6. Class A Consumption Data'!K150:L150="B",'6. Class A Consumption Data'!E150:F150)) -> 0 | H154: 0 | I154: =IF('6.2 CBR B'!U$18="TRUE","",+H154*$D$26) -> 0 | J154: =IF('6.2 CBR B'!U$18="TRUE","",+I154/12) -> 0
B155: Customer 123 | D155: 0 | E155: =SUM(IF('6. Class A Consumption Data'!K151:L151="B",'6. Class A Consumption Data'!E151:F151)) -> 0 | H155: 0 | I155: =IF('6.2 CBR B'!U$18="TRUE","",+H155*$D$26) -> 0 | J155: =IF('6.2 CBR B'!U$18="TRUE","",+I155/12) -> 0
B156: Customer 124 | D156: 0 | E156: =SUM(IF('6. Class A Consumption Data'!K152:L152="B",'6. Class A Consumption Data'!E152:F152)) -> 0 | H156: 0 | I156: =IF('6.2 CBR B'!U$18="TRUE","",+H156*$D$26) -> 0 | J156: =IF('6.2 CBR B'!U$18="TRUE","",+I156/12) -> 0
B157: Customer 125 | D157: 0 | E157: =SUM(IF('6. Class A Consumption Data'!K153:L153="B",'6. Class A Consumption Data'!E153:F153)) -> 0 | H157: 0 | I157: =IF('6.2 CBR B'!U$18="TRUE","",+H157*$D$26) -> 0 | J157: =IF('6.2 CBR B'!U$18="TRUE","",+I157/12) -> 0
B158: Customer 126 | D158: 0 | E158: =SUM(IF('6. Class A Consumption Data'!K154:L154="B",'6. Class A Consumption Data'!E154:F154)) -> 0 | H158: 0 | I158: =IF('6.2 CBR B'!U$18="TRUE","",+H158*$D$26) -> 0 | J158: =IF('6.2 CBR B'!U$18="TRUE","",+I158/12) -> 0
B159: Customer 127 | D159: 0 | E159: =SUM(IF('6. Class A Consumption Data'!K155:L155="B",'6. Class A Consumption Data'!E155:F155)) -> 0 | H159: 0 | I159: =IF('6.2 CBR B'!U$18="TRUE","",+H159*$D$26) -> 0 | J159: =IF('6.2 CBR B'!U$18="TRUE","",+I159/12) -> 0
B160: Customer 128 | D160: 0 | E160: =SUM(IF('6. Class A Consumption Data'!K156:L156="B",'6. Class A Consumption Data'!E156:F156)) -> 0 | H160: 0 | I160: =IF('6.2 CBR B'!U$18="TRUE","",+H160*$D$26) -> 0 | J160: =IF('6.2 CBR B'!U$18="TRUE","",+I160/12) -> 0
B161: Customer 129 | D161: 0 | E161: =SUM(IF('6. Class A Consumption Data'!K157:L157="B",'6. Class A Consumption Data'!E157:F157)) -> 0 | H161: 0 | I161: =IF('6.2 CBR B'!U$18="TRUE","",+H161*$D$26) -> 0 | J161: =IF('6.2 CBR B'!U$18="TRUE","",+I161/12) -> 0
B162: Customer 130 | D162: 0 | E162: =SUM(IF('6. Class A Consumption Data'!K158:L158="B",'6. Class A Consumption Data'!E158:F158)) -> 0 | H162: =IFERROR(+D162/$D$183,0) -> 0 | I162: =IF('6.2 CBR B'!U$18="TRUE","",+H162*$D$26) -> 0 | J162: =IF('6.2 CBR B'!U$18="TRUE","",+I162/12) -> 0
B163: Customer 131 | D163: 0 | E163: =SUM(IF('6. Class A Consumption Data'!K159:L159="B",'6. Class A Consumption Data'!E159:F159)) -> 0 | H163: 0 | I163: =IF('6.2 CBR B'!U$18="TRUE","",+H163*$D$26) -> 0 | J163: =IF('6.2 CBR B'!U$18="TRUE","",+I163/12) -> 0
B164: Customer 132 | D164: 0 | E164: =SUM(IF('6. Class A Consumption Data'!K160:L160="B",'6. Class A Consumption Data'!E160:F160)) -> 0 | H164: 0 | I164: =IF('6.2 CBR B'!U$18="TRUE","",+H164*$D$26) -> 0 | J164: =IF('6.2 CBR B'!U$18="TRUE","",+I164/12) -> 0
B165: Customer 133 | D165: 0 | E165: =SUM(IF('6. Class A Consumption Data'!K161:L161="B",'6. Class A Consumption Data'!E161:F161)) -> 0 | H165: 0 | I165: =IF('6.2 CBR B'!U$18="TRUE","",+H165*$D$26) -> 0 | J165: =IF('6.2 CBR B'!U$18="TRUE","",+I165/12) -> 0
B166: Customer 134 | D166: 0 | E166: =SUM(IF('6. Class A Consumption Data'!K162:L162="B",'6. Class A Consumption Data'!E162:F162)) -> 0 | H166: 0 | I166: =IF('6.2 CBR B'!U$18="TRUE","",+H166*$D$26) -> 0 | J166: =IF('6.2 CBR B'!U$18="TRUE","",+I166/12) -> 0
B167: Customer 135 | D167: 0 | E167: =SUM(IF('6. Class A Consumption Data'!K163:L163="B",'6. Class A Consumption Data'!E163:F163)) -> 0 | H167: 0 | I167: =IF('6.2 CBR B'!U$18="TRUE","",+H167*$D$26) -> 0 | J167: =IF('6.2 CBR B'!U$18="TRUE","",+I167/12) -> 0
B168: Customer 136 | D168: 0 | E168: =SUM(IF('6. Class A Consumption Data'!K164:L164="B",'6. Class A Consumption Data'!E164:F164)) -> 0 | H168: 0 | I168: =IF('6.2 CBR B'!U$18="TRUE","",+H168*$D$26) -> 0 | J168: =IF('6.2 CBR B'!U$18="TRUE","",+I168/12) -> 0
B169: Customer 137 | D169: 0 | E169: =SUM(IF('6. Class A Consumption Data'!K165:L165="B",'6. Class A Consumption Data'!E165:F165)) -> 0 | H169: 0 | I169: =IF('6.2 CBR B'!U$18="TRUE","",+H169*$D$26) -> 0 | J169: =IF('6.2 CBR B'!U$18="TRUE","",+I169/12) -> 0
B170: Customer 138 | D170: 0 | E170: =SUM(IF('6. Class A Consumption Data'!K166:L166="B",'6. Class A Consumption Data'!E166:F166)) -> 0 | H170: 0 | I170: =IF('6.2 CBR B'!U$18="TRUE","",+H170*$D$26) -> 0 | J170: =IF('6.2 CBR B'!U$18="TRUE","",+I170/12) -> 0
B171: Customer 139 | D171: 0 | E171: =SUM(IF('6. Class A Consumption Data'!K167:L167="B",'6. Class A Consumption Data'!E167:F167)) -> 0 | H171: 0 | I171: =IF('6.2 CBR B'!U$18="TRUE","",+H171*$D$26) -> 0 | J171: =IF('6.2 CBR B'!U$18="TRUE","",+I171/12) -> 0
B172: Customer 140 | D172: 0 | E172: =SUM(IF('6. Class A Consumption Data'!K168:L168="B",'6. Class A Consumption Data'!E168:F168)) -> 0 | H172: 0 | I172: =IF('6.2 CBR B'!U$18="TRUE","",+H172*$D$26) -> 0 | J172: =IF('6.2 CBR B'!U$18="TRUE","",+I172/12) -> 0
B173: Customer 141 | D173: 0 | E173: =SUM(IF('6. Class A Consumption Data'!K169:L169="B",'6. Class A Consumption Data'!E169:F169)) -> 0 | H173: 0 | I173: =IF('6.2 CBR B'!U$18="TRUE","",+H173*$D$26) -> 0 | J173: =IF('6.2 CBR B'!U$18="TRUE","",+I173/12) -> 0
B174: Customer 142 | D174: 0 | E174: =SUM(IF('6. Class A Consumption Data'!K170:L170="B",'6. Class A Consumption Data'!E170:F170)) -> 0 | H174: 0 | I174: =IF('6.2 CBR B'!U$18="TRUE","",+H174*$D$26) -> 0 | J174: =IF('6.2 CBR B'!U$18="TRUE","",+I174/12) -> 0
B175: Customer 143 | D175: 0 | E175: =SUM(IF('6. Class A Consumption Data'!K171:L171="B",'6. Class A Consumption Data'!E171:F171)) -> 0 | H175: 0 | I175: =IF('6.2 CBR B'!U$18="TRUE","",+H175*$D$26) -> 0 | J175: =IF('6.2 CBR B'!U$18="TRUE","",+I175/12) -> 0
B176: Customer 144 | D176: 0 | E176: =SUM(IF('6. Class A Consumption Data'!K172:L172="B",'6. Class A Consumption Data'!E172:F172)) -> 0 | H176: 0 | I176: =IF('6.2 CBR B'!U$18="TRUE","",+H176*$D$26) -> 0 | J176: =IF('6.2 CBR B'!U$18="TRUE","",+I176/12) -> 0
B177: Customer 145 | D177: 0 | E177: =SUM(IF('6. Class A Consumption Data'!K173:L173="B",'6. Class A Consumption Data'!E173:F173)) -> 0 | H177: 0 | I177: =IF('6.2 CBR B'!U$18="TRUE","",+H177*$D$26) -> 0 | J177: =IF('6.2 CBR B'!U$18="TRUE","",+I177/12) -> 0
B178: Customer 146 | D178: 0 | E178: =SUM(IF('6. Class A Consumption Data'!K174:L174="B",'6. Class A Consumption Data'!E174:F174)) -> 0 | H178: 0 | I178: =IF('6.2 CBR B'!U$18="TRUE","",+H178*$D$26) -> 0 | J178: =IF('6.2 CBR B'!U$18="TRUE","",+I178/12) -> 0
B179: Customer 147 | D179: 0 | E179: =SUM(IF('6. Class A Consumption Data'!K175:L175="B",'6. Class A Consumption Data'!E175:F175)) -> 0 | H179: 0 | I179: =IF('6.2 CBR B'!U$18="TRUE","",+H179*$D$26) -> 0 | J179: =IF('6.2 CBR B'!U$18="TRUE","",+I179/12) -> 0
B180: Customer 148 | D180: 0 | E180: =SUM(IF('6. Class A Consumption Data'!K176:L176="B",'6. Class A Consumption Data'!E176:F176)) -> 0 | H180: 0 | I180: =IF('6.2 CBR B'!U$18="TRUE","",+H180*$D$26) -> 0 | J180: =IF('6.2 CBR B'!U$18="TRUE","",+I180/12) -> 0
B181: Customer 149 | D181: 0 | E181: =SUM(IF('6. Class A Consumption Data'!K177:L177="B",'6. Class A Consumption Data'!E177:F177)) -> 0 | H181: 0 | I181: =IF('6.2 CBR B'!U$18="TRUE","",+H181*$D$26) -> 0 | J181: =IF('6.2 CBR B'!U$18="TRUE","",+I181/12) -> 0
B182: Customer 150 | D182: 0 | E182: =SUM(IF('6. Class A Consumption Data'!K178:L178="B",'6. Class A Consumption Data'!E178:F178)) -> 0 | H182: 0 | I182: =IF('6.2 CBR B'!U$18="TRUE","",+H182*$D$26) -> 0 | J182: =IF('6.2 CBR B'!U$18="TRUE","",+I182/12) -> 0
B183: Total for all Customers | D183: =SUM(D33:D182) -> 159809662 | E183: =SUM(E33:E182) -> 159809662 | F183: 0 | G183: 0 | H183: =SUM(H33:H182) -> 1 | I183: =SUM(I33:I182) -> -15676.12589

Sheet 6.2 CBR B
A1: Back to Index
B2: =+'1. Information Sheet'!B2 -> INCENTIVE REGULATION MODEL FOR 2020 FILERS
K11: If the allocated Account 1580 sub-account CBR Class B amount does not produce a rate rider in one or more rate class (except for the Standby rate class), a distributor is to transfer the entire OEB-approved CBR Class B amount into Account 1580 WMS control account to be disposed through the general purpose Group 1 DVA rate riders. (see Accounting Guidance, Capacity Based Recovery xxxxx, 2018)
B13: The purpose of this tab is to calculate the CBR rate riders for all current Class B customers who did not transition between Class A and B in the period since the Account 1580, sub-account CBR Class B balance accumulated.
B15: Please select the Year the Account 1580 CBR Class B was Last Disposed. | C15: 2017 | D15: (Note: Account 1580, Sub-account CBR Class B was established starting in 2015)
U18: FALSE
C19: Total Metered Minus WMP | E19: Total Metered 2018 Consumption for Class A customers that were Class A for the entire period CBR Class B balance accumulated | G19: Total Metered 2018 Consumption for Customers that Transitioned Between Class A and B during the period CBR Class B balance accumulated | I19: Metered Consumption for Current Class B Customers (Total Consumption LESS WMP, Class A and Transition Customers' Consumption) | K19: % of total kWh | L19: Total CBR $ allocated to Current Class B Customers | M19: CBR Rate Rider | O19: Revenue Reconciliation | P19: Variance | U19: CBR Rate Rider
C20: kWh | D20: kW | E20: kWh | F20: kW | G20: kWh | H20: kW | I20: kWh | J20: kW
A22: R_CBR20 | B22: ='4. Billing Det. for Def-Var'!B17 -> RESIDENTIAL SERVICE CLASSIFICATION | C22: ='4. Billing Det. for Def-Var'!D17-'4. Billing Det. for Def-Var'!H17 -> 1490532667 | D22: ='4. Billing Det. for Def-Var'!E17-'4. Billing Det. for Def-Var'!I17 -> 0 | E22: =SUM(IF('6. Class A Consumption Data'!$D$191:$D$340=$B22,'6. Class A Consumption Data'!E$191:E$340)) -> 0 | F22: =SUM(IF('6. Class A Consumption Data'!$D$191:$D$340=$B22,'6. Class A Consumption Data'!H$191:H$340)) -> 0 | G22: =SUM(IF('6. Class A Consumption Data'!$D$29:$D$178=$B22,'6. Class A Consumption Data'!E$29:F$178)) -> 0 | H22: =SUM(IF('6. Class A Consumption Data'!$D$29:$D$178=$B22,'6. Class A Consumption Data'!H$29:I$178)) -> 0 | I22: =ROUND(C22-E22-G22,0) -> 1490532667 | J22: =ROUND(D22-F22-H22,0) -> 0 | K22: =IFERROR(I22/I$34,"") -> 0.2851241526 | L22: =IFERROR(L$34*K22,"") -> -146210.0441 | M22: =IF(U$18="TRUE",0,U22) -> -9.809247885e-05 | N22: kwh | O22: =IFERROR(IF(J22=0,ROUND(M22,4)*I22,ROUND(M22,4)*J22),"") -> -149053.2667 | P22: =L22-O22 -> 2843.22259 | U22: =IFERROR(IF($J22=0,$L22/$I22,$L22/$J22),0) -> -9.809247885e-05 | V22: kwh
A23: GSL_CBR20 | B23: ='4. Billing Det. for Def-Var'!B18 -> GENERAL SERVICE LESS THAN 50 kW SERVICE CLASSIFICATION | C23: ='4. Billing Det. for Def-Var'!D18-'4. Billing Det. for Def-Var'!H18 -> 685616684 | D23: ='4. Billing Det. for Def-Var'!E18-'4. Billing Det. for Def-Var'!I18 -> 0 | E23: =SUM(IF('6. Class A Consumption Data'!$D$191:$D$340=$B23,'6. Class A Consumption Data'!E$191:E$340)) -> 0 | F23: =SUM(IF('6. Class A Consumption Data'!$D$191:$D$340=$B23,'6. Class A Consumption Data'!H$191:H$340)) -> 0 | G23: =SUM(IF('6. Class A Consumption Data'!$D$29:$D$178=$B23,'6. Class A Consumption Data'!E$29:F$178)) -> 0 | H23: =SUM(IF('6. Class A Consumption Data'!$D$29:$D$178=$B23,'6. Class A Consumption Data'!H$29:I$178)) -> 0 | I23: =ROUND(C23-E23-G23,0) -> 685616684 | J23: 0 | K23: =IFERROR(I23/I$34,"") -> 0.1311516885 | L23: =IFERROR(L$34*K23,"") -> -67253.84007 | M23: =IF(U$18="TRUE",0,U23) -> -9.809247885e-05 | N23: kwh | O23: =IFERROR(IF(J23=0,ROUND(M23,4)*I23,ROUND(M23,4)*J23),"") -> -68561.6684 | P23: =L23-O23 -> 1307.828327 | U23: -9.809247885e-05 | V23: kwh
A24: GS50_499_CBR20 | B24: ='4. Billing Det. for Def-Var'!B19 -> GENERAL SERVICE 50 to 499 kW SERVICE CLASSIFICATION | C24: ='4. Billing Det. for Def-Var'!D19-'4. Billing Det. for Def-Var'!H19 -> 2050085761 | D24: ='4. Billing Det. for Def-Var'!E19-'4. Billing Det. for Def-Var'!I19 -> 5706048.849 | E24: =SUM(IF('6. Class A Consumption Data'!$D$191:$D$340=$B24,'6. Class A Consumption Data'!E$191:E$340)) -> 0 | F24: =SUM(IF('6. Class A Consumption Data'!$D$191:$D$340=$B24,'6. Class A Consumption Data'!H$191:H$340)) -> 0 | G24: =SUM(IF('6. Class A Consumption Data'!$D$29:$D$178=$B24,'6. Class A Consumption Data'!E$29:F$178)) -> 0 | H24: =SUM(IF('6. Class A Consumption Data'!$D$29:$D$178=$B24,'6. Class A Consumption Data'!H$29:I$178)) -> 0 | I24: 2050085761 | J24: 5706049 | K24: 0.3921611236 | L24: -201097.9941 | M24: -0.03524294904 | N24: kW | O24: -200852.9248 | P24: -245.069347 | U24: -0.03524294904 | V24: kW
A25: GS500_CBR20 | B25: ='4. Billing Det. for Def-Var'!B20 -> GENERAL SERVICE 500 to 4,999 kW SERVICE CLASSIFICATION | C25: ='4. Billing Det. for Def-Var'!D20-'4. Billing Det. for Def-Var'!H20 -> 2023761304 | D25: ='4. Billing Det. for Def-Var'!E20-'4. Billing Det. for Def-Var'!I20 -> 4557827.465 | E25: =SUM(IF('6. Class A Consumption Data'!$D$191:$D$340=$B25,'6. Class A Consumption Data'!E$191:E$340)) -> 833612345 | F25: =SUM(IF('6. Class A Consumption Data'!$D$191:$D$340=$B25,'6. Class A Consumption Data'!H$191:H$340)) -> 1724837 | G25: =SUM(IF('6. Class A Consumption Data'!$D$29:$D$178=$B25,'6. Class A Consumption Data'!E$29:F$178)) -> 213449766 | H25: =SUM(IF('6. Class A Consumption Data'!$D$29:$D$178=$B25,'6. Class A Consumption Data'!H$29:I$178)) -> 483462.0458 | I25: 976699193 | J25: 2349528 | K25: 0.1868328927 | L25: -95806.84493 | M25: -0.0407770603 | N25: kW | O25: -95860.7424 | U25: -0.0407770603 | V25: kW
A26: LU_CBR20 | B26: ='4. Billing Det. for Def-Var'!B21 -> LARGE USE SERVICE CLASSIFICATION | C26: ='4. Billing Det. for Def-Var'!D21-'4. Billing Det. for Def-Var'!H21 -> 977049362 | D26: ='4. Billing Det. for Def-Var'!E21-'4. Billing Det. for Def-Var'!I21 -> 1753163 | E26: =SUM(IF('6. Class A Consumption Data'!$D$191:$D$340=$B26,'6. Class A Consumption Data'!E$191:E$340)) -> 861902317 | F26: =SUM(IF('6. Class A Consumption Data'!$D$191:$D$340=$B26,'6. Class A Consumption Data'!H$191:H$340)) -> 1509840 | G26: =SUM(IF('6. Class A Consumption Data'!$D$29:$D$178=$B26,'6. Class A Consumption Data'!E$29:F$178)) -> 115147045 | H26: =SUM(IF('6. Class A Consumption Data'!$D$29:$D$178=$B26,'6. Class A Consumption Data'!H$29:I$178)) -> 243323 | I26: 0 | J26: 0 | K26: 0 | L26: 0 | M26: 0 | N26: kW | O26: 0 | P26: 0 | U26: 0 | V26: kW
B27: ='4. Billing Det. for Def-Var'!B22 -> STANDBY POWER SERVICE CLASSIFICATION | C27: ='4. Billing Det. for Def-Var'!D22-'4. Billing Det. for Def-Var'!H22 -> 0 | D27: ='4. Billing Det. for Def-Var'!E22-'4. Billing Det. for Def-Var'!I22 -> 0 | E27: =SUM(IF('6. Class A Consumption Data'!$D$191:$D$340=$B27,'6. Class A Consumption Data'!E$191:E$340)) -> 0 | F27: =SUM(IF('6. Class A Consumption Data'!$D$191:$D$340=$B27,'6. Class A Consumption Data'!H$191:H$340)) -> 0 | G27: =SUM(IF('6. Class A Consumption Data'!$D$29:$D$178=$B27,'6. Class A Consumption Data'!E$29:F$178)) -> 0 | H27: =SUM(IF('6. Class A Consumption Data'!$D$29:$D$178=$B27,'6. Class A Consumption Data'!H$29:I$178)) -> 0 | I27: 0 | J27: 0 | K27: 0 | L27: 0 | M27: 0 | N27: kW | O27: 0 | U27: 0 | V27: kW
A28: USL_CBR20 | B28: ='4. Billing Det. for Def-Var'!B23 -> UNMETERED SCATTERED LOAD SERVICE CLASSIFICATION | C28: ='4. Billing Det. for Def-Var'!D23-'4. Billing Det. for Def-Var'!H23 -> 11437642.31 | D28: ='4. Billing Det. for Def-Var'!E23-'4. Billing Det. for Def-Var'!I23 -> 0 | E28: =SUM(IF('6. Class A Consumption Data'!$D$191:$D$340=$B28,'6. Class A Consumption Data'!E$191:E$340)) -> 0 | F28: =SUM(IF('6. Class A Consumption Data'!$D$191:$D$340=$B28,'6. Class A Consumption Data'!H$191:H$340)) -> 0 | G28: =SUM(IF('6. Class A Consumption Data'!$D$29:$D$178=$B28,'6. Class A Consumption Data'!E$29:F$178)) -> 0 | H28: =SUM(IF('6. Class A Consumption Data'!$D$29:$D$178=$B28,'6. Class A Consumption Data'!H$29:I$178)) -> 0 | I28: 11437642 | J28: 0 | K28: 0.002187907757 | L28: -1121.946656 | M28: -9.809247885e-05 | N28: kwh | O28: -1143.7642 | P28: 21.81754405 | U28: -9.809247885e-05 | V28: kwh
A29: SL_CBR20 | B29: ='4. Billing Det. for Def-Var'!B24 -> STREET LIGHTING SERVICE CLASSIFICATION | C29: ='4. Billing Det. for Def-Var'!D24-'4. Billing Det. for Def-Var'!H24 -> 13289944.06 | D29: ='4. Billing Det. for Def-Var'!E24-'4. Billing Det. for Def-Var'!I24 -> 40571.73001 | E29: =SUM(IF('6. Class A Consumption Data'!$D$191:$D$340=$B29,'6. Class A Consumption Data'!E$191:E$340)) -> 0 | F29: =SUM(IF('6. Class A Consumption Data'!$D$191:$D$340=$B29,'6. Class A Consumption Data'!H$191:H$340)) -> 0 | G29: =SUM(IF('6. Class A Consumption Data'!$D$29:$D$178=$B29,'6. Class A Consumption Data'!E$29:F$178)) -> 0 | H29: =SUM(IF('6. Class A Consumption Data'!$D$29:$D$178=$B29,'6. Class A Consumption Data'!H$29:I$178)) -> 0 | I29: 13289944 | J29: 40572 | K29: 0.002542234803 | L29: -1303.643551 | M29: -0.03213160679 | N29: kW | O29: -1302.3612 | P29: -1.282350708 | U29: -0.03213160679 | V29: kW
C34: =SUM(C22:C33) -> 7251773365 | D34: =SUM(D22:D33) -> 12057611.04 | E34: 1695514662 | F34: 3234677 | G34: 328596811 | H34: 726785.0458 | I34: 5227661891 | J34: 8096149 | K34: 1 | L34: ='6.2a CBR B_Allocation'!D27 -> -512794.3135 | O34: =SUM(O22:O33) -> -516774.7277 | P34: =SUM(P22:P33) -> 3926.516764
L35: from Sheet 6.2a
O36: NOTE: if rate rider is at 5 decimal places, then the balance dispostion is in full

Sheet 8. Calculation of Def-Var RR
A1: Back to Index
B2: =+'1. Information Sheet'!B2 -> INCENTIVE REGULATION MODEL FOR 2020 FILERS
B11: IInput required at cells D14 and D15. This workshseet calculates rate riders related to the Deferral/Variance Account Disposition (if applicable) and rate riders for Account 1568. Rate Riders will not be generated for the microFIT class.
B13: Default Rate Rider Recovery Period (in months) | D13: 12
B14: DVA Proposed Rate Rider Recovery Period (in months) | D14: 12 | E14: =IF(D14>0, "Rate Rider Recovery to be used below", "If no rate rider recovery period is proposed then the default recovery period of 12 months will be used") -> Rate Rider Recovery to be used below
B15: LRAM Proposed Rate Rider Recovery Period (in months) | D15: 12 | E15: =IF(D15>0, "Rate Rider Recovery to be used below", "If no rate rider recovery period is proposed then the default recovery period of 12 months will be used") -> Rate Rider Recovery to be used below
D17: Total Metered kWh | E17: Metered kW or kVA | F17: Total Metered kWh less WMP consumption | G17: Total Metered kW less WMP consumption | H17: Allocation of Group 1 Account Balances to All Classes 2 | I17: Allocation of Group 1 Account Balances to Non-WMP Classes Only (if Applicable) 2 | J17: Deferral/Variance Account Rate Rider 2 | K17: Deferral/Variance Account Rate Rider for Non-WMP (if applicable) 2 | L17: Account 1568 Rate Rider
B18: Rate Class | C18: Unit | M18: Revenue Reconciliation: | O18: Revenue Reconcilation 1
B19: ='4. Billing Det. for Def-Var'!B17 -> RESIDENTIAL SERVICE CLASSIFICATION | C19: ='4. Billing Det. for Def-Var'!C17 -> kWh | D19: ='4. Billing Det. for Def-Var'!D17 -> 1490532667 | E19: ='4. Billing Det. for Def-Var'!E17 -> 0 | F19: ='4. Billing Det. for Def-Var'!J17 -> 1490532667 | G19: ='4. Billing Det. for Def-Var'!K17 -> 0 | H19: =IFERROR(SUM('5. Allocating Def-Var Balances'!G16:Y16)-I19,"") -> 342477.834 | J19: =ROUND(IF(C19="kWh",IF(ISERROR(H19/D19),0,IF(OR(ISBLANK(D$14), OR(D$14=0, D$14="")), H19/D19/(D$13/12), H19/D19/(D$14/12))),IF(ISERROR(H19/E19),0,IF(OR(ISBLANK(D$14), OR(D$14=0, D$14="")), H19/E19/(D$13/12), H19/E19/(D$14/12)))),4) -> 0.0002 | K19: =ROUND(IF(C19="kWh",IF(ISERROR(I19/F19),0,IF(OR(ISBLANK(D$14), OR(D$14=0, D$14="")), I19/F19/(D$13/12), I19/F19/(D$14/12))),IF(ISERROR(I19/G19),0,IF(OR(ISBLANK(D$14), OR(D$14=0, D$14="")), I19/G19/(D$13/12), I19/G19/(D$14/12)))),4) -> 0 | L19: =IF(C19="kWh",ROUND(IF(ISERROR('4. Billing Det. for Def-Var'!W17/D19), 0, IF(OR(ISBLANK(D$15), OR(D$15=0, D$15="")), ('4. Billing Det. for Def-Var'!W17/D19)/(D$13/12), ('4. Billing Det. for Def-Var'!W17/D19)/(D$15/12))),4),ROUND(IF(ISERROR('4. Billing Det. for Def-Var'!W17/E19), 0, IF(OR(ISBLANK(D$15), OR(D$15=0, D$15="")), ('4. Billing Det. for Def-Var'!W17/E19)/(D$13/12), ('4. Billing Det. for Def-Var'!W17/E19)/(D$15/12))),4)) -> 0.0003 | M19: =IF(C19="kWh",J19*D19,E19*J19) -> 298106.5335 | N19: =IF(C19="kWh",K19*F19,G19*K19) -> 0
B20: ='4. Billing Det. for Def-Var'!B18 -> GENERAL SERVICE LESS THAN 50 kW SERVICE CLASSIFICATION | C20: ='4. Billing Det. for Def-Var'!C18 -> kWh | D20: ='4. Billing Det. for Def-Var'!D18 -> 685616684 | E20: ='4. Billing Det. for Def-Var'!E18 -> 0 | F20: ='4. Billing Det. for Def-Var'!J18 -> 685616684 | G20: ='4. Billing Det. for Def-Var'!K18 -> 0 | H20: =IFERROR(SUM('5. Allocating Def-Var Balances'!G17:Y17)-I20,"") -> 206225.8447 | J20: =ROUND(IF(C20="kWh",IF(ISERROR(H20/D20),0,IF(OR(ISBLANK(D$14), OR(D$14=0, D$14="")), H20/D20/(D$13/12), H20/D20/(D$14/12))),IF(ISERROR(H20/E20),0,IF(OR(ISBLANK(D$14), OR(D$14=0, D$14="")), H20/E20/(D$13/12), H20/E20/(D$14/12)))),4) -> 0.0003 | K20: =ROUND(IF(C20="kWh",IF(ISERROR(I20/F20),0,IF(OR(ISBLANK(D$14), OR(D$14=0, D$14="")), I20/F20/(D$13/12), I20/F20/(D$14/12))),IF(ISERROR(I20/G20),0,IF(OR(ISBLANK(D$14), OR(D$14=0, D$14="")), I20/G20/(D$13/12), I20/G20/(D$14/12)))),4) -> 0 | L20: =IF(C20="kWh",ROUND(IF(ISERROR('4. Billing Det. for Def-Var'!W18/D20), 0, IF(OR(ISBLANK(D$15), OR(D$15=0, D$15="")), ('4. Billing Det. for Def-Var'!W18/D20)/(D$13/12), ('4. Billing Det. for Def-Var'!W18/D20)/(D$15/12))),4),ROUND(IF(ISERROR('4. Billing Det. for Def-Var'!W18/E20), 0, IF(OR(ISBLANK(D$15), OR(D$15=0, D$15="")), ('4. Billing Det. for Def-Var'!W18/E20)/(D$13/12), ('4. Billing Det. for Def-Var'!W18/E20)/(D$15/12))),4)) -> 0.0001 | M20: =IF(C20="kWh",J20*D20,E20*J20) -> 205685.0052 | N20: =IF(C20="kWh",K20*F20,G20*K20) -> 0
B21: ='4. Billing Det. for Def-Var'!B19 -> GENERAL SERVICE 50 to 499 kW SERVICE CLASSIFICATION | C21: ='4. Billing Det. for Def-Var'!C19 -> kW | D21: ='4. Billing Det. for Def-Var'!D19 -> 2051428808 | E21: ='4. Billing Det. for Def-Var'!E19 -> 5710412.01 | F21: ='4. Billing Det. for Def-Var'!J19 -> 2050085761 | G21: ='4. Billing Det. for Def-Var'!K19 -> 5706048.849 | H21: =IFERROR(SUM('5. Allocating Def-Var Balances'!G18:Y18)-I21,"") -> 1884678.942 | I21: =IFERROR('5. Allocating Def-Var Balances'!I18+'5. Allocating Def-Var Balances'!N18,0) -> -1227696.899 | J21: 0.33 | K21: -0.2152 | L21: =IF(C21="kWh",ROUND(IF(ISERROR('4. Billing Det. for Def-Var'!W19/D21), 0, IF(OR(ISBLANK(D$15), OR(D$15=0, D$15="")), ('4. Billing Det. for Def-Var'!W19/D21)/(D$13/12), ('4. Billing Det. for Def-Var'!W19/D21)/(D$15/12))),4),ROUND(IF(ISERROR('4. Billing Det. for Def-Var'!W19/E21), 0, IF(OR(ISBLANK(D$15), OR(D$15=0, D$15="")), ('4. Billing Det. for Def-Var'!W19/E21)/(D$13/12), ('4. Billing Det. for Def-Var'!W19/E21)/(D$15/12))),4)) -> 0.2379 | M21: 1884435.963 | N21: =IF(C21="kWh",K21*F21,G21*K21) -> -1227941.712
B22: ='4. Billing Det. for Def-Var'!B20 -> GENERAL SERVICE 500 to 4,999 kW SERVICE CLASSIFICATION | C22: ='4. Billing Det. for Def-Var'!C20 -> kW | D22: ='4. Billing Det. for Def-Var'!D20 -> 2037760513 | E22: ='4. Billing Det. for Def-Var'!E20 -> 4585777.203 | F22: ='4. Billing Det. for Def-Var'!J20 -> 2023761304 | G22: ='4. Billing Det. for Def-Var'!K20 -> 4557827.465 | H22: =IFERROR(SUM('5. Allocating Def-Var Balances'!G19:Y19)-I22,"") -> 1873058.909 | I22: =IFERROR('5. Allocating Def-Var Balances'!I19+'5. Allocating Def-Var Balances'!N19,0) -> -1211932.458 | J22: 0.4084 | K22: -0.2659 | L22: =IF(C22="kWh",ROUND(IF(ISERROR('4. Billing Det. for Def-Var'!W20/D22), 0, IF(OR(ISBLANK(D$15), OR(D$15=0, D$15="")), ('4. Billing Det. for Def-Var'!W20/D22)/(D$13/12), ('4. Billing Det. for Def-Var'!W20/D22)/(D$15/12))),4),ROUND(IF(ISERROR('4. Billing Det. for Def-Var'!W20/E22), 0, IF(OR(ISBLANK(D$15), OR(D$15=0, D$15="")), ('4. Billing Det. for Def-Var'!W20/E22)/(D$13/12), ('4. Billing Det. for Def-Var'!W20/E22)/(D$15/12))),4)) -> 0.1033 | M22: 1872831.41 | N22: -1211926.323
B23: ='4. Billing Det. for Def-Var'!B21 -> LARGE USE SERVICE CLASSIFICATION | C23: ='4. Billing Det. for Def-Var'!C21 -> kW | D23: ='4. Billing Det. for Def-Var'!D21 -> 977049362 | E23: ='4. Billing Det. for Def-Var'!E21 -> 1753163 | F23: ='4. Billing Det. for Def-Var'!J21 -> 977049362 | G23: ='4. Billing Det. for Def-Var'!K21 -> 1753163 | H23: =IFERROR(SUM('5. Allocating Def-Var Balances'!G20:Y20)-I23,"") -> 313220.9071 | J23: 0.1787 | K23: 0 | L23: =IF(C23="kWh",ROUND(IF(ISERROR('4. Billing Det. for Def-Var'!W21/D23), 0, IF(OR(ISBLANK(D$15), OR(D$15=0, D$15="")), ('4. Billing Det. for Def-Var'!W21/D23)/(D$13/12), ('4. Billing Det. for Def-Var'!W21/D23)/(D$15/12))),4),ROUND(IF(ISERROR('4. Billing Det. for Def-Var'!W21/E23), 0, IF(OR(ISBLANK(D$15), OR(D$15=0, D$15="")), ('4. Billing Det. for Def-Var'!W21/E23)/(D$13/12), ('4. Billing Det. for Def-Var'!W21/E23)/(D$15/12))),4)) -> 0.093 | M23: 313290.2281 | N23: 0
B24: ='4. Billing Det. for Def-Var'!B22 -> STANDBY POWER SERVICE CLASSIFICATION | C24: ='4. Billing Det. for Def-Var'!C22 -> kW | D24: ='4. Billing Det. for Def-Var'!D22 -> 0 | E24: ='4. Billing Det. for Def-Var'!E22 -> 0 | F24: ='4. Billing Det. for Def-Var'!J22 -> 0 | G24: ='4. Billing Det. for Def-Var'!K22 -> 0 | H24: =IFERROR(SUM('5. Allocating Def-Var Balances'!G21:Y21)-I24,"") -> 0 | J24: 0 | K24: 0 | L24: =IF(C24="kWh",ROUND(IF(ISERROR('4. Billing Det. for Def-Var'!W22/D24), 0, IF(OR(ISBLANK(D$15), OR(D$15=0, D$15="")), ('4. Billing Det. for Def-Var'!W22/D24)/(D$13/12), ('4. Billing Det. for Def-Var'!W22/D24)/(D$15/12))),4),ROUND(IF(ISERROR('4. Billing Det. for Def-Var'!W22/E24), 0, IF(OR(ISBLANK(D$15), OR(D$15=0, D$15="")), ('4. Billing Det. for Def-Var'!W22/E24)/(D$13/12), ('4. Billing Det. for Def-Var'!W22/E24)/(D$15/12))),4)) -> 0 | M24: 0 | N24: 0
B25: ='4. Billing Det. for Def-Var'!B23 -> UNMETERED SCATTERED LOAD SERVICE CLASSIFICATION | C25: ='4. Billing Det. for Def-Var'!C23 -> kWh | D25: ='4. Billing Det. for Def-Var'!D23 -> 11437642.31 | E25: ='4. Billing Det. for Def-Var'!E23 -> 0 | F25: ='4. Billing Det. for Def-Var'!J23 -> 11437642.31 | G25: ='4. Billing Det. for Def-Var'!K23 -> 0 | H25: =IFERROR(SUM('5. Allocating Def-Var Balances'!G22:Y22)-I25,"") -> 3668.141914 | J25: 0.0003 | K25: 0 | L25: =IF(C25="kWh",ROUND(IF(ISERROR('4. Billing Det. for Def-Var'!W23/D25), 0, IF(OR(ISBLANK(D$15), OR(D$15=0, D$15="")), ('4. Billing Det. for Def-Var'!W23/D25)/(D$13/12), ('4. Billing Det. for Def-Var'!W23/D25)/(D$15/12))),4),ROUND(IF(ISERROR('4. Billing Det. for Def-Var'!W23/E25), 0, IF(OR(ISBLANK(D$15), OR(D$15=0, D$15="")), ('4. Billing Det. for Def-Var'!W23/E25)/(D$13/12), ('4. Billing Det. for Def-Var'!W23/E25)/(D$15/12))),4)) -> 0 | M25: 3431.292694 | N25: 0
B26: ='4. Billing Det. for Def-Var'!B24 -> STREET LIGHTING SERVICE CLASSIFICATION | C26: ='4. Billing Det. for Def-Var'!C24 -> kW | D26: ='4. Billing Det. for Def-Var'!D24 -> 13289944.06 | E26: ='4. Billing Det. for Def-Var'!E24 -> 40571.73001 | F26: ='4. Billing Det. for Def-Var'!J24 -> 13289944.06 | G26: ='4. Billing Det. for Def-Var'!K24 -> 40571.73001 | H26: =IFERROR(SUM('5. Allocating Def-Var Balances'!G23:Y23)-I26,"") -> 4142.686321 | J26: 0.1021 | K26: 0 | L26: =IF(C26="kWh",ROUND(IF(ISERROR('4. Billing Det. for Def-Var'!W24/D26), 0, IF(OR(ISBLANK(D$15), OR(D$15=0, D$15="")), ('4. Billing Det. for Def-Var'!W24/D26)/(D$13/12), ('4. Billing Det. for Def-Var'!W24/D26)/(D$15/12))),4),ROUND(IF(ISERROR('4. Billing Det. for Def-Var'!W24/E26), 0, IF(OR(ISBLANK(D$15), OR(D$15=0, D$15="")), ('4. Billing Det. for Def-Var'!W24/E26)/(D$13/12), ('4. Billing Det. for Def-Var'!W24/E26)/(D$15/12))),4)) -> -3.2588 | M26: 4142.373634 | N26: 0
M29: =SUM(M19:M28) -> 4581922.806 | N29: =SUM(N19:N28) -> -2439868.035 | O29: =SUM(M29:N29) -> 2142054.771
B32: 1 When calculating the revenue reconciliation for distributors with Class A customers, the balances of sub-account 1580-CBR Class A and B will not be taken into consideration since the rate riders, if any, are calculated outside of the model.
B33: 2 Only for rate classes with WMP customers are the Deferral/Variance Account Rate Riders for Non-WMP (column H and J) calculated separately. For all rate classes without WMP customers, balances in account 1580 and 1588 are included in column H and disposed through a combined Deferral/Variance Account and Rate Rider.

Sheet 9. STS-Tax Change
A1: Back to Index | U1: Tax Rates | V1: Effective
B2: =+'1. Information Sheet'!B2 -> INCENTIVE REGULATION MODEL FOR 2020 FILERS | U2: Federal & Provincial | V2: 2016-01-01
U3: As of June 20, 2012
U5: Federal income tax | V5: 0.38
U6: General corporate rate | V6: -0.1
U7: Federal tax abatement | V7: =SUM(V5:V6) -> 0.28
U8: Adjusted federal rate | V8: -0.13
U9: Rate reduction | V9: =V7+V8 -> 0.15
U10: Ontario income tax | V10: 0.115
U12: Combined federal and Ontario | V12: =V9+V10 -> 0.265
B13: Summary - Sharing of Tax Change Forecast Amounts
U14: Federal & Ontario Small Business
B15: ="For the " & '1. Information Sheet'!G32 & " year, enter any Tax Credits from the Cost of Service Tax Calculation (Positive #)" -> For the 2017 year, enter any Tax Credits from the Cost of Service Tax Calculation (Positive #) | U15: Federal small business threshold | V15: 500000
U16: Ontario Small Business Threshold | V16: 500000
B18: 1. Tax Related Amounts Forecast from Capital Tax Rate Changes | M18: 2018 | O18: =M18+1 -> 2019 | U18: Federal small business rate | V18: 0.105
B19: Taxable Capital (if you are not claiming capital tax, please enter your OEB-Approved Rate Base) | O19: =M19 -> 0
U20: Ontario small business rate | V20: 0.045
B21: Deduction from taxable capital up to $15,000,000 | O21: =M21 -> 0
B23: Net Taxable Capital | M23: =M19-M21 -> 0 | O23: =O19-O21 -> 0
B25: Rate | O25: 0 | U25: Ontario Tax Rate (Maximum 11.5%)
U26: Federal tax rate (Maximum 15%)
B27: Ontario Capital Tax (Deductible, not grossed-up) | M27: =IF(M23>0, M23*M25, 0)*181/365 -> 0 | O27: 0 | U27: Combined tax rate (Maximum 26.5%)
B29: 2. Tax Related Amounts Forecast from lncome Tax Rate Changes
B30: Regulatory Taxable Income | O30: =M30 -> 0
B32: Corporate Tax Rate | O32: =IF(ratebase>15000000, 26.5%, IF(ratebase<10000000, 15%, 15%+11.5%*((ratebase-10000000)/5000000))) -> 0.15
B34: Tax Impact | M34: =M30*M32-M15 -> 0 | O34: =O30*O32-M15 -> 0
B36: Grossed-up Tax Amount | M36: =M34/(1-M32) -> 0 | O36: =O34/(1-O32) -> 0
B38: Tax Related Amounts Forecast from Capital Tax Rate Changes | M38: =M27 -> 0 | O38: =O27 -> 0
B40: Tax Related Amounts Forecast from lncome Tax Rate Changes | M40: =M36 -> 0 | O40: =O36 -> 0
B42: Total Tax Related Amounts | M42: =SUM(M40,M38) -> 0 | O42: =SUM(O40,O38) -> 0
B44: Incremental Tax Savings | O44: =O42-M42 -> 0
B46: Sharing of Tax Amount (50%) | O46: =0.5*O44 -> 0

Sheet 10. Shared Tax - RR
A1: Back to Index
B2: =+'1. Information Sheet'!B2 -> INCENTIVE REGULATION MODEL FOR 2020 FILERS
B12: Calculation of Rebased Revenue Requirement and Allocation of Tax Sharing Amount. Enter data from the last OEB-Approved Cost of Service application in columns D through I.
B13: As per Chapter 3 Filing Requirements, shared tax rate riders are based on a 1 year disposition.
B15: Rate Class | D15: Re-based Billed Customers or Connections | E15: Re-based Billed kWh | F15: Re-based Billed kW | G15: Re-based Service Charge | H15: Re-based Distribution Volumetric Rate kWh | I15: Re-based Distribution Volumetric Rate kW | J15: Service Charge Revenue | K15: Distribution Volumetric Rate Revenue kWh | L15: Distribution Volumetric Rate Revenue kW | M15: Revenue Requirement from Rates | N15: Service Charge % Revenue | O15: Distribution Volumetric Rate % Revenue kWh | P15: Distribution Volumetric Rate % Revenue kW | Q15: Total % Revenue
D16: A | E16: B | F16: C | G16: D | H16: E | I16: F | J16: G = A * D *12 | K16: H = B * E | L16: I = C * F | M16: J = G + H + I | N16: K = G / J | O16: L = H / J | P16: M = I / J | Q16: N = J / R
B17: ='4. Billing Det. for Def-Var'!B17 -> RESIDENTIAL SERVICE CLASSIFICATION | C17: ='4. Billing Det. for Def-Var'!C17 -> kWh | D17: 140979.1817 | E17: 1308264983 | F17: 0 | G17: 11.07 | H17: 0.0155 | I17: 0 | J17: =G17*D17*12 -> 18727674.5 | K17: =E17*H17 -> 20278107.24 | L17: =F17*I17 -> 0 | M17: =J17+K17+L17 -> 39005781.74 | N17: =IF(ISERROR(J17/M17),0,J17/M17) -> 0.4801256035 | O17: =IF(ISERROR(K17/M17),0,K17/M17) -> 0.5198743965 | P17: =IF(ISERROR(L17/M17),0,L17/M17) -> 0 | Q17: =IF(ISERROR(M17/M30),0,M17/M30) -> 0.5614328307
B18: ='4. Billing Det. for Def-Var'!B18 -> GENERAL SERVICE LESS THAN 50 kW SERVICE CLASSIFICATION | C18: ='4. Billing Det. for Def-Var'!C18 -> kWh | D18: 8989.460008 | E18: 354668870.3 | F18: 0 | G18: 24.39 | H18: 0.0161 | I18: 0 | J18: 2631035.155 | K18: 5710168.812 | L18: 0 | M18: 8341203.967 | N18: 0.3154263061 | O18: 0.6845736939 | P18: 0 | Q18: =IF(ISERROR(M18/M30),0,M18/M30) -> 0.1200597846
B19: ='4. Billing Det. for Def-Var'!B19 -> GENERAL SERVICE 50 to 499 kW SERVICE CLASSIFICATION | C19: ='4. Billing Det. for Def-Var'!C19 -> kW | D19: 1490.72449 | E19: 1064497599 | F19: 2979825.698 | G19: 121.18 | H19: 0 | I19: 2.7446 | J19: 2167751.925 | K19: 0 | L19: 8178429.611 | M19: 10346181.54 | N19: 0.2095219301 | O19: 0 | P19: 0.7904780699 | Q19: =IF(ISERROR(M19/M30),0,M19/M30) -> 0.1489185892
B20: ='4. Billing Det. for Def-Var'!B20 -> GENERAL SERVICE 500 to 4,999 kW SERVICE CLASSIFICATION | C20: ='4. Billing Det. for Def-Var'!C20 -> kW | D20: 114.6164114 | E20: 806154179.9 | F20: 1969146.402 | G20: 1093.35 | H20: 0 | I20: 3.1861 | J20: 1503790.241 | K20: 0 | L20: 6273897.352 | M20: 7777687.593 | N20: 0.1933467015 | O20: 0 | P20: 0.8066532985 | Q20: =IF(ISERROR(M20/M30),0,M20/M30) -> 0.1119487667
B21: ='4. Billing Det. for Def-Var'!B21 -> LARGE USE SERVICE CLASSIFICATION | C21: ='4. Billing Det. for Def-Var'!C21 -> kW | D21: 6 | E21: 382619513.4 | F21: 719987.0916 | G21: 4549.67 | H21: 0 | I21: 2.4122 | J21: 327576.24 | K21: 0 | L21: 1736752.862 | M21: 2064329.102 | N21: 0.1586841166 | O21: 0 | P21: 0.8413158834 | Q21: =IF(ISERROR(M21/M30),0,M21/M30) -> 0.02971308559
B22: ='4. Billing Det. for Def-Var'!B22 -> STANDBY POWER SERVICE CLASSIFICATION | C22: ='4. Billing Det. for Def-Var'!C22 -> kW | D22: 1 | E22: 0 | F22: 54580 | G22: 0 | H22: 0 | I22: 1.6224 | J22: 0 | K22: 0 | L22: 88550.592 | M22: 88550.592 | N22: 0 | O22: 0 | P22: 1 | Q22: =IF(ISERROR(M22/M30),0,M22/M30) -> 0.001274560009
B23: ='4. Billing Det. for Def-Var'!B23 -> UNMETERED SCATTERED LOAD SERVICE CLASSIFICATION | C23: ='4. Billing Det. for Def-Var'!C23 -> kWh | D23: 1561.718162 | E23: 5931732.904 | F23: 0 | G23: 1.05 | H23: 0.0192 | I23: 0 | J23: 19677.64884 | K23: 113889.2718 | L23: 0 | M23: 133566.9206 | N23: 0.1473242682 | O23: 0.8526757318 | P23: 0 | Q23: =IF(ISERROR(M23/M30),0,M23/M30) -> 0.001922506125
B24: ='4. Billing Det. for Def-Var'!B24 -> STREET LIGHTING SERVICE CLASSIFICATION | C24: ='4. Billing Det. for Def-Var'!C24 -> kW | D24: 22334.56352 | E24: 33306954.55 | F24: 100671.8914 | G24: 2.22 | H24: 0 | I24: 11.1563 | J24: 594992.7721 | K24: 0 | L24: 1123125.823 | M24: 1718118.595 | N24: 0.3463048325 | O24: 0 | P24: 0.6536951675 | Q24: =IF(ISERROR(M24/M30),0,M24/M30) -> 0.02472987703
B25: ='4. Billing Det. for Def-Var'!B25 -> 0 | C25: ='4. Billing Det. for Def-Var'!C25 -> 0 | J25: 0 | K25: 0 | L25: 0 | M25: 0 | N25: 0 | O25: 0 | P25: 0 | Q25: =IF(ISERROR(M25/M30),0,M25/M30) -> 0
J26: =G26*D26*12 -> 0 | K26: =E26*H26 -> 0 | L26: =F26*I26 -> 0 | M26: =J26+K26+L26 -> 0 | N26: =IF(ISERROR(J26/M26),0,J26/M26) -> 0 | O26: =IF(ISERROR(K26/M26),0,K26/M26) -> 0 | P26: =IF(ISERROR(L26/M26),0,L26/M26) -> 0 | Q26: =IF(ISERROR(M26/M31),0,M26/M31) -> 0
J27: 0 | K27: 0 | L27: 0 | M27: 0 | N27: 0 | O27: 0 | P27: 0 | Q27: 0
J28: 0 | K28: 0 | L28: 0 | M28: 0 | N28: 0 | O28: 0 | P28: 0 | Q28: 0
J29: 0 | K29: 0 | L29: 0 | M29: 0 | N29: 0 | O29: 0 | P29: 0 | Q29: 0
B30: Total | D30: =SUM(D17:D29) -> 175477.2643 | E30: =SUM(E17:E29) -> 3955443833 | F30: 5824211.083 | J30: =SUM(J17:J29) -> 25972498.48 | K30: =SUM(K17:K29) -> 26102165.32 | L30: 17400756.24 | M30: 69475420.05 | Q30: =SUM(Q17:Q29) -> 1
B33: Rate Class | D33: Total kWh (most recent RRR filing) | E33: Total kW (most recent RRR filing) | F33: Allocation of Tax Savings by Rate Class | G33: Distribution Rate Rider
B34: =B17 -> RESIDENTIAL SERVICE CLASSIFICATION | C34: kWh | D34: ='4. Billing Det. for Def-Var'!D17 -> 1490532667 | E34: ='4. Billing Det. for Def-Var'!E17 -> 0 | F34: =F$48*Q17 -> 0 | G34: =IFERROR(ROUND(F34/'4. Billing Det. for Def-Var'!X17,2),"") -> 0 | H34: $/Customer | I34: If the allocated tax sharing amount does not produce a rate rider in one or more rate class (except for the Standby rate class), a distributor is required to transfer the entire OEB-approved tax sharing amount into account 1595 for disposition at a later date (see Filing Requirements, Appendix B)
B35: GENERAL SERVICE LESS THAN 50 kW SERVICE CLASSIFICATION | C35: kWh | D35: ='4. Billing Det. for Def-Var'!D18 -> 685616684 | E35: ='4. Billing Det. for Def-Var'!E18 -> 0 | F35: =F$48*Q18 -> 0 | G35: =IFERROR(ROUND(IF(E35<>0,F35/E35,F35/D35),4),"") -> 0 | H35: $/kWh
B36: GENERAL SERVICE 50 to 499 kW SERVICE CLASSIFICATION | C36: kW | D36: ='4. Billing Det. for Def-Var'!D19 -> 2051428808 | E36: ='4. Billing Det. for Def-Var'!E19 -> 5710412.01 | F36: 0 | G36: =IFERROR(ROUND(IF(E36<>0,F36/E36,F36/D36),4),"") -> 0 | H36: $/kW
B37: GENERAL SERVICE 500 to 4,999 kW SERVICE CLASSIFICATION | C37: kW | D37: ='4. Billing Det. for Def-Var'!D20 -> 2037760513 | E37: ='4. Billing Det. for Def-Var'!E20 -> 4585777.203 | F37: 0 | G37: 0 | H37: $/kW
B38: LARGE USE SERVICE CLASSIFICATION | C38: kW | D38: ='4. Billing Det. for Def-Var'!D21 -> 977049362 | E38: ='4. Billing Det. for Def-Var'!E21 -> 1753163 | F38: 0 | G38: 0 | H38: $/kWh
B39: STANDBY POWER SERVICE CLASSIFICATION | C39: kW | D39: ='4. Billing Det. for Def-Var'!D22 -> 0 | E39: ='4. Billing Det. for Def-Var'!E22 -> 0 | F39: 0 | H39: $/kWh
B40: UNMETERED SCATTERED LOAD SERVICE CLASSIFICATION | C40: kWh | D40: ='4. Billing Det. for Def-Var'!D23 -> 11437642.31 | E40: ='4. Billing Det. for Def-Var'!E23 -> 0 | F40: 0 | G40: 0 | H40: $/kW
B41: STREET LIGHTING SERVICE CLASSIFICATION | C41: kW | D41: ='4. Billing Det. for Def-Var'!D24 -> 13289944.06 | E41: ='4. Billing Det. for Def-Var'!E24 -> 40571.73001 | F41: 0 | G41: 0 | H41: $/kW
B42: 0 | C42: 0 | D42: ='4. Billing Det. for Def-Var'!D25 -> 0 | E42: ='4. Billing Det. for Def-Var'!E25 -> 0 | F42: 0 | G42: =IFERROR(ROUND(IF(E42<>"",F42/E42,F42/D42),4),"") -> 
F43: =F$48*Q30 -> 0
F44: =F$48*Q31 -> 0
F45: 0
F46: 0
D48: =SUM(D34:D47) -> 7267115621 | E48: =SUM(E34:E47) -> 12089923.94 | F48: =ROUND('9. STS-Tax Change'!O46,2) -> 0

Sheet 11. RTSR - Current Rates
A1: Back to Index | BA1: 1
B2: =+'1. Information Sheet'!B2 -> INCENTIVE REGULATION MODEL FOR 2020 FILERS
B13: Columns F and G must match the data from the most recent RRR filing (Tab 4). Rates have been imported from Tab "RATES". Loss Factor has been imported from "Model Specs" tab. If the data needs to be modified, please make the necessary adjustments and note the changes in your manager's summary.
B15: Rate Class | C15: Rate Description | D15: Unit | E15: Rate | F15: Non-Loss Adjusted Metered kWh | G15: Non-Loss Adjusted Metered kW | H15: Applicable Loss Factor | I15: Loss Adjusted Billed kWh
A16: =IFERROR(VLOOKUP(B16,'Model Specs'!K$16:N$31,3,FALSE),"") -> R_TN | B16: ='4. Billing Det. for Def-Var'!B17 -> RESIDENTIAL SERVICE CLASSIFICATION | C16: Retail Transmission Rate – Network Service Rate | D16: $/kWh | E16: =IFERROR(VLOOKUP(A16,_xlnm.DATABASE,8,FALSE),0) -> 0.0076 | F16: ='4. Billing Det. for Def-Var'!D17 -> 1490532667 | G16: ='4. Billing Det. for Def-Var'!E17 -> 0 | H16: 1 | I16: =F16*H16 -> 1490532667
A17: =IFERROR(VLOOKUP(B17,'Model Specs'!K$16:N$31,3,FALSE),"") -> GSL_TN | B17: ='4. Billing Det. for Def-Var'!B18 -> GENERAL SERVICE LESS THAN 50 kW SERVICE CLASSIFICATION | C17: Retail Transmission Rate – Network Service Rate | D17: $/kWh | E17: 0.0071 | F17: ='4. Billing Det. for Def-Var'!D18 -> 685616684 | G17: ='4. Billing Det. for Def-Var'!E18 -> 0 | H17: 1 | I17: =F17*H17 -> 685616684
A18: =IFERROR(VLOOKUP(B18,'Model Specs'!K$16:N$31,3,FALSE),"") -> GS50_499_TN | B18: ='4. Billing Det. for Def-Var'!B19 -> GENERAL SERVICE 50 to 499 kW SERVICE CLASSIFICATION | C18: Retail Transmission Rate – Network Service Rate | D18: $/kW | E18: 2.7289 | F18: ='4. Billing Det. for Def-Var'!D19 -> 2051428808 | G18: ='4. Billing Det. for Def-Var'!E19 -> 5710412.01 | H18: 1 | I18: 2051428808
A19: =IFERROR(VLOOKUP(B19,'Model Specs'!K$16:N$31,3,FALSE),"") -> GS500_TN | B19: ='4. Billing Det. for Def-Var'!B20 -> GENERAL SERVICE 500 to 4,999 kW SERVICE CLASSIFICATION | C19: Retail Transmission Rate – Network Service Rate | D19: $/kW | E19: 2.6402 | F19: ='4. Billing Det. for Def-Var'!D20 -> 2037760513 | G19: ='4. Billing Det. for Def-Var'!E20 -> 4585777.203 | H19: 1 | I19: 2037760513
A20: =IFERROR(VLOOKUP(B20,'Model Specs'!K$16:N$31,3,FALSE),"") -> LU_TN | B20: ='4. Billing Det. for Def-Var'!B21 -> LARGE USE SERVICE CLASSIFICATION | C20: Retail Transmission Rate – Network Service Rate | D20: $/kW | E20: 2.8174 | F20: ='4. Billing Det. for Def-Var'!D21 -> 977049362 | G20: ='4. Billing Det. for Def-Var'!E21 -> 1753163 | H20: 1 | I20: 977049362
A21: =IFERROR(VLOOKUP(B21,'Model Specs'!K$16:N$31,3,FALSE),"") -> SB | B21: ='4. Billing Det. for Def-Var'!B22 -> STANDBY POWER SERVICE CLASSIFICATION | E21: 0 | F21: ='4. Billing Det. for Def-Var'!D22 -> 0 | G21: ='4. Billing Det. for Def-Var'!E22 -> 0 | H21: 1 | I21: 0
A22: =IFERROR(VLOOKUP(B22,'Model Specs'!K$16:N$31,3,FALSE),"") -> USL_TN | B22: ='4. Billing Det. for Def-Var'!B23 -> UNMETERED SCATTERED LOAD SERVICE CLASSIFICATION | C22: Retail Transmission Rate – Network Service Rate | D22: $/kWh | E22: 0.0071 | F22: ='4. Billing Det. for Def-Var'!D23 -> 11437642.31 | G22: ='4. Billing Det. for Def-Var'!E23 -> 0 | H22: 1 | I22: 11437642.31
A23: =IFERROR(VLOOKUP(B23,'Model Specs'!K$16:N$31,3,FALSE),"") -> SL_TN | B23: ='4. Billing Det. for Def-Var'!B24 -> STREET LIGHTING SERVICE CLASSIFICATION | C23: Retail Transmission Rate – Network Service Rate | D23: $/kW | E23: 1.8899 | F23: ='4. Billing Det. for Def-Var'!D24 -> 13289944.06 | G23: ='4. Billing Det. for Def-Var'!E24 -> 40571.73001 | H23: 1 | I23: 13289944.06
A29: =IFERROR(VLOOKUP(B29,'Model Specs'!K$16:N$31,4,FALSE),"") -> R_TC | B29: =B16 -> RESIDENTIAL SERVICE CLASSIFICATION | C29: Retail Transmission Rate – Line and Transformation Connection Service Rate | D29: =D16 -> $/kWh | E29: =IFERROR(VLOOKUP(A29,_xlnm.DATABASE,8,FALSE),0) -> 0.0073 | F29: =F16 -> 1490532667 | G29: =G16 -> 0 | H29: =H16 -> 1 | I29: =F29*H29 -> 1490532667
A30: =IFERROR(VLOOKUP(B30,'Model Specs'!K$16:N$31,4,FALSE),"") -> GSL_TC | B30: =B17 -> GENERAL SERVICE LESS THAN 50 kW SERVICE CLASSIFICATION | C30: Retail Transmission Rate – Line and Transformation Connection Service Rate | D30: =D17 -> $/kWh | E30: 0.0065 | F30: =F17 -> 685616684 | G30: 0 | H30: 1 | I30: 685616684
A31: =IFERROR(VLOOKUP(B31,'Model Specs'!K$16:N$31,4,FALSE),"") -> GS50_499_TC | B31: GENERAL SERVICE 50 to 499 kW SERVICE CLASSIFICATION | C31: Retail Transmission Rate – Line and Transformation Connection Service Rate | D31: $/kW | E31: 2.5929 | F31: 2051428808 | G31: 5710412.01 | H31: 1 | I31: 2051428808
A32: =IFERROR(VLOOKUP(B32,'Model Specs'!K$16:N$31,4,FALSE),"") -> GS500_TC | B32: GENERAL SERVICE 500 to 4,999 kW SERVICE CLASSIFICATION | C32: Retail Transmission Rate – Line and Transformation Connection Service Rate | D32: $/kW | E32: 2.5373 | F32: 2037760513 | G32: 4585777.203 | H32: 1 | I32: 2037760513
A33: =IFERROR(VLOOKUP(B33,'Model Specs'!K$16:N$31,4,FALSE),"") -> LU_TC | B33: LARGE USE SERVICE CLASSIFICATION | C33: Retail Transmission Rate – Line and Transformation Connection Service Rate | D33: $/kW | E33: 2.71 | F33: 977049362 | G33: 1753163 | H33: 1 | I33: 977049362
A34: =IFERROR(VLOOKUP(B34,'Model Specs'!K$16:N$31,4,FALSE),"") -> SB | B34: STANDBY POWER SERVICE CLASSIFICATION | E34: 0 | F34: 0 | G34: 0 | H34: 1 | I34: 0
A35: =IFERROR(VLOOKUP(B35,'Model Specs'!K$16:N$31,4,FALSE),"") -> USL_TC | B35: UNMETERED SCATTERED LOAD SERVICE CLASSIFICATION | C35: Retail Transmission Rate – Line and Transformation Connection Service Rate | D35: $/kWh | E35: 0.0065 | F35: 11437642.31 | G35: 0 | H35: 1 | I35: 11437642.31
A36: =IFERROR(VLOOKUP(B36,'Model Specs'!K$16:N$31,4,FALSE),"") -> SL_TC | B36: STREET LIGHTING SERVICE CLASSIFICATION | C36: Retail Transmission Rate – Line and Transformation Connection Service Rate | D36: $/kW | E36: 1.875 | F36: 13289944.06 | G36: 40571.73001 | H36: 1 | I36: 13289944.06

Sheet 12. RTSR-UTRs & Sub-Tx
A1: Back to Index
B2: =+'1. Information Sheet'!B2 -> INCENTIVE REGULATION MODEL FOR 2020 FILERS
B12: Uniform Transmission Rates | C12: Unit | E12: 2018 | G12: 2019 | I12: 2020
B14: Rate Description | E14: Rate | G14: Rate | I14: Rate
B16: Network Service Rate | C16: kW | E16: 3.61 | G16: 3.71 | I16: =G16 -> 3.71
B18: Line Connection Service Rate | C18: kW | E18: 0.95 | G18: 0.94 | I18: =G18 -> 0.94
B20: Transformation Connection Service Rate | C20: kW | E20: 2.34 | G20: 2.25 | I20: =G20 -> 2.25
B23: Hydro One Sub-Transmission Rates | C23: Unit | E23: =E12 -> 2018 | G23: =G12 -> 2019 | I23: =I12 -> 2020
B27: Rate Description | E27: Rate | G27: Rate | I27: Rate
B29: Network Service Rate | C29: kW | E29: 3.1942 | G29: 3.1942 | I29: =G29 -> 3.1942
B31: Line Connection Service Rate | C31: kW | E31: 0.771 | G31: 0.771 | I31: =G31 -> 0.771
B33: Transformation Connection Service Rate | C33: kW | E33: 1.7493 | G33: 1.7493 | I33: =G33 -> 1.7493
B35: Both Line and Transformation Connection Service Rate | C35: kW | E35: =SUM(E33,E31) -> 2.5203 | G35: =SUM(G33,G31) -> 2.5203 | I35: =G35 -> 2.5203
B38: If needed, add extra host here. (I) | C38: Unit | E38: =E12 -> 2018 | G38: =G12 -> 2019 | I38: =I12 -> 2020
B42: Rate Description | E42: Rate | G42: Rate | I42: Rate
B44: Network Service Rate | C44: kW
B46: Line Connection Service Rate | C46: kW
B48: Transformation Connection Service Rate | C48: kW
B50: Both Line and Transformation Connection Service Rate | C50: kW | E50: =E46+E48 -> 0 | G50: =G48+G46 -> 0 | I50: =I48+I46 -> 0
B53: If needed, add extra host here. (II) | C53: Unit | E53: =E12 -> 2018 | G53: =G12 -> 2019 | I53: =I12 -> 2020
B57: Rate Description | E57: Rate | G57: Rate | I57: Rate
B59: Network Service Rate | C59: kW
B61: Line Connection Service Rate | C61: kW
B63: Transformation Connection Service Rate | C63: kW
B65: Both Line and Transformation Connection Service Rate | C65: kW | E65: =E61+E63 -> 0 | G65: =G63+G61 -> 0 | I65: =I63+I61 -> 0
E67: Historical 2018 | G67: Current 2019 | I67: Forecast 2020
B68: Low Voltage Switchgear Credit (if applicable, enter as a negative value) | C68: $

Sheet 13. RTSR-Historic Wholesale
A1: Back to Index
B2: =+'1. Information Sheet'!B2 -> INCENTIVE REGULATION MODEL FOR 2020 FILERS
B13: In the green shaded cells, enter billing detail for wholesale transmission for the same reporting period as the billing determinants on Tab 10. For Hydro One Sub-transmission Rates, if you are charged a combined Line and Transformer connection rate, please ensure that both the Line Connection and Transformation Connection columns are completed. If any of the Hydro One Sub-transmission rates (column E, I and M) are highlighted in orange, please double check the billing data entered in "Units Billed" and "Amount" columns. The highlighted rates do not match the Hydro One Sub-transmission rates approved for that time period. If data has been entered correctly, please provide explanation for the discrepancy in rates.
B16: IESO | D16: Network | H16: Line Connection | L16: Transformation Connection | P16: Total Line
B17: Month | D17: Units Billed | E17: Rate | F17: Amount | H17: Units Billed | I17: Rate | J17: Amount | L17: Units Billed | M17: Rate | N17: Amount | P17: Amount
B19: January | D19: 921050 | E19: =IF(D19<>0,F19/D19,0) -> 3.61 | F19: 3324990.5 | H19: 958894 | I19: =IF(H19<>0,J19/H19,0) -> 0.95 | J19: 910949.3 | L19: 958894 | M19: =IF(L19<>0,N19/L19,0) -> 2.34 | N19: 2243811.96 | P19: =J19+N19 -> 3154761.26
B20: February | D20: 881927 | E20: 3.61 | F20: 3183756.47 | H20: 930312 | I20: 0.95 | J20: 883796.4 | L20: 930312 | M20: 2.34 | N20: 2176930.08 | P20: 3060726.48
B21: March | D21: 850066 | E21: 3.61 | F21: 3068738.26 | H21: 897488 | I21: 0.95 | J21: 852613.6 | L21: 897488 | M21: 2.34 | N21: 2100121.92 | P21: 2952735.52
B22: April | D22: 822450 | E22: 3.61 | F22: 2969044.5 | H22: 897518.5684 | I22: 0.95 | J22: 852642.64 | L22: 896508.6154 | M22: 2.34 | N22: 2097830.16 | P22: 2950472.8
B23: May | D23: 1046159 | E23: 3.61 | F23: 3776633.99 | H23: 1103287 | I23: 0.95 | J23: 1048122.65 | L23: 1103287 | M23: 2.34 | N23: 2581691.58 | P23: 3629814.23
B24: June | D24: 1096071 | E24: 3.61 | F24: 3956816.31 | H24: 1195012 | I24: 0.95 | J24: 1135261.4 | L24: 1195012 | M24: 2.34 | N24: 2796328.08 | P24: 3931589.48
B25: July | D25: 1228279.657 | E25: 3.61 | F25: 4434089.56 | H25: 1257540.811 | I25: 0.95 | J25: 1194663.77 | L25: 1255331.192 | M25: 2.34 | N25: 2937474.99 | P25: 4132138.76
B26: August | D26: 1136523.651 | E26: 3.61 | F26: 4102850.38 | H26: 1178378.737 | I26: 0.95 | J26: 1119459.8 | L26: 1178378.462 | M26: 2.34 | N26: 2757405.6 | P26: 3876865.4
B27: September | D27: 1215145.476 | E27: 3.61 | F27: 4386675.17 | H27: 1249691.779 | I27: 0.95 | J27: 1187207.19 | L27: 1249691.372 | M27: 2.34 | N27: 2924277.81 | P27: 4111485
B28: October | D28: 869630 | E28: 3.61 | F28: 3139364.3 | H28: 939586.8632 | I28: 0.95 | J28: 892607.52 | L28: 939591.9231 | M28: 2.34 | N28: 2198645.1 | P28: 3091252.62
B29: November | D29: 880999.2216 | E29: 3.61 | F29: 3180407.19 | H29: 911127.7053 | I29: 0.95 | J29: 865571.32 | L29: 910680.5171 | M29: 2.34 | N29: 2130992.41 | P29: 2996563.73
B30: December | D30: 859640.6787 | E30: 3.61 | F30: 3103302.85 | H30: 934056.7684 | I30: 0.95 | J30: 887353.93 | L30: 928200.3803 | M30: 2.34 | N30: 2171988.89 | P30: 3059342.82
B32: Total | D32: =SUM(D19:D30) -> 11807941.68 | E32: =IF(D32<>0,F32/D32,0) -> 3.61 | F32: =SUM(F19:F30) -> 42626669.48 | H32: =SUM(H19:H30) -> 12452894.23 | I32: =IF(H32<>0,J32/H32,0) -> 0.95 | J32: =SUM(J19:J30) -> 11830249.52 | L32: =SUM(L19:L30) -> 12443375.46 | M32: =IF(L32<>0,N32/L32,0) -> 2.34 | N32: =SUM(N19:N30) -> 29117498.58 | P32: =SUM(P19:P30) -> 40947748.1
B34: Hydro One | D34: Network | H34: Line Connection | L34: Transformation Connection | P34: Total Line
B36: Month | D36: Units Billed | E36: Rate | F36: Amount | H36: Units Billed | I36: Rate | J36: Amount | L36: Units Billed | M36: Rate | N36: Amount | P36: Amount
B38: January | D38: 205107.1098 | E38: =IF(D38<>0,F38/D38,0) -> 3.1942 | F38: 655153.13 | H38: 683389.9092 | I38: =IF(H38<>0,J38/H38,0) -> 0.771 | J38: 526893.62 | L38: 151961.4875 | M38: =IF(L38<>0,N38/L38,0) -> 1.7493 | N38: 265826.23 | P38: =J38+N38 -> 792719.85
B39: February | D39: 183118.2487 | E39: =IF(D39<>0,F39/D39,0) -> 3.1942 | F39: 584916.31 | H39: 569188.7289 | I39: 0.771 | J39: 438844.51 | L39: 128065.8492 | M39: 1.7493 | N39: 224025.59 | P39: =J39+N39 -> 662870.1
B40: March | D40: 170412.3004 | E40: 3.1942 | F40: 544330.97 | H40: 529764.5525 | I40: 0.771 | J40: 408448.47 | L40: 119919.8594 | M40: 1.7493 | N40: 209775.81 | P40: 618224.28
B41: April | D41: 187157.7672 | E41: 3.1942 | F41: 597819.34 | H41: 661598.5214 | I41: 0.771 | J41: 510092.46 | L41: 146859.2637 | M41: 1.7493 | N41: 256900.91 | P41: 766993.37
B42: May | D42: 228639.8003 | E42: 3.1942 | F42: 730321.25 | H42: 720294.7471 | I42: 0.771 | J42: 555347.25 | L42: 158336.7976 | M42: 1.7493 | N42: 276978.56 | P42: 832325.81
B43: June | D43: 205091.5785 | E43: 3.1942 | F43: 655103.52 | H43: 772279.3385 | I43: 0.771 | J43: 595427.37 | L43: 170971.6058 | M43: 1.7493 | N43: 299080.63 | P43: 894508
B44: July | D44: 202067.178 | E44: 3.1942 | F44: 645442.98 | H44: 834654.5136 | I44: 0.771 | J44: 643518.63 | L44: 193829.4861 | M44: 1.7493 | N44: 339065.92 | P44: 982584.55
B45: August | D45: 203232.0925 | E45: 3.1942 | F45: 649163.95 | H45: 821224.332 | I45: 0.771 | J45: 633163.96 | L45: 181153.5414 | M45: 1.7493 | N45: 316891.89 | P45: 950055.85
B46: September | D46: 206796.5437 | E46: 3.1942 | F46: 660549.52 | H46: 826444.2672 | I46: 0.771 | J46: 637188.53 | L46: 182039.3872 | M46: 1.7493 | N46: 318441.5 | P46: 955630.03
B47: October | D47: 211321.2072 | E47: 3.1942 | F47: 675002.2 | H47: 660250.6355 | I47: 0.771 | J47: 509053.24 | L47: 146843.8118 | M47: 1.7493 | N47: 256873.88 | P47: 765927.12
B48: November | D48: 182727.2087 | E48: 3.1942 | F48: 583667.25 | H48: 572457.3022 | I48: 0.771 | J48: 441364.58 | L48: 128658.3491 | M48: 1.7493 | N48: 225062.05 | P48: 666426.63
B49: December | D49: 177370.5529 | E49: 3.1942 | F49: 566557.02 | H49: 556172.6459 | I49: 0.771 | J49: 428809.11 | L49: 124164.7287 | M49: 1.7493 | N49: 217201.36 | P49: 646010.47
B51: Total | D51: =SUM(D38:D49) -> 2363041.588 | E51: =IF(D51<>0,F51/D51,0) -> 3.1942 | F51: =SUM(F38:F49) -> 7548027.44 | H51: =SUM(H38:H49) -> 8207719.494 | I51: =IF(H51<>0,J51/H51,0) -> 0.771 | J51: =SUM(J38:J49) -> 6328151.73 | L51: =SUM(L38:L49) -> 1832804.167 | M51: =IF(L51<>0,N51/L51,0) -> 1.7493 | N51: =SUM(N38:N49) -> 3206124.33 | P51: =SUM(P38:P49) -> 9534276.06
B53: Add Extra Host Here (I) | D53: Network | H53: Line Connection | L53: Transformation Connection | P53: Total Line
B54: (if needed)
B55: Month | D55: Units Billed | E55: Rate | F55: Amount | H55: Units Billed | I55: Rate | J55: Amount | L55: Units Billed | M55: Rate | N55: Amount | P55: Amount
B57: January | E57: =IF(D57<>0,F57/D57,0) -> 0 | I57: =IF(H57<>0,J57/H57,0) -> 0 | M57: =IF(L57<>0,N57/L57,0) -> 0 | P57: =J57+N57 -> 0
B58: February | E58: 0 | I58: 0 | M58: 0 | P58: 0
B59: March | E59: 0 | I59: 0 | M59: 0 | P59: 0
B60: April | E60: 0 | I60: 0 | M60: 0 | P60: 0
B61: May | E61: 0 | I61: 0 | M61: 0 | P61: 0
B62: June | E62: 0 | I62: 0 | M62: 0 | P62: 0
B63: July | E63: 0 | I63: 0 | M63: 0 | P63: 0
B64: August | E64: 0 | I64: 0 | M64: 0 | P64: 0
B65: September | E65: 0 | I65: 0 | M65: 0 | P65: 0
B66: October | E66: 0 | I66: 0 | M66: 0 | P66: 0
B67: November | E67: 0 | I67: 0 | M67: 0 | P67: 0
B68: December | E68: 0 | I68: 0 | M68: 0 | P68: 0
B70: Total | D70: =SUM(D57:D68) -> 0 | E70: =IF(D70<>0,F70/D70,0) -> 0 | F70: =SUM(F57:F68) -> 0 | H70: =SUM(H57:H68) -> 0 | I70: =IF(H70<>0,J70/H70,0) -> 0 | J70: =SUM(J57:J68) -> 0 | L70: =SUM(L57:L68) -> 0 | M70: =IF(L70<>0,N70/L70,0) -> 0 | N70: =SUM(N57:N68) -> 0 | P70: =SUM(P57:P68) -> 0
B72: Add Extra Host Here (II) | D72: Network | H72: Line Connection | L72: Transformation Connection | P72: Total Line
B73: (if needed)
B74: Month | D74: Units Billed | E74: Rate | F74: Amount | H74: Units Billed | I74: Rate | J74: Amount | L74: Units Billed | M74: Rate | N74: Amount | P74: Amount
B76: January | E76: =IF(D76<>0,F76/D76,0) -> 0 | I76: =IF(H76<>0,J76/H76,0) -> 0 | M76: =IF(L76<>0,N76/L76,0) -> 0 | P76: =J76+N76 -> 0
B77: February | E77: 0 | I77: 0 | M77: 0 | P77: 0
B78: March | E78: 0 | I78: 0 | M78: 0 | P78: 0
B79: April | E79: 0 | I79: 0 | M79: 0 | P79: 0
B80: May | E80: 0 | I80: 0 | M80: 0 | P80: 0
B81: June | E81: 0 | I81: 0 | M81: 0 | P81: 0
B82: July | E82: 0 | I82: 0 | M82: 0 | P82: 0
B83: August | E83: 0 | I83: 0 | M83: 0 | P83: 0
B84: September | E84: 0 | I84: 0 | M84: 0 | P84: 0
B85: October | E85: 0 | I85: 0 | M85: 0 | P85: 0
B86: November | E86: 0 | I86: 0 | M86: 0 | P86: 0
B87: December | E87: 0 | I87: 0 | M87: 0 | P87: 0
B89: Total | D89: =SUM(D76:D87) -> 0 | E89: =IF(D89<>0,F89/D89,0) -> 0 | F89: =SUM(F76:F87) -> 0 | H89: =SUM(H76:H87) -> 0 | I89: =IF(H89<>0,J89/H89,0) -> 0 | J89: =SUM(J76:J87) -> 0 | L89: =SUM(L76:L87) -> 0 | M89: =IF(L89<>0,N89/L89,0) -> 0 | N89: =SUM(N76:N87) -> 0 | P89: =SUM(P76:P87) -> 0
B91: Total | D91: Network | H91: Line Connection | L91: Transformation Connection | P91: Total Line
B93: Month | D93: Units Billed | E93: Rate | F93: Amount | H93: Units Billed | I93: Rate | J93: Amount | L93: Units Billed | M93: Rate | N93: Amount | P93: Amount
B95: January | D95: =D19+D38+D57+D76 -> 1126157.11 | E95: =IF(D95<>0,F95/D95,0) -> 3.534270303 | F95: =F19+F38+F57+F76 -> 3980143.63 | H95: =H19+H38+H57+H76 -> 1642283.909 | I95: =IF(H95<>0,J95/H95,0) -> 0.8755142226 | J95: =J19+J38+J57+J76 -> 1437842.92 | L95: =L19+L38+L57+L76 -> 1110855.487 | M95: =IF(L95<>0,N95/L95,0) -> 2.259194124 | N95: =N19+N38+N57+N76 -> 2509638.19 | P95: =J95+N95 -> 3947481.11
B96: February | D96: =D20+D39+D58+D77 -> 1065045.249 | E96: 3.538509547 | F96: =F20+F39+F58+F77 -> 3768672.78 | H96: =H20+H39+H58+H77 -> 1499500.729 | I96: 0.8820541961 | J96: =J20+J39+J58+J77 -> 1322640.91 | L96: =L20+L39+L58+L77 -> 1058377.849 | M96: 2.268524112 | N96: =N20+N39+N58+N77 -> 2400955.67 | P96: 3723596.58
B97: March | D97: 1020478.3 | E97: 3.540564487 | F97: 3613069.23 | H97: 1427252.553 | I97: 0.8835591625 | J97: 1261062.07 | L97: 1017407.859 | M97: 2.270375355 | N97: 2309897.73 | P97: 3570959.8
B98: April | D98: 1009607.767 | E98: 3.532920364 | F98: 3566863.84 | H98: 1559117.09 | I98: 0.8740428213 | J98: 1362735.1 | L98: 1043367.879 | M98: 2.256856011 | N98: 2354731.07 | P98: 3717466.17
B99: May | D99: 1274798.8 | E99: 3.535424758 | F99: 4506955.24 | H99: 1823581.747 | I99: 0.8792969674 | J99: 1603469.9 | L99: 1261623.798 | M99: 2.26586574 | N99: 2858670.14 | P99: 4462140.04
B100: June | D100: 1301162.578 | E100: 3.544460859 | F100: 4611919.83 | H100: 1967291.339 | I100: 0.87973181 | J100: 1730688.77 | L100: 1365983.606 | M100: 2.266065784 | N100: 3095408.71 | P100: 4826097.48
B101: July | D101: 1430346.835 | E101: 3.551259329 | F101: 5079532.54 | H101: 2092195.324 | I101: 0.8785902438 | J101: 1838182.4 | L101: 1449160.678 | M101: 2.260992145 | N101: 3276540.91 | P101: 5114723.31
B102: August | D102: 1339755.744 | E102: 3.546925888 | F102: 4752014.33 | H102: 1999603.069 | I102: 0.8764858323 | J102: 1752623.76 | L102: 1359532.003 | M102: 2.261291006 | N102: 3074297.49 | P102: 4826921.25
B103: September | D103: 1421942.02 | E103: 3.549529178 | F103: 5047224.69 | H103: 2076136.046 | I103: 0.8787457466 | J103: 1824395.72 | L103: 1431730.759 | M103: 2.264894632 | N103: 3242719.31 | P103: 5067115.03
B104: October | D104: 1080951.207 | E104: 3.528712929 | F104: 3814366.5 | H104: 1599837.499 | I104: 0.8761269574 | J104: 1401660.76 | L104: 1086435.735 | M104: 2.260160358 | N104: 2455518.98 | P104: 3857179.74
B105: November | D105: 1063726.43 | E105: 3.538573766 | F105: 3764074.44 | H105: 1483585.007 | I105: 0.8809309163 | J105: 1306935.9 | L105: 1039338.866 | M105: 2.266878048 | N105: 2356054.46 | P105: 3662990.36
B106: December | D106: 1037011.232 | E106: 3.538881507 | F106: 3669859.87 | H106: 1490229.414 | I106: 0.8831949144 | J106: 1316163.04 | L106: 1052365.109 | M106: 2.270305457 | N106: 2389190.25 | P106: 3705353.29
B108: Total | D108: =SUM(D95:D106) -> 14170983.27 | E108: =IF(D108<>0,F108/D108,0) -> 3.540664466 | F108: =SUM(F95:F106) -> 50174696.92 | H108: =SUM(H95:H106) -> 20660613.73 | I108: =IF(H108<>0,J108/H108,0) -> 0.8788897315 | J108: =SUM(J95:J106) -> 18158401.25 | L108: =SUM(L95:L106) -> 14276179.63 | M108: =IF(L108<>0,N108/L108,0) -> 2.264164766 | N108: =SUM(N95:N106) -> 32323622.91 | P108: =SUM(P95:P106) -> 50482024.16
N110: Low Voltage Switchgear Credit (if applicable) | P110: ='12. RTSR-UTRs & Sub-Tx'!E68 -> 0
N112: Total including deduction for Low Voltage Switchgear Credit | P112: =P108+P110 -> 50482024.16

Sheet 14. RTSR-Current Wholesale
A1: Back to Index
B2: =+'1. Information Sheet'!B2 -> INCENTIVE REGULATION MODEL FOR 2020 FILERS
B13: The purpose of this sheet is to calculate the expected billing when current 2019 Uniform Transmission Rates are applied against historical 2018 transmission units.
B16: IESO | D16: Network | H16: Line Connection | L16: Transformation Connection | P16: Total Line
B18: Month | D18: Units Billed | E18: Rate | F18: Amount | H18: Units Billed | I18: Rate | J18: Amount | L18: Units Billed | M18: Rate | N18: Amount | P18: Amount
B20: January | D20: ='13. RTSR-Historic Wholesale'!D19 -> 921050 | E20: ='12. RTSR-UTRs & Sub-Tx'!G16 -> 3.71 | F20: =D20*E20 -> 3417095.5 | H20: ='13. RTSR-Historic Wholesale'!H19 -> 958894 | I20: ='12. RTSR-UTRs & Sub-Tx'!G18 -> 0.94 | J20: =H20*I20 -> 901360.36 | L20: ='13. RTSR-Historic Wholesale'!L19 -> 958894 | M20: ='12. RTSR-UTRs & Sub-Tx'!G20 -> 2.25 | N20: =L20*M20 -> 2157511.5 | P20: =J20+N20 -> 3058871.86
B21: February | D21: ='13. RTSR-Historic Wholesale'!D20 -> 881927 | E21: =E20 -> 3.71 | F21: =D21*E21 -> 3271949.17 | H21: ='13. RTSR-Historic Wholesale'!H20 -> 930312 | I21: =I20 -> 0.94 | J21: =H21*I21 -> 874493.28 | L21: ='13. RTSR-Historic Wholesale'!L20 -> 930312 | M21: =M20 -> 2.25 | N21: =L21*M21 -> 2093202 | P21: 2967695.28
B22: March | D22: ='13. RTSR-Historic Wholesale'!D21 -> 850066 | E22: =E21 -> 3.71 | F22: 3153744.86 | H22: ='13. RTSR-Historic Wholesale'!H21 -> 897488 | I22: =I21 -> 0.94 | J22: 843638.72 | L22: ='13. RTSR-Historic Wholesale'!L21 -> 897488 | M22: =M21 -> 2.25 | N22: 2019348 | P22: 2862986.72
B23: April | D23: ='13. RTSR-Historic Wholesale'!D22 -> 822450 | E23: 3.71 | F23: 3051289.5 | H23: ='13. RTSR-Historic Wholesale'!H22 -> 897518.5684 | I23: 0.94 | J23: 843667.4543 | L23: ='13. RTSR-Historic Wholesale'!L22 -> 896508.6154 | M23: 2.25 | N23: 2017144.385 | P23: 2860811.839
B24: May | D24: ='13. RTSR-Historic Wholesale'!D23 -> 1046159 | E24: 3.71 | F24: 3881249.89 | H24: ='13. RTSR-Historic Wholesale'!H23 -> 1103287 | I24: 0.94 | J24: 1037089.78 | L24: ='13. RTSR-Historic Wholesale'!L23 -> 1103287 | M24: 2.25 | N24: 2482395.75 | P24: 3519485.53
B25: June | D25: ='13. RTSR-Historic Wholesale'!D24 -> 1096071 | E25: 3.71 | F25: 4066423.41 | H25: ='13. RTSR-Historic Wholesale'!H24 -> 1195012 | I25: 0.94 | J25: 1123311.28 | L25: ='13. RTSR-Historic Wholesale'!L24 -> 1195012 | M25: 2.25 | N25: 2688777 | P25: 3812088.28
B26: July | D26: ='13. RTSR-Historic Wholesale'!D25 -> 1228279.657 | E26: 3.71 | F26: 4556917.526 | H26: ='13. RTSR-Historic Wholesale'!H25 -> 1257540.811 | I26: 0.94 | J26: 1182088.362 | L26: ='13. RTSR-Historic Wholesale'!L25 -> 1255331.192 | M26: 2.25 | N26: 2824495.183 | P26: 4006583.545
B27: August | D27: ='13. RTSR-Historic Wholesale'!D26 -> 1136523.651 | E27: 3.71 | F27: 4216502.745 | H27: ='13. RTSR-Historic Wholesale'!H26 -> 1178378.737 | I27: 0.94 | J27: 1107676.013 | L27: ='13. RTSR-Historic Wholesale'!L26 -> 1178378.462 | M27: 2.25 | N27: 2651351.538 | P27: 3759027.551
B28: September | D28: ='13. RTSR-Historic Wholesale'!D27 -> 1215145.476 | E28: 3.71 | F28: 4508189.718 | H28: ='13. RTSR-Historic Wholesale'!H27 -> 1249691.779 | I28: 0.94 | J28: 1174710.272 | L28: ='13. RTSR-Historic Wholesale'!L27 -> 1249691.372 | M28: 2.25 | N28: 2811805.587 | P28: 3986515.859
B29: October | D29: ='13. RTSR-Historic Wholesale'!D28 -> 869630 | E29: 3.71 | F29: 3226327.3 | H29: ='13. RTSR-Historic Wholesale'!H28 -> 939586.8632 | I29: 0.94 | J29: 883211.6514 | L29: ='13. RTSR-Historic Wholesale'!L28 -> 939591.9231 | M29: 2.25 | N29: 2114081.827 | P29: 2997293.478
B30: November | D30: ='13. RTSR-Historic Wholesale'!D29 -> 880999.2216 | E30: 3.71 | F30: 3268507.112 | H30: ='13. RTSR-Historic Wholesale'!H29 -> 911127.7053 | I30: 0.94 | J30: 856460.0429 | L30: ='13. RTSR-Historic Wholesale'!L29 -> 910680.5171 | M30: 2.25 | N30: 2049031.163 | P30: 2905491.206
B31: December | D31: ='13. RTSR-Historic Wholesale'!D30 -> 859640.6787 | E31: 3.71 | F31: 3189266.918 | H31: ='13. RTSR-Historic Wholesale'!H30 -> 934056.7684 | I31: 0.94 | J31: 878013.3623 | L31: ='13. RTSR-Historic Wholesale'!L30 -> 928200.3803 | M31: 2.25 | N31: 2088450.856 | P31: 2966464.218
B33: Total | D33: =SUM(D20:D31) -> 11807941.68 | E33: =IF(D33<>0,F33/D33,0) -> 3.71 | F33: =SUM(F20:F31) -> 43807463.65 | H33: =SUM(H20:H31) -> 12452894.23 | I33: =IF(H33<>0,J33/H33,0) -> 0.94 | J33: =SUM(J20:J31) -> 11705720.58 | L33: =SUM(L20:L31) -> 12443375.46 | M33: =IF(L33<>0,N33/L33,0) -> 2.25 | N33: =SUM(N20:N31) -> 27997594.79 | P33: =SUM(P20:P31) -> 39703315.37
B35: Hydro One | D35: Network | H35: Line Connection | L35: Transformation Connection | P35: Total Line
B37: Month | D37: Units Billed | E37: Rate | F37: Amount | H37: Units Billed | I37: Rate | J37: Amount | L37: Units Billed | M37: Rate | N37: Amount | P37: Amount
B39: January | D39: ='13. RTSR-Historic Wholesale'!D38 -> 205107.1098 | E39: ='12. RTSR-UTRs & Sub-Tx'!G29 -> 3.1942 | F39: =D39*E39 -> 655153.13 | H39: ='13. RTSR-Historic Wholesale'!H38 -> 683389.9092 | I39: ='12. RTSR-UTRs & Sub-Tx'!G31 -> 0.771 | J39: =H39*I39 -> 526893.62 | L39: ='13. RTSR-Historic Wholesale'!L38 -> 151961.4875 | M39: ='12. RTSR-UTRs & Sub-Tx'!G33 -> 1.7493 | N39: =L39*M39 -> 265826.23 | P39: =J39+N39 -> 792719.85
B40: February | D40: ='13. RTSR-Historic Wholesale'!D39 -> 183118.2487 | E40: =E39 -> 3.1942 | F40: =D40*E40 -> 584916.31 | H40: ='13. RTSR-Historic Wholesale'!H39 -> 569188.7289 | I40: =I39 -> 0.771 | J40: =H40*I40 -> 438844.51 | L40: ='13. RTSR-Historic Wholesale'!L39 -> 128065.8492 | M40: =M39 -> 1.7493 | N40: =L40*M40 -> 224025.59 | P40: 662870.1
B41: March | D41: ='13. RTSR-Historic Wholesale'!D40 -> 170412.3004 | E41: =E40 -> 3.1942 | F41: 544330.97 | H41: ='13. RTSR-Historic Wholesale'!H40 -> 529764.5525 | I41: =I40 -> 0.771 | J41: 408448.47 | L41: ='13. RTSR-Historic Wholesale'!L40 -> 119919.8594 | M41: =M40 -> 1.7493 | N41: 209775.81 | P41: 618224.28
B42: April | D42: ='13. RTSR-Historic Wholesale'!D41 -> 187157.7672 | E42: 3.1942 | F42: 597819.34 | H42: ='13. RTSR-Historic Wholesale'!H41 -> 661598.5214 | I42: 0.771 | J42: 510092.46 | L42: ='13. RTSR-Historic Wholesale'!L41 -> 146859.2637 | M42: =M41 -> 1.7493 | N42: 256900.91 | P42: 766993.37
B43: May | D43: ='13. RTSR-Historic Wholesale'!D42 -> 228639.8003 | E43: 3.1942 | F43: 730321.25 | H43: ='13. RTSR-Historic Wholesale'!H42 -> 720294.7471 | I43: 0.771 | J43: 555347.25 | L43: ='13. RTSR-Historic Wholesale'!L42 -> 158336.7976 | M43: 1.7493 | N43: 276978.56 | P43: 832325.81
B44: June | D44: ='13. RTSR-Historic Wholesale'!D43 -> 205091.5785 | E44: 3.1942 | F44: 655103.52 | H44: ='13. RTSR-Historic Wholesale'!H43 -> 772279.3385 | I44: 0.771 | J44: 595427.37 | L44: ='13. RTSR-Historic Wholesale'!L43 -> 170971.6058 | M44: 1.7493 | N44: 299080.63 | P44: 894508
B45: July | D45: ='13. RTSR-Historic Wholesale'!D44 -> 202067.178 | E45: 3.1942 | F45: 645442.98 | H45: ='13. RTSR-Historic Wholesale'!H44 -> 834654.5136 | I45: 0.771 | J45: 643518.63 | L45: ='13. RTSR-Historic Wholesale'!L44 -> 193829.4861 | M45: 1.7493 | N45: 339065.92 | P45: 982584.55
B46: August | D46: ='13. RTSR-Historic Wholesale'!D45 -> 203232.0925 | E46: 3.1942 | F46: 649163.95 | H46: ='13. RTSR-Historic Wholesale'!H45 -> 821224.332 | I46: 0.771 | J46: 633163.96 | L46: ='13. RTSR-Historic Wholesale'!L45 -> 181153.5414 | M46: 1.7493 | N46: 316891.89 | P46: 950055.85
B47: September | D47: ='13. RTSR-Historic Wholesale'!D46 -> 206796.5437 | E47: 3.1942 | F47: 660549.52 | H47: ='13. RTSR-Historic Wholesale'!H46 -> 826444.2672 | I47: 0.771 | J47: 637188.53 | L47: ='13. RTSR-Historic Wholesale'!L46 -> 182039.3872 | M47: 1.7493 | N47: 318441.5 | P47: 955630.03
B48: October | D48: ='13. RTSR-Historic Wholesale'!D47 -> 211321.2072 | E48: 3.1942 | F48: 675002.2 | H48: ='13. RTSR-Historic Wholesale'!H47 -> 660250.6355 | I48: 0.771 | J48: 509053.24 | L48: ='13. RTSR-Historic Wholesale'!L47 -> 146843.8118 | M48: 1.7493 | N48: 256873.88 | P48: 765927.12
B49: November | D49: ='13. RTSR-Historic Wholesale'!D48 -> 182727.2087 | E49: 3.1942 | F49: 583667.25 | H49: ='13. RTSR-Historic Wholesale'!H48 -> 572457.3022 | I49: 0.771 | J49: 441364.58 | L49: ='13. RTSR-Historic Wholesale'!L48 -> 128658.3491 | M49: 1.7493 | N49: 225062.05 | P49: 666426.63
B50: December | D50: ='13. RTSR-Historic Wholesale'!D49 -> 177370.5529 | E50: 3.1942 | F50: 566557.02 | H50: ='13. RTSR-Historic Wholesale'!H49 -> 556172.6459 | I50: 0.771 | J50: 428809.11 | L50: ='13. RTSR-Historic Wholesale'!L49 -> 124164.7287 | M50: 1.7493 | N50: 217201.36 | P50: 646010.47
B52: Total | D52: =SUM(D39:D50) -> 2363041.588 | E52: =IF(D52<>0,F52/D52,0) -> 3.1942 | F52: =SUM(F39:F50) -> 7548027.44 | H52: =SUM(H39:H50) -> 8207719.494 | I52: =IF(H52<>0,J52/H52,0) -> 0.771 | J52: =SUM(J39:J50) -> 6328151.73 | L52: =SUM(L39:L50) -> 1832804.167 | M52: =IF(L52<>0,N52/L52,0) -> 1.7493 | N52: =SUM(N39:N50) -> 3206124.33 | P52: =SUM(P39:P50) -> 9534276.06
B54: Add Extra Host Here (I) | D54: Network | H54: Line Connection | L54: Transformation Connection | P54: Total Line
B56: Month | D56: Units Billed | E56: Rate | F56: Amount | H56: Units Billed | I56: Rate | J56: Amount | L56: Units Billed | M56: Rate | N56: Amount | P56: Amount
B58: January | D58: ='13. RTSR-Historic Wholesale'!D57 -> 0 | E58: ='12. RTSR-UTRs & Sub-Tx'!G44 -> 0 | F58: =D58*E58 -> 0 | H58: ='13. RTSR-Historic Wholesale'!H57 -> 0 | I58: ='12. RTSR-UTRs & Sub-Tx'!G46 -> 0 | J58: =H58*I58 -> 0 | L58: ='13. RTSR-Historic Wholesale'!L57 -> 0 | M58: ='12. RTSR-UTRs & Sub-Tx'!G48 -> 0 | N58: =L58*M58 -> 0 | P58: =J58+N58 -> 0
B59: February | D59: ='13. RTSR-Historic Wholesale'!D58 -> 0 | E59: =E58 -> 0 | F59: =D59*E59 -> 0 | H59: ='13. RTSR-Historic Wholesale'!H58 -> 0 | I59: =I58 -> 0 | J59: =H59*I59 -> 0 | L59: ='13. RTSR-Historic Wholesale'!L58 -> 0 | M59: =M58 -> 0 | N59: =L59*M59 -> 0 | P59: 0
B60: March | D60: ='13. RTSR-Historic Wholesale'!D59 -> 0 | E60: =E59 -> 0 | F60: 0 | H60: ='13. RTSR-Historic Wholesale'!H59 -> 0 | I60: =I59 -> 0 | J60: 0 | L60: ='13. RTSR-Historic Wholesale'!L59 -> 0 | M60: =M59 -> 0 | N60: 0 | P60: 0
B61: April | D61: ='13. RTSR-Historic Wholesale'!D60 -> 0 | E61: 0 | F61: 0 | H61: ='13. RTSR-Historic Wholesale'!H60 -> 0 | I61: 0 | J61: 0 | L61: ='13. RTSR-Historic Wholesale'!L60 -> 0 | M61: 0 | N61: 0 | P61: 0
B62: May | D62: ='13. RTSR-Historic Wholesale'!D61 -> 0 | E62: 0 | F62: 0 | H62: ='13. RTSR-Historic Wholesale'!H61 -> 0 | I62: 0 | J62: 0 | L62: ='13. RTSR-Historic Wholesale'!L61 -> 0 | M62: 0 | N62: 0 | P62: 0
B63: June | D63: ='13. RTSR-Historic Wholesale'!D62 -> 0 | E63: 0 | F63: 0 | H63: ='13. RTSR-Historic Wholesale'!H62 -> 0 | I63: 0 | J63: 0 | L63: ='13. RTSR-Historic Wholesale'!L62 -> 0 | M63: 0 | N63: 0 | P63: 0
B64: July | D64: ='13. RTSR-Historic Wholesale'!D63 -> 0 | E64: 0 | F64: 0 | H64: ='13. RTSR-Historic Wholesale'!H63 -> 0 | I64: 0 | J64: 0 | L64: ='13. RTSR-Historic Wholesale'!L63 -> 0 | M64: 0 | N64: 0 | P64: 0
B65: August | D65: ='13. RTSR-Historic Wholesale'!D64 -> 0 | E65: 0 | F65: 0 | H65: ='13. RTSR-Historic Wholesale'!H64 -> 0 | I65: 0 | J65: 0 | L65: ='13. RTSR-Historic Wholesale'!L64 -> 0 | M65: 0 | N65: 0 | P65: 0
B66: September | D66: ='13. RTSR-Historic Wholesale'!D65 -> 0 | E66: 0 | F66: 0 | H66: ='13. RTSR-Historic Wholesale'!H65 -> 0 | I66: 0 | J66: 0 | L66: ='13. RTSR-Historic Wholesale'!L65 -> 0 | M66: 0 | N66: 0 | P66: 0
B67: October | D67: ='13. RTSR-Historic Wholesale'!D66 -> 0 | E67: 0 | F67: 0 | H67: ='13. RTSR-Historic Wholesale'!H66 -> 0 | I67: 0 | J67: 0 | L67: ='13. RTSR-Historic Wholesale'!L66 -> 0 | M67: 0 | N67: 0 | P67: 0
B68: November | D68: ='13. RTSR-Historic Wholesale'!D67 -> 0 | E68: 0 | F68: 0 | H68: ='13. RTSR-Historic Wholesale'!H67 -> 0 | I68: 0 | J68: 0 | L68: ='13. RTSR-Historic Wholesale'!L67 -> 0 | M68: 0 | N68: 0 | P68: 0
B69: December | D69: ='13. RTSR-Historic Wholesale'!D68 -> 0 | E69: 0 | F69: 0 | H69: ='13. RTSR-Historic Wholesale'!H68 -> 0 | I69: 0 | J69: 0 | L69: ='13. RTSR-Historic Wholesale'!L68 -> 0 | M69: 0 | N69: 0 | P69: 0
B71: Total | D71: =SUM(D58:D69) -> 0 | E71: =IF(D71<>0,F71/D71,0) -> 0 | F71: =SUM(F58:F69) -> 0 | H71: =SUM(H58:H69) -> 0 | I71: =IF(H71<>0,J71/H71,0) -> 0 | J71: =SUM(J58:J69) -> 0 | L71: =SUM(L58:L69) -> 0 | M71: =IF(L71<>0,N71/L71,0) -> 0 | N71: =SUM(N58:N69) -> 0 | P71: =SUM(P58:P69) -> 0
B73: Add Extra Host Here (II) | D73: Network | H73: Line Connection | L73: Transformation Connection | P73: Total Line
B75: Month | D75: Units Billed | E75: Rate | F75: Amount | H75: Units Billed | I75: Rate | J75: Amount | L75: Units Billed | M75: Rate | N75: Amount | P75: Amount
B77: January | D77: ='13. RTSR-Historic Wholesale'!D76 -> 0 | E77: ='12. RTSR-UTRs & Sub-Tx'!G59 -> 0 | F77: =D77*E77 -> 0 | H77: ='13. RTSR-Historic Wholesale'!H76 -> 0 | I77: ='12. RTSR-UTRs & Sub-Tx'!G61 -> 0 | J77: =H77*I77 -> 0 | L77: ='13. RTSR-Historic Wholesale'!L76 -> 0 | M77: ='12. RTSR-UTRs & Sub-Tx'!G63 -> 0 | N77: =L77*M77 -> 0 | P77: =J77+N77 -> 0
B78: February | D78: ='13. RTSR-Historic Wholesale'!D77 -> 0 | E78: =E77 -> 0 | F78: =D78*E78 -> 0 | H78: ='13. RTSR-Historic Wholesale'!H77 -> 0 | I78: =I77 -> 0 | J78: =H78*I78 -> 0 | L78: ='13. RTSR-Historic Wholesale'!L77 -> 0 | M78: =M77 -> 0 | N78: =L78*M78 -> 0 | P78: 0
B79: March | D79: ='13. RTSR-Historic Wholesale'!D78 -> 0 | E79: =E78 -> 0 | F79: 0 | H79: ='13. RTSR-Historic Wholesale'!H78 -> 0 | I79: =I78 -> 0 | J79: 0 | L79: ='13. RTSR-Historic Wholesale'!L78 -> 0 | M79: =M78 -> 0 | N79: 0 | P79: 0
B80: April | D80: ='13. RTSR-Historic Wholesale'!D79 -> 0 | E80: 0 | F80: 0 | H80: ='13. RTSR-Historic Wholesale'!H79 -> 0 | I80: 0 | J80: 0 | L80: ='13. RTSR-Historic Wholesale'!L79 -> 0 | M80: =M79 -> 0 | N80: 0 | P80: 0
B81: May | D81: ='13. RTSR-Historic Wholesale'!D80 -> 0 | E81: 0 | F81: 0 | H81: ='13. RTSR-Historic Wholesale'!H80 -> 0 | I81: 0 | J81: 0 | L81: ='13. RTSR-Historic Wholesale'!L80 -> 0 | M81: 0 | N81: 0 | P81: 0
B82: June | D82: ='13. RTSR-Historic Wholesale'!D81 -> 0 | E82: 0 | F82: 0 | H82: ='13. RTSR-Historic Wholesale'!H81 -> 0 | I82: 0 | J82: 0 | L82: ='13. RTSR-Historic Wholesale'!L81 -> 0 | M82: 0 | N82: 0 | P82: 0
B83: July | D83: ='13. RTSR-Historic Wholesale'!D82 -> 0 | E83: 0 | F83: 0 | H83: ='13. RTSR-Historic Wholesale'!H82 -> 0 | I83: 0 | J83: 0 | L83: ='13. RTSR-Historic Wholesale'!L82 -> 0 | M83: 0 | N83: 0 | P83: 0
B84: August | D84: ='13. RTSR-Historic Wholesale'!D83 -> 0 | E84: 0 | F84: 0 | H84: ='13. RTSR-Historic Wholesale'!H83 -> 0 | I84: 0 | J84: 0 | L84: ='13. RTSR-Historic Wholesale'!L83 -> 0 | M84: 0 | N84: 0 | P84: 0
B85: September | D85: ='13. RTSR-Historic Wholesale'!D84 -> 0 | E85: 0 | F85: 0 | H85: ='13. RTSR-Historic Wholesale'!H84 -> 0 | I85: 0 | J85: 0 | L85: ='13. RTSR-Historic Wholesale'!L84 -> 0 | M85: 0 | N85: 0 | P85: 0
B86: October | D86: ='13. RTSR-Historic Wholesale'!D85 -> 0 | E86: 0 | F86: 0 | H86: ='13. RTSR-Historic Wholesale'!H85 -> 0 | I86: 0 | J86: 0 | L86: ='13. RTSR-Historic Wholesale'!L85 -> 0 | M86: 0 | N86: 0 | P86: 0
B87: November | D87: ='13. RTSR-Historic Wholesale'!D86 -> 0 | E87: 0 | F87: 0 | H87: ='13. RTSR-Historic Wholesale'!H86 -> 0 | I87: 0 | J87: 0 | L87: ='13. RTSR-Historic Wholesale'!L86 -> 0 | M87: 0 | N87: 0 | P87: 0
B88: December | D88: ='13. RTSR-Historic Wholesale'!D87 -> 0 | E88: 0 | F88: 0 | H88: ='13. RTSR-Historic Wholesale'!H87 -> 0 | I88: 0 | J88: 0 | L88: ='13. RTSR-Historic Wholesale'!L87 -> 0 | M88: 0 | N88: 0 | P88: 0
B90: Total | D90: =SUM(D77:D88) -> 0 | E90: =IF(D90<>0,F90/D90,0) -> 0 | F90: =SUM(F77:F88) -> 0 | H90: =SUM(H77:H88) -> 0 | I90: =IF(H90<>0,J90/H90,0) -> 0 | J90: =SUM(J77:J88) -> 0 | L90: =SUM(L77:L88) -> 0 | M90: =IF(L90<>0,N90/L90,0) -> 0 | N90: =SUM(N77:N88) -> 0 | P90: =SUM(P77:P88) -> 0
B92: Total | D92: Network | H92: Line Connection | L92: Transformation Connection | P92: Total Line
B94: Month | D94: Units Billed | E94: Rate | F94: Amount | H94: Units Billed | I94: Rate | J94: Amount | L94: Units Billed | M94: Rate | N94: Amount | P94: Amount
B96: January | D96: =D20+D39+D58+D77 -> 1126157.11 | E96: =IF(D96<>0,F96/D96,0) -> 3.616057293 | F96: =F20+F39+F58+F77 -> 4072248.63 | H96: =H20+H39+H58+H77 -> 1642283.909 | I96: =IF(H96<>0,J96/H96,0) -> 0.8696754392 | J96: =J20+J39+J58+J77 -> 1428253.98 | L96: =L20+L39+L58+L77 -> 1110855.487 | M96: =IF(L96<>0,N96/L96,0) -> 2.181505837 | N96: =N20+N39+N58+N77 -> 2423337.73 | P96: =J96+N96 -> 3851591.71
B97: February | D97: =D21+D40+D59+D78 -> 1065045.249 | E97: 3.621316075 | F97: =F21+F40+F59+F78 -> 3856865.48 | H97: =H21+H40+H59+H78 -> 1499500.729 | I97: 0.8758500511 | J97: =J21+J40+J59+J78 -> 1313337.79 | L97: =L21+L40+L59+L78 -> 1058377.849 | M97: 2.189414293 | N97: =N21+N40+N59+N78 -> 2317227.59 | P97: 3630565.38
B98: March | D98: 1020478.3 | E98: 3.623865229 | F98: 3698075.83 | H98: 1427252.553 | I98: 0.8772709411 | J98: 1252087.19 | L98: 1017407.859 | M98: 2.190983478 | N98: 2229123.81 | P98: 3481211
B99: April | D99: 1009607.767 | E99: 3.614382693 | F99: 3649108.84 | H99: 1559117.09 | I99: 0.8682862391 | J99: 1353759.914 | L99: 1043367.879 | M99: 2.179523963 | N99: 2274045.295 | P99: 3627805.209
B100: May | D100: 1274798.8 | E100: 3.617489394 | F100: 4611571.14 | H100: 1823581.747 | I100: 0.8732468575 | J100: 1592437.03 | L100: 1261623.798 | M100: 2.187160955 | N100: 2759374.31 | P100: 4351811.34
B101: June | D101: 1301162.578 | E101: 3.628698679 | F101: 4721526.93 | H101: 1967291.339 | I101: 0.8736574072 | J101: 1718738.65 | L101: 1365983.606 | M101: 2.187330519 | N101: 2987857.63 | P101: 4706596.28
B102: July | D102: 1430346.835 | E102: 3.637132184 | F102: 5202360.506 | H102: 2092195.324 | I102: 0.8725796157 | J102: 1825606.992 | L102: 1449160.678 | M102: 2.183029908 | N102: 3163561.103 | P102: 4989168.095
B103: August | D103: 1339755.744 | E103: 3.631756549 | F103: 4865666.695 | H103: 1999603.069 | I103: 0.870592769 | J103: 1740839.973 | L103: 1359532.003 | M103: 2.183283234 | N103: 2968243.428 | P103: 4709083.401
B104: September | D104: 1421942.02 | E104: 3.634985931 | F104: 5168739.238 | H104: 2076136.046 | I104: 0.8727264312 | J104: 1811898.802 | L104: 1431730.759 | M104: 2.186337806 | N104: 3130247.087 | P104: 4942145.889
B105: October | D105: 1080951.207 | E105: 3.609163368 | F105: 3901329.5 | H105: 1599837.499 | I105: 0.870253943 | J105: 1392264.891 | L105: 1086435.735 | M105: 2.182324854 | N105: 2370955.707 | P105: 3763220.598
B106: November | D106: 1063726.43 | E106: 3.621395739 | F106: 3852174.362 | H106: 1483585.007 | I106: 0.8747895243 | J106: 1297824.623 | L106: 1039338.866 | M106: 2.188019026 | N106: 2274093.213 | P106: 3571917.836
B107: December | D107: 1037011.232 | E107: 3.621777492 | F107: 3755823.938 | H107: 1490229.414 | I107: 0.8769270421 | J107: 1306822.472 | L107: 1052365.109 | M107: 2.190924229 | N107: 2305652.216 | P107: 3612474.688
B109: Total | D109: =SUM(D96:D107) -> 14170983.27 | E109: =IF(D109<>0,F109/D109,0) -> 3.623989253 | F109: =SUM(F96:F107) -> 51355491.09 | H109: =SUM(H96:H107) -> 20660613.73 | I109: =IF(H109<>0,J109/H109,0) -> 0.8728623722 | J109: =SUM(J96:J107) -> 18033872.31 | L109: =SUM(L96:L107) -> 14276179.63 | M109: =IF(L109<>0,N109/L109,0) -> 2.185719144 | N109: =SUM(N96:N107) -> 31203719.12 | P109: =SUM(P96:P107) -> 49237591.43
N111: Low Voltage Switchgear Credit (if applicable) | P111: ='12. RTSR-UTRs & Sub-Tx'!G68 -> 0
N113: Total including deduction for Low Voltage Switchgear Credit | P113: =P109+P111 -> 49237591.43

Sheet 15. RTSR-Forecast Wholesale
A1: Back to Index
B2: =+'1. Information Sheet'!B2 -> INCENTIVE REGULATION MODEL FOR 2020 FILERS
B13: The purpose of this sheet is to calculate the expected billing when forecasted 2019 Uniform Transmission Rates are applied against historical 2017 transmission units.
B16: IESO | D16: Network | H16: Line Connection | L16: Transformation Connection | P16: Total Line
B18: Month | D18: Units Billed | E18: Rate | F18: Amount | H18: Units Billed | I18: Rate | J18: Amount | L18: Units Billed | M18: Rate | N18: Amount | P18: Amount
B20: January | D20: ='13. RTSR-Historic Wholesale'!D19 -> 921050 | E20: ='12. RTSR-UTRs & Sub-Tx'!I16 -> 3.71 | F20: =D20*E20 -> 3417095.5 | H20: ='13. RTSR-Historic Wholesale'!H19 -> 958894 | I20: ='12. RTSR-UTRs & Sub-Tx'!I18 -> 0.94 | J20: =H20*I20 -> 901360.36 | L20: ='13. RTSR-Historic Wholesale'!L19 -> 958894 | M20: ='12. RTSR-UTRs & Sub-Tx'!I20 -> 2.25 | N20: =L20*M20 -> 2157511.5 | P20: =J20+N20 -> 3058871.86
B21: February | D21: ='13. RTSR-Historic Wholesale'!D20 -> 881927 | E21: =E20 -> 3.71 | F21: 3271949.17 | H21: ='13. RTSR-Historic Wholesale'!H20 -> 930312 | I21: =I20 -> 0.94 | J21: 874493.28 | L21: ='13. RTSR-Historic Wholesale'!L20 -> 930312 | M21: =M20 -> 2.25 | N21: 2093202 | P21: 2967695.28
B22: March | D22: ='13. RTSR-Historic Wholesale'!D21 -> 850066 | E22: 3.71 | F22: 3153744.86 | H22: ='13. RTSR-Historic Wholesale'!H21 -> 897488 | I22: 0.94 | J22: 843638.72 | L22: ='13. RTSR-Historic Wholesale'!L21 -> 897488 | M22: 2.25 | N22: 2019348 | P22: 2862986.72
B23: April | D23: ='13. RTSR-Historic Wholesale'!D22 -> 822450 | E23: 3.71 | F23: 3051289.5 | H23: ='13. RTSR-Historic Wholesale'!H22 -> 897518.5684 | I23: 0.94 | J23: 843667.4543 | L23: ='13. RTSR-Historic Wholesale'!L22 -> 896508.6154 | M23: 2.25 | N23: 2017144.385 | P23: 2860811.839
B24: May | D24: ='13. RTSR-Historic Wholesale'!D23 -> 1046159 | E24: 3.71 | F24: 3881249.89 | H24: ='13. RTSR-Historic Wholesale'!H23 -> 1103287 | I24: 0.94 | J24: 1037089.78 | L24: ='13. RTSR-Historic Wholesale'!L23 -> 1103287 | M24: 2.25 | N24: 2482395.75 | P24: 3519485.53
B25: June | D25: ='13. RTSR-Historic Wholesale'!D24 -> 1096071 | E25: 3.71 | F25: 4066423.41 | H25: ='13. RTSR-Historic Wholesale'!H24 -> 1195012 | I25: 0.94 | J25: 1123311.28 | L25: ='13. RTSR-Historic Wholesale'!L24 -> 1195012 | M25: 2.25 | N25: 2688777 | P25: 3812088.28
B26: July | D26: ='13. RTSR-Historic Wholesale'!D25 -> 1228279.657 | E26: 3.71 | F26: 4556917.526 | H26: ='13. RTSR-Historic Wholesale'!H25 -> 1257540.811 | I26: 0.94 | J26: 1182088.362 | L26: ='13. RTSR-Historic Wholesale'!L25 -> 1255331.192 | M26: 2.25 | N26: 2824495.183 | P26: 4006583.545
B27: August | D27: ='13. RTSR-Historic Wholesale'!D26 -> 1136523.651 | E27: 3.71 | F27: 4216502.745 | H27: ='13. RTSR-Historic Wholesale'!H26 -> 1178378.737 | I27: 0.94 | J27: 1107676.013 | L27: ='13. RTSR-Historic Wholesale'!L26 -> 1178378.462 | M27: 2.25 | N27: 2651351.538 | P27: 3759027.551
B28: September | D28: ='13. RTSR-Historic Wholesale'!D27 -> 1215145.476 | E28: 3.71 | F28: 4508189.718 | H28: ='13. RTSR-Historic Wholesale'!H27 -> 1249691.779 | I28: 0.94 | J28: 1174710.272 | L28: ='13. RTSR-Historic Wholesale'!L27 -> 1249691.372 | M28: 2.25 | N28: 2811805.587 | P28: 3986515.859
B29: October | D29: ='13. RTSR-Historic Wholesale'!D28 -> 869630 | E29: 3.71 | F29: 3226327.3 | H29: ='13. RTSR-Historic Wholesale'!H28 -> 939586.8632 | I29: 0.94 | J29: 883211.6514 | L29: ='13. RTSR-Historic Wholesale'!L28 -> 939591.9231 | M29: 2.25 | N29: 2114081.827 | P29: 2997293.478
B30: November | D30: ='13. RTSR-Historic Wholesale'!D29 -> 880999.2216 | E30: 3.71 | F30: 3268507.112 | H30: ='13. RTSR-Historic Wholesale'!H29 -> 911127.7053 | I30: 0.94 | J30: 856460.0429 | L30: ='13. RTSR-Historic Wholesale'!L29 -> 910680.5171 | M30: 2.25 | N30: 2049031.163 | P30: 2905491.206
B31: December | D31: ='13. RTSR-Historic Wholesale'!D30 -> 859640.6787 | E31: 3.71 | F31: 3189266.918 | H31: ='13. RTSR-Historic Wholesale'!H30 -> 934056.7684 | I31: 0.94 | J31: 878013.3623 | L31: ='13. RTSR-Historic Wholesale'!L30 -> 928200.3803 | M31: 2.25 | N31: 2088450.856 | P31: 2966464.218
B33: Total | D33: =SUM(D20:D31) -> 11807941.68 | E33: =IF(D33<>0,F33/D33,0) -> 3.71 | F33: =SUM(F20:F31) -> 43807463.65 | H33: =SUM(H20:H31) -> 12452894.23 | I33: =IF(H33<>0,J33/H33,0) -> 0.94 | J33: =SUM(J20:J31) -> 11705720.58 | L33: =SUM(L20:L31) -> 12443375.46 | M33: =IF(L33<>0,N33/L33,0) -> 2.25 | N33: =SUM(N20:N31) -> 27997594.79 | P33: =SUM(P20:P31) -> 39703315.37
B35: Hydro One | D35: Network | H35: Line Connection | L35: Transformation Connection | P35: Total Line
B37: Month | D37: Units Billed | E37: Rate | F37: Amount | H37: Units Billed | I37: Rate | J37: Amount | L37: Units Billed | M37: Rate | N37: Amount | P37: Amount
B39: January | D39: ='13. RTSR-Historic Wholesale'!D38 -> 205107.1098 | E39: ='12. RTSR-UTRs & Sub-Tx'!I29 -> 3.1942 | F39: =D39*E39 -> 655153.13 | H39: ='13. RTSR-Historic Wholesale'!H38 -> 683389.9092 | I39: ='12. RTSR-UTRs & Sub-Tx'!I31 -> 0.771 | J39: =H39*I39 -> 526893.62 | L39: ='13. RTSR-Historic Wholesale'!L38 -> 151961.4875 | M39: ='12. RTSR-UTRs & Sub-Tx'!I33 -> 1.7493 | N39: =L39*M39 -> 265826.23 | P39: =J39+N39 -> 792719.85
B40: February | D40: ='13. RTSR-Historic Wholesale'!D39 -> 183118.2487 | E40: =E39 -> 3.1942 | F40: 584916.31 | H40: ='13. RTSR-Historic Wholesale'!H39 -> 569188.7289 | I40: =I39 -> 0.771 | J40: 438844.51 | L40: ='13. RTSR-Historic Wholesale'!L39 -> 128065.8492 | M40: =M39 -> 1.7493 | N40: 224025.59 | P40: 662870.1
B41: March | D41: ='13. RTSR-Historic Wholesale'!D40 -> 170412.3004 | E41: 3.1942 | F41: 544330.97 | H41: ='13. RTSR-Historic Wholesale'!H40 -> 529764.5525 | I41: 0.771 | J41: 408448.47 | L41: ='13. RTSR-Historic Wholesale'!L40 -> 119919.8594 | M41: 1.7493 | N41: 209775.81 | P41: 618224.28
B42: April | D42: ='13. RTSR-Historic Wholesale'!D41 -> 187157.7672 | E42: 3.1942 | F42: 597819.34 | H42: ='13. RTSR-Historic Wholesale'!H41 -> 661598.5214 | I42: 0.771 | J42: 510092.46 | L42: ='13. RTSR-Historic Wholesale'!L41 -> 146859.2637 | M42: 1.7493 | N42: 256900.91 | P42: 766993.37
B43: May | D43: ='13. RTSR-Historic Wholesale'!D42 -> 228639.8003 | E43: 3.1942 | F43: 730321.25 | H43: ='13. RTSR-Historic Wholesale'!H42 -> 720294.7471 | I43: 0.771 | J43: 555347.25 | L43: ='13. RTSR-Historic Wholesale'!L42 -> 158336.7976 | M43: 1.7493 | N43: 276978.56 | P43: 832325.81
B44: June | D44: ='13. RTSR-Historic Wholesale'!D43 -> 205091.5785 | E44: 3.1942 | F44: 655103.52 | H44: ='13. RTSR-Historic Wholesale'!H43 -> 772279.3385 | I44: 0.771 | J44: 595427.37 | L44: ='13. RTSR-Historic Wholesale'!L43 -> 170971.6058 | M44: 1.7493 | N44: 299080.63 | P44: 894508
B45: July | D45: ='13. RTSR-Historic Wholesale'!D44 -> 202067.178 | E45: 3.1942 | F45: 645442.98 | H45: ='13. RTSR-Historic Wholesale'!H44 -> 834654.5136 | I45: 0.771 | J45: 643518.63 | L45: ='13. RTSR-Historic Wholesale'!L44 -> 193829.4861 | M45: 1.7493 | N45: 339065.92 | P45: 982584.55
B46: August | D46: ='13. RTSR-Historic Wholesale'!D45 -> 203232.0925 | E46: 3.1942 | F46: 649163.95 | H46: ='13. RTSR-Historic Wholesale'!H45 -> 821224.332 | I46: 0.771 | J46: 633163.96 | L46: ='13. RTSR-Historic Wholesale'!L45 -> 181153.5414 | M46: 1.7493 | N46: 316891.89 | P46: 950055.85
B47: September | D47: ='13. RTSR-Historic Wholesale'!D46 -> 206796.5437 | E47: 3.1942 | F47: 660549.52 | H47: ='13. RTSR-Historic Wholesale'!H46 -> 826444.2672 | I47: 0.771 | J47: 637188.53 | L47: ='13. RTSR-Historic Wholesale'!L46 -> 182039.3872 | M47: 1.7493 | N47: 318441.5 | P47: 955630.03
B48: October | D48: ='13. RTSR-Historic Wholesale'!D47 -> 211321.2072 | E48: 3.1942 | F48: 675002.2 | H48: ='13. RTSR-Historic Wholesale'!H47 -> 660250.6355 | I48: 0.771 | J48: 509053.24 | L48: ='13. RTSR-Historic Wholesale'!L47 -> 146843.8118 | M48: 1.7493 | N48: 256873.88 | P48: 765927.12
B49: November | D49: ='13. RTSR-Historic Wholesale'!D48 -> 182727.2087 | E49: 3.1942 | F49: 583667.25 | H49: ='13. RTSR-Historic Wholesale'!H48 -> 572457.3022 | I49: 0.771 | J49: 441364.58 | L49: ='13. RTSR-Historic Wholesale'!L48 -> 128658.3491 | M49: 1.7493 | N49: 225062.05 | P49: 666426.63
B50: December | D50: ='13. RTSR-Historic Wholesale'!D49 -> 177370.5529 | E50: 3.1942 | F50: 566557.02 | H50: ='13. RTSR-Historic Wholesale'!H49 -> 556172.6459 | I50: 0.771 | J50: 428809.11 | L50: ='13. RTSR-Historic Wholesale'!L49 -> 124164.7287 | M50: 1.7493 | N50: 217201.36 | P50: 646010.47
B52: Total | D52: =SUM(D39:D50) -> 2363041.588 | E52: =IF(D52<>0,F52/D52,0) -> 3.1942 | F52: =SUM(F39:F50) -> 7548027.44 | H52: =SUM(H39:H50) -> 8207719.494 | I52: =IF(H52<>0,J52/H52,0) -> 0.771 | J52: =SUM(J39:J50) -> 6328151.73 | L52: =SUM(L39:L50) -> 1832804.167 | M52: =IF(L52<>0,N52/L52,0) -> 1.7493 | N52: =SUM(N39:N50) -> 3206124.33 | P52: =SUM(P39:P50) -> 9534276.06
B54: Add Extra Host Here (I) | D54: Network | H54: Line Connection | L54: Transformation Connection | P54: Total Line
B56: Month | D56: Units Billed | E56: Rate | F56: Amount | H56: Units Billed | I56: Rate | J56: Amount | L56: Units Billed | M56: Rate | N56: Amount | P56: Amount
B58: January | D58: ='13. RTSR-Historic Wholesale'!D57 -> 0 | E58: ='12. RTSR-UTRs & Sub-Tx'!I44 -> 0 | F58: =D58*E58 -> 0 | H58: ='13. RTSR-Historic Wholesale'!H57 -> 0 | I58: ='12. RTSR-UTRs & Sub-Tx'!I46 -> 0 | J58: =H58*I58 -> 0 | L58: ='13. RTSR-Historic Wholesale'!L57 -> 0 | M58: ='12. RTSR-UTRs & Sub-Tx'!I48 -> 0 | N58: =L58*M58 -> 0 | P58: =J58+N58 -> 0
B59: February | D59: ='13. RTSR-Historic Wholesale'!D58 -> 0 | E59: =E58 -> 0 | F59: 0 | H59: ='13. RTSR-Historic Wholesale'!H58 -> 0 | I59: =I58 -> 0 | J59: 0 | L59: ='13. RTSR-Historic Wholesale'!L58 -> 0 | M59: =M58 -> 0 | N59: 0 | P59: 0
B60: March | D60: ='13. RTSR-Historic Wholesale'!D59 -> 0 | E60: 0 | F60: 0 | H60: ='13. RTSR-Historic Wholesale'!H59 -> 0 | I60: 0 | J60: 0 | L60: ='13. RTSR-Historic Wholesale'!L59 -> 0 | M60: 0 | N60: 0 | P60: 0
B61: April | D61: ='13. RTSR-Historic Wholesale'!D60 -> 0 | E61: 0 | F61: 0 | H61: ='13. RTSR-Historic Wholesale'!H60 -> 0 | I61: 0 | J61: 0 | L61: ='13. RTSR-Historic Wholesale'!L60 -> 0 | M61: 0 | N61: 0 | P61: 0
B62: May | D62: ='13. RTSR-Historic Wholesale'!D61 -> 0 | E62: 0 | F62: 0 | H62: ='13. RTSR-Historic Wholesale'!H61 -> 0 | I62: 0 | J62: 0 | L62: ='13. RTSR-Historic Wholesale'!L61 -> 0 | M62: 0 | N62: 0 | P62: 0
B63: June | D63: ='13. RTSR-Historic Wholesale'!D62 -> 0 | E63: 0 | F63: 0 | H63: ='13. RTSR-Historic Wholesale'!H62 -> 0 | I63: 0 | J63: 0 | L63: ='13. RTSR-Historic Wholesale'!L62 -> 0 | M63: 0 | N63: 0 | P63: 0
B64: July | D64: ='13. RTSR-Historic Wholesale'!D63 -> 0 | E64: 0 | F64: 0 | H64: ='13. RTSR-Historic Wholesale'!H63 -> 0 | I64: 0 | J64: 0 | L64: ='13. RTSR-Historic Wholesale'!L63 -> 0 | M64: 0 | N64: 0 | P64: 0
B65: August | D65: ='13. RTSR-Historic Wholesale'!D64 -> 0 | E65: 0 | F65: 0 | H65: ='13. RTSR-Historic Wholesale'!H64 -> 0 | I65: 0 | J65: 0 | L65: ='13. RTSR-Historic Wholesale'!L64 -> 0 | M65: 0 | N65: 0 | P65: 0
B66: September | D66: ='13. RTSR-Historic Wholesale'!D65 -> 0 | E66: 0 | F66: 0 | H66: ='13. RTSR-Historic Wholesale'!H65 -> 0 | I66: 0 | J66: 0 | L66: ='13. RTSR-Historic Wholesale'!L65 -> 0 | M66: 0 | N66: 0 | P66: 0
B67: October | D67: ='13. RTSR-Historic Wholesale'!D66 -> 0 | E67: 0 | F67: 0 | H67: ='13. RTSR-Historic Wholesale'!H66 -> 0 | I67: 0 | J67: 0 | L67: ='13. RTSR-Historic Wholesale'!L66 -> 0 | M67: 0 | N67: 0 | P67: 0
B68: November | D68: ='13. RTSR-Historic Wholesale'!D67 -> 0 | E68: 0 | F68: 0 | H68: ='13. RTSR-Historic Wholesale'!H67 -> 0 | I68: 0 | J68: 0 | L68: ='13. RTSR-Historic Wholesale'!L67 -> 0 | M68: 0 | N68: 0 | P68: 0
B69: December | D69: ='13. RTSR-Historic Wholesale'!D68 -> 0 | E69: 0 | F69: 0 | H69: ='13. RTSR-Historic Wholesale'!H68 -> 0 | I69: 0 | J69: 0 | L69: ='13. RTSR-Historic Wholesale'!L68 -> 0 | M69: 0 | N69: 0 | P69: 0
B71: Total | D71: =SUM(D58:D69) -> 0 | E71: =IF(D71<>0,F71/D71,0) -> 0 | F71: =SUM(F58:F69) -> 0 | H71: =SUM(H58:H69) -> 0 | I71: =IF(H71<>0,J71/H71,0) -> 0 | J71: =SUM(J58:J69) -> 0 | L71: =SUM(L58:L69) -> 0 | M71: =IF(L71<>0,N71/L71,0) -> 0 | N71: =SUM(N58:N69) -> 0 | P71: =SUM(P58:P69) -> 0
B73: Add Extra Host Here (II) | D73: Network | H73: Line Connection | L73: Transformation Connection | P73: Total Line
B75: Month | D75: Units Billed | E75: Rate | F75: Amount | H75: Units Billed | I75: Rate | J75: Amount | L75: Units Billed | M75: Rate | N75: Amount | P75: Amount
B77: January | D77: ='13. RTSR-Historic Wholesale'!D76 -> 0 | E77: ='12. RTSR-UTRs & Sub-Tx'!I59 -> 0 | F77: =D77*E77 -> 0 | H77: ='13. RTSR-Historic Wholesale'!H76 -> 0 | I77: ='12. RTSR-UTRs & Sub-Tx'!I61 -> 0 | J77: =H77*I77 -> 0 | L77: ='13. RTSR-Historic Wholesale'!L76 -> 0 | M77: ='12. RTSR-UTRs & Sub-Tx'!I63 -> 0 | N77: =L77*M77 -> 0 | P77: =J77+N77 -> 0
B78: February | D78: ='13. RTSR-Historic Wholesale'!D77 -> 0 | E78: =E77 -> 0 | F78: 0 | H78: ='13. RTSR-Historic Wholesale'!H77 -> 0 | I78: =I77 -> 0 | J78: 0 | L78: ='13. RTSR-Historic Wholesale'!L77 -> 0 | M78: =M77 -> 0 | N78: 0 | P78: 0
B79: March | D79: ='13. RTSR-Historic Wholesale'!D78 -> 0 | E79: 0 | F79: 0 | H79: ='13. RTSR-Historic Wholesale'!H78 -> 0 | I79: 0 | J79: 0 | L79: ='13. RTSR-Historic Wholesale'!L78 -> 0 | M79: 0 | N79: 0 | P79: 0
B80: April | D80: ='13. RTSR-Historic Wholesale'!D79 -> 0 | E80: 0 | F80: 0 | H80: ='13. RTSR-Historic Wholesale'!H79 -> 0 | I80: 0 | J80: 0 | L80: ='13. RTSR-Historic Wholesale'!L79 -> 0 | M80: 0 | N80: 0 | P80: 0
B81: May | D81: ='13. RTSR-Historic Wholesale'!D80 -> 0 | E81: 0 | F81: 0 | H81: ='13. RTSR-Historic Wholesale'!H80 -> 0 | I81: 0 | J81: 0 | L81: ='13. RTSR-Historic Wholesale'!L80 -> 0 | M81: 0 | N81: 0 | P81: 0
B82: June | D82: ='13. RTSR-Historic Wholesale'!D81 -> 0 | E82: 0 | F82: 0 | H82: ='13. RTSR-Historic Wholesale'!H81 -> 0 | I82: 0 | J82: 0 | L82: ='13. RTSR-Historic Wholesale'!L81 -> 0 | M82: 0 | N82: 0 | P82: 0
B83: July | D83: ='13. RTSR-Historic Wholesale'!D82 -> 0 | E83: 0 | F83: 0 | H83: ='13. RTSR-Historic Wholesale'!H82 -> 0 | I83: 0 | J83: 0 | L83: ='13. RTSR-Historic Wholesale'!L82 -> 0 | M83: 0 | N83: 0 | P83: 0
B84: August | D84: ='13. RTSR-Historic Wholesale'!D83 -> 0 | E84: 0 | F84: 0 | H84: ='13. RTSR-Historic Wholesale'!H83 -> 0 | I84: 0 | J84: 0 | L84: ='13. RTSR-Historic Wholesale'!L83 -> 0 | M84: 0 | N84: 0 | P84: 0
B85: September | D85: ='13. RTSR-Historic Wholesale'!D84 -> 0 | E85: 0 | F85: 0 | H85: ='13. RTSR-Historic Wholesale'!H84 -> 0 | I85: 0 | J85: 0 | L85: ='13. RTSR-Historic Wholesale'!L84 -> 0 | M85: 0 | N85: 0 | P85: 0
B86: October | D86: ='13. RTSR-Historic Wholesale'!D85 -> 0 | E86: 0 | F86: 0 | H86: ='13. RTSR-Historic Wholesale'!H85 -> 0 | I86: 0 | J86: 0 | L86: ='13. RTSR-Historic Wholesale'!L85 -> 0 | M86: 0 | N86: 0 | P86: 0
B87: November | D87: ='13. RTSR-Historic Wholesale'!D86 -> 0 | E87: 0 | F87: 0 | H87: ='13. RTSR-Historic Wholesale'!H86 -> 0 | I87: 0 | J87: 0 | L87: ='13. RTSR-Historic Wholesale'!L86 -> 0 | M87: 0 | N87: 0 | P87: 0
B88: December | D88: ='13. RTSR-Historic Wholesale'!D87 -> 0 | E88: 0 | F88: 0 | H88: ='13. RTSR-Historic Wholesale'!H87 -> 0 | I88: 0 | J88: 0 | L88: ='13. RTSR-Historic Wholesale'!L87 -> 0 | M88: 0 | N88: 0 | P88: 0
L89: ='13. RTSR-Historic Wholesale'!L88 -> 0
B90: Total | D90: =SUM(D77:D88) -> 0 | E90: =IF(D90<>0,F90/D90,0) -> 0 | F90: =SUM(F77:F88) -> 0 | H90: =SUM(H77:H88) -> 0 | I90: =IF(H90<>0,J90/H90,0) -> 0 | J90: =SUM(J77:J88) -> 0 | L90: =SUM(L77:L88) -> 0 | M90: =IF(L90<>0,N90/L90,0) -> 0 | N90: =SUM(N77:N88) -> 0 | P90: =SUM(P77:P88) -> 0
B92: Total | D92: Network | H92: Line Connection | L92: Transformation Connection | P92: Total Line
B94: Month | D94: Units Billed | E94: Rate | F94: Amount | H94: Units Billed | I94: Rate | J94: Amount | L94: Units Billed | M94: Rate | N94: Amount | P94: Amount
B96: January | D96: =D20+D39+D58+D77 -> 1126157.11 | E96: =IF(D96<>0,F96/D96,0) -> 3.616057293 | F96: =F20+F39+F58+F77 -> 4072248.63 | H96: =H20+H39+H58+H77 -> 1642283.909 | I96: =IF(H96<>0,J96/H96,0) -> 0.8696754392 | J96: =J20+J39+J58+J77 -> 1428253.98 | L96: =L20+L39+L58+L77 -> 1110855.487 | M96: =IF(L96<>0,N96/L96,0) -> 2.181505837 | N96: =N20+N39+N58+N77 -> 2423337.73 | P96: =J96+N96 -> 3851591.71
B97: February | D97: =D21+D40+D59+D78 -> 1065045.249 | E97: 3.621316075 | F97: =F21+F40+F59+F78 -> 3856865.48 | H97: =H21+H40+H59+H78 -> 1499500.729 | I97: 0.8758500511 | J97: =J21+J40+J59+J78 -> 1313337.79 | L97: =L21+L40+L59+L78 -> 1058377.849 | M97: 2.189414293 | N97: =N21+N40+N59+N78 -> 2317227.59 | P97: 3630565.38
B98: March | D98: 1020478.3 | E98: 3.623865229 | F98: 3698075.83 | H98: 1427252.553 | I98: 0.8772709411 | J98: 1252087.19 | L98: 1017407.859 | M98: 2.190983478 | N98: 2229123.81 | P98: 3481211
B99: April | D99: 1009607.767 | E99: 3.614382693 | F99: 3649108.84 | H99: 1559117.09 | I99: 0.8682862391 | J99: 1353759.914 | L99: 1043367.879 | M99: 2.179523963 | N99: 2274045.295 | P99: 3627805.209
B100: May | D100: 1274798.8 | E100: 3.617489394 | F100: 4611571.14 | H100: 1823581.747 | I100: 0.8732468575 | J100: 1592437.03 | L100: 1261623.798 | M100: 2.187160955 | N100: 2759374.31 | P100: 4351811.34
B101: June | D101: 1301162.578 | E101: 3.628698679 | F101: 4721526.93 | H101: 1967291.339 | I101: 0.8736574072 | J101: 1718738.65 | L101: 1365983.606 | M101: 2.187330519 | N101: 2987857.63 | P101: 4706596.28
B102: July | D102: 1430346.835 | E102: 3.637132184 | F102: 5202360.506 | H102: 2092195.324 | I102: 0.8725796157 | J102: 1825606.992 | L102: 1449160.678 | M102: 2.183029908 | N102: 3163561.103 | P102: 4989168.095
B103: August | D103: 1339755.744 | E103: 3.631756549 | F103: 4865666.695 | H103: 1999603.069 | I103: 0.870592769 | J103: 1740839.973 | L103: 1359532.003 | M103: 2.183283234 | N103: 2968243.428 | P103: 4709083.401
B104: September | D104: 1421942.02 | E104: 3.634985931 | F104: 5168739.238 | H104: 2076136.046 | I104: 0.8727264312 | J104: 1811898.802 | L104: 1431730.759 | M104: 2.186337806 | N104: 3130247.087 | P104: 4942145.889
B105: October | D105: 1080951.207 | E105: 3.609163368 | F105: 3901329.5 | H105: 1599837.499 | I105: 0.870253943 | J105: 1392264.891 | L105: 1086435.735 | M105: 2.182324854 | N105: 2370955.707 | P105: 3763220.598
B106: November | D106: 1063726.43 | E106: 3.621395739 | F106: 3852174.362 | H106: 1483585.007 | I106: 0.8747895243 | J106: 1297824.623 | L106: 1039338.866 | M106: 2.188019026 | N106: 2274093.213 | P106: 3571917.836
B107: December | D107: 1037011.232 | E107: 3.621777492 | F107: 3755823.938 | H107: 1490229.414 | I107: 0.8769270421 | J107: 1306822.472 | L107: 1052365.109 | M107: 2.190924229 | N107: 2305652.216 | P107: 3612474.688
B109: Total | D109: =SUM(D96:D107) -> 14170983.27 | E109: =IF(D109<>0,F109/D109,0) -> 3.623989253 | F109: =SUM(F96:F107) -> 51355491.09 | H109: =SUM(H96:H107) -> 20660613.73 | I109: =IF(H109<>0,J109/H109,0) -> 0.8728623722 | J109: =SUM(J96:J107) -> 18033872.31 | L109: =SUM(L96:L107) -> 14276179.63 | M109: =IF(L109<>0,N109/L109,0) -> 2.185719144 | N109: =SUM(N96:N107) -> 31203719.12 | P109: =SUM(P96:P107) -> 49237591.43
N111: Low Voltage Switchgear Credit (if applicable) | P111: ='12. RTSR-UTRs & Sub-Tx'!I68 -> 0
N113: Total including deduction for Low Voltage Switchgear Credit | P113: =P109+P111 -> 49237591.43

Sheet 16. RTSR-Rates to Forecast
A1: Back to Index
B2: =+'1. Information Sheet'!B2 -> INCENTIVE REGULATION MODEL FOR 2020 FILERS
B13: The purpose of this table is to re-align the current RTS Network Rates to recover current wholesale network costs.
B15: Rate Class | C15: Rate Description | D15: Unit | E15: Current RTSR-Network | F15: Loss Adjusted Billed kWh | G15: Billed kW | H15: Billed Amount | I15: Billed Amount % | J15: Current Wholesale Billing | K15: Adjusted RTSR Network
A17: ='11. RTSR - Current Rates'!A16 -> R_TN | B17: ='11. RTSR - Current Rates'!B16 -> RESIDENTIAL SERVICE CLASSIFICATION | C17: =IFERROR(VLOOKUP(A17,RTSR,3,FALSE),"") -> Retail Transmission Rate – Network Service Rate | D17: =IFERROR(VLOOKUP(A17,RTSR,4,FALSE),"") -> $/kWh | E17: =IFERROR(VLOOKUP(A17,_xlnm.DATABASE,8,FALSE),0) -> 0.0076 | F17: =IF(D17="$/kWh",IFERROR(VLOOKUP(A17,RTSR,9,FALSE),0),"") -> 1490532667 | G17: =IFERROR(VLOOKUP(A17,RTSR,7,FALSE),0) -> 0 | H17: =IF(G17=0,IF(ISERROR(E17*F17),0,ROUND(E17*F17,2)),IF(ISERROR(E17*G17),0,ROUND(E17*G17,2))) -> 11328048.27 | I17: =IFERROR(H17/SUM(H$17:H$24),"") -> 0.2312616629 | J17: =IFERROR(I17*total_wholesale_TN,"") -> 11876556.27 | K17: =IF(G17=0,IF(ISERROR(J17/F17),0,J17/F17),IF(ISERROR(J17/G17),0,J17/G17)) -> 0.007967994615
A18: ='11. RTSR - Current Rates'!A17 -> GSL_TN | B18: ='11. RTSR - Current Rates'!B17 -> GENERAL SERVICE LESS THAN 50 kW SERVICE CLASSIFICATION | C18: Retail Transmission Rate – Network Service Rate | D18: $/kWh | E18: 0.0071 | F18: 685616684 | G18: 0 | H18: =IF(G18=0,IF(ISERROR(E18*F18),0,ROUND(E18*F18,2)),IF(ISERROR(E18*G18),0,ROUND(E18*G18,2))) -> 4867878.46 | I18: =IFERROR(H18/SUM(H$17:H$24),"") -> 0.09937754858 | J18: 5103582.81 | K18: =IF(G18=0,IF(ISERROR(J18/F18),0,J18/F18),IF(ISERROR(J18/G18),0,J18/G18)) -> 0.007443784449
A19: ='11. RTSR - Current Rates'!A18 -> GS50_499_TN | B19: ='11. RTSR - Current Rates'!B18 -> GENERAL SERVICE 50 to 499 kW SERVICE CLASSIFICATION | C19: Retail Transmission Rate – Network Service Rate | D19: $/kW | E19: 2.7289 | G19: 5710412.01 | H19: 15583143.33 | I19: 0.3181292623 | J19: 16337684.49 | K19: 2.861034277
A20: ='11. RTSR - Current Rates'!A19 -> GS500_TN | B20: ='11. RTSR - Current Rates'!B19 -> GENERAL SERVICE 500 to 4,999 kW SERVICE CLASSIFICATION | C20: Retail Transmission Rate – Network Service Rate | D20: $/kW | E20: 2.6402 | G20: 4585777.203 | H20: 12107368.97 | I20: 0.2471714645 | J20: 12693611.94 | K20: 2.768039392
A21: ='11. RTSR - Current Rates'!A20 -> LU_TN | B21: ='11. RTSR - Current Rates'!B20 -> LARGE USE SERVICE CLASSIFICATION | C21: Retail Transmission Rate – Network Service Rate | D21: $/kW | E21: 2.8174 | G21: 1753163 | H21: 4939361.44 | I21: 0.1008368708 | J21: 5178527.021 | K21: 2.95381948
A22: ='11. RTSR - Current Rates'!A21 -> SB | B22: ='11. RTSR - Current Rates'!B21 -> STANDBY POWER SERVICE CLASSIFICATION | E22: 0 | G22: 0 | H22: 0 | I22: 0 | J22: 0 | K22: 0
A23: ='11. RTSR - Current Rates'!A22 -> USL_TN | B23: ='11. RTSR - Current Rates'!B22 -> UNMETERED SCATTERED LOAD SERVICE CLASSIFICATION | C23: Retail Transmission Rate – Network Service Rate | D23: $/kWh | E23: 0.0071 | F23: 11437642.31 | G23: 0 | H23: 81207.26 | I23: 0.00165784304 | J23: 85139.34348 | K23: 0.007443784405
A24: ='11. RTSR - Current Rates'!A23 -> SL_TN | B24: ='11. RTSR - Current Rates'!B23 -> STREET LIGHTING SERVICE CLASSIFICATION | C24: Retail Transmission Rate – Network Service Rate | D24: $/kW | E24: 1.8899 | G24: 40571.73001 | H24: 76676.51 | I24: 0.001565347956 | J24: 80389.213 | K24: 1.981409542
A25: ='11. RTSR - Current Rates'!A24 -> 0 | B25: ='11. RTSR - Current Rates'!B24 -> 0
B32: The purpose of this table is to re-align the current RTS Connection Rates to recover current wholesale connection costs.
B33: Rate Class | C33: Rate Description | D33: Unit | E33: Current RTSR-Connection | F33: Loss Adjusted Billed kWh | G33: Billed kW | H33: Billed Amount | I33: Billed Amount % | J33: Current Wholesale Billing | K33: Adjusted RTSR-Connection
A35: ='11. RTSR - Current Rates'!A29 -> R_TC | B35: ='11. RTSR - Current Rates'!B29 -> RESIDENTIAL SERVICE CLASSIFICATION | C35: =IFERROR(VLOOKUP(A35,RTSR,3,FALSE),"") -> Retail Transmission Rate – Line and Transformation Connection Service Rate | D35: =IFERROR(VLOOKUP(A35,RTSR,4,FALSE),"") -> $/kWh | E35: =IFERROR(VLOOKUP(A35,_xlnm.DATABASE,8,FALSE),0) -> 0.0073 | F35: =IF(D35="$/kWh",IFERROR(VLOOKUP(A35,RTSR,9,FALSE),0),"") -> 1490532667 | G35: =IFERROR(VLOOKUP(A35,RTSR,7,FALSE),0) -> 0 | H35: =IF(G35=0,IF(ISERROR(E35*F35),0,ROUND(E35*F35,2)),IF(ISERROR(E35*G35),0,ROUND(E35*G35,2))) -> 10880888.47 | I35: =IFERROR(H35/SUM(H$35:H$42),"") -> 0.2330907775 | J35: =IFERROR(I35*total_wholesale_LinePlus,"") -> 11476828.47 | K35: =IF(G35=0,IF(ISERROR(J35/F35),0,J35/F35),IF(ISERROR(J35/G35),0,J35/G35)) -> 0.007699816798
A36: ='11. RTSR - Current Rates'!A30 -> GSL_TC | B36: ='11. RTSR - Current Rates'!B30 -> GENERAL SERVICE LESS THAN 50 kW SERVICE CLASSIFICATION | C36: Retail Transmission Rate – Line and Transformation Connection Service Rate | D36: $/kWh | E36: 0.0065 | F36: 685616684 | G36: 0 | H36: =IF(G36=0,IF(ISERROR(E36*F36),0,ROUND(E36*F36,2)),IF(ISERROR(E36*G36),0,ROUND(E36*G36,2))) -> 4456508.45 | I36: =IFERROR(H36/SUM(H$35:H$42),"") -> 0.09546748159 | J36: 4700588.853 | K36: 0.006856001265
A37: ='11. RTSR - Current Rates'!A31 -> GS50_499_TC | B37: ='11. RTSR - Current Rates'!B31 -> GENERAL SERVICE 50 to 499 kW SERVICE CLASSIFICATION | C37: Retail Transmission Rate – Line and Transformation Connection Service Rate | D37: $/kW | E37: 2.5929 | G37: 5710412.01 | H37: 14806527.3 | I37: 0.3171859513 | J37: 15617472.28 | K37: 2.734911641
A38: ='11. RTSR - Current Rates'!A32 -> GS500_TC | B38: ='11. RTSR - Current Rates'!B32 -> GENERAL SERVICE 500 to 4,999 kW SERVICE CLASSIFICATION | C38: Retail Transmission Rate – Line and Transformation Connection Service Rate | D38: $/kW | E38: 2.5373 | G38: 4585777.203 | H38: 11635492.5 | I38: 0.2492559317 | J38: 12272761.73 | K38: 2.676266461
A39: ='11. RTSR - Current Rates'!A33 -> LU_TC | B39: ='11. RTSR - Current Rates'!B33 -> LARGE USE SERVICE CLASSIFICATION | C39: Retail Transmission Rate – Line and Transformation Connection Service Rate | D39: $/kW | E39: 2.71 | G39: 1753163 | H39: 4751071.73 | I39: 0.1017776266 | J39: 5011285.194 | K39: 2.85842514
A40: ='11. RTSR - Current Rates'!A34 -> SB | B40: ='11. RTSR - Current Rates'!B34 -> STANDBY POWER SERVICE CLASSIFICATION | E40: 0 | G40: 0 | H40: 0 | I40: 0 | J40: 0 | K40: 0
A41: ='11. RTSR - Current Rates'!A35 -> USL_TC | B41: ='11. RTSR - Current Rates'!B35 -> UNMETERED SCATTERED LOAD SERVICE CLASSIFICATION | C41: Retail Transmission Rate – Line and Transformation Connection Service Rate | D41: $/kWh | E41: 0.0065 | F41: 11437642.31 | G41: 0 | H41: 74344.68 | I41: 0.001592614364 | J41: 78416.49533 | K41: 0.006856001717
A42: ='11. RTSR - Current Rates'!A36 -> SL_TC | B42: ='11. RTSR - Current Rates'!B36 -> STREET LIGHTING SERVICE CLASSIFICATION | C42: Retail Transmission Rate – Line and Transformation Connection Service Rate | D42: $/kW | E42: 1.875 | G42: 40571.73001 | H42: 76071.99 | I42: 0.001629616859 | J42: 80238.40911 | K42: 1.977692573
A43: ='11. RTSR - Current Rates'!A37 -> 0 | B43: ='11. RTSR - Current Rates'!B37 -> 0
B49: The purpose of this table is to update the re-aligned RTS Network Rates to recover future wholesale network costs.
B50: Rate Class | C50: Rate Description | D50: Unit | E50: Adjusted RTSR-Network | F50: Loss Adjusted Billed kWh | G50: Billed kW | H50: Billed Amount | I50: Billed Amount % | J50: Current Wholesale Billing | K50: Proposed RTSR-Network
A52: =A17 -> R_TN | B52: =B17 -> RESIDENTIAL SERVICE CLASSIFICATION | C52: =IFERROR(VLOOKUP(A52,RTSR,3,FALSE),"") -> Retail Transmission Rate – Network Service Rate | D52: =IFERROR(VLOOKUP(A52,RTSR,4,FALSE),"") -> $/kWh | E52: =K17 -> 0.007967994615 | F52: =IF(D52="$/kWh",IFERROR(VLOOKUP(A52,RTSR,9,FALSE),0),"") -> 1490532667 | G52: =IFERROR(VLOOKUP(A52,RTSR,7,FALSE),0) -> 0 | H52: =IF(G52=0,IF(ISERROR(E52*F52),0,ROUND(E52*F52,2)),IF(ISERROR(E52*G52),0,ROUND(E52*G52,2))) -> 11876556.27 | I52: =IFERROR(H52/SUM(H$52:H$59),"") -> 0.231261663 | J52: =IFERROR(I52*forecast_wholesale_TN,"") -> 11876556.27 | K52: =IF(G52=0,IF(ISERROR(J52/F52),0,J52/F52),IF(ISERROR(J52/G52),0,J52/G52)) -> 0.007967994619
A53: =A18 -> GSL_TN | B53: GENERAL SERVICE LESS THAN 50 kW SERVICE CLASSIFICATION | C53: Retail Transmission Rate – Network Service Rate | D53: $/kWh | E53: =K18 -> 0.007443784449 | F53: 685616684 | G53: 0 | H53: =IF(G53=0,IF(ISERROR(E53*F53),0,ROUND(E53*F53,2)),IF(ISERROR(E53*G53),0,ROUND(E53*G53,2))) -> 5103582.81 | I53: =IFERROR(H53/SUM(H$52:H$59),"") -> 0.09937754859 | J53: 5103582.811 | K53: =IF(G53=0,IF(ISERROR(J53/F53),0,J53/F53),IF(ISERROR(J53/G53),0,J53/G53)) -> 0.00744378445
A54: =A19 -> GS50_499_TN | B54: GENERAL SERVICE 50 to 499 kW SERVICE CLASSIFICATION | C54: Retail Transmission Rate – Network Service Rate | D54: $/kW | E54: 2.861034277 | G54: 5710412.01 | H54: 16337684.49 | I54: 0.3181292623 | J54: 16337684.49 | K54: 2.861034277
A55: =A20 -> GS500_TN | B55: GENERAL SERVICE 500 to 4,999 kW SERVICE CLASSIFICATION | C55: Retail Transmission Rate – Network Service Rate | D55: $/kW | E55: 2.768039392 | G55: 4585777.203 | H55: 12693611.94 | I55: 0.2471714645 | J55: 12693611.94 | K55: 2.768039392
A56: =A21 -> LU_TN | B56: LARGE USE SERVICE CLASSIFICATION | C56: Retail Transmission Rate – Network Service Rate | D56: $/kW | E56: 2.95381948 | G56: 1753163 | H56: 5178527.02 | I56: 0.1008368708 | J56: 5178527.021 | K56: 2.95381948
A57: =A22 -> SB | B57: STANDBY POWER SERVICE CLASSIFICATION | E57: 0 | G57: 0 | H57: 0 | I57: 0 | J57: 0 | K57: 0
A58: =A23 -> USL_TN | B58: UNMETERED SCATTERED LOAD SERVICE CLASSIFICATION | C58: Retail Transmission Rate – Network Service Rate | D58: $/kWh | E58: 0.007443784405 | F58: 11437642.31 | G58: 0 | H58: 85139.34 | I58: 0.001657842973 | J58: 85139.34001 | K58: 0.007443784102
A59: =A24 -> SL_TN | B59: STREET LIGHTING SERVICE CLASSIFICATION | C59: Retail Transmission Rate – Network Service Rate | D59: $/kW | E59: 1.981409542 | G59: 40571.73001 | H59: 80389.21 | I59: 0.001565347898 | J59: 80389.21001 | K59: 1.981409469
A60: =A25 -> 0 | B60: 0
B65: The purpose of this table is to update the re-aligned RTS Connection Rates to recover future wholesale connection costs.
B66: Rate Class | C66: Rate Description | D66: Unit | E66: Adjusted RTSR-Connection | F66: Loss Adjusted Billed kWh | G66: Billed kW | H66: Billed Amount | I66: Billed Amount % | J66: Current Wholesale Billing | K66: Proposed RTSR-Connection
A68: =A35 -> R_TC | B68: =B35 -> RESIDENTIAL SERVICE CLASSIFICATION | C68: =IFERROR(VLOOKUP(A68,RTSR,3,FALSE),"") -> Retail Transmission Rate – Line and Transformation Connection Service Rate | D68: =IFERROR(VLOOKUP(A68,RTSR,4,FALSE),"") -> $/kWh | E68: =K35 -> 0.007699816798 | F68: =IF(D68="$/kWh",IFERROR(VLOOKUP(A68,RTSR,9,FALSE),0),"") -> 1490532667 | G68: =IFERROR(VLOOKUP(A68,RTSR,7,FALSE),0) -> 0 | H68: =IF(G68=0,IF(ISERROR(E68*F68),0,ROUND(E68*F68,2)),IF(ISERROR(E68*G68),0,ROUND(E68*G68,2))) -> 11476828.47 | I68: =IFERROR(H68/SUM(H$68:H$75),"") -> 0.2330907775 | J68: =IFERROR(I68*forecast_wholesale_LNPlus,"") -> 11476828.47 | K68: =IF(G68=0,IF(ISERROR(J68/F68),0,J68/F68),IF(ISERROR(J68/G68),0,J68/G68)) -> 0.007699816798
A69: =A36 -> GSL_TC | B69: GENERAL SERVICE LESS THAN 50 kW SERVICE CLASSIFICATION | C69: Retail Transmission Rate – Line and Transformation Connection Service Rate | D69: $/kWh | E69: =K36 -> 0.006856001265 | F69: 685616684 | G69: 0 | H69: =IF(G69=0,IF(ISERROR(E69*F69),0,ROUND(E69*F69,2)),IF(ISERROR(E69*G69),0,ROUND(E69*G69,2))) -> 4700588.85 | I69: =IFERROR(H69/SUM(H$68:H$75),"") -> 0.09546748152 | J69: 4700588.85 | K69: 0.00685600126
A70: =A37 -> GS50_499_TC | B70: GENERAL SERVICE 50 to 499 kW SERVICE CLASSIFICATION | C70: Retail Transmission Rate – Line and Transformation Connection Service Rate | D70: $/kW | E70: 2.734911641 | G70: 5710412.01 | H70: 15617472.28 | I70: 0.3171859514 | J70: 15617472.28 | K70: 2.734911641
A71: =A38 -> GS500_TC | B71: GENERAL SERVICE 500 to 4,999 kW SERVICE CLASSIFICATION | C71: Retail Transmission Rate – Line and Transformation Connection Service Rate | D71: $/kW | E71: 2.676266461 | G71: 4585777.203 | H71: 12272761.73 | I71: 0.2492559318 | J71: 12272761.73 | K71: 2.676266462
A72: =A39 -> LU_TC | B72: LARGE USE SERVICE CLASSIFICATION | C72: Retail Transmission Rate – Line and Transformation Connection Service Rate | D72: $/kW | E72: 2.85842514 | G72: 1753163 | H72: 5011285.19 | I72: 0.1017776265 | J72: 5011285.19 | K72: 2.858425138
A73: =A40 -> SB | B73: STANDBY POWER SERVICE CLASSIFICATION | E73: 0 | G73: 0 | H73: 0 | I73: 0 | J73: 0 | K73: 0
A74: =A41 -> USL_TC | B74: UNMETERED SCATTERED LOAD SERVICE CLASSIFICATION | C74: Retail Transmission Rate – Line and Transformation Connection Service Rate | D74: $/kWh | E74: 0.006856001717 | F74: 11437642.31 | G74: 0 | H74: 78416.5 | I74: 0.001592614458 | J74: 78416.49999 | K74: 0.006856002124
A75: =A42 -> SL_TC | B75: STREET LIGHTING SERVICE CLASSIFICATION | C75: Retail Transmission Rate – Line and Transformation Connection Service Rate | D75: $/kW | E75: 1.977692573 | G75: 40571.73001 | H75: 80238.41 | I75: 0.001629616877 | J75: 80238.40999 | K75: 1.977692594
A76: =A43 -> 0 | B76: 0

Sheet 17. Rev2Cost-GDPIPI
A1: Back to Index | AA1: FALSE | AB1: 0 | AE1: NO
C2: =+'1. Information Sheet'!B2 -> INCENTIVE REGULATION MODEL FOR 2020 FILERS | S2: TRUE
C11: If applicable, please enter any adjustments related to the revenue to cost ratio model into columns C and E. The Price Escalator and Stretch Factor have been set at the 2016 values and will be updated by OEB staff at a later date.
C12: Price Escalator | D12: 0.015 | E12: Productivity Factor | F12: 0 | G12: # of Residential Customers (approved in the last CoS) | H12: 176865 | I12: Effective Year of Residential Rate Design Transition (yyyy) | J12: 2016
C13: Choose Stretch Factor Group | D13: III | E13: Price Cap Index | F13: =D12-F12-D14 -> 0.012 | G13: Billed kWh for Residential Class (approved in the last CoS) | H13: 1423857475 | I13: OEB-approved # of Transition Years | J13: 4
C14: Associated Stretch Factor Value | D14: =IF(D13="I", 0%, IF(D13="II", 0.15%, IF(D13="III", 0.3%, IF(D13="IV", 0.45%, 0.6%)))) -> 0.003 | G14: Rate Design Transition Years Left | H14: 0
C15: Rate Class | D15: Current MFC | E15: MFC Adjustment from R/C Model | F15: Current Volumetric Charge | G15: DVR Adjustment from R/C Model | H15: Price Cap Index to be Applied to MFC and DVR | I15: Proposed MFC | J15: Proposed Volumetric Charge
A17: R_F | B17: R_V | C17: ='4. Billing Det. for Def-Var'!B17 -> RESIDENTIAL SERVICE CLASSIFICATION | D17: =IFERROR(VLOOKUP(A17,_xlnm.DATABASE,8,FALSE),"") -> 24.25 | F17: =IFERROR(VLOOKUP(B17,_xlnm.DATABASE,8,FALSE),"") -> 0 | H17: =F$13 -> 0.012 | I17: =IFERROR(ROUND(J32*(1+F13),2),0) -> 24.54 | J17: =IFERROR(ROUND(J33*(1+F13),4),0) -> 0
A18: GSL_F | B18: GSL_V | C18: ='4. Billing Det. for Def-Var'!B18 -> GENERAL SERVICE LESS THAN 50 kW SERVICE CLASSIFICATION | D18: 44.52 | F18: 0.013 | H18: =F$13 -> 0.012 | I18: =IFERROR(ROUND((D18+E18)*(1+F$13),2),0) -> 45.05 | J18: =IFERROR((F18+G18)*(1+F$13),0) -> 0.013156
A19: GS50_499_F | B19: GS50_499_V | C19: ='4. Billing Det. for Def-Var'!B19 -> GENERAL SERVICE 50 to 499 kW SERVICE CLASSIFICATION | D19: 78.41 | F19: 4.7189 | H19: 0.012 | I19: 79.35 | J19: =IFERROR((F19+G19)*(1+F$13),0) -> 4.7755268
A20: GS500_F | B20: GS500_V | C20: ='4. Billing Det. for Def-Var'!B20 -> GENERAL SERVICE 500 to 4,999 kW SERVICE CLASSIFICATION | D20: 1785.59 | F20: 2.4282 | H20: 0.012 | I20: 1807.02 | J20: =IFERROR((F20+G20)*(1+F$13),0) -> 2.4573384
A21: LU_F | B21: LU_V | C21: ='4. Billing Det. for Def-Var'!B21 -> LARGE USE SERVICE CLASSIFICATION | D21: 14078.67 | F21: 3.0139 | H21: 0.012 | I21: 14247.61 | J21: =IFERROR((F21+G21)*(1+F$13),0) -> 3.0500668
B22: SB_V | C22: ='4. Billing Det. for Def-Var'!B22 -> STANDBY POWER SERVICE CLASSIFICATION | H22: 0.012 | I22: 0 | J22: =IFERROR((F22+G22)*(1+F$13),0) -> 0
A23: USL_F | B23: USL_V | C23: ='4. Billing Det. for Def-Var'!B23 -> UNMETERED SCATTERED LOAD SERVICE CLASSIFICATION | D23: 9.19 | F23: 0.0167 | H23: 0.012 | I23: 9.3 | J23: 0.0169004
A24: SL_F | B24: SL_V | C24: ='4. Billing Det. for Def-Var'!B24 -> STREET LIGHTING SERVICE CLASSIFICATION | D24: 1.54 | F24: 11.7902 | H24: 0.012 | I24: 1.56 | J24: 11.9316824
A25: MF | C25: microFIT SERVICE CLASSIFICATION | D25: 5.4 | H25: 0.012 | I25: 5.4 | J25: 0
F26: =IFERROR(VLOOKUP(B27,RATES,4,FALSE),"") -> 
F27: =IFERROR(VLOOKUP(B28,RATES,4,FALSE),"") -> 
F28: =IFERROR(VLOOKUP(B29,RATES,4,FALSE),"") -> 
C31: Rate Design Transition | E31: Revenue from Rates | F31: Current F/V Split | G31: Decoupling MFC Split | H31: Incremental Fixed Charge ($/month/year) | I31: New F/V Split | J31: Adjusted Rates1 | K31: Revenue at New F/V Split
C32: Current Residential Fixed Rate (inclusive of R/C adj.) | D32: =D17+E17 -> 24.25 | E32: =D32*COS_RES_CUSTOMERS*12 -> 51467715 | F32: =IF(ISERROR(E32/E34), 0, E32/E34) -> 1 | G32: =IF(ISERROR((1-F32)/YRS_LEFT), 0, (1-F32)/YRS_LEFT) -> 0 | H32: =IF(ISERROR(ROUND(G32*E34/COS_RES_CUSTOMERS/12, 2)), 0, ROUND(G32*E34/COS_RES_CUSTOMERS/12, 2)) -> 0 | I32: =G32+F32 -> 1 | J32: =IF(ISERROR(ROUND(I32*E34/COS_RES_CUSTOMERS/12, 2)), 0, ROUND(I32*E34/COS_RES_CUSTOMERS/12, 2)) -> 24.25 | K32: =ROUND(J32*COS_RES_CUSTOMERS*12, 2) -> 51467715
C33: Current Residential Variable Rate (inclusive of R/C adj.) | D33: =F17+G17 -> 0 | E33: =D33*COS_RES_KWH -> 0 | F33: =IF(ISERROR(E33/E34), 0, E33/E34) -> 0 | I33: =1-I32 -> 0 | J33: =IF(ISERROR(ROUND(I33*E34/COS_RES_KWH, 4)), 0, ROUND(I33*E34/COS_RES_KWH, 4)) -> 0 | K33: =ROUND(J33*COS_RES_KWH, 2) -> 0
E34: =SUM(E32+E33) -> 51467715 | K34: =SUM(K32+K33) -> 51467715
C37: =IF((J32-D32)>=4, "The Rate Design Transition has calculated a monthly fixed charge greater than or equal to $4. Please refer to Section 3.2.3 of the Chapter 3 Filing Requirements for mitigation instructions.", "") -> 
C39: 1 These are the residential rates to which the Price Cap Index will be applied to.

Sheet 18. Regulatory Charges
A1: Back to Index
B2: =+'1. Information Sheet'!B2 -> INCENTIVE REGULATION MODEL FOR 2020 FILERS
C12: Update the following rates if an OEB Decision has been issued at the time of completing this application
C14: Regulatory Charges | E14: Proposed
C15: Wholesale Market Service Rate (WMS) - not including CBR | D15: $/kWh | E15: 0.003
C16: Capacity Based Recovery (CBR) - Applicable for Class B Customers | D16: $/kWh | E16: 0.0004
B17: WMS | C17: WMS unit rate | D17: $/kWh | E17: =SUM(E15:E16) -> 0.0034
B18: RRA | C18: Rural or Remote Electricity Rate Protection Charge (RRRP) | D18: $/kWh | E18: 0.0005
C19: Standard Supply Service - Administrative Charge (if applicable) | D19: $ | E19: 0.25
C20: Ontario Electricity Support Program (OESP) | D20: $/kWh | E20: 0
C23: Time-of-Use RPP Prices
C24: As of | D24: 2019-05-01
B25: OFF | C25: Off-Peak | D25: $/kWh | E25: 0.065
B26: MID | C26: Mid-Peak | D26: $/kWh | E26: 0.094
B27: ON | C27: On-Peak | D27: $/kWh | E27: 0.134
C30: Average IESO Wholesale Market Price
B31: IESO | C31: February 2019 IESO Market Summary Report | D31: $/kWh | E31: 0.1121
C34: Smart Meter Entity Charge (SME)
C35: Smart Meter Entity Charge (SME) | D35: $ | E35: 0.57

Sheet 19. Additional Rates
B1: Back to Index | AB1: 3
B2: =+'1. Information Sheet'!B2 -> INCENTIVE REGULATION MODEL FOR 2020 FILERS
B11: In the Green Cells below, enter any proposed rate riders that are not already included in this model (e.g.: proposed ICM rate riders). Please note that existing SMIRR and SM Entity Charge do not need to be included below. In column A, the rate rider descriptions must begin with "Rate Rider for". In column B, choose the associated unit from the drop-down menu. In column C, enter the rate. All rate riders with a "$" unit should be rounded to 2 decimal places and all others rounded to 4 decimal places. In column E, enter the expiry date (e.g. April 30, 2018) or description of the expiry date in text (e.g. the effective date of the next cost of service-based rate order). In column G, choose the sub-total as applicable in the bill impact calculation from the drop-down menu
B13: RESIDENTIAL SERVICE CLASSIFICATION
A14: R_ICMF20 | B14: Rate Rider for Recovery of Incremental Capital (2020) | C14: $ | D14: =VLOOKUP(A14,'[18]Bill Impacts_2020'!$A$4:$M$10,11,FALSE) -> 0.1204749594 | E14: - effective until | F14: next cost of service based rate order | H14: A
A15: R_ICMV20 | B15: Rate Rider for Recovery of Incremental Capital (2020) | C15: $/kWh | D15: =VLOOKUP(A15,'[18]Bill Impacts_2020'!$B$4:$M$10,11,FALSE) -> 0 | E15: - effective until | F15: next cost of service based rate order | H15: A
A16: R_MFF20 | B16: Rate Rider for Recovery of M-factor Capital (2020) | C16: $ | D16: =VLOOKUP(A16,'[19]Bill Impacts_2020'!$A$4:$M$10,11,FALSE) -> 0.1204749594 | E16: - effective until | F16: next cost of service based rate order | H16: A
A17: R_MFV20 | B17: Rate Rider for Recovery of M-factor Capital (2020) | C17: $/kWh | D17: =VLOOKUP(A17,'[19]Bill Impacts_2020'!$B$4:$M$10,11,FALSE) -> 0 | E17: - effective until | F17: next cost of service based rate order | H17: A
E18: - effective until
E19: - effective until
E20: - effective until
E21: - effective until
E22: - effective until
E23: - effective until
B26: GS<50 SERVICE CLASSIFICATION
A27: GSL_ICMF20 | B27: Rate Rider for Recovery of Incremental Capital (2020) | C27: $ | D27: =VLOOKUP(A27,'[18]Bill Impacts_2020'!$A$4:$M$10,11,FALSE) -> 0.2211771213 | E27: - effective until | F27: next cost of service based rate order | H27: A
A28: GSL_ICMV20 | B28: Rate Rider for Recovery of Incremental Capital (2020) | C28: $/kWh | D28: =VLOOKUP(A28,'[18]Bill Impacts_2020'!$B$4:$M$10,11,FALSE) -> 6.458451432e-05 | E28: - effective until | F28: next cost of service based rate order | H28: A
A29: GSL_MFF20 | B29: Rate Rider for Recovery of M-factor Capital (2020) | C29: $ | D29: =VLOOKUP(A29,'[19]Bill Impacts_2020'!$A$4:$M$10,11,FALSE) -> 0.2211771213 | E29: - effective until | F29: next cost of service based rate order | H29: A
A30: GSL_MFV20 | B30: Rate Rider for Recovery of M-factor Capital (2020) | C30: $/kWh | D30: =VLOOKUP(A30,'[19]Bill Impacts_2020'!$B$4:$M$10,11,FALSE) -> 6.458451432e-05 | E30: - effective until | F30: next cost of service based rate order | H30: A
E31: - effective until
E32: - effective until
E33: - effective until
E34: - effective until
E35: - effective until
B38: GS>50 and <500 SERVICE CLASSIFICATION
A39: GSG_ICMF20 | B39: Rate Rider for Recovery of Incremental Capital (2020) | C39: $ | D39: =VLOOKUP(A39,'[18]Bill Impacts_2020'!$A$4:$M$10,11,FALSE) -> 0.3895439821 | E39: - effective until | F39: next cost of service based rate order | H39: A
A40: GSG_ICMV20 | B40: Rate Rider for Recovery of Incremental Capital (2020) | C40: $/kW | D40: =VLOOKUP(A40,'[18]Bill Impacts_2020'!$B$4:$M$10,11,FALSE) -> 0.02344368189 | E40: - effective until | F40: next cost of service based rate order | H40: A
A41: GS50_MFF20 | B41: Rate Rider for Recovery of M-factor Capital (2020) | C41: $ | D41: =VLOOKUP(A41,'[19]Bill Impacts_2020'!$A$4:$M$10,11,FALSE) -> 0.3895439821 | E41: - effective until | F41: next cost of service based rate order | H41: A
A42: GS50_MFV20 | B42: Rate Rider for Recovery of M-factor Capital (2020) | C42: $/kWh | D42: =VLOOKUP(A42,'[19]Bill Impacts_2020'!$B$4:$M$10,11,FALSE) -> 0.02344368189 | E42: - effective until | F42: next cost of service based rate order | H42: A
E43: - effective until
E44: - effective until
E45: - effective until
E46: - effective until
E47: - effective until
B50: LARGE USER SERVICE CLASSIFICATION
A51: LU_ICMF20 | B51: Rate Rider for Recovery of Incremental Capital (2020) | C51: $ | D51: =VLOOKUP(A51,'[18]Bill Impacts_2020'!$A$4:$M$10,11,FALSE) -> 69.94338955 | E51: - effective until | F51: next cost of service based rate order | H51: A
A52: LU_ICMV20 | B52: Rate Rider for Recovery of Incremental Capital (2020) | C52: $/kW | D52: =VLOOKUP(A52,'[18]Bill Impacts_2020'!$B$4:$M$10,11,FALSE) -> 0.01497317444 | E52: - effective until | F52: next cost of service based rate order | H52: A
A53: LU_MFF20 | B53: Rate Rider for Recovery of M-factor Capital (2020) | C53: $ | D53: =VLOOKUP(A53,'[19]Bill Impacts_2020'!$A$4:$M$10,11,FALSE) -> 69.94338955 | E53: - effective until | F53: next cost of service based rate order | H53: A
A54: LU_MFV20 | B54: Rate Rider for Recovery of M-factor Capital (2020) | C54: $/kWh | D54: =VLOOKUP(A54,'[19]Bill Impacts_2020'!$B$4:$M$10,11,FALSE) -> 0.01497317444 | E54: - effective until | F54: next cost of service based rate order | H54: A
E55: - effective until
E56: - effective until
E57: - effective until
E58: - effective until
E59: - effective until
B62: UNMETERED SCATTERED LOAD SERVICE CLASSIFICATION
A63: USL_ICMF20 | B63: Rate Rider for Recovery of Incremental Capital (2020) | C63: $ | D63: =VLOOKUP(A63,'[18]Bill Impacts_2020'!$A$4:$M$10,11,FALSE) -> 0.04565628358 | E63: - effective until | F63: next cost of service based rate order | H63: A
A64: USL_ICMV20 | B64: Rate Rider for Recovery of Incremental Capital (2020) | C64: $/kWh | D64: =VLOOKUP(A64,'[18]Bill Impacts_2020'!$B$4:$M$10,11,FALSE) -> 8.29662607e-05 | E64: - effective until | F64: next cost of service based rate order | H64: A
A65: USL_MFF20 | B65: Rate Rider for Recovery of M-factor Capital (2020) | C65: $ | D65: =VLOOKUP(A65,'[19]Bill Impacts_2020'!$A$4:$M$10,11,FALSE) -> 0.04565628358 | E65: - effective until | F65: next cost of service based rate order | H65: A
A66: USL_MFV20 | B66: Rate Rider for Recovery of M-factor Capital (2020) | C66: $/kWh | D66: =VLOOKUP(A66,'[19]Bill Impacts_2020'!$B$4:$M$10,11,FALSE) -> 8.29662607e-05 | E66: - effective until | F66: next cost of service based rate order | H66: A
E67: - effective until
E68: - effective until
E69: - effective until
E70: - effective until
E71: - effective until
B74: GS>500 and <4999 SERVICE CLASSIFICATION
A75: GS500_ICMF20 | B75: Rate Rider for Recovery of Incremental Capital (2020) | C75: $ | D75: =VLOOKUP(A75,'[18]Bill Impacts_2020'!$A$4:$M$10,11,FALSE) -> 8.870881763 | E75: - effective until | F75: next cost of service based rate order | H75: A
A76: GS500_ICMV20 | B76: Rate Rider for Recovery of Incremental Capital (2020) | C76: $/kW | D76: =VLOOKUP(A76,'[18]Bill Impacts_2020'!$B$4:$M$10,11,FALSE) -> 0.01206339367 | E76: - effective until | F76: next cost of service based rate order | H76: A
A77: GS500_MFF20 | B77: Rate Rider for Recovery of M-factor Capital (2020) | C77: $ | D77: =VLOOKUP(A77,'[19]Bill Impacts_2020'!$A$4:$M$10,11,FALSE) -> 8.870881763 | E77: - effective until | F77: next cost of service based rate order | H77: A
